Workbook

Sheet Title N
C6: National NHS Equity Dashboard 2011/12
C8: Dashboard developed by: Shehzad Ali
C9: Project team: Richard Cookson (PI), Shehzad Ali and Miqdad Asaria
C10: Centre for Health Economics, University of York
C11: Revised 14 December 2015
C17: http://www.nets.nihr.ac.uk/projects/hsdr/11200439

Sheet Notes N
C2: Indicator Notes
C3: Indicator Definitions | F3: Inequality Measures
C4: 1. Primary care supply: patients per full time equivalent GP, excluding registrars and retainersa,b | F4: Slope Inequality Index (SII): This shows the gap between the most and least deprived neighbourhoods in England.
C5: 2. Primary care quality: clinical performance in the quality and outcomes framework (weighted by public health impact)
C6: 3. Hospital waiting time: days from outpatient decision-to-treat to inpatient admission-for-treatmentc | F6: A positive current SII implies "pro-rich" inequality favouring less deprived areas. A positive SII trend implies the mean SII in the last two years is larger (more unequal) than the mean SII in the two years before that. A clear overall inequality trend requires a statistically significant trend in the same direction for both the SII and the RII ("Relative Inequality Index") which is the SII divided by the mean and can move in a different direction.
C7: 4. Preventable hospitalisation: proportion of people with an emergency admission for an ambulatory care sensitive conditiona
C8: 5. Repeat hospitalisation: proportion of inpatients with subsequent emergency readmission the same yeara
C9: 6. Dying in hospital: proportion of deaths in hospital
C10: 7. Amenable mortality: proportion of people dying from causes considered amenable to health carea
C11: 8. Mortality: proportion of people dying from any causea
F12: Not clear means that RII and SII trends are not significant or they move in different directions.
C13: a Adjusted for age and sex each year
C14: b Adjusted for neighbourhood ill-health in 2007
C15: c Adjusted for treating consultant specialty each year

Sheet Dash N
C2: National NHS Equity Dashboard 2011/12
C3: Indicators of Health Care Access and Outcome | D3: Average | F3: Equity (Slope Inequality Index) | H3: Overall Equity Trend | I3: Inequity Gap
D4: Current | E4: Trend | F4: Current | G4: Trend
C5: 1. Primary care supply (patients per GP) | D5: =FIXED(national_data!H4,0) -> 1,687 | E5: =ROUND(national_data!AZ4,1) -> 13 | F5: =national_data!J4 -> -30.11751639 | G5: =national_data!AT4 -> -8.939237 | H5: =IF(national_data!BE4="green","↑",IF(national_data!BE4="amber","↔", IF(national_data!BE4="red","↓"))) -> ↔ | I5: =IF(national_data!AB2<0,"no gap",FIXED(national_data!AB2,2)&" GPs") -> no gap
C6: 2. Primary care quality (%) | D6: =ROUND(national_data!H5,1)/100 -> 0.774 | E6: =ROUND(national_data!AZ5,2)/100 -> 0.0197 | F6: =national_data!J5/100 -> 0.01452832141 | G6: =national_data!AT5/100 -> 0.000617457 | H6: =IF(national_data!BE5="green","↑",IF(national_data!BE5="amber","↔", IF(national_data!BE5="red","↓"))) -> ↔ | I6: Not applicable
C7: 3. Hospital waiting time (days) | D7: =ROUND(national_data!H7,4) -> 63.0499 | E7: =ROUND(national_data!AZ7,2) -> 1.75 | F7: =national_data!J7 -> 2.285689869 | G7: =national_data!AT7 -> 1.448394 | H7: =IF(national_data!BE7="green","↑",IF(national_data!BE7="amber","↔", IF(national_data!BE7="red","↓"))) -> ↔ | I7: =IF(national_data!AB7<0,"no gap",FIXED(((national_data!AB7)),0,FALSE)&" days waited") -> 4,452,072 days waited
C8: 4. Preventable hospitalisation (per 1,000) | D8: =ROUND(national_data!H9,2) -> 5.84 | E8: =ROUND(national_data!AZ9,2) -> -0.18 | F8: =national_data!J9 -> 6.496397548 | G8: =national_data!AT9 -> -0.4091402 | H8: =IF(national_data!BE9="green","↑",IF(national_data!BE9="amber","↔", IF(national_data!BE9="red","↓"))) -> ↔ | I8: =IF(national_data!J9<0,"no gap",FIXED((national_data!AB9),0,FALSE)&" people admitted") -> 171,119 people admitted
C9: 5. Repeat hospitalisation (%) | D9: =ROUND(national_data!H11,3) -> 0.145 | E9: =ROUND(national_data!AZ11,4) -> -0.0005 | F9: =national_data!J11 -> 0.0696843882 | G9: =national_data!AT11 -> -0.0001735 | H9: =IF(national_data!BE11="green","↑",IF(national_data!BE11="amber","↔", IF(national_data!BE11="red","↓"))) -> ↔ | I9: =IF(national_data!J11<0,"no gap",FIXED((national_data!AB11),0,FALSE)&" people admitted") -> 289,140 people admitted
C10: 6. Dying in hospital (%) | D10: =ROUND(national_data!H12,3) -> 0.436 | E10: =ROUND(national_data!AZ12,4) -> -0.0288 | F10: =national_data!J12 -> 0.05945852308 | G10: =national_data!AT12 -> 0.0048053 | H10: =IF(national_data!BE12="green","↑",IF(national_data!BE12="amber","↔", IF(national_data!BE12="red","↓"))) -> ↔ | I10: =IF(national_data!J12<0,"no gap",FIXED((national_data!AB12),0,FALSE)&" deaths in hospital") -> 13,593 deaths in hospital
C11: 7. Amenable mortality (per 1,000) | D11: =ROUND(national_data!H14,2) -> 2.57 | E11: =ROUND(national_data!AZ14,3) -> -0.163 | F11: =national_data!J14 -> 1.561565099 | G11: =national_data!AT14 -> -0.107719 | H11: =IF(national_data!BE14="green","↑",IF(national_data!BE14="amber","↔", IF(national_data!BE14="red","↓"))) -> ↔ | I11: =IF(national_data!J14<0,"no gap",FIXED((national_data!AB14),0,FALSE)&" deaths") -> 41,123 deaths
C12: 8. Mortality (per 1,000) | D12: =ROUND(national_data!H16,2) -> 8.68 | E12: =ROUND(national_data!AZ16,3) -> -0.138 | F12: =national_data!J16 -> 5.168043629 | G12: =national_data!AT16 -> -0.1751661 | H12: =IF(national_data!BE16="green","↑",IF(national_data!BE16="amber","↔", IF(national_data!BE16="red","↓"))) -> ↔ | I12: =IF(national_data!J16<0,"no gap",FIXED((national_data!AB16),0,FALSE)&" deaths") -> 135,996 deaths
C14: Figures adjusted as appropriate for age, sex and ill-health. See indicator notes for definitions. | E14: Key | F14: Getting better | H14: ↑ Getting better
F15: Not significant | H15: ↔ Not clear
F16: Getting worse | H16: ↓ Getting worse

Sheet national_data (hidden)
A1: INDICATOR | B1: YEAR | C1: Q1 | D1: Q2 | E1: Q3 | F1: Q4 | G1: Q5 | H1: OVERALL_MEAN | I1: OVERALL_MEAN_SE | J1: SII | K1: SII_LCI | L1: SII_UCI | M1: SII_significance | N1: RII | O1: RII_LCI | P1: RII_UCI | Q1: RII_significance | R1: denominator | S1: RII_trend | T1: RII_trend_LCI | U1: RII_trend_UCI | V1: RII_trend_significance | W1: SII_trend | X1: SII_trend_LCI | Y1: SII_trend_UCI | Z1: SII_trend_significance | AA1: overall_trend | AB1: REAL_GAP | AC1: REAL_GAP_LCI | AD1: REAL_GAP_UCI | AE1: REAL_GAP_significance | AF1: OVERALL_MEAN_trend | AG1: OVERALL_MEAN_trend_LCI | AH1: OVERALL_MEAN_trend_UCI | AI1: OVERALL_MEAN_trend_significance | AJ1: rii_lci_n | AK1: rii_uci_n | AL1: sii_lci_n | AM1: sii_uci_n | AN1: rii_diff | AO1: rii_se | AP1: rii_diff_se | AQ1: rii_diff_lci | AR1: rii_diff_uci | AS1: rii_diff_sig | AT1: sii_diff | AU1: sii_se | AV1: sii_diff_se | AW1: sii_diff_lci | AX1: sii_diff_uci | AY1: sii_diff_sig | AZ1: mean_diff | BA1: mean_diff_se | BB1: mean_diff_lci | BC1: mean_diff_uci | BD1: mean_diff_sig | BE1: equity_trend_sig | BF1: mean_trend_sig
A2: gp_fte_adj | B2: 2011 | C2: 61.01519493 | D2: 58.9602345 | E2: 57.8977143 | F2: 58.33668138 | G2: 59.27337687 | H2: 59.09906338 | I2: 0.001106863644 | J2: -2.189563497 | K2: -2.618945731 | L2: -1.760181264 | M2: TRUE | N2: -0.03704903889 | O2: -0.04431450485 | P2: -0.02978357293 | Q2: TRUE | R2: 526.3950692 | S2: -0.06473182631 | T2: -0.07185822719 | U2: -0.05760542543 | V2: TRUE | W2: -3.855814648 | X2: -4.280850053 | Y2: -3.430779243 | Z2: TRUE | AA2: clearly reducing | AB2: -576.2877143 | AC2: -689.3000596 | AD2: -463.2753691 | AE2: TRUE | AF2: -0.6284061518 | AG2: -0.6305265436 | AH2: -0.62628576 | AI2: TRUE | AJ2: -0.0443145 | AK2: -0.0297836 | AL2: -2.618946 | AM2: -1.760181 | AN2: -0.0089412 | AO2: 0.0074137 | AP2: 0.0103676 | AQ2: -0.0292617 | AR2: 0.0113793 | AS2: 0 | AT2: -0.5154445 | AU2: 0.4381452 | AV2: 0.6150586 | AW2: -1.720959 | AX2: 0.6900704 | AY2: 0 | AZ2: -0.4614498 | BA2: 0.0015415 | BB2: -0.4644712 | BC2: -0.4584285 | BD2: 1 | BE2: amber | BF2: green
A3: pat_gp_fte | B3: 2011 | C3: 1598.207792 | D3: 1685.852318 | E3: 1712.745792 | F3: 1715.504432 | G3: 1738.547114 | H3: 1688.835829 | I3: 0.001156336858 | J3: -150.721084 | K3: -135.1767378 | L3: -166.2654302 | M3: TRUE | N3: -0.0892455509 | O3: -0.08004137254 | P3: -0.09844972925 | Q3: TRUE | R3: 31196.65694 | S3: -0.05048440992 | T3: -0.05944748461 | U3: -0.04152133523 | V3: TRUE | W3: -85.6849289 | X3: -100.6960823 | Y3: -70.6737755 | Z3: TRUE | AA3: clearly reducing | AB3: -2350996.975 | AC3: -2108531.158 | AD3: -2593462.793 | AE3: TRUE | AF3: 17.15807084 | AG3: 17.15586888 | AH3: 17.16027281 | AI3: TRUE | AJ3: -0.0984497 | AK3: -0.0800414 | AL3: -166.2654 | AM3: -135.1767 | AN3: 0.0015461 | AO3: 0.009392 | AP3: 0.0130704 | AQ3: -0.0240719 | AR3: 0.0271641 | AS3: 0 | AT3: 1.398026 | AU3: 15.86157 | AV3: 21.9895 | AW3: -41.70139 | AX3: 44.49745 | AY3: 0 | AZ3: 13.36115 | BA3: 0.0016091 | BB3: 13.358 | BC3: 13.36431 | BD3: 1 | BE3: amber | BF3: red
A4: pat_gp_fte_adj | B4: 2011 | C4: 1634.372243 | D4: 1692.912591 | E4: 1721.250382 | F4: 1708.102166 | G4: 1682.764586 | H4: 1687.259471 | I4: 0.001156205303 | J4: -30.11751639 | K4: -17.91204478 | L4: -42.322988 | M4: TRUE | N4: -0.01784996138 | O4: -0.01061605822 | P4: -0.02508386453 | Q4: TRUE | R4: 31181.08034 | S4: -0.06035711537 | T4: -0.06754891097 | U4: -0.05316531977 | V4: TRUE | W4: -100.7794875 | X4: -112.8054912 | Y4: -88.75348379 | Z4: TRUE | AA4: clearly reducing | AB4: -469548.3491 | AC4: -279258.4536 | AD4: -659838.2445 | AE4: TRUE | AF4: 17.47877571 | AG4: 17.47657175 | AH4: 17.48097968 | AI4: TRUE | AJ4: -0.0250839 | AK4: -0.0106161 | AL4: -42.32299 | AM4: -17.91204 | AN4: -0.0052009 | AO4: 0.0073815 | AP4: 0.0103556 | AQ4: -0.0254979 | AR4: 0.0150961 | AS4: 0 | AT4: -8.939237 | AU4: 12.45456 | AV4: 17.40672 | AW4: -43.05642 | AX4: 25.17794 | AY4: 0 | AZ4: 12.96132 | BA4: 0.0016091 | BB4: 12.95817 | BC4: 12.96448 | BD4: 1 | BE4: amber | BF4: red
A5: PHIS | B5: 2011 | C5: 76.96920832 | D5: 77.01126465 | E5: 77.39439276 | F5: 77.79068449 | G5: 78.06243939 | H5: 77.44596402 | I5: 0.0001569234093 | J5: 1.452832141 | K5: 1.372985977 | L5: 1.532678305 | M5: TRUE | N5: 0.01875930088 | O5: 0.01772830895 | P5: 0.01979029281 | Q5: TRUE | R5: 51037349 | S5: -0.004600205073 | T5: -0.005663617177 | U5: -0.003536792969 | V5: TRUE | W5: -0.339119923 | X5: -0.4200927045 | Y5: -0.2581471414 | Z5: TRUE | AA5: clearly reducing | AB5: 37074350.51 | AC5: 35036782.24 | AD5: 39111918.77 | AE5: TRUE | AF5: 0.5763069245 | AG5: 0.5759889679 | AH5: 0.5766248811 | AI5: TRUE | AJ5: 0.0177283 | AK5: 0.0197903 | AL5: 1.372986 | AM5: 1.532678 | AN5: 0.0003274 | AO5: 0.001052 | AP5: 0.0015218 | AQ5: -0.0026553 | AR5: 0.0033101 | AS5: 0 | AT5: 0.0617457 | AU5: 0.0814757 | AV5: 0.1162976 | AW5: -0.1661976 | AX5: 0.289689 | AY5: 0 | AZ5: 1.974181 | BA5: 0.0002262 | BB5: 1.973738 | BC5: 1.974625 | BD5: 1 | BE5: amber | BF5: red
A6: waiting_time | B6: 2011 | C6: 61.69934789 | D6: 62.34019598 | E6: 62.40850375 | F6: 61.52771886 | G6: 61.42807168 | H6: 61.88570689 | I6: 0.000781474763 | J6: 0.8359814345 | K6: 1.16502661 | L6: 0.5069362594 | M6: TRUE | N6: 0.01350847355 | O6: 0.01882545531 | P6: 0.008191491782 | Q6: TRUE | R6: 3895318 | S6: 0.05612460126 | T6: 0.05040131763 | U6: 0.06184788489 | V6: TRUE | W6: 3.248425526 | X6: 2.910469611 | Y6: 3.586381441 | Z6: TRUE | AA6: clearly increasing | AB6: 1628206.765 | AC6: 2269074.561 | AD6: 987338.9681 | AE6: TRUE | AF6: 3.564036998 | AG6: 3.562392637 | AH6: 3.565681358 | AI6: TRUE | AJ6: 0.0081915 | AK6: 0.0188255 | AL6: 0.5069363 | AM6: 1.165027 | AN6: 0.0173136 | AO6: 0.0054255 | AP6: 0.007745 | AQ6: 0.0021334 | AR6: 0.0324938 | AS6: 1 | AT6: 1.065069 | AU6: 0.3357604 | AV6: 0.4727218 | AW6: 0.1385347 | AX6: 1.991604 | AY6: 1 | AZ6: 1.680302 | BA6: 0.0011156 | BB6: 1.678115 | BC6: 1.682488 | BD6: 1 | BE6: amber | BF6: red
A7: waiting_time_adj | B7: 2011 | C7: 63.55415735 | D7: 63.76855945 | E7: 63.46572556 | F7: 62.31731448 | G7: 62.11817017 | H7: 63.04992467 | I7: 0.0007774207106 | J7: 2.285689869 | K7: 2.61664492 | L7: 1.954734818 | M7: TRUE | N7: 0.03625206344 | O7: 0.04150115854 | P7: 0.03100296833 | Q7: TRUE | R7: 3895605 | S7: 0.05248509954 | T7: 0.04691380988 | U7: 0.0580563892 | V7: TRUE | W7: 3.170679765 | X7: 2.835515828 | Y7: 3.505843702 | Z7: TRUE | AA7: clearly increasing | AB7: 4452072.44 | AC7: 5096707.516 | AD7: 3807437.364 | AE7: TRUE | AF7: 3.669866257 | AG7: 3.668259947 | AH7: 3.671472567 | AI7: TRUE | AJ7: 0.031003 | AK7: 0.0415012 | AL7: 1.954735 | AM7: 2.616645 | AN7: 0.0225935 | AO7: 0.0053562 | AP7: 0.0076153 | AQ7: 0.0076676 | AR7: 0.0375195 | AS7: 1 | AT7: 1.448394 | AU7: 0.3377092 | AV7: 0.4734636 | AW7: 0.5204054 | AX7: 2.376383 | AY7: 1 | AZ7: 1.74795 | BA7: 0.0011009 | BB7: 1.745792 | BC7: 1.750108 | BD7: 1 | BE7: amber | BF7: red
A8: unplanned_hospitalisations | B8: 2011 | C8: 7.784253961 | D8: 6.320759374 | E8: 5.483995748 | F8: 4.828950546 | G8: 4.050109042 | H8: 5.691236826 | I8: 0.002992644358 | J8: 4.561888501 | K8: 4.666071566 | L8: 4.457705435 | M8: TRUE | N8: 0.801563639 | O8: 0.8198695131 | P8: 0.7832577648 | Q8: TRUE | R8: 52685.033 | S8: -0.02776962268 | T8: -0.04608977289 | U8: -0.009449472474 | V8: TRUE | W8: -0.2969274821 | X8: -0.4042948508 | Y8: -0.1895601134 | Z8: TRUE | AA8: clearly reducing | AB8: 120171.6231 | AC8: 122916.0672 | AD8: 117427.179 | AE8: TRUE | AF8: -0.1593496065 | AG8: -0.1652678074 | AH8: -0.1534314055 | AI8: TRUE | AJ8: 0.7832578 | AK8: 0.8198695 | AL8: 4.457705 | AM8: 4.666071 | AN8: -0.0614094 | AO8: 0.0186795 | AP8: 0.026504 | AQ8: -0.1133572 | AR8: -0.0094616 | AS8: 1 | AT8: -0.5033187 | AU8: 0.1063091 | AV8: 0.1532363 | AW8: -0.8036618 | AX8: -0.2029756 | AY8: 1 | AZ8: -0.1782481 | BA8: 0.0042705 | BB8: -0.1866184 | BC8: -0.1698779 | BD8: 1 | BE8: green | BF8: green
A9: unplanned_hospitalisations_adj | B9: 2011 | C9: 9.031329962 | D9: 6.74152748 | E9: 5.278420535 | F9: 4.441387734 | G9: 3.725790057 | H9: 5.839335229 | I9: 0.003067764926 | J9: 6.496397548 | K9: 6.592991014 | L9: 6.399804081 | M9: TRUE | N9: 1.11252348 | O9: 1.12906534 | P9: 1.09598162 | Q9: TRUE | R9: 52681.119 | S9: 0.01261853001 | T9: -0.004124649965 | U9: 0.02936170998 | V9: FALSE | W9: -0.09556335411 | X9: -0.1961258602 | Y9: 0.004999152007 | Z9: FALSE | AA9: no clear trend | AB9: 171118.7461 | AC9: 173663.0721 | AD9: 168574.4202 | AE9: TRUE | AF9: -0.1526240832 | AG9: -0.1586747231 | AH9: -0.1465734433 | AI9: TRUE | AJ9: 1.095982 | AK9: 1.129065 | AL9: 6.399804 | AM9: 6.592991 | AN9: -0.0353689 | AO9: 0.0168795 | AP9: 0.0240354 | AQ9: -0.0824782 | AR9: 0.0117405 | AS9: 0 | AT9: -0.4091402 | AU9: 0.0985647 | AV9: 0.1425166 | AW9: -0.6884727 | AX9: -0.1298078 | AY9: 1 | AZ9: -0.1765057 | BA9: 0.0043708 | BB9: -0.1850725 | BC9: -0.1679389 | BD9: 1 | BE9: amber | BF9: green
A10: repeat_hosp | B10: 2011 | C10: 0.1612035485 | D10: 0.1486077233 | E10: 0.1415586479 | F10: 0.1352854595 | G10: 0.1276872683 | H10: 0.1438741463 | I10: 0.001306125441 | J10: 0.03992372285 | K10: 0.04106777039 | L10: 0.03877967531 | M10: TRUE | N10: 0.2774905978 | O10: 0.285442322 | P10: 0.2695388735 | Q10: TRUE | R10: 8299031 | S10: -0.005917394548 | T10: -0.01396314848 | U10: 0.002128359385 | V10: FALSE | W10: -0.0002314305537 | X10: -0.001382538834 | Y10: 0.0009196777269 | Z10: FALSE | AA10: no clear trend | AB10: 165664.1068 | AC10: 170411.3498 | AD10: 160916.8638 | AE10: TRUE | AF10: 0.002100273494 | AG10: -0.0005025971415 | AH10: 0.00470314413 | AI10: FALSE | AJ10: 0.2695389 | AK10: 0.2854423 | AL10: 0.0387797 | AM10: 0.0410678 | AN10: -0.0182081 | AO10: 0.008114 | AP10: 0.0115042 | AQ10: -0.0407562 | AR10: 0.0043401 | AS10: 0 | AT10: -0.002775 | AU10: 0.0011674 | AV10: 0.0016582 | AW10: -0.006025 | AX10: 0.0004751 | AY10: 0 | AZ10: -0.0005253 | BA10: 0.0018603 | BB10: -0.0041715 | BC10: 0.003121 | BD10: 0 | BE10: amber | BF10: amber
A11: repeat_hosp_adj | B11: 2011 | C11: 0.1781572009 | D11: 0.1540870171 | E11: 0.1368139433 | F11: 0.127114583 | G11: 0.1211029871 | H11: 0.145227933 | I11: 0.001495427322 | J11: 0.0696843882 | K11: 0.07087695351 | L11: 0.0684918229 | M11: TRUE | N11: 0.4798277217 | O11: 0.4880394016 | P11: 0.4716160417 | Q11: TRUE | R11: 8298568 | S11: 0.02718563088 | T11: 0.01892828662 | U11: 0.03544297515 | V11: TRUE | W11: 0.004999111891 | X11: 0.003807566915 | Y11: 0.006190656867 | Z11: TRUE | AA11: clearly increasing | AB11: 289140.317 | AC11: 294088.6092 | AD11: 284192.0249 | AE11: TRUE | AF11: 0.002319392795 | AG11: -0.0006075589082 | AH11: 0.005246344498 | AI11: FALSE | AJ11: 0.471616 | AK11: 0.4880394 | AL11: 0.0684918 | AM11: 0.070877 | AN11: 0.0004452 | AO11: 0.0083793 | AP11: 0.0118397 | AQ11: -0.0227607 | AR11: 0.0236511 | AS11: 0 | AT11: -0.0001735 | AU11: 0.0012169 | AV11: 0.0017224 | AW11: -0.0035494 | AX11: 0.0032024 | AY11: 0 | AZ11: -0.0004968 | BA11: 0.0021192 | BB11: -0.0046504 | BC11: 0.0036568 | BD11: 0 | BE11: amber | BF11: amber
A12: hosp_death | B12: 2011 | C12: 0.4628388194 | D12: 0.4505883746 | E12: 0.4317049779 | F12: 0.4218356135 | G12: 0.408615724 | H12: 0.4357450624 | I12: 0.002273330929 | J12: 0.05945852308 | K12: 0.06632512172 | L12: 0.05259192443 | M12: TRUE | N12: 0.1364525458 | O12: 0.1522108394 | P12: 0.1206942521 | Q12: TRUE | R12: 457210 | S12: 0.02037260942 | T12: 0.005169353649 | U12: 0.03557586519 | V12: TRUE | W12: 0.005259362953 | X12: -0.001842944327 | Y12: 0.01236167023 | Z12: FALSE | AA12: no clear trend | AB12: 13592.51567 | AC12: 15162.25445 | AD12: 12022.77689 | AE12: TRUE | AF12: -0.03535327147 | AG12: -0.03961394705 | AH12: -0.0310925959 | AI12: TRUE | AJ12: 0.1206942 | AK12: 0.1522108 | AL12: 0.0525919 | AM12: 0.0663251 | AN12: 0.0188083 | AO12: 0.0160799 | AP12: 0.0225356 | AQ12: -0.0253615 | AR12: 0.062978 | AS12: 0 | AT12: 0.0048053 | AU12: 0.0070067 | AV12: 0.0101437 | AW12: -0.0150764 | AX12: 0.0246871 | AY12: 0 | AZ12: -0.0288182 | BA12: 0.0031599 | BB12: -0.0350116 | BC12: -0.0226248 | BD12: 1 | BE12: amber | BF12: green
A13: amenable_mortality | B13: 2011 | C13: 2.573934833 | D13: 2.56246743 | E13: 2.668291816 | F13: 2.598433038 | G13: 2.273109671 | H13: 2.535465948 | I13: 0.003936096122 | J13: 0.2993775987 | K13: 0.3673093587 | L13: 0.2314458388 | M13: TRUE | N13: 0.118075969 | O13: 0.1448685828 | P13: 0.09128335521 | Q13: TRUE | R13: 52673.553 | S13: -0.07178085138 | T13: -0.09853307924 | U13: -0.04502862353 | V13: TRUE | W13: -0.2384533944 | X13: -0.311948312 | Y13: -0.1649584767 | Z13: TRUE | AA13: clearly reducing | AB13: 7884.640907 | AC13: 9673.744486 | AD13: 6095.537328 | AE13: TRUE | AF13: -0.2412151883 | AG13: -0.2489292834 | AH13: -0.2335010933 | AI13: TRUE | AJ13: 0.0912834 | AK13: 0.1448686 | AL13: 0.2314458 | AM13: 0.3673094 | AN13: -0.034975 | AO13: 0.0273394 | AP13: 0.0388951 | AQ13: -0.1112094 | AR13: 0.0412593 | AS13: 0 | AT13: -0.1160132 | AU13: 0.0693181 | AV13: 0.1021908 | AW13: -0.3163072 | AX13: 0.0842807 | AY13: 0 | AZ13: -0.1786024 | BA13: 0.005596 | BB13: -0.1895705 | BC13: -0.1676343 | BD13: 1 | BE13: amber | BF13: green
A14: amenable_mortality_adj | B14: 2011 | C14: 3.288847268 | D14: 2.80480133 | E14: 2.477497647 | F14: 2.270190271 | G14: 2.000042909 | H14: 2.567358908 | I14: 0.003458444065 | J14: 1.561565099 | K14: 1.618484706 | L14: 1.504645492 | M14: TRUE | N14: 0.6082379422 | O14: 0.6304084331 | P14: 0.5860674513 | Q14: TRUE | R14: 52668.519 | S14: -0.005416473154 | T14: -0.02729348809 | U14: 0.01646054178 | V14: FALSE | W14: -0.1629190671 | X14: -0.223512106 | Y14: -0.1023260283 | Z14: TRUE | AA14: no clear trend | AB14: 41122.66055 | AC14: 42621.59626 | AD14: 39623.72484 | AE14: TRUE | AF14: -0.2422105259 | AG14: -0.2488905417 | AH14: -0.2355305102 | AI14: TRUE | AJ14: 0.5860674 | AK14: 0.6304084 | AL14: 1.504645 | AM14: 1.618485 | AN14: -0.0031671 | AO14: 0.0226229 | AP14: 0.0318765 | AQ14: -0.0656451 | AR14: 0.0593109 | AS14: 0 | AT14: -0.107719 | AU14: 0.0580813 | AV14: 0.0844554 | AW14: -0.2732515 | AX14: 0.0578135 | AY14: 0 | AZ14: -0.1628837 | BA14: 0.0048588 | BB14: -0.1724069 | BC14: -0.1533604 | BD14: 1 | BE14: amber | BF14: green
A15: all_mortality | B15: 2011 | C15: 8.820613797 | D15: 8.756439165 | E15: 9.109998843 | F15: 8.762145544 | G15: 7.755757933 | H15: 8.641588779 | I15: 0.003491067572 | J15: 1.181411494 | K15: 1.385103437 | L15: 0.9777195511 | M15: TRUE | N15: 0.1367123019 | O15: 0.1602834239 | P15: 0.11314118 | Q15: TRUE | R15: 52639.973 | S15: -0.06464037566 | T15: -0.0877276864 | U15: -0.04155306491 | V15: TRUE | W15: -0.626362943 | X15: -0.8305354465 | Y15: -0.4221904395 | Z15: TRUE | AA15: clearly reducing | AB15: 31094.73458 | AC15: 36455.90377 | AD15: 25733.56539 | AE15: TRUE | AF15: -0.2759843734 | AG15: -0.2827011849 | AH15: -0.2692675618 | AI15: TRUE | AJ15: 0.1131412 | AK15: 0.1602834 | AL15: 0.9777195 | AM15: 1.385103 | AN15: -0.0374681 | AO15: 0.0240522 | AP15: 0.0337251 | AQ15: -0.1035693 | AR15: 0.0286331 | AS15: 0 | AT15: -0.3466843 | AU15: 0.2078489 | AV15: 0.2936258 | AW15: -0.9221908 | AX15: 0.2288222 | AY15: 0 | AZ15: -0.1314755 | BA15: 0.0048995 | BB15: -0.1410785 | BC15: -0.1218725 | BD15: 1 | BE15: amber | BF15: green
A16: all_mortality_adj | B16: 2011 | C16: 11.04241018 | D16: 9.407817003 | E16: 8.42985074 | F16: 7.6814094 | G16: 6.840608393 | H16: 8.676685567 | I16: 0.002602718748 | J16: 5.168043629 | K16: 5.308441486 | L16: 5.027645772 | M16: TRUE | N16: 0.5956241689 | O16: 0.6118052159 | P16: 0.5794431218 | Q16: TRUE | R16: 52629.634 | S16: -0.01005312903 | T16: -0.0259498066 | U16: 0.005843548553 | V16: FALSE | W16: -0.2555521091 | X16: -0.3967146394 | Y16: -0.1143895787 | Z16: TRUE | AA16: no clear trend | AB16: 135996.1224 | AC16: 139690.6663 | AD16: 132301.5784 | AE16: TRUE | AF16: -0.2735102437 | AG16: -0.278534724 | AH16: -0.2684857633 | AI16: TRUE | AJ16: 0.5794431 | AK16: 0.6118052 | AL16: 5.027646 | AM16: 5.308442 | AN16: -0.01055 | AO16: 0.0165113 | AP16: 0.023273 | AQ16: -0.0561651 | AR16: 0.0350652 | AS16: 0 | AT16: -0.1751661 | AU16: 0.1432633 | AV16: 0.2035339 | AW16: -0.5740925 | AX16: 0.2237603 | AY16: 0 | AZ16: -0.1379593 | BA16: 0.003672 | BB16: -0.1451565 | BC16: -0.1307621 | BD16: 1 | BE16: amber | BF16: green

Sheet N_pop (hidden)
A1: YEAR | B1: Q1 | C1: Q2 | D1: Q3 | E1: Q4 | F1: Q5
A2: 2001 | B2: 9944043 | C2: 9854745 | D2: 9870843 | E2: 9926835 | F2: 9853563 | G2: =SUM(B2:F2) -> 49450029
A3: 2002 | B3: 9940623 | C3: 9876246 | D3: 9920055 | E3: 9979044 | F3: 9932904 | G3: =SUM(B3:F3) -> 49648872
A4: 2003 | B4: 9948903 | C4: 9894012 | D4: 9971799 | E4: 10036542 | F4: 10012224 | G4: 49863480
A5: 2004 | B5: 9967785 | C5: 9932434 | D5: 10035848 | E5: 10097610 | F5: 10076030 | G5: 50109707
A6: 2005 | B6: 10033008 | C6: 10007884 | D6: 10119963 | E6: 10168786 | F6: 10136521 | G6: 50466162
A7: 2006 | B7: 10077291 | C7: 10071846 | D7: 10187510 | E7: 10229168 | F7: 10198078 | G7: 50763893
A8: 2007 | B8: 10123893 | C8: 10141153 | D8: 10262219 | E8: 10302541 | F8: 10276375 | G8: 51106181
A9: 2008 | B9: 10188924 | C9: 10231008 | D9: 10341648 | E9: 10361267 | F9: 10341799 | G9: 51464646
A10: 2009 | B10: 10259051 | C10: 10321923 | D10: 10416868 | E10: 10415189 | F10: 10396710 | G10: 51809741
A11: 2010 | B11: 10352228 | C11: 10428168 | D11: 10504921 | E11: 10487406 | F11: 10461322 | G11: 52234045
A12: 2011 | B12: 10472569 | C12: 10553637 | D12: 10596653 | E12: 10554053 | F12: 10513791 | G12: 52690703 | H12: =73.7881457965698/100000*G12 -> 38879.49275

Sheet Diagram N

Sheet Title L
C4: Local NHS Equity Dashboard 2011/12
C5: ="NHS "&(VLOOKUP('ccg_data (2)'!B1902,'ccg_data (2)'!A846:AD1056,4))&" CCG" -> NHS Lincolnshire East CCG
C7: Dashboard developed by: Shehzad Ali
C8: Project team: Richard Cookson (PI), Shehzad Ali and Miqdad Asaria
C9: Centre for Health Economics, University of York
C10: Revised 14 December 2015
C17: http://www.nets.nihr.ac.uk/projects/hsdr/11200439

Sheet Notes L
C2: Indicator Notes
C3: Indicator Definitions | F3: Equity Measures
C4: 1. Primary care supply: patients per full time equivalent GP, excluding registrars and retainersa,b | F4: The Deprived Population shows how many people in this CCG live in one of England's most deprived fifth of areas (with % of the CCG population in brackets). Equity Performance is the Slope Inequality Index (SII): the gap between the most and least deprived areas in England. A positive SII implies "pro-rich" inequality. The black diamond shows this CCG's SII with 95% CI. The vertical black line shows the SII for England. A clear overall equity trend requires a statistically significant trend in the same direction for both the SII and the RII ("Relative Inequality Index": the SII divided by the mean.
C5: 2. Primary care quality: clinical performance in the quality and outcomes framework (weighted by public health impact)
C6: 3. Hospital waiting time: days from outpatient decision-to-treat to inpatient admission-for-treatmentc
C7: 4. Preventable hospitalisation: proportion of people with an emergency admission for an ambulatory care sensitive conditiona
C8: 5. Post-hospital adverse event: proportion of inpatients with subsequent emergency readmission or death the same yeara
C9: 6. Dying in hospital: proportion of deaths in hospital
C10: 7. Amenable mortality: proportion of people dying from causes considered amenable to health carea
C11: 8. Mortality: proportion of people dying from any causea | F11: The Inequity Gap shows the gap between this CCG and the England average, in terms of "real" units of improvement needed within its deprived population (e.g. hiring more GPs, preventing more deaths). 'No gap' means the deprived population in this CCG is already doing better than the England average.
C12: a Adjusted for age and sex each year
C14: b Adjusted for neighbourhood ill-health in 2007
C15: c Adjusted for treating consultant specialty each year

Sheet Dash L
C2: ="NHS Equity Dashboard 2011/12: "&(VLOOKUP('ccg_data (2)'!B1902,'ccg_data (2)'!A846:AD1056,4)) -> NHS Equity Dashboard 2011/12: Lincolnshire East
C4: Indicators of Health Care Access and Outcome | D4: Average | G4: CCG Equity Compared With Other CCGs (slope inequality index) | H4: Overall Equity Trend | I4: ="Deprived Population: "&FIXED((VLOOKUP('ccg_data (2)'!B1902,ccg_population!A2112:H2322,4)),0)&" ("&ROUND((VLOOKUP('ccg_data (2)'!B1902,ccg_population!A2112:K2322,11)),1)&"% of the CCG)" -> Deprived Population: 44,049 (19.4% of the CCG)
D5: England | F5: CCG | I5: Inequity Gap
C6: 1. Primary care supply (patients per GP) | D6: ='Dash N'!D5 -> 1,687 | F6: =FIXED((VLOOKUP('ccg_data (2)'!B1902,'ccg_data (2)'!A846:AD1056,12)),0) -> 1,974 | H6: =IF((VLOOKUP('ccg_data (2)'!B1902,'ccg_data (2)'!A846:CG1056,85))="green",'ccg_data (2)'!C1902,IF((VLOOKUP('ccg_data (2)'!B1902,'ccg_data (2)'!A846:CG1056,85))="amber","↔",IF((VLOOKUP('ccg_data (2)'!B1902,'ccg_data (2)'!A846:CG1056,85))="red",'ccg_data (2)'!C1904))) -> ↔ | I6: =IF((VLOOKUP('ccg_data (2)'!B1902,'ccg_data (2)'!A846:AZ1056,23))<0,"no gap", ROUND(VLOOKUP('ccg_data (2)'!B1902,'ccg_data (2)'!A635:AK845,23),1)&" GPs") -> no gap
C7: 2. Primary care quality (%) | D7: ='Dash N'!D6 -> 0.774 | F7: =(VLOOKUP('ccg_data (2)'!B1902,'ccg_data (2)'!A1057:AD1267,12))/100 -> 0.7637688396 | H7: =IF((VLOOKUP('ccg_data (2)'!B1902,'ccg_data (2)'!A1057:CG1267,85))="green",'ccg_data (2)'!C1902,IF((VLOOKUP('ccg_data (2)'!B1902,'ccg_data (2)'!A1057:CG1267,85))="amber","↔",IF((VLOOKUP('ccg_data (2)'!B1902,'ccg_data (2)'!A1057:CG1267,85))="red",'ccg_data (2)'!C1904))) -> ↔ | I7: Not applicable
C8: 3. Hospital waiting time (days) | D8: ='Dash N'!D7 -> 63.0499 | F8: =((VLOOKUP('ccg_data (2)'!B1902,'ccg_data (2)'!A1690:AK1900,12))) -> 56.76997497 | H8: =IF((VLOOKUP('ccg_data (2)'!B1902,'ccg_data (2)'!A1690:CG1900,85))="green",'ccg_data (2)'!C1902,IF((VLOOKUP('ccg_data (2)'!B1902,'ccg_data (2)'!A1690:CG1900,85))="amber","↔",IF((VLOOKUP('ccg_data (2)'!B1902,'ccg_data (2)'!A1690:CG1900,85))="red",'ccg_data (2)'!C1904))) -> ↔ | I8: =IF((VLOOKUP('ccg_data (2)'!B1902,'ccg_data (2)'!A1690:AK1900,23))<0,"no gap",FIXED(VLOOKUP('ccg_data (2)'!B1902,'ccg_data (2)'!A1690:AK1900,23),0)&" days waited") -> 72,293 days waited
C9: 4. Preventable hospitalisation (per 1,000) | D9: =FIXED('Dash N'!D8,2) -> 5.84 | F9: =ROUND((VLOOKUP('ccg_data (2)'!B1902,'ccg_data (2)'!A1479:AD1689,12)),2) -> 5.89 | H9: =IF((VLOOKUP('ccg_data (2)'!B1902,'ccg_data (2)'!A1479:CG1689,85))="green",'ccg_data (2)'!C1902,IF((VLOOKUP('ccg_data (2)'!B1902,'ccg_data (2)'!A1479:CG1689,85))="amber","↔",IF((VLOOKUP('ccg_data (2)'!B1902,'ccg_data (2)'!A1479:CG1689,85))="red",'ccg_data (2)'!C1904))) -> ↔ | I9: =IF((VLOOKUP('ccg_data (2)'!B1902,'ccg_data (2)'!A1479:AK1689,23))<0,"no gap",FIXED(VLOOKUP('ccg_data (2)'!B1902,'ccg_data (2)'!A1479:AK1689,23),0)&" people admitted") -> 693 people admitted
C10: 5. Repeat hospitalisation (%) | D10: ='Dash N'!D9 -> 0.145 | F10: =(VLOOKUP('ccg_data (2)'!B1902,'ccg_data (2)'!A424:AD634,12)) -> 0.1204555022 | H10: =IF((VLOOKUP('ccg_data (2)'!B1902,'ccg_data (2)'!A424:CG634,85))="green",'ccg_data (2)'!C1902,IF((VLOOKUP('ccg_data (2)'!B1902,'ccg_data (2)'!A424:CG634,85))="amber","↔",IF((VLOOKUP('ccg_data (2)'!B1902,'ccg_data (2)'!A424:CG634,85))="red",'ccg_data (2)'!C1904))) -> ↔ | I10: =IF((VLOOKUP('ccg_data (2)'!B1902,'ccg_data (2)'!A424:AK634,23))<0,"no gap",FIXED(VLOOKUP('ccg_data (2)'!B1902,'ccg_data (2)'!A424:AK634,23),0)&" people admitted") -> 914 people admitted
C11: 6. Dying in Hospital (%) | D11: ='Dash N'!D10 -> 0.436 | F11: =(VLOOKUP('ccg_data (2)'!B1902,'ccg_data (2)'!A1268:AD1478,12)) -> 0.439157283 | H11: =IF((VLOOKUP('ccg_data (2)'!B1902,'ccg_data (2)'!A1268:CG1478,85))="green",'ccg_data (2)'!C1902,IF((VLOOKUP('ccg_data (2)'!B1902,'ccg_data (2)'!A1268:CG1478,85))="amber","↔",IF((VLOOKUP('ccg_data (2)'!B1902,'ccg_data (2)'!A1268:CG1478,85))="red",'ccg_data (2)'!C1904))) -> ↔ | I11: =IF((VLOOKUP('ccg_data (2)'!B1902,'ccg_data (2)'!A1268:AK1478,23))<0,"no gap",FIXED(VLOOKUP('ccg_data (2)'!B1902,'ccg_data (2)'!A1268:AK1478,23),0)&" deaths in hospital") -> no gap
C12: 7. Amenable mortality (per 1,000) | D12: ='Dash N'!D11 -> 2.57 | F12: =(VLOOKUP('ccg_data (2)'!B1902,'ccg_data (2)'!A213:AD423,12)) -> 2.655597656 | H12: =IF((VLOOKUP('ccg_data (2)'!B1902,'ccg_data (2)'!A213:CG423,85))="green",'ccg_data (2)'!C1902,IF((VLOOKUP('ccg_data (2)'!B1902,'ccg_data (2)'!A213:CG423,85))="amber","↔",IF((VLOOKUP('ccg_data (2)'!B1902,'ccg_data (2)'!A213:CG423,85))="red",'ccg_data (2)'!C1904))) -> ↔ | I12: =IF((VLOOKUP('ccg_data (2)'!B1902,'ccg_data (2)'!A213:AK423,23))<0,"no gap",FIXED((VLOOKUP('ccg_data (2)'!B1902,'ccg_data (2)'!A213:AK423,23)),0)&" deaths") -> 70 deaths
C13: 8. Mortality (per 1,000) | D13: ='Dash N'!D12 -> 8.68 | F13: =(VLOOKUP('ccg_data (2)'!B1902,'ccg_data (2)'!A2:AD212,12)) -> 8.975597256 | H13: =IF((VLOOKUP('ccg_data (2)'!B1902,'ccg_data (2)'!A2:CG212,85))="green",'ccg_data (2)'!C1902,IF((VLOOKUP('ccg_data (2)'!B1902,'ccg_data (2)'!A2:CG212,85))="amber","↔",IF((VLOOKUP('ccg_data (2)'!B1902,'ccg_data (2)'!A2:CG212,85))="red",'ccg_data (2)'!C1904))) -> ↔ | I13: =IF((VLOOKUP('ccg_data (2)'!B1902,'ccg_data (2)'!A2:AK212,23))<0,"no gap",FIXED((VLOOKUP('ccg_data (2)'!B1902,'ccg_data (2)'!A2:AK212,23)),0)&" deaths") -> 576 deaths
E15: Below average | H15: ↑ Better | I15: Clearly pro-rich
E16: Not significant | H16: ↔ Not clear | I16: Not significant
E17: Above average | H17: ↓ Worse | I17: Clearly "pro-poor"

Sheet ccg_data (2) (hidden)
A1: GEO_NUM | B1: INDICATOR | C1: YEAR | D1: GEOGRAPHY | E1: ABSOLUTE_GAP_NDF | F1: RELATIVE_GAP_NDF | G1: Q1 | H1: Q2 | I1: Q3 | J1: Q4 | K1: Q5 | L1: OVERALL_MEAN | M1: OVERALL_MEAN_SE | N1: SII | O1: SII_LCI | P1: SII_UCI | Q1: SII_significance | R1: RII | S1: RII_LCI | T1: RII_UCI | U1: RII_significance | V1: denominator | W1: REAL_GAP | X1: REAL_GAP_LCI | Y1: REAL_GAP_UCI | Z1: REAL_GAP_significance | AB1: OVERALL_AVG_significance | AD1: overall_trend | AE1: REAL_GAP_OLD | AF1: REAL_GAP_LCI_OLD | AG1: REAL_GAP_UCI_OLD | AH1: OVERALL_MEAN_trend | AI1: OVERALL_MEAN_trend_LCI | AJ1: OVERALL_MEAN_trend_UCI | AK1: OVERALL_MEAN_trend_significance | AO1: Year | AP1: Min | AQ1: 25th | AR1: Median | AS1: 75th | AT1: Max | AU1: Length | AV1: CCG_SII_Est | AW1: CCG_SII_LCL | AX1: CCG_SII_UCL | BJ1: Overall_performance_colour | BK1: Real_gap colour | BL1: Overall_Trend colour | BO1: indicator | BP1: geography | BQ1: rii_lci_n | BR1: rii_uci_n | BS1: sii_lci_n | BT1: sii_uci_n | BU1: rii_diff | BV1: rii_se | BW1: rii_diff_se | BX1: rii_diff_lci | BY1: rii_diff_uci | BZ1: rii_diff_sig | CA1: sii_diff | CB1: sii_se | CC1: sii_diff_se | CD1: sii_diff_lci | CE1: sii_diff_uci | CF1: sii_diff_sig | CG1: overall_trend_sig
A2: 1 | B2: all_mortality_adj | C2: 2011 | D2: Airedale, Wharfedale and Craven | E2: 1.040917826 | F2: 0.09426545561 | G2: 10.00149235 | H2: 8.670832444 | I2: 9.362105918 | J2: 8.089012765 | K2: 7.685158009 | L2: 8.575683438 | M2: 0.05014130485 | N2: 3.024466892 | O2: 5.762753274 | P2: 0.2861805106 | Q2: FALSE | R2: 0.3526794003 | S2: 0.6719876399 | T2: 0.03337116076 | U2: FALSE | V2: 157.404 | W2: 238.0315934 | X2: 453.5402082 | Y2: 22.52297854 | Z2: TRUE | AB2: =IF(OR(AND((L2-1.96*M2)<national_data!$H$16,(L2+1.96*M2)<national_data!$H$16),AND((L2-1.96*M2)>national_data!$H$16,(L2+1.96*M2)>national_data!$H$16)),"TRUE","FALSE") -> TRUE | AD2: no clear trend | AH2: 0.1549860716 | AI2: 0.0219690815 | AJ2: 0.2880030617 | AK2: TRUE | AO2: 2011 | AP2: =QUARTILE(N2:N212,0) -> -2.338998829 | AQ2: =QUARTILE(N2:N212,1) -> 4.349800771 | AR2: =national_data!J16 -> 5.168043629 | AS2: =QUARTILE(N2:N212,3)-AQ2 -> 2.777522632 | AT2: =QUARTILE(N2:N212,4) -> 26.89507949 | AU2: =AT2-AS2-AQ2 -> 19.76775608 | AV2: =VLOOKUP($B$1902,A2:T212,14) -> 5.069820091 | AW2: =ABS(VLOOKUP($B$1902,A2:T212,15)-AV2) -> 2.509933719 | AX2: =ABS(VLOOKUP($B$1902,A2:T212,16)-AV2) -> 2.509933719 | AY2: =RANK(R2,$R$2:$R$212,1) -> 13 | AZ2: =RANK(N2,$N$2:$N$212,1) -> 15 | BA2: =AVERAGE(AY2:AZ2) -> 14 | BC2: =AVERAGE(AY213,AY424,AY846,AY1057,AY1479) -> 162 | BD2: =AZ213+AZ424+AZ846+AZ1057+AZ1479 -> 785 | BE2: =AVERAGE(BC2,BD2) -> 473.5 | BF2: =RANK(BC2,$BC$2:$BC$212,1) -> 207 | BG2: 160 | BI2: =SUM(G2:K2) -> 43.80860149 | BJ2: =IF(AND(L2<national_data!$H$16,AB2="TRUE"),"GREEN",IF(AND(L2>national_data!$H$16,AB2="TRUE"),"RED","AMBER")) -> GREEN | BK2: =IF(AND(W2<0,Z2=TRUE),"GREEN",IF(AND(W2>0,Z2=TRUE),"RED","AMBER")) -> RED | BL2: =IF(AND(AH2<0,AK2=TRUE),"GREEN",IF(AND(AH2>0,AK2=TRUE),"RED","AMBER")) -> RED | BO2: all_mortality_adj | BP2: Airedale, Wharfedale and Craven | BQ2: 0.0333712 | BR2: 0.6719877 | BS2: 0.2861805 | BT2: 5.762753 | BU2: -0.1135528 | BV2: 0.3258247 | BW2: 0.4273726 | BX2: -0.951203 | BY2: 0.7240975 | BZ2: 0 | CA2: -1.053767 | CB2: 2.79417 | CC2: 3.695888 | CD2: -8.297709 | CE2: 6.190174 | CF2: 0 | CG2: amber | CI2: =BP2=D2 -> TRUE
A3: 2 | B3: all_mortality_adj | C3: 2011 | D3: Ashford | E3: 2.550093229 | F3: 0.2309362891 | G3: 8.492316947 | H3: 8.952908555 | I3: 7.078414173 | J3: 7.392823073 | K3: 7.269807805 | L3: 7.58712541 | M3: 0.04821335679 | N3: 1.446553012 | O3: 4.934247642 | P3: -2.041141618 | Q3: TRUE | R3: 0.1906589036 | S3: 0.6503448111 | T3: -0.269027004 | U3: FALSE | V3: 116.864 | W3: 84.52498559 | X3: 288.3179582 | Y3: -119.267987 | Z3: FALSE | AB3: =IF(OR(AND((L3-1.96*M3)<national_data!$H$16,(L3+1.96*M3)<national_data!$H$16),AND((L3-1.96*M3)>national_data!$H$16,(L3+1.96*M3)>national_data!$H$16)),"TRUE","FALSE") -> TRUE | AD3: no clear trend | AH3: -0.2553026693 | AI3: -0.3991225519 | AJ3: -0.1114827866 | AK3: TRUE | AY3: 2 | AZ3: 2 | BA3: 2 | BC3: =AVERAGE(AY214,AY425,AY847,AY1058,AY1480) -> 116 | BD3: =AZ214+AZ425+AZ847+AZ1058+AZ1480 -> 568 | BE3: =AVERAGE(BC3,BD3) -> 342 | BF3: 134 | BG3: 13 | BI3: =SUM(G3:K3) -> 39.18627055 | BJ3: =IF(AND(L3<national_data!$H$16,AB3="TRUE"),"GREEN",IF(AND(L3>national_data!$H$16,AB3="TRUE"),"RED","AMBER")) -> GREEN | BK3: =IF(AND(W3<0,Z3=TRUE),"GREEN",IF(AND(W3>0,Z3=TRUE),"RED","AMBER")) -> AMBER | BL3: =IF(AND(AH3<0,AK3=TRUE),"GREEN",IF(AND(AH3>0,AK3=TRUE),"RED","AMBER")) -> GREEN | BO3: all_mortality_adj | BP3: Ashford | BQ3: -0.269027 | BR3: 0.6503448 | BS3: -2.041142 | BT3: 4.934247 | BU3: 0.2051513 | BV3: 0.4690672 | BW3: 0.7124552 | BX3: -1.191261 | BY3: 1.601563 | BZ3: 0 | CA3: 1.558028 | CB3: 3.558872 | CC3: 5.447941 | CD3: -9.119936 | CE3: 12.23599 | CF3: 0 | CG3: amber | CI3: =BP3=D3 -> TRUE
A4: 3 | B4: all_mortality_adj | C4: 2011 | D4: Aylesbury Vale | H4: 11.13245566 | I4: 9.783407041 | J4: 7.174012211 | K4: 7.320223411 | L4: 7.91109093 | M4: 0.0488193121 | N4: 6.719687507 | O4: 9.826700478 | P4: 3.612674537 | Q4: FALSE | R4: 0.8494008686 | S4: 1.242142274 | T4: 0.4566594631 | U4: FALSE | V4: 193.868 | W4: 651.3661888 | X4: 952.5413841 | Y4: 350.1909935 | Z4: TRUE | AB4: =IF(OR(AND((L4-1.96*M4)<national_data!$H$16,(L4+1.96*M4)<national_data!$H$16),AND((L4-1.96*M4)>national_data!$H$16,(L4+1.96*M4)>national_data!$H$16)),"TRUE","FALSE") -> TRUE | AD4: no clear trend | AH4: -0.1117041452 | AI4: -0.2440657387 | AJ4: 0.02065744821 | AK4: FALSE | AY4: 177 | AZ4: 142 | BA4: 159.5 | BC4: 130.4 | BD4: 489 | BE4: 309.7 | BF4: 166 | BG4: 106 | BI4: 35.41009832 | BJ4: =IF(AND(L4<national_data!$H$16,AB4="TRUE"),"GREEN",IF(AND(L4>national_data!$H$16,AB4="TRUE"),"RED","AMBER")) -> GREEN | BK4: RED | BL4: AMBER | BO4: all_mortality_adj | BP4: Aylesbury Vale | BQ4: 0.4566595 | BR4: 1.242142 | BS4: 3.612674 | BT4: 9.8267 | BU4: 0.1285871 | BV4: 0.4007566 | BW4: 0.5681073 | BX4: -0.9849032 | BY4: 1.242077 | BZ4: 0 | CA4: 0.9404899 | CB4: 3.170421 | CC4: 4.524848 | CD4: -7.928212 | CE4: 9.809192 | CF4: 0 | CG4: amber | CI4: =BP4=D4 -> TRUE
A5: 4 | B5: all_mortality_adj | C5: 2011 | D5: Barking & Dagenham | E5: 1.304532508 | F5: 0.1181383853 | G5: 9.737877668 | H5: 9.816741271 | I5: 7.386573483 | L5: 9.596665893 | M5: 0.0372285784 | N5: 4.030798001 | O5: 10.89951615 | P5: -2.837920148 | Q5: FALSE | R5: 0.4200206661 | S5: 1.135760719 | T5: -0.2957193863 | U5: FALSE | V5: 183.251 | W5: 369.3238823 | X5: 998.673617 | Y5: -260.0258525 | Z5: FALSE | AB5: =IF(OR(AND((L5-1.96*M5)<national_data!$H$16,(L5+1.96*M5)<national_data!$H$16),AND((L5-1.96*M5)>national_data!$H$16,(L5+1.96*M5)>national_data!$H$16)),"TRUE","FALSE") -> TRUE | AD5: no clear trend | AH5: 0.01475195134 | AI5: -0.09223140814 | AJ5: 0.1217353108 | AK5: FALSE | AY5: 23 | AZ5: 39 | BA5: 31 | BC5: 49.2 | BD5: 296 | BE5: 172.6 | BF5: 6 | BG5: 24 | BI5: 26.94119242 | BJ5: =IF(AND(L5<national_data!$H$16,AB5="TRUE"),"GREEN",IF(AND(L5>national_data!$H$16,AB5="TRUE"),"RED","AMBER")) -> RED | BK5: AMBER | BL5: AMBER | BO5: all_mortality_adj | BP5: Barking & Dagenham | BQ5: -0.2957194 | BR5: 1.135761 | BS5: -2.83792 | BT5: 10.89952 | BU5: -0.287207 | BV5: 0.730347 | BW5: 1.026988 | BX5: -2.300104 | BY5: 1.72569 | BZ5: 0 | CA5: -2.491907 | CB5: 7.008896 | CC5: 9.667854 | CD5: -21.4409 | CE5: 16.45709 | CF5: 0 | CG5: amber | CI5: TRUE
A6: 5 | B6: all_mortality_adj | C6: 2011 | D6: Barnet | E6: 1.872792735 | F6: 0.1695999972 | G6: 9.169617442 | H6: 7.259095454 | I6: 8.007175657 | J6: 6.943703284 | K6: 5.929612193 | L6: 7.361755947 | M6: 0.0337118398 | N6: 3.287431109 | O6: 5.693682413 | P6: 0.8811798054 | Q6: FALSE | R6: 0.4465552964 | S6: 0.7734136331 | T6: 0.1196969598 | U6: FALSE | V6: 353.106 | W6: 580.4058246 | X6: 1005.236711 | Y6: 155.5749382 | Z6: TRUE | AB6: =IF(OR(AND((L6-1.96*M6)<national_data!$H$16,(L6+1.96*M6)<national_data!$H$16),AND((L6-1.96*M6)>national_data!$H$16,(L6+1.96*M6)>national_data!$H$16)),"TRUE","FALSE") -> TRUE | AD6: no clear trend | AH6: -0.4900421085 | AI6: -0.5828144133 | AJ6: -0.3972698037 | AK6: TRUE | AY6: 28 | AZ6: 17 | BA6: 22.5 | BC6: 121 | BD6: 482 | BE6: 301.5 | BF6: 149 | BG6: 126 | BI6: 37.30920403 | BJ6: =IF(AND(L6<national_data!$H$16,AB6="TRUE"),"GREEN",IF(AND(L6>national_data!$H$16,AB6="TRUE"),"RED","AMBER")) -> GREEN | BK6: RED | BL6: GREEN | BO6: all_mortality_adj | BP6: Barnet | BQ6: 0.119697 | BR6: 0.7734137 | BS6: 0.8811798 | BT6: 5.693682 | BU6: -0.416694 | BV6: 0.3335289 | BW6: 0.453245 | BX6: -1.305054 | BY6: 0.4716662 | BZ6: 0 | CA6: -3.168564 | CB6: 2.455358 | CC6: 3.361088 | CD6: -9.756296 | CE6: 3.419168 | CF6: 0 | CG6: amber | CI6: TRUE
A7: 6 | B7: all_mortality_adj | C7: 2011 | D7: Barnsley | E7: -0.1282071168 | F7: -0.01161042877 | G7: 11.17061729 | H7: 9.939470297 | I7: 8.740344566 | J7: 7.522905584 | K7: 7.919537697 | L7: 9.697027128 | M7: 0.03298908768 | N7: 4.994081872 | O7: 7.49593086 | P7: 2.492232885 | Q7: FALSE | R7: 0.5150116429 | S7: 0.7730132917 | T7: 0.2570099941 | U7: FALSE | V7: 227.886 | W7: 569.0406708 | X7: 854.1088499 | Y7: 283.9724916 | Z7: TRUE | AB7: =IF(OR(AND((L7-1.96*M7)<national_data!$H$16,(L7+1.96*M7)<national_data!$H$16),AND((L7-1.96*M7)>national_data!$H$16,(L7+1.96*M7)>national_data!$H$16)),"TRUE","FALSE") -> TRUE | AD7: no clear trend | AH7: -0.7207331057 | AI7: -0.8139234371 | AJ7: -0.6275427743 | AK7: TRUE | AY7: 52 | AZ7: 76 | BA7: 64 | BC7: 105 | BD7: 607 | BE7: 356 | BF7: 99 | BG7: 158 | BI7: 45.29287544 | BJ7: =IF(AND(L7<national_data!$H$16,AB7="TRUE"),"GREEN",IF(AND(L7>national_data!$H$16,AB7="TRUE"),"RED","AMBER")) -> RED | BK7: RED | BL7: GREEN | BO7: all_mortality_adj | BP7: Barnsley | BQ7: 0.25701 | BR7: 0.7730133 | BS7: 2.492233 | BT7: 7.495931 | BU7: -0.2441987 | BV7: 0.263267 | BW7: 0.4009463 | BX7: -1.030053 | BY7: 0.541656 | BZ7: 0 | CA7: -2.817903 | CB7: 2.552907 | CC7: 4.024866 | CD7: -10.70664 | CE7: 5.070834 | CF7: 0 | CG7: amber | CI7: TRUE
A8: 7 | B8: all_mortality_adj | C8: 2011 | D8: Basildon and Brentwood | E8: 0.3077317964 | F8: 0.02786817293 | G8: 10.73467838 | H8: 9.635000794 | I8: 8.761234239 | J8: 8.28181549 | K8: 6.130959678 | L8: 8.254957752 | M8: 0.03745304556 | N8: 5.69387639 | O8: 7.515332865 | P8: 3.872419915 | Q8: FALSE | R8: 0.6897523356 | S8: 0.9104023413 | T8: 0.4691023299 | U8: FALSE | V8: 251.343 | W8: 715.5579867 | X8: 944.4631541 | Y8: 486.6528193 | Z8: TRUE | AB8: =IF(OR(AND((L8-1.96*M8)<national_data!$H$16,(L8+1.96*M8)<national_data!$H$16),AND((L8-1.96*M8)>national_data!$H$16,(L8+1.96*M8)>national_data!$H$16)),"TRUE","FALSE") -> TRUE | AD8: no clear trend | AH8: 0.2438936454 | AI8: 0.137010542 | AJ8: 0.3507767487 | AK8: TRUE | AY8: 112 | AZ8: 98 | BA8: 105 | BC8: 102.4 | BD8: 465 | BE8: 283.7 | BF8: 90 | BG8: 151 | BI8: 43.54368858 | BJ8: =IF(AND(L8<national_data!$H$16,AB8="TRUE"),"GREEN",IF(AND(L8>national_data!$H$16,AB8="TRUE"),"RED","AMBER")) -> GREEN | BK8: RED | BL8: RED | BO8: all_mortality_adj | BP8: Basildon and Brentwood | BQ8: 0.4691023 | BR8: 0.9104024 | BS8: 3.87242 | BT8: 7.515333 | BU8: 0.1980628 | BV8: 0.2251531 | BW8: 0.3083894 | BX8: -0.4063805 | BY8: 0.8025061 | BZ8: 0 | CA8: 1.640369 | CB8: 1.858629 | CC8: 2.54417 | CD8: -3.346204 | CE8: 6.626941 | CF8: 0 | CG8: amber | CI8: TRUE
A9: 8 | B9: all_mortality_adj | C9: 2011 | D9: Bassetlaw | E9: 0.1009700542 | F9: 0.009143842024 | G9: 10.94144012 | H9: 10.0523599 | I9: 8.053344473 | J9: 7.812090501 | K9: 5.890077158 | L9: 9.048835096 | M9: 0.05772549346 | N9: 6.798270432 | O9: 10.76904743 | P9: 2.827493438 | Q9: FALSE | R9: 0.7512868077 | S9: 1.19010318 | T9: 0.312470435 | U9: FALSE | V9: 111.938 | W9: 380.4923978 | X9: 602.7328154 | Y9: 158.2519803 | Z9: TRUE | AB9: =IF(OR(AND((L9-1.96*M9)<national_data!$H$16,(L9+1.96*M9)<national_data!$H$16),AND((L9-1.96*M9)>national_data!$H$16,(L9+1.96*M9)>national_data!$H$16)),"TRUE","FALSE") -> TRUE | AD9: no clear trend | AH9: -0.5527609129 | AI9: -0.7069952432 | AJ9: -0.3985265827 | AK9: TRUE | AY9: 143 | AZ9: 147 | BA9: 145 | BC9: 86.2 | BD9: 496 | BE9: 291.1 | BF9: 53 | BG9: 38 | BI9: 42.74931215 | BJ9: =IF(AND(L9<national_data!$H$16,AB9="TRUE"),"GREEN",IF(AND(L9>national_data!$H$16,AB9="TRUE"),"RED","AMBER")) -> RED | BK9: RED | BL9: GREEN | BO9: all_mortality_adj | BP9: Bassetlaw | BQ9: 0.3124704 | BR9: 1.190103 | BS9: 2.827493 | BT9: 10.76905 | BU9: -0.1576854 | BV9: 0.4477718 | BW9: 0.5890161 | BX9: -1.312157 | BY9: 0.9967861 | BZ9: 0 | CA9: -2.310855 | CB9: 4.051814 | CC9: 5.578872 | CD9: -13.24544 | CE9: 8.623734 | CF9: 0 | CG9: amber | CI9: TRUE
A10: 9 | B10: all_mortality_adj | C10: 2011 | D10: Bath and North East Somerset | E10: 0.4018107617 | F10: 0.03638795836 | G10: 10.64059941 | H10: 10.66418857 | I10: 9.052867942 | J10: 7.553413308 | K10: 7.622054604 | L10: 8.188832866 | M10: 0.04750900688 | N10: 4.386476819 | O10: 7.579640134 | P10: 1.193313504 | Q10: FALSE | R10: 0.5356656914 | S10: 0.9256068915 | T10: 0.1457244914 | U10: FALSE | V10: 181.508 | W10: 398.0903172 | X10: 687.8826607 | Y10: 108.2979738 | Z10: TRUE | AB10: =IF(OR(AND((L10-1.96*M10)<national_data!$H$16,(L10+1.96*M10)<national_data!$H$16),AND((L10-1.96*M10)>national_data!$H$16,(L10+1.96*M10)>national_data!$H$16)),"TRUE","FALSE") -> TRUE | AD10: no clear trend | AH10: -0.2288716252 | AI10: -0.3568308167 | AJ10: -0.1009124337 | AK10: TRUE | AY10: 60 | AZ10: 55 | BA10: 57.5 | BC10: 139.4 | BD10: 574 | BE10: 356.7 | BF10: 184 | BG10: 37 | BI10: 45.53312384 | BJ10: =IF(AND(L10<national_data!$H$16,AB10="TRUE"),"GREEN",IF(AND(L10>national_data!$H$16,AB10="TRUE"),"RED","AMBER")) -> GREEN | BK10: RED | BL10: GREEN | BO10: all_mortality_adj | BP10: Bath and North East Somerset | BQ10: 0.1457245 | BR10: 0.9256069 | BS10: 1.193313 | BT10: 7.57964 | BU10: 0.1506282 | BV10: 0.3978992 | BW10: 0.5703357 | BX10: -0.9672298 | BY10: 1.268486 | BZ10: 0 | CA10: 1.316186 | CB10: 3.25833 | CC10: 4.607903 | CD10: -7.715304 | CE10: 10.34768 | CF10: 0 | CG10: amber | CI10: TRUE
A11: 10 | B11: all_mortality_adj | C11: 2011 | D11: Bedfordshire | E11: 0.07371837504 | F11: 0.0066759316 | G11: 10.9686918 | H11: 11.93508749 | I11: 8.485914051 | J11: 7.326884027 | K11: 6.431318915 | L11: 7.907656013 | M11: 0.03035640012 | N11: 7.069944055 | O11: 8.729786916 | P11: 5.410101194 | Q11: TRUE | R11: 0.8940631767 | S11: 1.103966447 | T11: 0.6841599059 | U11: TRUE | V11: 421.646 | W11: 1490.506816 | X11: 1840.439867 | Y11: 1140.573764 | Z11: TRUE | AB11: =IF(OR(AND((L11-1.96*M11)<national_data!$H$16,(L11+1.96*M11)<national_data!$H$16),AND((L11-1.96*M11)>national_data!$H$16,(L11+1.96*M11)>national_data!$H$16)),"TRUE","FALSE") -> TRUE | AD11: no clear trend | AH11: -0.4016013104 | AI11: -0.4806711218 | AJ11: -0.322531499 | AK11: TRUE | AY11: 183 | AZ11: 155 | BA11: 169 | BC11: 105 | BD11: 435 | BE11: 270 | BF11: 99 | BG11: 186 | BI11: 45.14789629 | BJ11: =IF(AND(L11<national_data!$H$16,AB11="TRUE"),"GREEN",IF(AND(L11>national_data!$H$16,AB11="TRUE"),"RED","AMBER")) -> GREEN | BK11: RED | BL11: GREEN | BO11: all_mortality_adj | BP11: Bedfordshire | BQ11: 0.6841599 | BR11: 1.103966 | BS11: 5.410101 | BT11: 8.729787 | BU11: -0.0432571 | BV11: 0.214187 | BW11: 0.3000255 | BX11: -0.6313072 | BY11: 0.5447929 | BZ11: 0 | CA11: -0.4782357 | CB11: 1.693717 | CC11: 2.393971 | CD11: -5.170418 | CE11: 4.213947 | CF11: 0 | CG11: amber | CI11: TRUE
A12: 11 | B12: all_mortality_adj | C12: 2011 | D12: Bexley | E12: 1.660672875 | F12: 0.1503904354 | G12: 9.381737302 | H12: 9.097292269 | I12: 9.071512624 | J12: 7.956492074 | K12: 6.343341361 | L12: 8.140400979 | M12: 0.03669311622 | N12: 4.549180202 | O12: 6.73660248 | P12: 2.361757924 | Q12: FALSE | R12: 0.558839818 | S12: 0.8275516767 | T12: 0.2901279592 | U12: FALSE | V12: 229.849 | W12: 522.8122601 | X12: 774.2006717 | Y12: 271.4238485 | Z12: TRUE | AB12: =IF(OR(AND((L12-1.96*M12)<national_data!$H$16,(L12+1.96*M12)<national_data!$H$16),AND((L12-1.96*M12)>national_data!$H$16,(L12+1.96*M12)>national_data!$H$16)),"TRUE","FALSE") -> TRUE | AD12: no clear trend | AH12: -0.015334448 | AI12: -0.1154883117 | AJ12: 0.08481941564 | AK12: FALSE | AY12: 69 | AZ12: 58 | BA12: 63.5 | BC12: 95.4 | BD12: 457 | BE12: 276.2 | BF12: 67 | BG12: 75 | BI12: 41.85037563 | BJ12: =IF(AND(L12<national_data!$H$16,AB12="TRUE"),"GREEN",IF(AND(L12>national_data!$H$16,AB12="TRUE"),"RED","AMBER")) -> GREEN | BK12: RED | BL12: AMBER | BO12: all_mortality_adj | BP12: Bexley | BQ12: 0.290128 | BR12: 0.8275517 | BS12: 2.361758 | BT12: 6.736602 | BU12: 0.0566587 | BV12: 0.2741958 | BW12: 0.4025875 | BX12: -0.7324128 | BY12: 0.8457302 | BZ12: 0 | CA12: 0.4062689 | CB12: 2.232064 | CC12: 3.300917 | CD12: -6.063528 | CE12: 6.876066 | CF12: 0 | CG12: amber | CI12: TRUE
A13: 12 | B13: all_mortality_adj | C13: 2011 | D13: Birmingham CrossCity | E13: 0.6078060724 | F13: 0.05504288128 | G13: 10.4346041 | H13: 9.545003221 | I13: 7.254085794 | J13: 7.952527775 | K13: 5.667070671 | L13: 9.415688818 | M13: 0.02050706011 | N13: 5.6843633 | O13: 7.13984547 | P13: 4.228881131 | Q13: FALSE | R13: 0.6037118909 | S13: 0.7582924211 | T13: 0.4491313607 | U13: FALSE | V13: 697.471 | W13: 1982.339278 | X13: 2489.91758 | Y13: 1474.760976 | Z13: TRUE | AB13: =IF(OR(AND((L13-1.96*M13)<national_data!$H$16,(L13+1.96*M13)<national_data!$H$16),AND((L13-1.96*M13)>national_data!$H$16,(L13+1.96*M13)>national_data!$H$16)),"TRUE","FALSE") -> TRUE | AD13: no clear trend | AH13: -0.1824138545 | AI13: -0.2383024428 | AJ13: -0.1265252662 | AK13: TRUE | AY13: 81 | AZ13: 96 | BA13: 88.5 | BC13: 106 | BD13: 636 | BE13: 371 | BF13: 104 | BG13: 199 | BI13: 40.85329156 | BJ13: =IF(AND(L13<national_data!$H$16,AB13="TRUE"),"GREEN",IF(AND(L13>national_data!$H$16,AB13="TRUE"),"RED","AMBER")) -> RED | BK13: RED | BL13: GREEN | BO13: all_mortality_adj | BP13: Birmingham CrossCity | BQ13: 0.4491314 | BR13: 0.7582924 | BS13: 4.228881 | BT13: 7.139845 | BU13: -0.0759127 | BV13: 0.1577352 | BW13: 0.2206898 | BX13: -0.5084646 | BY13: 0.3566393 | BZ13: 0 | CA13: -0.870483 | CB13: 1.485186 | CC13: 2.102831 | CD13: -4.992032 | CE13: 3.251066 | CF13: 0 | CG13: amber | CI13: TRUE
A14: 13 | B14: all_mortality_adj | C14: 2011 | D14: Birmingham South and Central | E14: 1.38992744 | F14: 0.1258717452 | G14: 9.652482736 | H14: 9.972360837 | I14: 8.998369646 | J14: 4.92873213 | L14: 9.460991297 | M14: 0.04370890176 | N14: 2.760766081 | O14: 7.071172828 | P14: -1.549640666 | Q14: FALSE | R14: 0.2918051602 | S14: 0.7474029525 | T14: -0.1637926321 | U14: FALSE | V14: 193.898 | W14: 267.6535108 | X14: 685.5431345 | Y14: -150.236113 | Z14: FALSE | AB14: =IF(OR(AND((L14-1.96*M14)<national_data!$H$16,(L14+1.96*M14)<national_data!$H$16),AND((L14-1.96*M14)>national_data!$H$16,(L14+1.96*M14)>national_data!$H$16)),"TRUE","FALSE") -> TRUE | AD14: no clear trend | AH14: -0.2111096006 | AI14: -0.3226250509 | AJ14: -0.09959415019 | AK14: TRUE | AY14: 5 | AZ14: 12 | BA14: 8.5 | BC14: 109.2 | BD14: 631 | BE14: 370.1 | BF14: 115 | BG14: 76 | BI14: 33.55194535 | BJ14: =IF(AND(L14<national_data!$H$16,AB14="TRUE"),"GREEN",IF(AND(L14>national_data!$H$16,AB14="TRUE"),"RED","AMBER")) -> RED | BK14: AMBER | BL14: GREEN | BO14: all_mortality_adj | BP14: Birmingham South and Central | BQ14: -0.1637926 | BR14: 0.747403 | BS14: -1.549641 | BT14: 7.071173 | BU14: -0.3414378 | BV14: 0.4648957 | BW14: 0.6356691 | BX14: -1.587349 | BY14: 0.9044735 | BZ14: 0 | CA14: -3.482225 | CB14: 4.398374 | CC14: 6.132964 | CD14: -15.50283 | CE14: 8.538383 | CF14: 0 | CG14: amber | CI14: TRUE
A15: 14 | B15: all_mortality_adj | C15: 2011 | D15: Blackburn with Darwen | E15: -2.114825231 | F15: -0.1915184454 | G15: 13.15723541 | H15: 11.79879594 | I15: 8.266028608 | J15: 8.190903776 | K15: 5.573741136 | L15: 11.14456923 | M15: 0.04900654594 | N15: 8.785687321 | O15: 12.06683858 | P15: 5.504536062 | Q15: TRUE | R15: 0.7883379914 | S15: 1.082755047 | T15: 0.4939209358 | U15: FALSE | V15: 140.479 | W15: 617.1022846 | X15: 847.5687084 | Y15: 386.6358607 | Z15: TRUE | AB15: =IF(OR(AND((L15-1.96*M15)<national_data!$H$16,(L15+1.96*M15)<national_data!$H$16),AND((L15-1.96*M15)>national_data!$H$16,(L15+1.96*M15)>national_data!$H$16)),"TRUE","FALSE") -> TRUE | AD15: no clear trend | AH15: -0.6156314799 | AI15: -0.7411372824 | AJ15: -0.4901256774 | AK15: TRUE | AY15: 161 | AZ15: 194 | BA15: 177.5 | BC15: 151 | BD15: 859 | BE15: 505 | BF15: 196 | BG15: 174 | BI15: 46.98670486 | BJ15: =IF(AND(L15<national_data!$H$16,AB15="TRUE"),"GREEN",IF(AND(L15>national_data!$H$16,AB15="TRUE"),"RED","AMBER")) -> RED | BK15: RED | BL15: GREEN | BO15: all_mortality_adj | BP15: Blackburn with Darwen | BQ15: 0.4939209 | BR15: 1.082755 | BS15: 5.504536 | BT15: 12.06684 | BU15: 0.0391818 | BV15: 0.3004256 | BW15: 0.4204094 | BX15: -0.7848206 | BY15: 0.8631842 | BZ15: 0 | CA15: 0.0238053 | CB15: 3.348113 | CC15: 4.800053 | CD15: -9.384298 | CE15: 9.431909 | CF15: 0 | CG15: amber | CI15: TRUE
A16: 15 | B16: all_mortality_adj | C16: 2011 | D16: Blackpool | E16: -2.585080054 | F16: -0.2341046939 | G16: 13.62749023 | H16: 10.22172507 | I16: 9.765378553 | J16: 8.492880528 | L16: 11.73064388 | M16: 0.0394246282 | N16: 9.654500592 | O16: 14.21482806 | P16: 5.094173126 | Q16: FALSE | R16: 0.8230154026 | S16: 1.211768783 | T16: 0.4342620218 | U16: FALSE | V16: 139.36 | W16: 672.7256012 | X16: 990.4892191 | Y16: 354.9619834 | Z16: TRUE | AB16: =IF(OR(AND((L16-1.96*M16)<national_data!$H$16,(L16+1.96*M16)<national_data!$H$16),AND((L16-1.96*M16)>national_data!$H$16,(L16+1.96*M16)>national_data!$H$16)),"TRUE","FALSE") -> TRUE | AD16: no clear trend | AH16: -0.01426225874 | AI16: -0.1206960728 | AJ16: 0.0921715553 | AK16: FALSE | AY16: 173 | AZ16: 203 | BA16: 188 | BC16: 154 | BD16: 809 | BE16: 481.5 | BF16: 201 | BG16: 160 | BI16: 42.10747438 | BJ16: =IF(AND(L16<national_data!$H$16,AB16="TRUE"),"GREEN",IF(AND(L16>national_data!$H$16,AB16="TRUE"),"RED","AMBER")) -> RED | BK16: RED | BL16: AMBER | BO16: all_mortality_adj | BP16: Blackpool | BQ16: 0.434262 | BR16: 1.211769 | BS16: 5.094173 | BT16: 14.21483 | BU16: 0.0994847 | BV16: 0.3966871 | BW16: 0.5668276 | BX16: -1.011497 | BY16: 1.210467 | BZ16: 0 | CA16: 1.187893 | CB16: 4.653396 | CC16: 6.640914 | CD16: -11.8283 | CE16: 14.20408 | CF16: 0 | CG16: amber | CI16: TRUE
A17: 16 | B17: all_mortality_adj | C17: 2011 | D17: Bolton | E17: -1.586712314 | F17: -0.1436925715 | G17: 12.62912249 | H17: 10.44137272 | I17: 8.59607837 | J17: 8.186562591 | K17: 6.076251644 | L17: 10.26357149 | M17: 0.03401236134 | N17: 8.458896444 | O17: 10.47160561 | P17: 6.446187283 | Q17: TRUE | R17: 0.8241669536 | S17: 1.020269174 | T17: 0.6280647328 | U17: TRUE | V17: 268.017 | W17: 1133.564024 | X17: 1403.28416 | Y17: 863.8438885 | Z17: TRUE | AB17: =IF(OR(AND((L17-1.96*M17)<national_data!$H$16,(L17+1.96*M17)<national_data!$H$16),AND((L17-1.96*M17)>national_data!$H$16,(L17+1.96*M17)>national_data!$H$16)),"TRUE","FALSE") -> TRUE | AD17: no clear trend | AH17: 0.06595048519 | AI17: -0.03006488224 | AJ17: 0.1619658526 | AK17: FALSE | AY17: 174 | AZ17: 190 | BA17: 182 | BC17: 100 | BD17: 550 | BE17: 325 | BF17: 79 | BG17: 140 | BI17: 45.92938782 | BJ17: =IF(AND(L17<national_data!$H$16,AB17="TRUE"),"GREEN",IF(AND(L17>national_data!$H$16,AB17="TRUE"),"RED","AMBER")) -> RED | BK17: RED | BL17: AMBER | BO17: all_mortality_adj | BP17: Bolton | BQ17: 0.6280648 | BR17: 1.020269 | BS17: 6.446187 | BT17: 10.47161 | BU17: -0.0892186 | BV17: 0.2001043 | BW17: 0.2907773 | BX17: -0.6591421 | BY17: 0.4807048 | BZ17: 0 | CA17: -0.428863 | CB17: 2.053785 | CC17: 2.903857 | CD17: -6.120422 | CE17: 5.262696 | CF17: 0 | CG17: amber | CI17: TRUE
A18: 17 | B18: all_mortality_adj | C18: 2011 | D18: Bracknell and Ascot | H18: 10.2197923 | I18: 9.2877636 | J18: 7.555727548 | K18: 6.946702046 | L18: 7.661679348 | M18: 0.06539284268 | N18: 5.810827926 | O18: 10.63923102 | P18: 0.9824248331 | Q18: FALSE | R18: 0.7584274493 | S18: 1.388629116 | T18: 0.1282257829 | U18: FALSE | V18: 136.763 | W18: 397.3531298 | X18: 727.5265759 | Y18: 67.17968372 | Z18: TRUE | AB18: =IF(OR(AND((L18-1.96*M18)<national_data!$H$16,(L18+1.96*M18)<national_data!$H$16),AND((L18-1.96*M18)>national_data!$H$16,(L18+1.96*M18)>national_data!$H$16)),"TRUE","FALSE") -> TRUE | AD18: no clear trend | AH18: 0.09775400301 | AI18: -0.07875432533 | AJ18: 0.2742623313 | AK18: FALSE | AY18: 148 | AZ18: 103 | BA18: 125.5 | BC18: 126.2 | BD18: 492 | BE18: 309.1 | BF18: 159 | BG18: 204 | BI18: 34.0099855 | BJ18: =IF(AND(L18<national_data!$H$16,AB18="TRUE"),"GREEN",IF(AND(L18>national_data!$H$16,AB18="TRUE"),"RED","AMBER")) -> GREEN | BK18: RED | BL18: AMBER | BO18: all_mortality_adj | BP18: Bracknell and Ascot | BQ18: 0.1282258 | BR18: 1.388629 | BS18: 0.9824249 | BT18: 10.63923 | BU18: 0.6282595 | BV18: 0.6430629 | BW18: 0.8979094 | BX18: -1.131643 | BY18: 2.388162 | BZ18: 0 | CA18: 4.797791 | CB18: 4.926942 | CC18: 6.932564 | CD18: -8.790034 | CE18: 18.38562 | CF18: 0 | CG18: amber | CI18: TRUE
A19: 18 | B19: all_mortality_adj | C19: 2011 | D19: Bradford City | E19: -1.701163131 | F19: -0.1540572306 | G19: 12.74357331 | H19: 12.55390384 | I19: 9.825668152 | L19: 12.67012092 | M19: 0.05459474636 | N19: 9.236850987 | O19: 23.43345902 | P19: -4.959757043 | Q19: FALSE | R19: 0.7290262697 | S19: 1.849505555 | T19: -0.3914530158 | U19: FALSE | V19: 78.526 | W19: 362.6664803 | X19: 920.0679014 | Y19: -194.7349408 | Z19: FALSE | AB19: =IF(OR(AND((L19-1.96*M19)<national_data!$H$16,(L19+1.96*M19)<national_data!$H$16),AND((L19-1.96*M19)>national_data!$H$16,(L19+1.96*M19)>national_data!$H$16)),"TRUE","FALSE") -> TRUE | AD19: no clear trend | AH19: -1.678559521 | AI19: -1.855735712 | AJ19: -1.501383329 | AK19: TRUE | AY19: 128 | AZ19: 197 | BA19: 162.5 | BC19: 153.4 | BD19: 808 | BE19: 480.7 | BF19: 200 | BG19: 208 | BI19: 35.1231453 | BJ19: =IF(AND(L19<national_data!$H$16,AB19="TRUE"),"GREEN",IF(AND(L19>national_data!$H$16,AB19="TRUE"),"RED","AMBER")) -> RED | BK19: AMBER | BL19: GREEN | BO19: all_mortality_adj | BP19: Bradford City | BQ19: -0.391453 | BR19: 1.849506 | BS19: -4.959757 | BT19: 23.43346 | BU19: -0.6768975 | BV19: 1.143346 | BW19: 1.762361 | BX19: -4.131125 | BY19: 2.77733 | BZ19: 0 | CA19: -10.42656 | CB19: 14.48633 | CC19: 23.70011 | CD19: -56.87878 | CE19: 36.02566 | CF19: 0 | CG19: amber | CI19: TRUE
A20: 19 | B20: all_mortality_adj | C20: 2011 | D20: Bradford Districts | E20: 0.05795388825 | F20: 0.005248300627 | G20: 10.98445629 | H20: 9.650229778 | I20: 8.564147676 | J20: 8.130054808 | K20: 7.962431908 | L20: 9.730143434 | M20: 0.03364340321 | N20: 4.688784382 | O20: 7.089573067 | P20: 2.287995697 | Q20: FALSE | R20: 0.4818823498 | S20: 0.7286195847 | T20: 0.235145115 | U20: FALSE | V20: 330.903 | W20: 775.7664092 | X20: 1172.980498 | Y20: 378.5523201 | Z20: TRUE | AB20: =IF(OR(AND((L20-1.96*M20)<national_data!$H$16,(L20+1.96*M20)<national_data!$H$16),AND((L20-1.96*M20)>national_data!$H$16,(L20+1.96*M20)>national_data!$H$16)),"TRUE","FALSE") -> TRUE | AD20: no clear trend | AH20: -0.5881990575 | AI20: -0.6794891809 | AJ20: -0.4969089342 | AK20: TRUE | AY20: 42 | AZ20: 62 | BA20: 52 | BC20: 140 | BD20: 841 | BE20: 490.5 | BF20: 185 | BG20: 187 | BI20: 45.29132046 | BJ20: =IF(AND(L20<national_data!$H$16,AB20="TRUE"),"GREEN",IF(AND(L20>national_data!$H$16,AB20="TRUE"),"RED","AMBER")) -> RED | BK20: RED | BL20: GREEN | BO20: all_mortality_adj | BP20: Bradford Districts | BQ20: 0.2351451 | BR20: 0.7286196 | BS20: 2.287996 | BT20: 7.089573 | BU20: -0.2020318 | BV20: 0.2517727 | BW20: 0.3518956 | BX20: -0.8917473 | BY20: 0.4876836 | BZ20: 0 | CA20: -2.154851 | CB20: 2.449784 | CC20: 3.471814 | CD20: -8.959608 | CE20: 4.649905 | CF20: 0 | CG20: amber | CI20: TRUE
A21: 20 | B21: all_mortality_adj | C21: 2011 | D21: Brent | E21: 2.979643901 | F21: 0.2698363721 | G21: 8.062766275 | H21: 7.583319627 | I21: 6.943132859 | J21: 5.307887357 | L21: 7.549380664 | M21: 0.03344494229 | N21: 3.37273319 | O21: 6.618150759 | P21: 0.127315622 | Q21: FALSE | R21: 0.4467562758 | S21: 0.876648172 | T21: 0.0168643797 | U21: FALSE | V21: 260.7 | W21: 439.6357714 | X21: 862.6759514 | Y21: 16.59559133 | Z21: TRUE | AB21: =IF(OR(AND((L21-1.96*M21)<national_data!$H$16,(L21+1.96*M21)<national_data!$H$16),AND((L21-1.96*M21)>national_data!$H$16,(L21+1.96*M21)>national_data!$H$16)),"TRUE","FALSE") -> TRUE | AD21: no clear trend | AH21: -0.2447178648 | AI21: -0.3307550996 | AJ21: -0.15868063 | AK21: TRUE | AY21: 29 | AZ21: 24 | BA21: 26.5 | BC21: 117.8 | BD21: 595 | BE21: 356.4 | BF21: 140 | BG21: 135 | BI21: 27.89710612 | BJ21: =IF(AND(L21<national_data!$H$16,AB21="TRUE"),"GREEN",IF(AND(L21>national_data!$H$16,AB21="TRUE"),"RED","AMBER")) -> GREEN | BK21: RED | BL21: GREEN | BO21: all_mortality_adj | BP21: Brent | BQ21: 0.0168644 | BR21: 0.8766482 | BS21: 0.1273156 | BT21: 6.618151 | BU21: -0.2859173 | BV21: 0.4386652 | BW21: 0.6363146 | BX21: -1.533094 | BY21: 0.9612592 | BZ21: 0 | CA21: -2.182326 | CB21: 3.311651 | CC21: 4.814651 | CD21: -11.61904 | CE21: 7.254389 | CF21: 0 | CG21: amber | CI21: TRUE
A22: 21 | B22: all_mortality_adj | C22: 2011 | D22: Brighton & Hove | E22: -0.3422529525 | F22: -0.03099440675 | G22: 11.38466313 | H22: 8.239546207 | I22: 7.708550925 | J22: 7.573669004 | K22: 7.217149136 | L22: 8.658131158 | M22: 0.0338947904 | N22: 5.010502048 | O22: 7.346528555 | P22: 2.674475541 | Q22: FALSE | R22: 0.5787047986 | S22: 0.8485120428 | T22: 0.3088975545 | U22: FALSE | V22: 260.106 | W22: 651.6308229 | X22: 955.4380782 | Y22: 347.8235676 | Z22: TRUE | AB22: =IF(OR(AND((L22-1.96*M22)<national_data!$H$16,(L22+1.96*M22)<national_data!$H$16),AND((L22-1.96*M22)>national_data!$H$16,(L22+1.96*M22)>national_data!$H$16)),"TRUE","FALSE") -> FALSE | AD22: no clear trend | AH22: -0.2190483222 | AI22: -0.3079779892 | AJ22: -0.1301186553 | AK22: TRUE | AY22: 75 | AZ22: 77 | BA22: 76 | BC22: 112.2 | BD22: 528 | BE22: 320.1 | BF22: 123 | BG22: 78 | BI22: 42.1235784 | BJ22: =IF(AND(L22<national_data!$H$16,AB22="TRUE"),"GREEN",IF(AND(L22>national_data!$H$16,AB22="TRUE"),"RED","AMBER")) -> AMBER | BK22: RED | BL22: GREEN | BO22: all_mortality_adj | BP22: Brighton & Hove | BQ22: 0.3088976 | BR22: 0.8485121 | BS22: 2.674475 | BT22: 7.346529 | BU22: -0.0625129 | BV22: 0.2753135 | BW22: 0.3928905 | BX22: -0.8325782 | BY22: 0.7075526 | BZ22: 0 | CA22: -0.8755893 | CB22: 2.383701 | CC22: 3.507461 | CD22: -7.750212 | CE22: 5.999033 | CF22: 0 | CG22: amber | CI22: TRUE
A23: 22 | B23: all_mortality_adj | C23: 2011 | D23: Bristol | E23: 0.2882077619 | F23: 0.02610007754 | G23: 10.75420241 | H23: 9.64620126 | I23: 7.84934452 | J23: 8.503291014 | K23: 7.414085103 | L23: 9.182088568 | M23: 0.02881520538 | N23: 4.077566522 | O23: 5.862901798 | P23: 2.292231247 | Q23: FALSE | R23: 0.4440783262 | S23: 0.6385150562 | T23: 0.2496415962 | U23: FALSE | V23: 446.574 | W23: 910.467596 | X23: 1309.109754 | Y23: 511.8254384 | Z23: TRUE | AB23: =IF(OR(AND((L23-1.96*M23)<national_data!$H$16,(L23+1.96*M23)<national_data!$H$16),AND((L23-1.96*M23)>national_data!$H$16,(L23+1.96*M23)>national_data!$H$16)),"TRUE","FALSE") -> TRUE | AD23: no clear trend | AH23: -0.04689576834 | AI23: -0.1284326648 | AJ23: 0.03464112806 | AK23: FALSE | AY23: 26 | AZ23: 45 | BA23: 35.5 | BC23: 80.4 | BD23: 418 | BE23: 249.2 | BF23: 46 | BG23: 81 | BI23: 44.16712431 | BJ23: =IF(AND(L23<national_data!$H$16,AB23="TRUE"),"GREEN",IF(AND(L23>national_data!$H$16,AB23="TRUE"),"RED","AMBER")) -> RED | BK23: RED | BL23: AMBER | BO23: all_mortality_adj | BP23: Bristol | BQ23: 0.2496416 | BR23: 0.6385151 | BS23: 2.292231 | BT23: 5.862902 | BU23: 0.0420341 | BV23: 0.1984048 | BW23: 0.281637 | BX23: -0.5099744 | BY23: 0.5940427 | BZ23: 0 | CA23: 0.4860139 | CB23: 1.821771 | CC23: 2.550952 | CD23: -4.513852 | CE23: 5.48588 | CF23: 0 | CG23: amber | CI23: TRUE
A24: 23 | B24: all_mortality_adj | C24: 2011 | D24: Bromley | E24: 0.5424342038 | F24: 0.0491228088 | G24: 10.49997597 | H24: 9.246006735 | I24: 8.758663939 | J24: 8.122402696 | K24: 6.568955884 | L24: 8.042882895 | M24: 0.0332234758 | N24: 4.846679643 | O24: 6.680195358 | P24: 3.013163928 | Q24: FALSE | R24: 0.6026047757 | S24: 0.830572252 | T24: 0.3746372995 | U24: FALSE | V24: 315.242 | W24: 763.938492 | X24: 1052.939073 | Y24: 474.9379115 | Z24: TRUE | AB24: =IF(OR(AND((L24-1.96*M24)<national_data!$H$16,(L24+1.96*M24)<national_data!$H$16),AND((L24-1.96*M24)>national_data!$H$16,(L24+1.96*M24)>national_data!$H$16)),"TRUE","FALSE") -> TRUE | AD24: no clear trend | AH24: 0.04759097716 | AI24: -0.04256168589 | AJ24: 0.1377436402 | AK24: FALSE | AY24: 80 | AZ24: 71 | BA24: 75.5 | BC24: 150.4 | BD24: 663 | BE24: 406.7 | BF24: 193 | BG24: 201 | BI24: 43.19600523 | BJ24: =IF(AND(L24<national_data!$H$16,AB24="TRUE"),"GREEN",IF(AND(L24>national_data!$H$16,AB24="TRUE"),"RED","AMBER")) -> GREEN | BK24: RED | BL24: AMBER | BO24: all_mortality_adj | BP24: Bromley | BQ24: 0.3746373 | BR24: 0.8305722 | BS24: 3.013164 | BT24: 6.680195 | BU24: 0.155932 | BV24: 0.2326199 | BW24: 0.3142717 | BX24: -0.4600404 | BY24: 0.7719045 | BZ24: 0 | CA24: 1.345848 | CB24: 1.870934 | CC24: 2.498685 | CD24: -3.551574 | CE24: 6.24327 | CF24: 0 | CG24: amber | CI24: TRUE
A25: 24 | B25: all_mortality_adj | C25: 2011 | D25: Bury | E25: -0.7730156785 | F25: -0.07000425325 | G25: 11.81542586 | H25: 10.8315351 | I25: 8.609338601 | J25: 6.66728552 | K25: 6.801009613 | L25: 9.192514729 | M25: 0.04027894045 | N25: 7.790897886 | O25: 10.27509933 | P25: 5.306696445 | Q25: TRUE | R25: 0.847526288 | S25: 1.117768057 | T25: 0.5772845191 | U25: FALSE | V25: 183.469 | W25: 714.6941222 | X25: 942.5810993 | Y25: 486.807145 | Z25: TRUE | AB25: =IF(OR(AND((L25-1.96*M25)<national_data!$H$16,(L25+1.96*M25)<national_data!$H$16),AND((L25-1.96*M25)>national_data!$H$16,(L25+1.96*M25)>national_data!$H$16)),"TRUE","FALSE") -> TRUE | AD25: no clear trend | AH25: -0.09580521473 | AI25: -0.215154565 | AJ25: 0.02354413554 | AK25: FALSE | AY25: 176 | AZ25: 176 | BA25: 176 | BC25: 145.6 | BD25: 780 | BE25: 462.8 | BF25: 192 | BG25: 188 | BI25: 44.72459469 | BJ25: =IF(AND(L25<national_data!$H$16,AB25="TRUE"),"GREEN",IF(AND(L25>national_data!$H$16,AB25="TRUE"),"RED","AMBER")) -> RED | BK25: RED | BL25: AMBER | BO25: all_mortality_adj | BP25: Bury | BQ25: 0.5772845 | BR25: 1.117768 | BS25: 5.306696 | BT25: 10.2751 | BU25: -0.0530331 | BV25: 0.2757569 | BW25: 0.3934817 | BX25: -0.8242571 | BY25: 0.718191 | BZ25: 0 | CA25: -1.147153 | CB25: 2.5349 | CC25: 3.766507 | CD25: -8.529508 | CE25: 6.235201 | CF25: 0 | CG25: amber | CI25: TRUE
A26: 25 | B26: all_mortality_adj | C26: 2011 | D26: Calderdale | E26: -0.8649659 | F26: -0.07833125977 | G26: 11.90737608 | H26: 10.44004607 | I26: 11.00823933 | J26: 7.566340399 | K26: 7.329161852 | L26: 9.779303285 | M26: 0.04003468314 | N26: 6.253251491 | O26: 8.865489025 | P26: 3.641013957 | Q26: FALSE | R26: 0.6394373207 | S26: 0.9065563023 | T26: 0.3723183392 | U26: FALSE | V26: 204.323 | W26: 638.8415522 | X26: 905.711657 | Y26: 371.9714474 | Z26: TRUE | AB26: =IF(OR(AND((L26-1.96*M26)<national_data!$H$16,(L26+1.96*M26)<national_data!$H$16),AND((L26-1.96*M26)>national_data!$H$16,(L26+1.96*M26)>national_data!$H$16)),"TRUE","FALSE") -> TRUE | AD26: no clear trend | AH26: 0.2557561065 | AI26: 0.1422243705 | AJ26: 0.3692878426 | AK26: TRUE | AY26: 95 | AZ26: 121 | BA26: 108 | BC26: 138.2 | BD26: 787 | BE26: 462.6 | BF26: 182 | BG26: 176 | BI26: 48.25116373 | BJ26: =IF(AND(L26<national_data!$H$16,AB26="TRUE"),"GREEN",IF(AND(L26>national_data!$H$16,AB26="TRUE"),"RED","AMBER")) -> RED | BK26: RED | BL26: RED | BO26: all_mortality_adj | BP26: Calderdale | BQ26: 0.3723183 | BR26: 0.9065563 | BS26: 3.641014 | BT26: 8.865489 | BU26: -0.1241728 | BV26: 0.2725704 | BW26: 0.3829801 | BX26: -0.8748138 | BY26: 0.6264681 | BZ26: 0 | CA26: -1.236595 | CB26: 2.665549 | CC26: 3.750794 | CD26: -8.588153 | CE26: 6.114962 | CF26: 0 | CG26: amber | CI26: TRUE
A27: 26 | B27: all_mortality_adj | C27: 2011 | D27: Cambridgeshire and Peterborough | E27: 1.405065295 | F27: 0.1272426285 | G27: 9.637344881 | H27: 10.14136765 | I27: 8.552161793 | J27: 7.761732046 | K27: 6.219656848 | L27: 7.920078881 | M27: 0.02304884729 | N27: 5.035659917 | O27: 6.274105603 | P27: 3.797214231 | Q27: FALSE | R27: 0.6358093136 | S27: 0.792177161 | T27: 0.4794414661 | U27: FALSE | V27: 839.34 | W27: 2113.315397 | X27: 2633.053898 | Y27: 1593.576896 | Z27: TRUE | AB27: =IF(OR(AND((L27-1.96*M27)<national_data!$H$16,(L27+1.96*M27)<national_data!$H$16),AND((L27-1.96*M27)>national_data!$H$16,(L27+1.96*M27)>national_data!$H$16)),"TRUE","FALSE") -> TRUE | AD27: no clear trend | AH27: -0.2721989557 | AI27: -0.3358681434 | AJ27: -0.208529768 | AK27: TRUE | AY27: 94 | AZ27: 79 | BA27: 86.5 | BC27: 110.2 | BD27: 533 | BE27: 321.6 | BF27: 120 | BG27: 102 | BI27: 42.31226322 | BJ27: =IF(AND(L27<national_data!$H$16,AB27="TRUE"),"GREEN",IF(AND(L27>national_data!$H$16,AB27="TRUE"),"RED","AMBER")) -> GREEN | BK27: RED | BL27: GREEN | BO27: all_mortality_adj | BP27: Cambridgeshire and Peterborough | BQ27: 0.4794415 | BR27: 0.7921771 | BS27: 3.797214 | BT27: 6.274106 | BU27: -0.0364792 | BV27: 0.159559 | BW27: 0.2294386 | BX27: -0.4861788 | BY27: 0.4132205 | BZ27: 0 | CA27: -0.3189696 | CB27: 1.26372 | CC27: 1.822475 | CD27: -3.891021 | CE27: 3.253082 | CF27: 0 | CG27: amber | CI27: TRUE
A28: 27 | B28: all_mortality_adj | C28: 2011 | D28: Camden | E28: 1.590289256 | F28: 0.1440164992 | G28: 9.452120921 | H28: 8.585619603 | I28: 7.036337128 | J28: 5.60402986 | K28: 2.859274718 | L28: 7.904340803 | M28: 0.04113984111 | N28: 7.820483421 | O28: 10.59870178 | P28: 5.042265067 | Q28: FALSE | R28: 0.9893909709 | S28: 1.340871053 | T28: 0.6379108888 | U28: TRUE | V28: 239.889 | W28: 938.0239737 | X28: 1271.255985 | Y28: 604.7919623 | Z28: TRUE | AB28: =IF(OR(AND((L28-1.96*M28)<national_data!$H$16,(L28+1.96*M28)<national_data!$H$16),AND((L28-1.96*M28)>national_data!$H$16,(L28+1.96*M28)>national_data!$H$16)),"TRUE","FALSE") -> TRUE | AD28: no clear trend | AH28: -0.1960773047 | AI28: -0.3126974991 | AJ28: -0.07945711032 | AK28: TRUE | AY28: 196 | AZ28: 177 | BA28: 186.5 | BC28: 154.4 | BD28: 709 | BE28: 431.7 | BF28: 202 | BG28: 154 | BI28: 33.53738223 | BJ28: =IF(AND(L28<national_data!$H$16,AB28="TRUE"),"GREEN",IF(AND(L28>national_data!$H$16,AB28="TRUE"),"RED","AMBER")) -> GREEN | BK28: RED | BL28: GREEN | BO28: all_mortality_adj | BP28: Camden | BQ28: 0.6379109 | BR28: 1.340871 | BS28: 5.042265 | BT28: 10.5987 | BU28: 0.1438839 | BV28: 0.3586532 | BW28: 0.504307 | BX28: -0.8445577 | BY28: 1.132326 | BZ28: 0 | CA28: 1.181316 | CB28: 2.834917 | CC28: 3.973263 | CD28: -6.606278 | CE28: 8.968911 | CF28: 0 | CG28: amber | CI28: TRUE
A29: 28 | B29: all_mortality_adj | C29: 2011 | D29: Cannock Chase | E29: 0.1379914864 | F29: 0.01249650069 | G29: 10.90441869 | H29: 9.873650588 | I29: 8.980777383 | J29: 6.494529356 | K29: 4.465629375 | L29: 8.397989896 | M29: 0.05439880071 | N29: 8.563056348 | O29: 12.13431883 | P29: 4.991793864 | Q29: FALSE | R29: 1.019655472 | S29: 1.444907529 | T29: 0.5944034139 | U29: FALSE | V29: 126.383 | W29: 541.1123752 | X29: 766.7858085 | Y29: 315.438942 | Z29: TRUE | AB29: =IF(OR(AND((L29-1.96*M29)<national_data!$H$16,(L29+1.96*M29)<national_data!$H$16),AND((L29-1.96*M29)>national_data!$H$16,(L29+1.96*M29)>national_data!$H$16)),"TRUE","FALSE") -> TRUE | AD29: no clear trend | AH29: -0.4107488971 | AI29: -0.5575569689 | AJ29: -0.2639408253 | AK29: TRUE | AY29: 198 | AZ29: 191 | BA29: 194.5 | BC29: 127.8 | BD29: 676 | BE29: 401.9 | BF29: 161 | BG29: 74 | BI29: 40.71900539 | BJ29: =IF(AND(L29<national_data!$H$16,AB29="TRUE"),"GREEN",IF(AND(L29>national_data!$H$16,AB29="TRUE"),"RED","AMBER")) -> GREEN | BK29: RED | BL29: GREEN | BO29: all_mortality_adj | BP29: Cannock Chase | BQ29: 0.5944034 | BR29: 1.444908 | BS29: 4.991794 | BT29: 12.13432 | BU29: 0.174885 | BV29: 0.4339307 | BW29: 0.6522351 | BX29: -1.103496 | BY29: 1.453266 | BZ29: 0 | CA29: 1.154223 | CB29: 3.644146 | CC29: 5.614085 | CD29: -9.849382 | CE29: 12.15783 | CF29: 0 | CG29: amber | CI29: TRUE
A30: 29 | B30: all_mortality_adj | C30: 2011 | D30: Canterbury and Coastal | E30: -0.8613960715 | F30: -0.07800797631 | G30: 11.90380625 | H30: 9.418250856 | I30: 9.419247207 | J30: 8.013415367 | K30: 7.923693719 | L30: 8.976802386 | M30: 0.03983433344 | N30: 5.067836843 | O30: 8.400957095 | P30: 1.734716591 | Q30: FALSE | R30: 0.5645481125 | S30: 0.9358518472 | T30: 0.1932443777 | U30: FALSE | V30: 203.906 | W30: 516.6811696 | X30: 856.5027787 | Y30: 176.8595606 | Z30: TRUE | AB30: =IF(OR(AND((L30-1.96*M30)<national_data!$H$16,(L30+1.96*M30)<national_data!$H$16),AND((L30-1.96*M30)>national_data!$H$16,(L30+1.96*M30)>national_data!$H$16)),"TRUE","FALSE") -> TRUE | AD30: no clear trend | AH30: 0.4651601017 | AI30: 0.3458005534 | AJ30: 0.5845196501 | AK30: TRUE | AY30: 71 | AZ30: 82 | BA30: 76.5 | BC30: 109.8 | BD30: 603 | BE30: 356.4 | BF30: 118 | BG30: 149 | BI30: 46.6784134 | BJ30: =IF(AND(L30<national_data!$H$16,AB30="TRUE"),"GREEN",IF(AND(L30>national_data!$H$16,AB30="TRUE"),"RED","AMBER")) -> RED | BK30: RED | BL30: RED | BO30: all_mortality_adj | BP30: Canterbury and Coastal | BQ30: 0.1932444 | BR30: 0.9358519 | BS30: 1.734717 | BT30: 8.400957 | BU30: 0.0065517 | BV30: 0.3788814 | BW30: 0.5343859 | BX30: -1.040845 | BY30: 1.053948 | BZ30: 0 | CA30: 0.3160853 | CB30: 3.401143 | CC30: 4.676168 | CD30: -8.849204 | CE30: 9.481375 | CF30: 0 | CG30: amber | CI30: TRUE
A31: 30 | B31: all_mortality_adj | C31: 2011 | D31: Castle Point, Rayleigh and Rochford | E31: 3.589065932 | F31: 0.3250255944 | G31: 7.453344245 | H31: 9.026432329 | I31: 8.762430559 | J31: 9.165028102 | K31: 6.442856373 | L31: 7.859216604 | M31: 0.04971269905 | N31: 4.05267214 | O31: 7.423407263 | P31: 0.6819370172 | Q31: FALSE | R31: 0.5156585375 | S31: 0.9445479921 | T31: 0.08676908292 | U31: FALSE | V31: 172.777 | W31: 350.1042672 | X31: 641.2970183 | Y31: 58.91151601 | Z31: TRUE | AB31: =IF(OR(AND((L31-1.96*M31)<national_data!$H$16,(L31+1.96*M31)<national_data!$H$16),AND((L31-1.96*M31)>national_data!$H$16,(L31+1.96*M31)>national_data!$H$16)),"TRUE","FALSE") -> TRUE | AD31: no clear trend | AH31: 0.269246521 | AI31: 0.1261782546 | AJ31: 0.4123147874 | AK31: TRUE | AY31: 53 | AZ31: 43 | BA31: 48 | BC31: 99.4 | BD31: 427 | BE31: 263.2 | BF31: 76 | BG31: 90 | BI31: 40.85009161 | BJ31: =IF(AND(L31<national_data!$H$16,AB31="TRUE"),"GREEN",IF(AND(L31>national_data!$H$16,AB31="TRUE"),"RED","AMBER")) -> GREEN | BK31: RED | BL31: RED | BO31: all_mortality_adj | BP31: Castle Point, Rayleigh and Rochford | BQ31: 0.0867691 | BR31: 0.944548 | BS31: 0.681937 | BT31: 7.423407 | BU31: -0.1696974 | BV31: 0.4376423 | BW31: 0.5806752 | BX31: -1.307821 | BY31: 0.9684259 | BZ31: 0 | CA31: -1.374476 | CB31: 3.439526 | CC31: 4.578612 | CD31: -10.34856 | CE31: 7.599603 | CF31: 0 | CG31: amber | CI31: TRUE
A32: 31 | B32: all_mortality_adj | C32: 2011 | D32: Central London (Westminster) | E32: 3.66010691 | F32: 0.3314590612 | G32: 7.382303266 | H32: 5.920883137 | I32: 5.983290621 | J32: 4.506491669 | L32: 5.831840093 | M32: 0.04915502353 | N32: 4.655308631 | O32: 7.531108575 | P32: 1.779508686 | Q32: FALSE | R32: 0.7982572493 | S32: 1.291377756 | T32: 0.3051367421 | U32: FALSE | V32: 193.972 | W32: 451.4997629 | X32: 730.4120963 | Y32: 172.5874295 | Z32: TRUE | AB32: =IF(OR(AND((L32-1.96*M32)<national_data!$H$16,(L32+1.96*M32)<national_data!$H$16),AND((L32-1.96*M32)>national_data!$H$16,(L32+1.96*M32)>national_data!$H$16)),"TRUE","FALSE") -> TRUE | AD32: no clear trend | AH32: -0.006050488636 | AI32: -0.1307119355 | AJ32: 0.1186109582 | AK32: FALSE | AY32: 164 | AZ32: 61 | BA32: 112.5 | BC32: 159.2 | BD32: 654 | BE32: 406.6 | BF32: 205 | BG32: 156 | BI32: 23.79296869 | BJ32: =IF(AND(L32<national_data!$H$16,AB32="TRUE"),"GREEN",IF(AND(L32>national_data!$H$16,AB32="TRUE"),"RED","AMBER")) -> GREEN | BK32: RED | BL32: AMBER | BO32: all_mortality_adj | BP32: Central London (Westminster) | BQ32: 0.3051367 | BR32: 1.291378 | BS32: 1.779509 | BT32: 7.531108 | BU32: -0.4108727 | BV32: 0.5031842 | BW32: 0.6543345 | BX32: -1.693368 | BY32: 0.871623 | BZ32: 0 | CA32: -2.566776 | CB32: 2.93449 | CC32: 3.853975 | CD32: -10.12057 | CE32: 4.987015 | CF32: 0 | CG32: amber | CI32: TRUE
A33: 32 | B33: all_mortality_adj | C33: 2011 | D33: Central Manchester | E33: 0.2122896684 | F33: 0.01922493957 | G33: 10.83012051 | H33: 8.891964723 | I33: 4.735436312 | J33: 8.795887869 | L33: 9.618652151 | M33: 0.05366644463 | N33: 10.96317841 | O33: 17.08999209 | P33: 4.836364741 | Q33: FALSE | R33: 1.13978323 | S33: 1.776755393 | T33: 0.5028110659 | U33: FALSE | V33: 183.14 | W33: 1003.898247 | X33: 1564.930575 | Y33: 442.8659194 | Z33: TRUE | AB33: =IF(OR(AND((L33-1.96*M33)<national_data!$H$16,(L33+1.96*M33)<national_data!$H$16),AND((L33-1.96*M33)>national_data!$H$16,(L33+1.96*M33)>national_data!$H$16)),"TRUE","FALSE") -> TRUE | AD33: no clear trend | AH33: -0.7274340662 | AI33: -0.8747512592 | AJ33: -0.5801168732 | AK33: TRUE | AY33: 203 | AZ33: 207 | BA33: 205 | BC33: 151 | BD33: 814 | BE33: 482.5 | BF33: 196 | BG33: 133 | BI33: 33.25340941 | BJ33: =IF(AND(L33<national_data!$H$16,AB33="TRUE"),"GREEN",IF(AND(L33>national_data!$H$16,AB33="TRUE"),"RED","AMBER")) -> RED | BK33: RED | BL33: GREEN | BO33: all_mortality_adj | BP33: Central Manchester | BQ33: 0.5028111 | BR33: 1.776755 | BS33: 4.836365 | BT33: 17.08999 | BU33: 0.0864604 | BV33: 0.6499716 | BW33: 0.7916963 | BX33: -1.465264 | BY33: 1.638185 | BZ33: 0 | CA33: -0.2920057 | CB33: 6.251851 | CC33: 7.900283 | CD33: -15.77656 | CE33: 15.19255 | CF33: 0 | CG33: amber | CI33: TRUE
A34: 33 | B34: all_mortality_adj | C34: 2011 | D34: Chiltern | H34: 9.207643335 | I34: 8.718694612 | J34: 7.778947256 | K34: 6.798728056 | L34: 7.614518122 | M34: 0.03383149007 | N34: 4.140942486 | O34: 6.298777564 | P34: 1.983107407 | Q34: FALSE | R34: 0.5438220015 | S34: 0.8272063266 | T34: 0.2604376765 | U34: FALSE | V34: 309.951 | W34: 641.7446322 | X34: 976.1562024 | Y34: 307.3330619 | Z34: TRUE | AB34: =IF(OR(AND((L34-1.96*M34)<national_data!$H$16,(L34+1.96*M34)<national_data!$H$16),AND((L34-1.96*M34)>national_data!$H$16,(L34+1.96*M34)>national_data!$H$16)),"TRUE","FALSE") -> TRUE | AD34: no clear trend | AH34: 0.1005069468 | AI34: 0.01011751655 | AJ34: 0.190896377 | AK34: TRUE | AY34: 64 | AZ34: 47 | BA34: 55.5 | BC34: 130.6 | BD34: 487 | BE34: 308.8 | BF34: 167 | BG34: 97 | BI34: 32.50401326 | BJ34: =IF(AND(L34<national_data!$H$16,AB34="TRUE"),"GREEN",IF(AND(L34>national_data!$H$16,AB34="TRUE"),"RED","AMBER")) -> GREEN | BK34: RED | BL34: RED | BO34: all_mortality_adj | BP34: Chiltern | BQ34: 0.2604377 | BR34: 0.8272063 | BS34: 1.983107 | BT34: 6.298778 | BU34: -0.1345861 | BV34: 0.2891677 | BW34: 0.4040319 | BX34: -0.9264885 | BY34: 0.6573164 | BZ34: 0 | CA34: -1.006515 | CB34: 2.201873 | CC34: 3.071199 | CD34: -7.026065 | CE34: 5.013035 | CF34: 0 | CG34: amber | CI34: TRUE
A35: 34 | B35: all_mortality_adj | C35: 2011 | D35: Chorley and South Ribble | E35: -0.9796272816 | F35: -0.08871498757 | G35: 12.02203746 | H35: 11.74163612 | I35: 8.087778313 | J35: 9.324425779 | K35: 6.487580275 | L35: 9.363560997 | M35: 0.0445865137 | N35: 6.764174861 | O35: 9.91025684 | P35: 3.618092882 | Q35: FALSE | R35: 0.7223934209 | S35: 1.058385463 | T35: 0.386401379 | U35: FALSE | V35: 164.727 | W35: 557.1211161 | X35: 816.2434392 | Y35: 297.9987931 | Z35: TRUE | AB35: =IF(OR(AND((L35-1.96*M35)<national_data!$H$16,(L35+1.96*M35)<national_data!$H$16),AND((L35-1.96*M35)>national_data!$H$16,(L35+1.96*M35)>national_data!$H$16)),"TRUE","FALSE") -> TRUE | AD35: no clear trend | AH35: 0.378845225 | AI35: 0.2616008639 | AJ35: 0.4960895861 | AK35: TRUE | AY35: 124 | AZ35: 144 | BA35: 134 | BC35: 112.4 | BD35: 589 | BE35: 350.7 | BF35: 124 | BG35: 139 | BI35: 47.66345794 | BJ35: =IF(AND(L35<national_data!$H$16,AB35="TRUE"),"GREEN",IF(AND(L35>national_data!$H$16,AB35="TRUE"),"RED","AMBER")) -> RED | BK35: RED | BL35: RED | BO35: all_mortality_adj | BP35: Chorley and South Ribble | BQ35: 0.3864014 | BR35: 1.058385 | BS35: 3.618093 | BT35: 9.910256 | BU35: -0.1625232 | BV35: 0.342849 | BW35: 0.5132565 | BX35: -1.168506 | BY35: 0.8434595 | BZ35: 0 | CA35: -1.244446 | CB35: 3.210288 | CC35: 4.7175 | CD35: -10.49074 | CE35: 8.001854 | CF35: 0 | CG35: amber | CI35: TRUE
A36: 35 | B36: all_mortality_adj | C36: 2011 | D36: City and Hackney | E36: 2.179543722 | F36: 0.1973793481 | G36: 8.862866454 | H36: 7.208393221 | J36: 4.878514018 | K36: 1.8355764 | L36: 8.287368161 | M36: 0.04067079331 | N36: 7.531377364 | O36: 11.87207507 | P36: 3.19067966 | Q36: FALSE | R36: 0.9087779398 | S36: 1.432550701 | T36: 0.3850051787 | U36: FALSE | V36: 234.423 | W36: 882.7640378 | X36: 1391.543727 | Y36: 373.9843489 | Z36: TRUE | AB36: =IF(OR(AND((L36-1.96*M36)<national_data!$H$16,(L36+1.96*M36)<national_data!$H$16),AND((L36-1.96*M36)>national_data!$H$16,(L36+1.96*M36)>national_data!$H$16)),"TRUE","FALSE") -> TRUE | AD36: no clear trend | AH36: -0.3613742583 | AI36: -0.4699453877 | AJ36: -0.2528031289 | AK36: TRUE | AY36: 186 | AZ36: 171 | BA36: 178.5 | BC36: 57 | BD36: 252 | BE36: 154.5 | BF36: 14 | BG36: 19 | BI36: 22.78535009 | BJ36: =IF(AND(L36<national_data!$H$16,AB36="TRUE"),"GREEN",IF(AND(L36>national_data!$H$16,AB36="TRUE"),"RED","AMBER")) -> GREEN | BK36: RED | BL36: GREEN | BO36: all_mortality_adj | BP36: City and Hackney | BQ36: 0.3850052 | BR36: 1.432551 | BS36: 3.19068 | BT36: 11.87208 | BU36: 0.3771383 | BV36: 0.534462 | BW36: 0.7571875 | BX36: -1.106949 | BY36: 1.861226 | BZ36: 0 | CA36: 3.016328 | CB36: 4.429284 | CC36: 6.353576 | CD36: -9.436681 | CE36: 15.46934 | CF36: 0 | CG36: amber | CI36: TRUE
A37: 36 | B37: all_mortality_adj | C37: 2011 | D37: Coastal West Sussex | E37: -1.787544327 | F37: -0.1618799065 | G37: 12.8299545 | H37: 11.45632264 | I37: 8.412592641 | J37: 7.301440453 | K37: 6.843175694 | L37: 8.552142445 | M37: 0.02960221346 | N37: 7.852206202 | O37: 9.835928026 | P37: 5.868484378 | Q37: TRUE | R37: 0.9181566201 | S37: 1.150112745 | T37: 0.6862004948 | U37: TRUE | V37: 473.885 | W37: 1860.521368 | X37: 2330.549376 | Y37: 1390.49336 | Z37: TRUE | AB37: =IF(OR(AND((L37-1.96*M37)<national_data!$H$16,(L37+1.96*M37)<national_data!$H$16),AND((L37-1.96*M37)>national_data!$H$16,(L37+1.96*M37)>national_data!$H$16)),"TRUE","FALSE") -> TRUE | AD37: no clear trend | AH37: -0.1289266461 | AI37: -0.2081247766 | AJ37: -0.04972851564 | AK37: TRUE | AY37: 187 | AZ37: 179 | BA37: 183 | BC37: 140.2 | BD37: 612 | BE37: 376.1 | BF37: 187 | BG37: 170 | BI37: 46.84348594 | BJ37: =IF(AND(L37<national_data!$H$16,AB37="TRUE"),"GREEN",IF(AND(L37>national_data!$H$16,AB37="TRUE"),"RED","AMBER")) -> GREEN | BK37: RED | BL37: GREEN | BO37: all_mortality_adj | BP37: Coastal West Sussex | BQ37: 0.6862005 | BR37: 1.150113 | BS37: 5.868484 | BT37: 9.835928 | BU37: 0.0468832 | BV37: 0.2366899 | BW37: 0.3210067 | BX37: -0.58229 | BY37: 0.6760563 | BZ37: 0 | CA37: 0.3198658 | CB37: 2.024206 | CC37: 2.758968 | CD37: -5.087712 | CE37: 5.727443 | CF37: 0 | CG37: amber | CI37: TRUE
A38: 37 | B38: all_mortality_adj | C38: 2011 | D38: Corby | E38: -0.4893152201 | F38: -0.04431235684 | G38: 11.5317254 | H38: 10.88107539 | I38: 9.737016774 | J38: 7.183104506 | K38: 9.674481597 | L38: 10.4822165 | M38: 0.05433952151 | N38: 4.947049167 | O38: 9.391268201 | P38: 0.5028301323 | Q38: FALSE | R38: 0.4719468602 | S38: 0.8959238915 | T38: 0.04796982891 | U38: FALSE | V38: 56.81 | W38: 140.5209316 | X38: 266.7589733 | Y38: 14.28288991 | Z38: TRUE | AB38: =IF(OR(AND((L38-1.96*M38)<national_data!$H$16,(L38+1.96*M38)<national_data!$H$16),AND((L38-1.96*M38)>national_data!$H$16,(L38+1.96*M38)>national_data!$H$16)),"TRUE","FALSE") -> TRUE | AD38: no clear trend | AH38: -0.4762031482 | AI38: -0.6173002735 | AJ38: -0.3351060229 | AK38: TRUE | AY38: 38 | AZ38: 75 | BA38: 56.5 | BC38: 70.8 | BD38: 406 | BE38: 238.4 | BF38: 26 | BG38: 10 | BI38: 49.00740367 | BJ38: =IF(AND(L38<national_data!$H$16,AB38="TRUE"),"GREEN",IF(AND(L38>national_data!$H$16,AB38="TRUE"),"RED","AMBER")) -> RED | BK38: RED | BL38: GREEN | BO38: all_mortality_adj | BP38: Corby | BQ38: 0.0479698 | BR38: 0.8959239 | BS38: 0.5028301 | BT38: 9.391268 | BU38: 0.0876109 | BV38: 0.4326296 | BW38: 0.6704286 | BX38: -1.226429 | BY38: 1.401651 | BZ38: 0 | CA38: 0.948519 | CB38: 4.534917 | CC38: 6.99692 | CD38: -12.76544 | CE38: 14.66248 | CF38: 0 | CG38: amber | CI38: TRUE
A39: 38 | B39: all_mortality_adj | C39: 2011 | D39: Coventry and Rugby | E39: -0.7349482052 | F39: -0.06655686516 | G39: 11.77735838 | H39: 10.18048506 | I39: 8.715808346 | J39: 8.482790398 | K39: 6.397177537 | L39: 9.511732452 | M39: 0.03001307391 | N39: 6.421460414 | O39: 8.216723794 | P39: 4.626197034 | Q39: FALSE | R39: 0.6751094447 | S39: 0.863851442 | T39: 0.4863674475 | U39: FALSE | V39: 414.055 | W39: 1329.418896 | X39: 1701.087785 | Y39: 957.7500064 | Z39: TRUE | AB39: =IF(OR(AND((L39-1.96*M39)<national_data!$H$16,(L39+1.96*M39)<national_data!$H$16),AND((L39-1.96*M39)>national_data!$H$16,(L39+1.96*M39)>national_data!$H$16)),"TRUE","FALSE") -> TRUE | AD39: no clear trend | AH39: -0.1474094241 | AI39: -0.2286229434 | AJ39: -0.06619590491 | AK39: TRUE | AY39: 109 | AZ39: 129 | BA39: 119 | BC39: 98 | BD39: 511 | BE39: 304.5 | BF39: 73 | BG39: 68 | BI39: 45.55361972 | BJ39: =IF(AND(L39<national_data!$H$16,AB39="TRUE"),"GREEN",IF(AND(L39>national_data!$H$16,AB39="TRUE"),"RED","AMBER")) -> RED | BK39: RED | BL39: GREEN | BO39: all_mortality_adj | BP39: Coventry and Rugby | BQ39: 0.4863674 | BR39: 0.8638514 | BS39: 4.626197 | BT39: 8.216723 | BU39: -0.0989886 | BV39: 0.1925939 | BW39: 0.2584814 | BX39: -0.6056121 | BY39: 0.4076349 | BZ39: 0 | CA39: -0.8840926 | CB39: 1.831901 | CC39: 2.45009 | CD39: -5.686269 | CE39: 3.918084 | CF39: 0 | CG39: amber | CI39: TRUE
A40: 39 | B40: all_mortality_adj | C40: 2011 | D40: Crawley | E40: 1.756002159 | F40: 0.1590234497 | G40: 9.286408017 | H40: 8.676211598 | I40: 8.03265711 | J40: 5.963626151 | K40: 4.768257856 | L40: 7.434486744 | M40: 0.07353197002 | N40: 7.158875044 | O40: 12.09634188 | P40: 2.221408213 | Q40: FALSE | R40: 0.9629279453 | S40: 1.6270581 | T40: 0.2987977906 | U40: FALSE | V40: 109.627 | W40: 392.4029972 | X40: 663.0428354 | Y40: 121.7631591 | Z40: TRUE | AB40: =IF(OR(AND((L40-1.96*M40)<national_data!$H$16,(L40+1.96*M40)<national_data!$H$16),AND((L40-1.96*M40)>national_data!$H$16,(L40+1.96*M40)>national_data!$H$16)),"TRUE","FALSE") -> TRUE | AD40: no clear trend | AH40: 0.1096331709 | AI40: -0.06965406349 | AJ40: 0.2889204053 | AK40: FALSE | AY40: 192 | AZ40: 162 | BA40: 177 | BC40: 109.6 | BD40: 502 | BE40: 305.8 | BF40: 116 | BG40: 193 | BI40: 36.72716073 | BJ40: =IF(AND(L40<national_data!$H$16,AB40="TRUE"),"GREEN",IF(AND(L40>national_data!$H$16,AB40="TRUE"),"RED","AMBER")) -> GREEN | BK40: RED | BL40: AMBER | BO40: all_mortality_adj | BP40: Crawley | BQ40: 0.2987978 | BR40: 1.627058 | BS40: 2.221408 | BT40: 12.09634 | BU40: 0.3334748 | BV40: 0.6776838 | BW40: 0.8571624 | BX40: -1.346564 | BY40: 2.013513 | BZ40: 0 | CA40: 2.458864 | CB40: 5.038232 | CC40: 6.382967 | CD40: -10.05175 | CE40: 14.96948 | CF40: 0 | CG40: amber | CI40: TRUE
A41: 40 | B41: all_mortality_adj | C41: 2011 | D41: Croydon | E41: 0.8612469721 | F41: 0.07799447389 | G41: 10.1811632 | H41: 9.846794781 | I41: 7.827035401 | J41: 6.526250134 | K41: 6.83063214 | L41: 8.602673447 | M41: 0.03521260657 | N41: 6.428280415 | O41: 8.773819137 | P41: 4.082741692 | Q41: FALSE | R41: 0.7472421747 | S41: 1.019894477 | T41: 0.4745898722 | U41: FALSE | V41: 351.511 | W41: 1129.805638 | X41: 1542.046969 | Y41: 717.5643074 | Z41: TRUE | AB41: =IF(OR(AND((L41-1.96*M41)<national_data!$H$16,(L41+1.96*M41)<national_data!$H$16),AND((L41-1.96*M41)>national_data!$H$16,(L41+1.96*M41)>national_data!$H$16)),"TRUE","FALSE") -> TRUE | AD41: no clear trend | AH41: 0.04634324226 | AI41: -0.04740830581 | AJ41: 0.1400947903 | AK41: FALSE | AY41: 141 | AZ41: 130 | BA41: 135.5 | BC41: 158.2 | BD41: 782 | BE41: 470.1 | BF41: 204 | BG41: 200 | BI41: 41.21187566 | BJ41: =IF(AND(L41<national_data!$H$16,AB41="TRUE"),"GREEN",IF(AND(L41>national_data!$H$16,AB41="TRUE"),"RED","AMBER")) -> GREEN | BK41: RED | BL41: AMBER | BO41: all_mortality_adj | BP41: Croydon | BQ41: 0.4745899 | BR41: 1.019894 | BS41: 4.082742 | BT41: 8.773819 | BU41: -0.0276782 | BV41: 0.2782166 | BW41: 0.3812133 | BX41: -0.7748562 | BY41: 0.7194998 | BZ41: 0 | CA41: -0.202768 | CB41: 2.393407 | CC41: 3.27134 | CD41: -6.614594 | CE41: 6.209058 | CF41: 0 | CG41: amber | CI41: TRUE
A42: 41 | B42: all_mortality_adj | C42: 2011 | D42: Cumbria | E42: -0.617002059 | F42: -0.05587566927 | G42: 11.65941224 | H42: 10.369784 | I42: 8.409700007 | J42: 7.551081758 | K42: 7.145991742 | L42: 8.928802734 | M42: 0.02334872226 | N42: 6.61547464 | O42: 8.101923345 | P42: 5.129025935 | Q42: FALSE | R42: 0.7409139654 | S42: 0.9073919076 | T42: 0.5744360232 | U42: FALSE | V42: 499.615 | W42: 1652.595181 | X42: 2023.921216 | Y42: 1281.269146 | Z42: TRUE | AB42: =IF(OR(AND((L42-1.96*M42)<national_data!$H$16,(L42+1.96*M42)<national_data!$H$16),AND((L42-1.96*M42)>national_data!$H$16,(L42+1.96*M42)>national_data!$H$16)),"TRUE","FALSE") -> TRUE | AD42: no clear trend | AH42: -0.01815304561 | AI42: -0.07855364384 | AJ42: 0.04224755262 | AK42: FALSE | AY42: 136 | AZ42: 137 | BA42: 136.5 | BC42: 136.6 | BD42: 669 | BE42: 402.8 | BF42: 180 | BG42: 157 | BI42: 45.13596974 | BJ42: =IF(AND(L42<national_data!$H$16,AB42="TRUE"),"GREEN",IF(AND(L42>national_data!$H$16,AB42="TRUE"),"RED","AMBER")) -> RED | BK42: RED | BL42: AMBER | BO42: all_mortality_adj | BP42: Cumbria | BQ42: 0.574436 | BR42: 0.9073919 | BS42: 5.129026 | BT42: 8.101923 | BU42: 0.0609788 | BV42: 0.1698755 | BW42: 0.2330034 | BX42: -0.395708 | BY42: 0.5176655 | BZ42: 0 | CA42: 0.33719 | CB42: 1.516784 | CC42: 2.114014 | CD42: -3.806277 | CE42: 4.480657 | CF42: 0 | CG42: amber | CI42: TRUE
A43: 42 | B43: all_mortality_adj | C43: 2011 | D43: Darlington | E43: -0.9781135426 | F43: -0.08857790346 | G43: 12.02052372 | H43: 10.69831371 | I43: 7.889625757 | J43: 8.320890268 | K43: 6.320023014 | L43: 9.351538314 | M43: 0.05139433453 | N43: 7.134726768 | O43: 9.800082401 | P43: 4.469371135 | Q43: FALSE | R43: 0.7629468573 | S43: 1.047964738 | T43: 0.4779289765 | U43: FALSE | V43: 101.095 | W43: 360.6426013 | X43: 495.3696651 | Y43: 225.9155374 | Z43: TRUE | AB43: =IF(OR(AND((L43-1.96*M43)<national_data!$H$16,(L43+1.96*M43)<national_data!$H$16),AND((L43-1.96*M43)>national_data!$H$16,(L43+1.96*M43)>national_data!$H$16)),"TRUE","FALSE") -> TRUE | AD43: no clear trend | AH43: -0.7394573295 | AI43: -0.8825277118 | AJ43: -0.5963869471 | AK43: TRUE | AY43: 150 | AZ43: 160 | BA43: 155 | BC43: 94.6 | BD43: 501 | BE43: 297.8 | BF43: 66 | BG43: 109 | BI43: 45.24937647 | BJ43: =IF(AND(L43<national_data!$H$16,AB43="TRUE"),"GREEN",IF(AND(L43>national_data!$H$16,AB43="TRUE"),"RED","AMBER")) -> RED | BK43: RED | BL43: GREEN | BO43: all_mortality_adj | BP43: Darlington | BQ43: 0.477929 | BR43: 1.047965 | BS43: 4.469371 | BT43: 9.800082 | BU43: 0.1014232 | BV43: 0.2908345 | BW43: 0.449946 | BX43: -0.7804709 | BY43: 0.9833174 | BZ43: 0 | CA43: 0.9994237 | CB43: 2.71975 | CC43: 4.187541 | CD43: -7.208158 | CE43: 9.207006 | CF43: 0 | CG43: amber | CI43: TRUE
A44: 43 | B44: all_mortality_adj | C44: 2011 | D44: Dartford, Gravesham and Swanley | E44: -1.611118969 | F44: -0.1459028367 | G44: 12.65352915 | H44: 10.52050849 | I44: 9.201866883 | J44: 8.226192659 | K44: 6.219218021 | L44: 8.851907561 | M44: 0.04431568151 | N44: 7.398312871 | O44: 10.15236795 | P44: 4.644257795 | Q44: FALSE | R44: 0.8357874074 | S44: 1.14691301 | T44: 0.5246618046 | U44: FALSE | V44: 243.797 | W44: 901.8432415 | X44: 1237.558424 | Y44: 566.1280588 | Z44: TRUE | AB44: =IF(OR(AND((L44-1.96*M44)<national_data!$H$16,(L44+1.96*M44)<national_data!$H$16),AND((L44-1.96*M44)>national_data!$H$16,(L44+1.96*M44)>national_data!$H$16)),"TRUE","FALSE") -> TRUE | AD44: no clear trend | AH44: -0.2202114857 | AI44: -0.3355831653 | AJ44: -0.1048398061 | AK44: TRUE | AY44: 175 | AZ44: 168 | BA44: 171.5 | BC44: 159.6 | BD44: 744 | BE44: 451.8 | BF44: 206 | BG44: 205 | BI44: 46.8213152 | BJ44: =IF(AND(L44<national_data!$H$16,AB44="TRUE"),"GREEN",IF(AND(L44>national_data!$H$16,AB44="TRUE"),"RED","AMBER")) -> RED | BK44: RED | BL44: GREEN | BO44: all_mortality_adj | BP44: Dartford, Gravesham and Swanley | BQ44: 0.5246618 | BR44: 1.146913 | BS44: 4.644258 | BT44: 10.15237 | BU44: 0.2535409 | BV44: 0.3174751 | BW44: 0.4450301 | BX44: -0.618718 | BY44: 1.1258 | BZ44: 0 | CA44: 2.403672 | CB44: 2.81026 | CC44: 3.880029 | CD44: -5.201184 | CE44: 10.00853 | CF44: 0 | CG44: amber | CI44: TRUE
A45: 44 | B45: all_mortality_adj | C45: 2011 | D45: Doncaster | E45: -1.091915415 | F45: -0.09888379416 | G45: 12.13432559 | H45: 9.786555737 | I45: 8.164764105 | J45: 7.382530947 | K45: 7.415309329 | L45: 9.886014751 | M45: 0.03044106151 | N45: 7.315145385 | O45: 9.505596807 | P45: 5.124693964 | Q45: FALSE | R45: 0.7399488641 | S45: 0.9615195856 | T45: 0.5183781425 | U45: FALSE | V45: 290.66 | W45: 1063.110079 | X45: 1381.448384 | Y45: 744.7717737 | Z45: TRUE | AB45: =IF(OR(AND((L45-1.96*M45)<national_data!$H$16,(L45+1.96*M45)<national_data!$H$16),AND((L45-1.96*M45)>national_data!$H$16,(L45+1.96*M45)>national_data!$H$16)),"TRUE","FALSE") -> TRUE | AD45: no clear trend | AH45: 0.1160292268 | AI45: 0.03351683645 | AJ45: 0.1985416172 | AK45: TRUE | AY45: 134 | AZ45: 166 | BA45: 150 | BC45: 82 | BD45: 532 | BE45: 307 | BF45: 48 | BG45: 64 | BI45: 44.88348571 | BJ45: =IF(AND(L45<national_data!$H$16,AB45="TRUE"),"GREEN",IF(AND(L45>national_data!$H$16,AB45="TRUE"),"RED","AMBER")) -> RED | BK45: RED | BL45: RED | BO45: all_mortality_adj | BP45: Doncaster | BQ45: 0.5183781 | BR45: 0.9615196 | BS45: 5.124694 | BT45: 9.505597 | BU45: -0.0521355 | BV45: 0.2260926 | BW45: 0.3206778 | BX45: -0.6806639 | BY45: 0.5763929 | BZ45: 0 | CA45: -0.2490592 | CB45: 2.235155 | CC45: 3.116461 | CD45: -6.357322 | CE45: 5.859204 | CF45: 0 | CG45: amber | CI45: TRUE
A46: 45 | B46: all_mortality_adj | C46: 2011 | D46: Dorset | E46: -1.517068788 | F46: -0.137385658 | G46: 12.55947896 | H46: 9.405329434 | I46: 8.321386992 | J46: 7.350021551 | K46: 6.787102958 | L46: 8.273890934 | M46: 0.02132532508 | N46: 6.218919244 | O46: 7.538840018 | P46: 4.898998469 | Q46: FALSE | R46: 0.7516317647 | S46: 0.9111601879 | T46: 0.5921033415 | U46: FALSE | V46: 717.195 | W46: 2230.088893 | X46: 2703.409183 | Y46: 1756.768603 | Z46: TRUE | AB46: =IF(OR(AND((L46-1.96*M46)<national_data!$H$16,(L46+1.96*M46)<national_data!$H$16),AND((L46-1.96*M46)>national_data!$H$16,(L46+1.96*M46)>national_data!$H$16)),"TRUE","FALSE") -> TRUE | AD46: no clear trend | AH46: 0.1669181197 | AI46: 0.1103350876 | AJ46: 0.2235011518 | AK46: TRUE | AY46: 144 | AZ46: 118 | BA46: 131 | BC46: 108.8 | BD46: 518 | BE46: 313.4 | BF46: 112 | BG46: 94 | BI46: 44.4233199 | BJ46: =IF(AND(L46<national_data!$H$16,AB46="TRUE"),"GREEN",IF(AND(L46>national_data!$H$16,AB46="TRUE"),"RED","AMBER")) -> GREEN | BK46: RED | BL46: RED | BO46: all_mortality_adj | BP46: Dorset | BQ46: 0.5921034 | BR46: 0.9111602 | BS46: 4.898998 | BT46: 7.53884 | BU46: 0.0542075 | BV46: 0.1627841 | BW46: 0.2255061 | BX46: -0.3877844 | BY46: 0.4961995 | BZ46: 0 | CA46: 0.4878722 | CB46: 1.346858 | CC46: 1.859728 | CD46: -3.157195 | CE46: 4.132939 | CF46: 0 | CG46: amber | CI46: TRUE
A47: 46 | B47: all_mortality_adj | C47: 2011 | D47: Dudley | E47: 0.7724629715 | F47: 0.06995420014 | G47: 10.26994721 | H47: 8.819076758 | I47: 8.74349374 | J47: 8.377988548 | K47: 5.540064424 | L47: 8.534304834 | M47: 0.03680496298 | N47: 4.765912094 | O47: 6.797482536 | P47: 2.734341652 | Q47: FALSE | R47: 0.5584417462 | S47: 0.7964893062 | T47: 0.3203941862 | U47: FALSE | V47: 307.58 | W47: 732.9496209 | X47: 1045.384839 | Y47: 420.5144026 | Z47: TRUE | AB47: =IF(OR(AND((L47-1.96*M47)<national_data!$H$16,(L47+1.96*M47)<national_data!$H$16),AND((L47-1.96*M47)>national_data!$H$16,(L47+1.96*M47)>national_data!$H$16)),"TRUE","FALSE") -> TRUE | AD47: no clear trend | AH47: -0.1504619589 | AI47: -0.2458508777 | AJ47: -0.05507304023 | AK47: TRUE | AY47: 68 | AZ47: 65 | BA47: 66.5 | BC47: 73.2 | BD47: 365 | BE47: 219.1 | BF47: 33 | BG47: 33 | BI47: 41.75057067 | BJ47: =IF(AND(L47<national_data!$H$16,AB47="TRUE"),"GREEN",IF(AND(L47>national_data!$H$16,AB47="TRUE"),"RED","AMBER")) -> GREEN | BK47: RED | BL47: GREEN | BO47: all_mortality_adj | BP47: Dudley | BQ47: 0.3203942 | BR47: 0.7964893 | BS47: 2.734342 | BT47: 6.797482 | BU47: -0.0326029 | BV47: 0.2429057 | BW47: 0.3127936 | BX47: -0.6456785 | BY47: 0.5804726 | BZ47: 0 | CA47: -0.5150464 | CB47: 2.073031 | CC47: 2.719913 | CD47: -5.846075 | CE47: 4.815982 | CF47: 0 | CG47: amber | CI47: TRUE
A48: 47 | B48: all_mortality_adj | C48: 2011 | D48: Durham Dales, Easington and Sedgefield | E48: 0.22510136 | F48: 0.0203851656 | G48: 10.81730882 | H48: 9.364458189 | I48: 8.969037874 | J48: 6.921833374 | K48: 6.27475007 | L48: 9.557342376 | M48: 0.02540826552 | N48: 5.957089537 | O48: 8.034128003 | P48: 3.880051072 | Q48: FALSE | R48: 0.6232997943 | S48: 0.8406236469 | T48: 0.4059759417 | U48: FALSE | V48: 270.706 | W48: 806.3099402 | X48: 1087.443328 | Y48: 525.1765527 | Z48: TRUE | AB48: =IF(OR(AND((L48-1.96*M48)<national_data!$H$16,(L48+1.96*M48)<national_data!$H$16),AND((L48-1.96*M48)>national_data!$H$16,(L48+1.96*M48)>national_data!$H$16)),"TRUE","FALSE") -> TRUE | AD48: no clear trend | AH48: -0.6730514807 | AI48: -0.7445139881 | AJ48: -0.6015889734 | AK48: TRUE | AY48: 90 | AZ48: 107 | BA48: 98.5 | BC48: 134.4 | BD48: 733 | BE48: 433.7 | BF48: 176 | BG48: 59 | BI48: 42.34738832 | BJ48: =IF(AND(L48<national_data!$H$16,AB48="TRUE"),"GREEN",IF(AND(L48>national_data!$H$16,AB48="TRUE"),"RED","AMBER")) -> RED | BK48: RED | BL48: GREEN | BO48: all_mortality_adj | BP48: Durham Dales, Easington and Sedgefield | BQ48: 0.4059759 | BR48: 0.8406236 | BS48: 3.880051 | BT48: 8.034128 | BU48: -0.0927744 | BV48: 0.221759 | BW48: 0.3203532 | BX48: -0.7206668 | BY48: 0.5351179 | BZ48: 0 | CA48: -1.14507 | CB48: 2.119427 | CC48: 3.122465 | CD48: -7.265102 | CE48: 4.974961 | CF48: 0 | CG48: amber | CI48: TRUE
A49: 48 | B49: all_mortality_adj | C49: 2011 | D49: Ealing | E49: 1.580291612 | F49: 0.1431111131 | G49: 9.462118565 | H49: 8.435328587 | I49: 7.849544991 | J49: 7.574094457 | K49: 7.745925381 | L49: 8.366939938 | M49: 0.02955517768 | N49: 3.310277173 | O49: 5.718516388 | P49: 0.9020379579 | Q49: FALSE | R49: 0.3956377359 | S49: 0.6834656912 | T49: 0.1078097805 | U49: FALSE | V49: 323.454 | W49: 535.3611964 | X49: 924.8384999 | Y49: 145.8838928 | Z49: TRUE | AB49: =IF(OR(AND((L49-1.96*M49)<national_data!$H$16,(L49+1.96*M49)<national_data!$H$16),AND((L49-1.96*M49)>national_data!$H$16,(L49+1.96*M49)>national_data!$H$16)),"TRUE","FALSE") -> TRUE | AD49: no clear trend | AH49: -0.0672422862 | AI49: -0.1467483274 | AJ49: 0.01226375495 | AK49: FALSE | AY49: 18 | AZ49: 19 | BA49: 18.5 | BC49: 97.8 | BD49: 551 | BE49: 324.4 | BF49: 71 | BG49: 127 | BI49: 41.06701198 | BJ49: =IF(AND(L49<national_data!$H$16,AB49="TRUE"),"GREEN",IF(AND(L49>national_data!$H$16,AB49="TRUE"),"RED","AMBER")) -> GREEN | BK49: RED | BL49: AMBER | BO49: all_mortality_adj | BP49: Ealing | BQ49: 0.1078098 | BR49: 0.6834657 | BS49: 0.902038 | BT49: 5.718516 | BU49: -0.0131638 | BV49: 0.293702 | BW49: 0.4132538 | BX49: -0.8231412 | BY49: 0.7968136 | BZ49: 0 | CA49: -0.0828044 | CB49: 2.457387 | CC49: 3.444021 | CD49: -6.833086 | CE49: 6.667477 | CF49: 0 | CG49: amber | CI49: TRUE
A50: 54 | B50: all_mortality_adj | C50: 2011 | D50: East and North Hertfordshire | E50: -3.411567447 | F50: -0.3089513423 | G50: 14.45397762 | H50: 9.444886461 | I50: 9.116304259 | J50: 8.367306697 | K50: 6.862799498 | L50: 8.148403062 | M50: 0.02845956627 | N50: 5.565214408 | O50: 7.420978907 | P50: 3.709449909 | Q50: FALSE | R50: 0.6829822194 | S50: 0.9107280102 | T50: 0.4552364287 | U50: FALSE | V50: 539.297 | W50: 1500.651717 | X50: 2001.055831 | Y50: 1000.247604 | Z50: TRUE | AB50: =IF(OR(AND((L50-1.96*M50)<national_data!$H$16,(L50+1.96*M50)<national_data!$H$16),AND((L50-1.96*M50)>national_data!$H$16,(L50+1.96*M50)>national_data!$H$16)),"TRUE","FALSE") -> TRUE | AD50: no clear trend | AH50: 0.1572644647 | AI50: 0.08358039441 | AJ50: 0.2309485349 | AK50: TRUE | AY50: 110 | AZ50: 93 | BA50: 101.5 | BC50: 95.8 | BD50: 443 | BE50: 269.4 | BF50: 68 | BG50: 11 | BI50: 48.24527454 | BJ50: =IF(AND(L50<national_data!$H$16,AB50="TRUE"),"GREEN",IF(AND(L50>national_data!$H$16,AB50="TRUE"),"RED","AMBER")) -> GREEN | BK50: RED | BL50: RED | BO50: all_mortality_adj | BP50: East and North Hertfordshire | BQ50: 0.4552364 | BR50: 0.910728 | BS50: 3.70945 | BT50: 7.420979 | BU50: 0.1635157 | BV50: 0.2323937 | BW50: 0.3226685 | BX50: -0.4689146 | BY50: 0.7959461 | BZ50: 0 | CA50: 1.164469 | CB50: 1.893637 | CC50: 2.67994 | CD50: -4.088214 | CE50: 6.417151 | CF50: 0 | CG50: amber | CI50: TRUE
A51: 49 | B51: all_mortality_adj | C51: 2011 | D51: East Lancashire | E51: -0.4280172323 | F51: -0.03876121476 | G51: 11.47042741 | H51: 11.14619018 | I51: 8.86898263 | J51: 8.440248422 | K51: 6.415211423 | L51: 9.947590355 | M51: 0.02660885292 | N51: 5.930517126 | O51: 7.605730606 | P51: 4.255303646 | Q51: FALSE | R51: 0.5961762512 | S51: 0.7645801983 | T51: 0.4277723041 | U51: FALSE | V51: 370.825 | W51: 1099.592007 | X51: 1410.197526 | Y51: 788.9864873 | Z51: TRUE | AB51: =IF(OR(AND((L51-1.96*M51)<national_data!$H$16,(L51+1.96*M51)<national_data!$H$16),AND((L51-1.96*M51)>national_data!$H$16,(L51+1.96*M51)>national_data!$H$16)),"TRUE","FALSE") -> TRUE | AD51: no clear trend | AH51: -0.200316114 | AI51: -0.2735811173 | AJ51: -0.1270511108 | AK51: TRUE | AY51: 78 | AZ51: 106 | BA51: 92 | BC51: 101.2 | BD51: 603 | BE51: 352.1 | BF51: 85 | BG51: 27 | BI51: 46.34106006 | BJ51: =IF(AND(L51<national_data!$H$16,AB51="TRUE"),"GREEN",IF(AND(L51>national_data!$H$16,AB51="TRUE"),"RED","AMBER")) -> RED | BK51: RED | BL51: GREEN | BO51: all_mortality_adj | BP51: East Lancashire | BQ51: 0.4277723 | BR51: 0.7645802 | BS51: 4.255304 | BT51: 7.605731 | BU51: -0.0224988 | BV51: 0.1718408 | BW51: 0.2284949 | BX51: -0.4703489 | BY51: 0.4253513 | BZ51: 0 | CA51: -0.3095211 | CB51: 1.709401 | CC51: 2.28678 | CD51: -4.791609 | CE51: 4.172567 | CF51: 0 | CG51: amber | CI51: TRUE
A52: 50 | B52: all_mortality_adj | C52: 2011 | D52: East Leicestershire and Rutland | H52: 9.31006203 | I52: 9.368967504 | J52: 7.396758267 | K52: 6.758968114 | L52: 7.46291596 | M52: 0.03479936475 | N52: 6.086961835 | O52: 8.892532197 | P52: 3.281391473 | Q52: FALSE | R52: 0.8156278146 | S52: 1.191562687 | T52: 0.4396929418 | U52: FALSE | V52: 320.754 | W52: 976.2086782 | X52: 1426.157636 | Y52: 526.2597203 | Z52: TRUE | AB52: =IF(OR(AND((L52-1.96*M52)<national_data!$H$16,(L52+1.96*M52)<national_data!$H$16),AND((L52-1.96*M52)>national_data!$H$16,(L52+1.96*M52)>national_data!$H$16)),"TRUE","FALSE") -> TRUE | AD52: no clear trend | AH52: 0.05932648747 | AI52: -0.03009076761 | AJ52: 0.1487437426 | AK52: FALSE | AY52: 170 | AZ52: 111 | BA52: 140.5 | BC52: 118.2 | BD52: 436 | BE52: 277.1 | BF52: 141 | BG52: 158 | BI52: 32.83475592 | BJ52: =IF(AND(L52<national_data!$H$16,AB52="TRUE"),"GREEN",IF(AND(L52>national_data!$H$16,AB52="TRUE"),"RED","AMBER")) -> GREEN | BK52: RED | BL52: AMBER | BO52: all_mortality_adj | BP52: East Leicestershire and Rutland | BQ52: 0.4396929 | BR52: 1.191563 | BS52: 3.281391 | BT52: 8.892532 | BU52: 0.1851263 | BV52: 0.383607 | BW52: 0.5032709 | BX52: -0.8012847 | BY52: 1.171537 | BZ52: 0 | CA52: 1.330119 | CB52: 2.862827 | CC52: 3.773135 | CD52: -6.065226 | CE52: 8.725465 | CF52: 0 | CG52: amber | CI52: TRUE
A53: 51 | B53: all_mortality_adj | C53: 2011 | D53: East Riding of Yorkshire | E53: -1.267727837 | F53: -0.1148053565 | G53: 12.31013801 | H53: 8.724558693 | I53: 8.749558014 | J53: 8.594484011 | K53: 7.488211831 | L53: 8.629753792 | M53: 0.03017994502 | N53: 4.061979624 | O53: 5.978184623 | P53: 2.145774624 | Q53: FALSE | R53: 0.4706947291 | S53: 0.6927410407 | T53: 0.2486484176 | U53: FALSE | V53: 318.152 | W53: 646.1634706 | X53: 950.9856971 | Y53: 341.3412441 | Z53: TRUE | AB53: =IF(OR(AND((L53-1.96*M53)<national_data!$H$16,(L53+1.96*M53)<national_data!$H$16),AND((L53-1.96*M53)>national_data!$H$16,(L53+1.96*M53)>national_data!$H$16)),"TRUE","FALSE") -> FALSE | AD53: no clear trend | AH53: 0.1572523646 | AI53: 0.07909989558 | AJ53: 0.2354048336 | AK53: TRUE | AY53: 37 | AZ53: 44 | BA53: 40.5 | BC53: 60.4 | BD53: 338 | BE53: 199.2 | BF53: 17 | BG53: 40 | BI53: 45.86695056 | BJ53: =IF(AND(L53<national_data!$H$16,AB53="TRUE"),"GREEN",IF(AND(L53>national_data!$H$16,AB53="TRUE"),"RED","AMBER")) -> AMBER | BK53: RED | BL53: RED | BO53: all_mortality_adj | BP53: East Riding of Yorkshire | BQ53: 0.2486484 | BR53: 0.692741 | BS53: 2.145775 | BT53: 5.978185 | BU53: 0.0250865 | BV53: 0.2265779 | BW53: 0.3131205 | BX53: -0.5886297 | BY53: 0.6388026 | BZ53: 0 | CA53: 0.180726 | CB53: 1.955311 | CC53: 2.714154 | CD53: -5.139015 | CE53: 5.500467 | CF53: 0 | CG53: amber | CI53: TRUE
A54: 52 | B54: all_mortality_adj | C54: 2011 | D54: East Staffordshire | E54: 1.561253202 | F54: 0.1413869959 | G54: 9.481156974 | H54: 10.01294126 | I54: 10.64629512 | J54: 7.609262528 | K54: 6.570649327 | L54: 8.486038987 | M54: 0.05268020952 | N54: 4.325808043 | O54: 7.037629803 | P54: 1.613986283 | Q54: FALSE | R54: 0.509755853 | S54: 0.82931858 | T54: 0.190193126 | U54: FALSE | V54: 119.205 | W54: 257.8289739 | X54: 419.4603303 | Y54: 96.19761741 | Z54: TRUE | AB54: =IF(OR(AND((L54-1.96*M54)<national_data!$H$16,(L54+1.96*M54)<national_data!$H$16),AND((L54-1.96*M54)>national_data!$H$16,(L54+1.96*M54)>national_data!$H$16)),"TRUE","FALSE") -> TRUE | AD54: no clear trend | AH54: -0.55236457 | AI54: -0.6912412087 | AJ54: -0.4134879313 | AK54: TRUE | AY54: 50 | AZ54: 52 | BA54: 51 | BC54: 116 | BD54: 563 | BE54: 339.5 | BF54: 134 | BG54: 132 | BI54: 44.32030522 | BJ54: =IF(AND(L54<national_data!$H$16,AB54="TRUE"),"GREEN",IF(AND(L54>national_data!$H$16,AB54="TRUE"),"RED","AMBER")) -> GREEN | BK54: RED | BL54: GREEN | BO54: all_mortality_adj | BP54: East Staffordshire | BQ54: 0.1901931 | BR54: 0.8293186 | BS54: 1.613986 | BT54: 7.03763 | BU54: -0.2657006 | BV54: 0.3260844 | BW54: 0.4636522 | BX54: -1.174459 | BY54: 0.6430577 | BZ54: 0 | CA54: -2.922671 | CB54: 2.767165 | CC54: 4.141213 | CD54: -11.03945 | CE54: 5.194106 | CF54: 0 | CG54: amber | CI54: TRUE
A55: 53 | B55: all_mortality_adj | C55: 2011 | D55: East Surrey | E55: -5.408601303 | F55: -0.489802608 | G55: 16.45101148 | H55: 9.425251227 | I55: 10.5089708 | J55: 7.91446313 | K55: 7.541282446 | L55: 8.389036352 | M55: 0.05068090301 | N55: 7.547519194 | O55: 11.90478958 | P55: 3.190248803 | Q55: FALSE | R55: 0.8996884596 | S55: 1.419089045 | T55: 0.3802878744 | U55: FALSE | V55: 176.829 | W55: 667.3101357 | X55: 1052.556019 | Y55: 282.0642528 | Z55: TRUE | AB55: =IF(OR(AND((L55-1.96*M55)<national_data!$H$16,(L55+1.96*M55)<national_data!$H$16),AND((L55-1.96*M55)>national_data!$H$16,(L55+1.96*M55)>national_data!$H$16)),"TRUE","FALSE") -> TRUE | AD55: no clear trend | AH55: 0.5237700314 | AI55: 0.3880358237 | AJ55: 0.659504239 | AK55: TRUE | AY55: 184 | AZ55: 172 | BA55: 178 | BC55: 123.2 | BD55: 582 | BE55: 352.6 | BF55: 157 | BG55: 47 | BI55: 51.84097909 | BJ55: =IF(AND(L55<national_data!$H$16,AB55="TRUE"),"GREEN",IF(AND(L55>national_data!$H$16,AB55="TRUE"),"RED","AMBER")) -> GREEN | BK55: RED | BL55: RED | BO55: all_mortality_adj | BP55: East Surrey | BQ55: 0.3802879 | BR55: 1.419089 | BS55: 3.190249 | BT55: 11.90479 | BU55: 0.321348 | BV55: 0.5300006 | BW55: 0.747616 | BX55: -1.143979 | BY55: 1.786675 | BZ55: 0 | CA55: 2.894393 | CB55: 4.446195 | CC55: 6.145418 | CD55: -9.150626 | CE55: 14.93941 | CF55: 0 | CG55: amber | CI55: TRUE
A56: 55 | B56: all_mortality_adj | C56: 2011 | D56: Eastbourne, Hailsham and Seaford | E56: 0.6842025228 | F56: 0.06196133922 | G56: 10.35820765 | H56: 8.85345996 | I56: 8.771384313 | J56: 7.618349029 | K56: 5.943483388 | L56: 8.397328063 | M56: 0.04024373836 | N56: 4.523609457 | O56: 7.107820482 | P56: 1.939398431 | Q56: FALSE | R56: 0.538696288 | S56: 0.8464383466 | T56: 0.2309542293 | U56: FALSE | V56: 178.315 | W56: 403.3137101 | X56: 633.7155046 | Y56: 172.9119156 | Z56: TRUE | AB56: =IF(OR(AND((L56-1.96*M56)<national_data!$H$16,(L56+1.96*M56)<national_data!$H$16),AND((L56-1.96*M56)>national_data!$H$16,(L56+1.96*M56)>national_data!$H$16)),"TRUE","FALSE") -> TRUE | AD56: no clear trend | AH56: -0.04490012355 | AI56: -0.1524328773 | AJ56: 0.06263263025 | AK56: FALSE | AY56: 62 | AZ56: 57 | BA56: 59.5 | BC56: 81 | BD56: 355 | BE56: 218 | BF56: 47 | BG56: 87 | BI56: 41.54488434 | BJ56: =IF(AND(L56<national_data!$H$16,AB56="TRUE"),"GREEN",IF(AND(L56>national_data!$H$16,AB56="TRUE"),"RED","AMBER")) -> GREEN | BK56: RED | BL56: AMBER | BO56: all_mortality_adj | BP56: Eastbourne, Hailsham and Seaford | BQ56: 0.2309542 | BR56: 0.8464383 | BS56: 1.939398 | BT56: 7.107821 | BU56: 0.2836382 | BV56: 0.3140225 | BW56: 0.4251652 | BX56: -0.5496855 | BY56: 1.116962 | BZ56: 0 | CA56: 2.312374 | CB56: 2.63695 | CC56: 3.62331 | CD56: -4.789312 | CE56: 9.414062 | CF56: 0 | CG56: amber | CI56: TRUE
A57: 56 | B57: all_mortality_adj | C57: 2011 | D57: Eastern Cheshire | E57: 0.5529614806 | F57: 0.05007615835 | G57: 10.4894487 | H57: 10.16454184 | I57: 8.938349466 | J57: 7.463010174 | K57: 6.899938969 | L57: 7.765518421 | M57: 0.04152035174 | N57: 5.015750343 | O57: 7.413051459 | P57: 2.618449226 | Q57: FALSE | R57: 0.6459002569 | S57: 0.9546112774 | T57: 0.3371892364 | U57: FALSE | V57: 191.27 | W57: 479.681284 | X57: 708.9471763 | Y57: 250.4153918 | Z57: TRUE | AB57: =IF(OR(AND((L57-1.96*M57)<national_data!$H$16,(L57+1.96*M57)<national_data!$H$16),AND((L57-1.96*M57)>national_data!$H$16,(L57+1.96*M57)>national_data!$H$16)),"TRUE","FALSE") -> TRUE | AD57: no clear trend | AH57: -0.7941429004 | AI57: -0.9068051448 | AJ57: -0.681480656 | AK57: TRUE | AY57: 99 | AZ57: 78 | BA57: 88.5 | BC57: 85 | BD57: 364 | BE57: 224.5 | BF57: 52 | BG57: 79 | BI57: 43.95528914 | BJ57: =IF(AND(L57<national_data!$H$16,AB57="TRUE"),"GREEN",IF(AND(L57>national_data!$H$16,AB57="TRUE"),"RED","AMBER")) -> GREEN | BK57: RED | BL57: GREEN | BO57: all_mortality_adj | BP57: Eastern Cheshire | BQ57: 0.3371892 | BR57: 0.9546113 | BS57: 2.618449 | BT57: 7.413052 | BU57: 0.0452765 | BV57: 0.3150113 | BW57: 0.4385302 | BX57: -0.8142427 | BY57: 0.9047957 | BZ57: 0 | CA57: 0.0096092 | CB57: 2.446226 | CC57: 3.528472 | CD57: -6.906195 | CE57: 6.925414 | CF57: 0 | CG57: amber | CI57: TRUE
A58: 57 | B58: all_mortality_adj | C58: 2011 | D58: Enfield | E58: 1.937498211 | F58: 0.1754597212 | G58: 9.104911965 | H58: 7.32728517 | I58: 7.840446738 | J58: 6.846346558 | K58: 6.310219505 | L58: 7.762677162 | M58: 0.03737004278 | N58: 3.161066773 | O58: 5.360614953 | P58: 0.9615185926 | Q58: FALSE | R58: 0.4072134789 | S58: 0.6905626553 | T58: 0.1238643025 | U58: FALSE | V58: 298.971 | W58: 472.5336471 | X58: 801.3342066 | Y58: 143.7330876 | Z58: TRUE | AB58: =IF(OR(AND((L58-1.96*M58)<national_data!$H$16,(L58+1.96*M58)<national_data!$H$16),AND((L58-1.96*M58)>national_data!$H$16,(L58+1.96*M58)>national_data!$H$16)),"TRUE","FALSE") -> TRUE | AD58: no clear trend | AH58: -0.637253601 | AI58: -0.7430389888 | AJ58: -0.5314682132 | AK58: TRUE | AY58: 20 | AZ58: 16 | BA58: 18 | BC58: 60.8 | BD58: 232 | BE58: 146.4 | BF58: 18 | BG58: 148 | BI58: 37.42920994 | BJ58: =IF(AND(L58<national_data!$H$16,AB58="TRUE"),"GREEN",IF(AND(L58>national_data!$H$16,AB58="TRUE"),"RED","AMBER")) -> GREEN | BK58: RED | BL58: GREEN | BO58: all_mortality_adj | BP58: Enfield | BQ58: 0.1238643 | BR58: 0.6905627 | BS58: 0.9615186 | BT58: 5.360615 | BU58: -0.0972887 | BV58: 0.2891318 | BW58: 0.4033196 | BX58: -0.887795 | BY58: 0.6932176 | BZ58: 0 | CA58: -0.9746752 | CB58: 2.244437 | CC58: 3.217313 | CD58: -7.280609 | CE58: 5.331259 | CF58: 0 | CG58: amber | CI58: TRUE
A59: 58 | B59: all_mortality_adj | C59: 2011 | D59: Erewash | E59: 2.228095358 | F59: 0.2017761813 | G59: 8.814314819 | H59: 8.353983618 | I59: 7.677421486 | J59: 7.773974784 | K59: 6.088652301 | L59: 7.784145401 | M59: 0.05363009389 | N59: 2.960346233 | O59: 6.06719499 | P59: -0.146502525 | Q59: FALSE | R59: 0.380304591 | S59: 0.7794298125 | T59: -0.01882063058 | U59: FALSE | V59: 93.801 | W59: 138.8417185 | X59: 284.5544786 | Y59: -6.871041672 | Z59: FALSE | AB59: =IF(OR(AND((L59-1.96*M59)<national_data!$H$16,(L59+1.96*M59)<national_data!$H$16),AND((L59-1.96*M59)>national_data!$H$16,(L59+1.96*M59)>national_data!$H$16)),"TRUE","FALSE") -> TRUE | AD59: no clear trend | AH59: -0.7132905995 | AI59: -0.8612036739 | AJ59: -0.5653775251 | AK59: TRUE | AY59: 15 | AZ59: 14 | BA59: 14.5 | BC59: 48.2 | BD59: 236 | BE59: 142.1 | BF59: 4 | BG59: 2 | BI59: 38.70834701 | BJ59: =IF(AND(L59<national_data!$H$16,AB59="TRUE"),"GREEN",IF(AND(L59>national_data!$H$16,AB59="TRUE"),"RED","AMBER")) -> GREEN | BK59: AMBER | BL59: GREEN | BO59: all_mortality_adj | BP59: Erewash | BQ59: -0.0188206 | BR59: 0.7794298 | BS59: -0.1465025 | BT59: 6.067195 | BU59: -0.1409787 | BV59: 0.4072706 | BW59: 0.5863826 | BX59: -1.290289 | BY59: 1.008331 | BZ59: 0 | CA59: -1.522606 | CB59: 3.170254 | CC59: 4.817993 | CD59: -10.96587 | CE59: 7.92066 | CF59: 0 | CG59: amber | CI59: TRUE
A60: 59 | B60: all_mortality_adj | C60: 2011 | D60: Fareham and Gosport | E60: 1.013450042 | F60: 0.09177797472 | G60: 10.02896013 | H60: 9.271567271 | I60: 8.284668357 | J60: 8.228085798 | K60: 7.230485232 | L60: 7.987137643 | M60: 0.04006401304 | N60: 3.344076094 | O60: 5.748296062 | P60: 0.9398561256 | Q60: FALSE | R60: 0.4186826674 | S60: 0.7196941281 | T60: 0.1176712068 | U60: FALSE | V60: 192.441 | W60: 321.7686738 | X60: 553.1039212 | Y60: 90.43342633 | Z60: TRUE | AB60: =IF(OR(AND((L60-1.96*M60)<national_data!$H$16,(L60+1.96*M60)<national_data!$H$16),AND((L60-1.96*M60)>national_data!$H$16,(L60+1.96*M60)>national_data!$H$16)),"TRUE","FALSE") -> TRUE | AD60: no clear trend | AH60: -0.2367262389 | AI60: -0.3439397707 | AJ60: -0.129512707 | AK60: TRUE | AY60: 22 | AZ60: 21 | BA60: 21.5 | BC60: 48.4 | BD60: 189 | BE60: 118.7 | BF60: 5 | BG60: 3 | BI60: 43.04376679 | BJ60: =IF(AND(L60<national_data!$H$16,AB60="TRUE"),"GREEN",IF(AND(L60>national_data!$H$16,AB60="TRUE"),"RED","AMBER")) -> GREEN | BK60: RED | BL60: GREEN | BO60: all_mortality_adj | BP60: Fareham and Gosport | BQ60: 0.1176712 | BR60: 0.7196941 | BS60: 0.9398561 | BT60: 5.748296 | BU60: -0.184475 | BV60: 0.3071546 | BW60: 0.3957581 | BX60: -0.9601609 | BY60: 0.5912108 | BZ60: 0 | CA60: -1.504143 | CB60: 2.453286 | CC60: 3.169004 | CD60: -7.71539 | CE60: 4.707105 | CF60: 0 | CG60: amber | CI60: TRUE
A61: 60 | B61: all_mortality_adj | C61: 2011 | D61: Fylde & Wyre | E61: -1.686230816 | F61: -0.1527049611 | G61: 12.72864099 | H61: 10.69361465 | I61: 9.821253253 | J61: 8.509738036 | K61: 7.594256147 | L61: 9.17630169 | M61: 0.03110652695 | N61: 6.144733903 | O61: 8.107450799 | P61: 4.182017006 | Q61: FALSE | R61: 0.669630763 | S61: 0.8835205155 | T61: 0.4557410106 | U61: FALSE | V61: 169.18 | W61: 519.7830408 | X61: 685.8092631 | Y61: 353.7568185 | Z61: TRUE | AB61: =IF(OR(AND((L61-1.96*M61)<national_data!$H$16,(L61+1.96*M61)<national_data!$H$16),AND((L61-1.96*M61)>national_data!$H$16,(L61+1.96*M61)>national_data!$H$16)),"TRUE","FALSE") -> TRUE | AD61: no clear trend | AH61: 0.3421690343 | AI61: 0.2526861015 | AJ61: 0.431651967 | AK61: TRUE | AY61: 107 | AZ61: 116 | BA61: 111.5 | BC61: 126.6 | BD61: 588 | BE61: 357.3 | BF61: 160 | BG61: 198 | BI61: 49.34750308 | BJ61: =IF(AND(L61<national_data!$H$16,AB61="TRUE"),"GREEN",IF(AND(L61>national_data!$H$16,AB61="TRUE"),"RED","AMBER")) -> RED | BK61: RED | BL61: RED | BO61: all_mortality_adj | BP61: Fylde & Wyre | BQ61: 0.455741 | BR61: 0.8835205 | BS61: 4.182017 | BT61: 8.10745 | BU61: 0.061151 | BV61: 0.2182549 | BW61: 0.329954 | BX61: -0.5855588 | BY61: 0.7078608 | BZ61: 0 | CA61: 0.8642154 | CB61: 2.002772 | CC61: 2.936452 | CD61: -4.891231 | CE61: 6.619661 | CF61: 0 | CG61: amber | CI61: TRUE
A62: 61 | B62: all_mortality_adj | C62: 2011 | D62: Gateshead | E62: -1.571062018 | F62: -0.1422752816 | G62: 12.61347219 | H62: 10.50767505 | I62: 9.099965386 | J62: 8.206225888 | K62: 6.502761546 | L62: 10.53472458 | M62: 0.0381991281 | N62: 8.361645194 | O62: 11.13369578 | P62: 5.589594603 | Q62: TRUE | R62: 0.7937222401 | S62: 1.056856845 | T62: 0.5305876351 | U62: FALSE | V62: 192.849 | W62: 806.267457 | X62: 1073.561049 | Y62: 538.9738648 | Z62: TRUE | AB62: =IF(OR(AND((L62-1.96*M62)<national_data!$H$16,(L62+1.96*M62)<national_data!$H$16),AND((L62-1.96*M62)>national_data!$H$16,(L62+1.96*M62)>national_data!$H$16)),"TRUE","FALSE") -> TRUE | AD62: no clear trend | AH62: 0.3070748911 | AI62: 0.2029507025 | AJ62: 0.4111990798 | AK62: TRUE | AY62: 163 | AZ62: 189 | BA62: 176 | BC62: 71.8 | BD62: 539 | BE62: 305.4 | BF62: 28 | BG62: 99 | BI62: 46.93010006 | BJ62: =IF(AND(L62<national_data!$H$16,AB62="TRUE"),"GREEN",IF(AND(L62>national_data!$H$16,AB62="TRUE"),"RED","AMBER")) -> RED | BK62: RED | BL62: RED | BO62: all_mortality_adj | BP62: Gateshead | BQ62: 0.5305876 | BR62: 1.056857 | BS62: 5.589595 | BT62: 11.1337 | BU62: 0.0978009 | BV62: 0.2685047 | BW62: 0.3742076 | BX62: -0.635646 | BY62: 0.8312478 | BZ62: 0 | CA62: 1.34866 | CB62: 2.828623 | CC62: 3.860071 | CD62: -6.21708 | CE62: 8.9144 | CF62: 0 | CG62: amber | CI62: TRUE
A63: 62 | B63: all_mortality_adj | C63: 2011 | D63: Gloucestershire | E63: 0.6592695904 | F63: 0.05970341437 | G63: 10.38314059 | H63: 9.587373887 | I63: 9.173484569 | J63: 7.519774938 | K63: 6.822232739 | L63: 8.097414149 | M63: 0.02268751878 | N63: 4.91552902 | O63: 6.250376214 | P63: 3.580681826 | Q63: FALSE | R63: 0.6070492295 | S63: 0.7718978058 | T63: 0.4422006532 | U63: FALSE | V63: 599.042 | W63: 1472.304168 | X63: 1872.118934 | Y63: 1072.489401 | Z63: TRUE | AB63: =IF(OR(AND((L63-1.96*M63)<national_data!$H$16,(L63+1.96*M63)<national_data!$H$16),AND((L63-1.96*M63)>national_data!$H$16,(L63+1.96*M63)>national_data!$H$16)),"TRUE","FALSE") -> TRUE | AD63: no clear trend | AH63: -0.1224822724 | AI63: -0.189184069 | AJ63: -0.05578047588 | AK63: TRUE | AY63: 83 | AZ63: 74 | BA63: 78.5 | BC63: 106.6 | BD63: 480 | BE63: 293.3 | BF63: 105 | BG63: 64 | BI63: 43.48600672 | BJ63: =IF(AND(L63<national_data!$H$16,AB63="TRUE"),"GREEN",IF(AND(L63>national_data!$H$16,AB63="TRUE"),"RED","AMBER")) -> GREEN | BK63: RED | BL63: GREEN | BO63: all_mortality_adj | BP63: Gloucestershire | BQ63: 0.4422007 | BR63: 0.7718978 | BS63: 3.580682 | BT63: 6.250376 | BU63: 0.0333369 | BV63: 0.1682128 | BW63: 0.2554857 | BX63: -0.467415 | BY63: 0.5340887 | BZ63: 0 | CA63: 0.2525131 | CB63: 1.362089 | CC63: 2.073174 | CD63: -3.810908 | CE63: 4.315934 | CF63: 0 | CG63: amber | CI63: TRUE
A64: 63 | B64: all_mortality_adj | C64: 2011 | D64: Great Yarmouth & Waveney | E64: -0.4885016583 | F64: -0.04423868073 | G64: 11.53091183 | H64: 9.007227051 | I64: 8.607757577 | J64: 7.93453143 | K64: 6.730163082 | L64: 9.090937649 | M64: 0.03084393261 | N64: 5.444911438 | O64: 7.5746009 | P64: 3.315221977 | Q64: FALSE | R64: 0.5989383767 | S64: 0.8332034816 | T64: 0.3646732719 | U64: FALSE | V64: 214.955 | W64: 585.2054691 | X64: 814.0991682 | Y64: 356.31177 | Z64: TRUE | AB64: =IF(OR(AND((L64-1.96*M64)<national_data!$H$16,(L64+1.96*M64)<national_data!$H$16),AND((L64-1.96*M64)>national_data!$H$16,(L64+1.96*M64)>national_data!$H$16)),"TRUE","FALSE") -> TRUE | AD64: no clear trend | AH64: 0.3308693725 | AI64: 0.2402437257 | AJ64: 0.4214950192 | AK64: TRUE | AY64: 79 | AZ64: 90 | BA64: 84.5 | BC64: 107 | BD64: 480 | BE64: 293.5 | BF64: 106 | BG64: 122 | BI64: 43.81059097 | BJ64: =IF(AND(L64<national_data!$H$16,AB64="TRUE"),"GREEN",IF(AND(L64>national_data!$H$16,AB64="TRUE"),"RED","AMBER")) -> RED | BK64: RED | BL64: RED | BO64: all_mortality_adj | BP64: Great Yarmouth & Waveney | BQ64: 0.3646733 | BR64: 0.8332035 | BS64: 3.315222 | BT64: 7.574601 | BU64: -0.0234685 | BV64: 0.239046 | BW64: 0.3425939 | BX64: -0.6949525 | BY64: 0.6480155 | BZ64: 0 | CA64: -0.0078241 | CB64: 2.173152 | CC64: 3.056972 | CD64: -5.999488 | CE64: 5.98384 | CF64: 0 | CG64: amber | CI64: TRUE
A65: 64 | B65: all_mortality_adj | C65: 2011 | D65: Greater Huddersfield | E65: -2.44012744 | F65: -0.2209777939 | G65: 13.48253762 | H65: 10.10023955 | I65: 9.207082554 | J65: 8.685231314 | K65: 6.958490607 | L65: 9.813998695 | M65: 0.03610721189 | N65: 7.123692652 | O65: 9.218328243 | P65: 5.029057061 | Q65: FALSE | R65: 0.7258705522 | S65: 0.9393040013 | T65: 0.5124371031 | U65: FALSE | V65: 230.875 | W65: 822.3412705 | X65: 1064.140767 | Y65: 580.5417745 | Z65: TRUE | AB65: =IF(OR(AND((L65-1.96*M65)<national_data!$H$16,(L65+1.96*M65)<national_data!$H$16),AND((L65-1.96*M65)>national_data!$H$16,(L65+1.96*M65)>national_data!$H$16)),"TRUE","FALSE") -> TRUE | AD65: no clear trend | AH65: -0.2400689926 | AI65: -0.3379595612 | AJ65: -0.1421784241 | AK65: TRUE | AY65: 126 | AZ65: 158 | BA65: 142 | BC65: 136.4 | BD65: 736 | BE65: 436.2 | BF65: 179 | BG65: 173 | BI65: 48.43358164 | BJ65: =IF(AND(L65<national_data!$H$16,AB65="TRUE"),"GREEN",IF(AND(L65>national_data!$H$16,AB65="TRUE"),"RED","AMBER")) -> RED | BK65: RED | BL65: GREEN | BO65: all_mortality_adj | BP65: Greater Huddersfield | BQ65: 0.5124371 | BR65: 0.939304 | BS65: 5.029057 | BT65: 9.218328 | BU65: 0.0770761 | BV65: 0.2177892 | BW65: 0.3066144 | BX65: -0.5238882 | BY65: 0.6780404 | BZ65: 0 | CA65: 0.9124629 | CB65: 2.137383 | CC65: 2.972806 | CD65: -4.914236 | CE65: 6.739161 | CF65: 0 | CG65: amber | CI65: TRUE
A66: 65 | B66: all_mortality_adj | C66: 2011 | D66: Greater Preston | E66: -1.246351539 | F66: -0.1128695202 | G66: 12.28876172 | H66: 9.073129973 | I66: 9.368379695 | J66: 7.768947964 | K66: 7.097713109 | L66: 9.272421619 | M66: 0.03646812789 | N66: 6.097934937 | O66: 7.871360521 | P66: 4.324509353 | Q66: FALSE | R66: 0.657642112 | S66: 0.8489001951 | T66: 0.466384029 | U66: FALSE | V66: 196.831 | W66: 600.1313158 | X66: 774.6638814 | Y66: 425.5987502 | Z66: TRUE | AB66: =IF(OR(AND((L66-1.96*M66)<national_data!$H$16,(L66+1.96*M66)<national_data!$H$16),AND((L66-1.96*M66)>national_data!$H$16,(L66+1.96*M66)>national_data!$H$16)),"TRUE","FALSE") -> TRUE | AD66: no clear trend | AH66: -0.04139115865 | AI66: -0.1432576645 | AJ66: 0.06047534721 | AK66: FALSE | AY66: =RANK(R66,$R$2:$R$212,1) -> 104 | AZ66: =RANK(N66,$N$2:$N$212,1) -> 112 | BA66: =AVERAGE(AY66:AZ66) -> 108 | BC66: 136.8 | BD66: 788 | BE66: 462.4 | BF66: =RANK(BC66,$BC$2:$BC$212,1) -> 181 | BG66: 185 | BI66: 45.59693246 | BJ66: =IF(AND(L66<national_data!$H$16,AB66="TRUE"),"GREEN",IF(AND(L66>national_data!$H$16,AB66="TRUE"),"RED","AMBER")) -> RED | BK66: RED | BL66: AMBER | BO66: all_mortality_adj | BP66: Greater Preston | BQ66: 0.466384 | BR66: 0.8489002 | BS66: 4.324509 | BT66: 7.87136 | BU66: 0.0077489 | BV66: 0.1951613 | BW66: 0.3174159 | BX66: -0.6143862 | BY66: 0.6298839 | BZ66: 0 | CA66: -0.2341957 | CB66: 1.809618 | CC66: 3.037049 | CD66: -6.186811 | CE66: 5.71842 | CF66: 0 | CG66: amber | CI66: TRUE
A67: 66 | B67: all_mortality_adj | C67: 2011 | D67: Greenwich | E67: -0.1525120691 | F67: -0.01381148378 | G67: 11.19492225 | H67: 8.968142131 | I67: 7.404439169 | J67: 6.223402255 | L67: 9.50829162 | M67: 0.04248909692 | N67: 9.170317216 | O67: 13.37428489 | P67: 4.966349541 | Q67: FALSE | R67: 0.9644547709 | S67: 1.406591786 | T67: 0.5223177558 | U67: FALSE | V67: 232.2 | W67: 1064.673829 | X67: 1552.754476 | Y67: 576.5931817 | Z67: TRUE | AB67: =IF(OR(AND((L67-1.96*M67)<national_data!$H$16,(L67+1.96*M67)<national_data!$H$16),AND((L67-1.96*M67)>national_data!$H$16,(L67+1.96*M67)>national_data!$H$16)),"TRUE","FALSE") -> TRUE | AD67: no clear trend | AH67: -0.4141696475 | AI67: -0.5175309667 | AJ67: -0.3108083284 | AK67: TRUE | AY67: 194 | AZ67: 196 | BA67: 195 | BC67: =AVERAGE(AY278,AY489,AY911,AY1122,AY1544) -> 142.4 | BD67: =AZ278+AZ489+AZ911+AZ1122+AZ1544 -> 705 | BE67: =AVERAGE(BC67,BD67) -> 423.7 | BF67: 189 | BG67: 142 | BI67: =SUM(G67:K67) -> 33.7909058 | BJ67: =IF(AND(L67<national_data!$H$16,AB67="TRUE"),"GREEN",IF(AND(L67>national_data!$H$16,AB67="TRUE"),"RED","AMBER")) -> RED | BK67: =IF(AND(W67<0,Z67=TRUE),"GREEN",IF(AND(W67>0,Z67=TRUE),"RED","AMBER")) -> RED | BL67: =IF(AND(AH67<0,AK67=TRUE),"GREEN",IF(AND(AH67>0,AK67=TRUE),"RED","AMBER")) -> GREEN | BO67: all_mortality_adj | BP67: Greenwich | BQ67: 0.5223178 | BR67: 1.406592 | BS67: 4.96635 | BT67: 13.37428 | BU67: 0.0180436 | BV67: 0.4511602 | BW67: 0.6452093 | BX67: -1.246567 | BY67: 1.282654 | BZ67: 0 | CA67: 0.1284866 | CB67: 4.289763 | CC67: 6.149864 | CD67: -11.92525 | CE67: 12.18222 | CF67: 0 | CG67: amber | CI67: TRUE
A68: 67 | B68: all_mortality_adj | C68: 2011 | D68: Guildford and Waverley | H68: 7.293922077 | I68: 8.607496455 | J68: 7.738863449 | K68: 7.073457921 | L68: 7.386592173 | M68: 0.04491792406 | N68: 3.639303993 | O68: 6.92504835 | P68: 0.3535596354 | Q68: FALSE | R68: 0.4926905273 | S68: 0.9375160003 | T68: 0.0478650543 | U68: FALSE | V68: 203.859 | W68: 370.9524363 | X68: 705.8667158 | Y68: 36.03815686 | Z68: TRUE | AB68: =IF(OR(AND((L68-1.96*M68)<national_data!$H$16,(L68+1.96*M68)<national_data!$H$16),AND((L68-1.96*M68)>national_data!$H$16,(L68+1.96*M68)>national_data!$H$16)),"TRUE","FALSE") -> TRUE | AD68: no clear trend | AH68: -0.3027892812 | AI68: -0.4210754184 | AJ68: -0.1845031441 | AK68: TRUE | AY68: 44 | AZ68: 31 | BA68: 37.5 | BC68: 122.2 | BD68: 468 | BE68: 295.1 | BF68: 156 | BG68: 82 | BI68: 30.7137399 | BJ68: =IF(AND(L68<national_data!$H$16,AB68="TRUE"),"GREEN",IF(AND(L68>national_data!$H$16,AB68="TRUE"),"RED","AMBER")) -> GREEN | BK68: RED | BL68: GREEN | BO68: all_mortality_adj | BP68: Guildford and Waverley | BQ68: 0.0478651 | BR68: 0.937516 | BS68: 0.3535596 | BT68: 6.925048 | BU68: 0.0251304 | BV68: 0.4539035 | BW68: 0.6243407 | BX68: -1.198577 | BY68: 1.248838 | BZ68: 0 | CA68: -0.0607597 | CB68: 3.3528 | CC68: 4.76969 | CD68: -9.409351 | CE68: 9.287832 | CF68: 0 | CG68: amber | CI68: =BP68=D68 -> TRUE
A69: 68 | B69: all_mortality_adj | C69: 2011 | D69: Halton | E69: -1.440918023 | F69: -0.1304894493 | G69: 12.4833282 | H69: 11.79317749 | I69: 7.788776178 | J69: 8.205180677 | K69: 5.232692833 | L69: 10.5129837 | M69: 0.04963377097 | N69: 8.271616544 | O69: 11.17659619 | P69: 5.366636893 | Q69: TRUE | R69: 0.7868000919 | S69: 1.063123135 | T69: 0.5104770486 | U69: FALSE | V69: 118.086 | W69: 488.3810556 | X69: 659.8997691 | Y69: 316.8623421 | Z69: TRUE | AB69: =IF(OR(AND((L69-1.96*M69)<national_data!$H$16,(L69+1.96*M69)<national_data!$H$16),AND((L69-1.96*M69)>national_data!$H$16,(L69+1.96*M69)>national_data!$H$16)),"TRUE","FALSE") -> TRUE | AD69: no clear trend | AH69: 0.3453365771 | AI69: 0.2039457056 | AJ69: 0.4867274486 | AK69: TRUE | AY69: 159 | AZ69: 186 | BA69: 172.5 | BC69: 72.8 | BD69: 583 | BE69: 327.9 | BF69: 32 | BG69: 124 | BI69: 45.50315537 | BJ69: =IF(AND(L69<national_data!$H$16,AB69="TRUE"),"GREEN",IF(AND(L69>national_data!$H$16,AB69="TRUE"),"RED","AMBER")) -> RED | BK69: RED | BL69: RED | BO69: all_mortality_adj | BP69: Halton | BQ69: 0.5104771 | BR69: 1.063123 | BS69: 5.366637 | BT69: 11.1766 | BU69: 0.1075801 | BV69: 0.2819623 | BW69: 0.4705992 | BX69: -0.8147942 | BY69: 1.029955 | BZ69: 0 | CA69: 1.001702 | CB69: 2.964265 | CC69: 5.005006 | CD69: -8.808109 | CE69: 10.81151 | CF69: 0 | CG69: amber | CI69: TRUE
A70: 69 | B70: all_mortality_adj | C70: 2011 | D70: Hambleton, Richmondshire and Whitby | E70: 1.004536883 | F70: 0.09097079957 | G70: 10.03787329 | H70: 8.687905302 | I70: 7.716031448 | J70: 7.628131554 | K70: 8.241583686 | L70: 8.012345319 | M70: 0.05410897392 | N70: 1.996905255 | O70: 5.422177059 | P70: -1.428366549 | Q70: FALSE | R70: 0.2492285561 | S70: 0.6767278298 | T70: -0.1782707176 | U70: FALSE | V70: 151.501 | W70: 151.2665715 | X70: 410.7326233 | Y70: -108.1994803 | Z70: FALSE | AB70: =IF(OR(AND((L70-1.96*M70)<national_data!$H$16,(L70+1.96*M70)<national_data!$H$16),AND((L70-1.96*M70)>national_data!$H$16,(L70+1.96*M70)>national_data!$H$16)),"TRUE","FALSE") -> TRUE | AD70: no clear trend | AH70: 0.02879535736 | AI70: -0.1224347895 | AJ70: 0.1800255042 | AK70: FALSE | AY70: 4 | AZ70: 4 | BA70: 4 | BC70: 30.4 | BD70: 158 | BE70: 94.2 | BF70: 1 | BG70: 6 | BI70: 42.31152528 | BJ70: =IF(AND(L70<national_data!$H$16,AB70="TRUE"),"GREEN",IF(AND(L70>national_data!$H$16,AB70="TRUE"),"RED","AMBER")) -> GREEN | BK70: AMBER | BL70: AMBER | BO70: all_mortality_adj | BP70: Hambleton, Richmondshire and Whitby | BQ70: -0.1782707 | BR70: 0.6767278 | BS70: -1.428367 | BT70: 5.422177 | BU70: 0.2023944 | BV70: 0.4362237 | BW70: 0.596705 | BX70: -0.9671474 | BY70: 1.371936 | BZ70: 0 | CA70: 1.598388 | CB70: 3.495175 | CC70: 4.921236 | CD70: -8.047235 | CE70: 11.24401 | CF70: 0 | CG70: amber | CI70: TRUE
A71: 70 | B71: all_mortality_adj | C71: 2011 | D71: Hammersmith and Fulham | E71: 3.020360106 | F71: 0.2735236291 | G71: 8.022050071 | H71: 8.370804017 | I71: 6.363750037 | J71: 6.151673306 | L71: 7.689150888 | M71: 0.04662868933 | N71: 5.527225315 | O71: 9.472259506 | P71: 1.582191123 | Q71: FALSE | R71: 0.7188342894 | S71: 1.231899288 | T71: 0.2057692906 | U71: FALSE | V71: 171.416 | W71: 473.7274273 | X71: 811.8484177 | Y71: 135.6064368 | Z71: TRUE | AB71: =IF(OR(AND((L71-1.96*M71)<national_data!$H$16,(L71+1.96*M71)<national_data!$H$16),AND((L71-1.96*M71)>national_data!$H$16,(L71+1.96*M71)>national_data!$H$16)),"TRUE","FALSE") -> TRUE | AD71: no clear trend | AH71: -0.01703652572 | AI71: -0.141843884 | AJ71: 0.1077708326 | AK71: FALSE | AY71: 121 | AZ71: 91 | BA71: 106 | BC71: 117.6 | BD71: 602 | BE71: 359.8 | BF71: 139 | BG71: 43 | BI71: 28.90827743 | BJ71: =IF(AND(L71<national_data!$H$16,AB71="TRUE"),"GREEN",IF(AND(L71>national_data!$H$16,AB71="TRUE"),"RED","AMBER")) -> GREEN | BK71: RED | BL71: AMBER | BO71: all_mortality_adj | BP71: Hammersmith and Fulham | BQ71: 0.2057693 | BR71: 1.231899 | BS71: 1.582191 | BT71: 9.47226 | BU71: 0.091472 | BV71: 0.5235357 | BW71: 0.761034 | BX71: -1.400155 | BY71: 1.583099 | BZ71: 0 | CA71: 0.6651047 | CB71: 4.025545 | CC71: 5.876184 | CD71: -10.85222 | CE71: 12.18243 | CF71: 0 | CG71: amber | CI71: TRUE
A72: 71 | B72: all_mortality_adj | C72: 2011 | D72: Hardwick | E72: -0.4498419983 | F72: -0.04073766425 | G72: 11.49225217 | H72: 9.330572509 | I72: 8.248676095 | J72: 9.73891689 | K72: 6.095334839 | L72: 9.603356944 | M72: 0.04045319986 | N72: 5.057797337 | O72: 8.107446457 | P72: 2.008148216 | Q72: FALSE | R72: 0.5266697225 | S72: 0.8442304606 | T72: 0.2091089843 | U72: FALSE | V72: 106.43 | W72: 269.1506853 | X72: 431.4377632 | Y72: 106.8636073 | Z72: TRUE | AB72: =IF(OR(AND((L72-1.96*M72)<national_data!$H$16,(L72+1.96*M72)<national_data!$H$16),AND((L72-1.96*M72)>national_data!$H$16,(L72+1.96*M72)>national_data!$H$16)),"TRUE","FALSE") -> TRUE | AD72: no clear trend | AH72: 0.04206561636 | AI72: -0.06296606351 | AJ72: 0.1470972962 | AK72: FALSE | AY72: 58 | AZ72: 81 | BA72: 69.5 | BC72: 54.2 | BD72: 386 | BE72: 220.1 | BF72: 12 | BG72: 90 | BI72: 44.90575251 | BJ72: =IF(AND(L72<national_data!$H$16,AB72="TRUE"),"GREEN",IF(AND(L72>national_data!$H$16,AB72="TRUE"),"RED","AMBER")) -> RED | BK72: RED | BL72: AMBER | BO72: all_mortality_adj | BP72: Hardwick | BQ72: 0.209109 | BR72: 0.8442305 | BS72: 2.008148 | BT72: 8.107447 | BU72: 0.0246795 | BV72: 0.3240416 | BW72: 0.5711325 | BX72: -1.09474 | BY72: 1.144099 | BZ72: 0 | CA72: 0.0776507 | CB72: 3.111887 | CC72: 5.608371 | CD72: -10.91476 | CE72: 11.07006 | CF72: 0 | CG72: amber | CI72: TRUE
A73: 72 | B73: all_mortality_adj | C73: 2011 | D73: Haringey | E73: 2.041127364 | F73: 0.1848443711 | G73: 9.001282812 | H73: 7.625921436 | I73: 6.321254768 | J73: 7.569213337 | L73: 8.239903926 | M73: 0.03938032942 | N73: 5.071967929 | O73: 8.709142904 | P73: 1.434792953 | Q73: FALSE | R73: 0.6155372653 | S73: 1.056947142 | T73: 0.1741273886 | U73: FALSE | V73: 225.611 | W73: 572.1458782 | X73: 982.4392199 | Y73: 161.8525364 | Z73: TRUE | AB73: =IF(OR(AND((L73-1.96*M73)<national_data!$H$16,(L73+1.96*M73)<national_data!$H$16),AND((L73-1.96*M73)>national_data!$H$16,(L73+1.96*M73)>national_data!$H$16)),"TRUE","FALSE") -> TRUE | AD73: no clear trend | AH73: -0.338687991 | AI73: -0.4462402768 | AJ73: -0.2311357052 | AK73: TRUE | AY73: 86 | AZ73: 84 | BA73: 85 | BC73: 87 | BD73: 431 | BE73: 259 | BF73: 55 | BG73: 195 | BI73: 30.51767235 | BJ73: =IF(AND(L73<national_data!$H$16,AB73="TRUE"),"GREEN",IF(AND(L73>national_data!$H$16,AB73="TRUE"),"RED","AMBER")) -> GREEN | BK73: RED | BL73: GREEN | BO73: all_mortality_adj | BP73: Haringey | BQ73: 0.1741274 | BR73: 1.056947 | BS73: 1.434793 | BT73: 8.709143 | BU73: -0.0513517 | BV73: 0.4504182 | BW73: 0.6262321 | BX73: -1.278767 | BY73: 1.176063 | BZ73: 0 | CA73: -0.6972167 | CB73: 3.711403 | CC73: 5.285886 | CD73: -11.05755 | CE73: 9.663119 | CF73: 0 | CG73: amber | CI73: TRUE
A74: 73 | B74: all_mortality_adj | C74: 2011 | D74: Harrogate and Rural District | E74: -2.149879186 | F74: -0.1946929295 | G74: 13.19228936 | H74: 12.06731671 | I74: 10.45204181 | J74: 7.043148527 | K74: 6.954367359 | L74: 7.854287904 | M74: 0.05446301716 | N74: 7.402602722 | O74: 11.43630689 | P74: 3.368898554 | Q74: FALSE | R74: 0.942491899 | S74: 1.456059038 | T74: 0.42892476 | U74: FALSE | V74: 159.859 | W74: 591.6863342 | X74: 914.0982915 | Y74: 269.274377 | Z74: TRUE | AB74: =IF(OR(AND((L74-1.96*M74)<national_data!$H$16,(L74+1.96*M74)<national_data!$H$16),AND((L74-1.96*M74)>national_data!$H$16,(L74+1.96*M74)>national_data!$H$16)),"TRUE","FALSE") -> TRUE | AD74: no clear trend | AH74: -0.2195896778 | AI74: -0.3573171945 | AJ74: -0.08186216112 | AK74: TRUE | AY74: 190 | AZ74: 169 | BA74: 179.5 | BC74: 129.2 | BD74: 531 | BE74: 330.1 | BF74: 164 | BG74: 162 | BI74: 49.70916377 | BJ74: =IF(AND(L74<national_data!$H$16,AB74="TRUE"),"GREEN",IF(AND(L74>national_data!$H$16,AB74="TRUE"),"RED","AMBER")) -> GREEN | BK74: RED | BL74: GREEN | BO74: all_mortality_adj | BP74: Harrogate and Rural District | BQ74: 0.4289248 | BR74: 1.456059 | BS74: 3.368899 | BT74: 11.43631 | BU74: 0.2234686 | BV74: 0.5240481 | BW74: 0.668183 | BX74: -1.08617 | BY74: 1.533107 | BZ74: 0 | CA74: 1.405241 | CB74: 4.116024 | CC74: 5.375598 | CD74: -9.130932 | CE74: 11.94141 | CF74: 0 | CG74: amber | CI74: TRUE
A75: 74 | B75: all_mortality_adj | C75: 2011 | D75: Harrow | E75: 3.472770135 | F75: 0.3144938541 | G75: 7.569640042 | H75: 7.602201906 | I75: 7.834480566 | J75: 6.935612774 | K75: 5.919422855 | L75: 7.232320286 | M75: 0.03074149201 | N75: 3.335704656 | O75: 5.526455491 | P75: 1.144953821 | Q75: FALSE | R75: 0.4612219211 | S75: 0.7641331237 | T75: 0.1583107186 | U75: FALSE | V75: 232.952 | W75: 388.5295356 | X75: 643.6994298 | Y75: 133.3596413 | Z75: TRUE | AB75: =IF(OR(AND((L75-1.96*M75)<national_data!$H$16,(L75+1.96*M75)<national_data!$H$16),AND((L75-1.96*M75)>national_data!$H$16,(L75+1.96*M75)>national_data!$H$16)),"TRUE","FALSE") -> TRUE | AD75: no clear trend | AH75: -0.09748870483 | AI75: -0.1840751616 | AJ75: -0.01090224801 | AK75: TRUE | AY75: 35 | AZ75: 20 | BA75: 27.5 | BC75: 99.4 | BD75: 479 | BE75: 289.2 | BF75: 76 | BG75: 107 | BI75: 35.86135814 | BJ75: =IF(AND(L75<national_data!$H$16,AB75="TRUE"),"GREEN",IF(AND(L75>national_data!$H$16,AB75="TRUE"),"RED","AMBER")) -> GREEN | BK75: RED | BL75: GREEN | BO75: all_mortality_adj | BP75: Harrow | BQ75: 0.1583107 | BR75: 0.7641331 | BS75: 1.144954 | BT75: 5.526455 | BU75: -0.2523138 | BV75: 0.3090931 | BW75: 0.4914036 | BX75: -1.215465 | BY75: 0.7108374 | BZ75: 0 | CA75: -1.686502 | CB75: 2.23546 | CC75: 3.496731 | CD75: -8.540094 | CE75: 5.167091 | CF75: 0 | CG75: amber | CI75: TRUE
A76: 75 | B76: all_mortality_adj | C76: 2011 | D76: Hartlepool and Stockton-on-Tees | E76: -0.9685670691 | F76: -0.0877133754 | G76: 12.01097725 | H76: 10.21398052 | I76: 8.754658471 | J76: 6.9481166 | K76: 6.167279586 | L76: 9.245306652 | M76: 0.03875190467 | N76: 7.333826387 | O76: 9.105114056 | P76: 5.562538718 | Q76: TRUE | R76: 0.7932485815 | S76: 0.9848363498 | T76: 0.6016608132 | U76: TRUE | V76: 282.86 | W76: 1037.223066 | X76: 1287.736281 | Y76: 786.7098509 | Z76: TRUE | AB76: =IF(OR(AND((L76-1.96*M76)<national_data!$H$16,(L76+1.96*M76)<national_data!$H$16),AND((L76-1.96*M76)>national_data!$H$16,(L76+1.96*M76)>national_data!$H$16)),"TRUE","FALSE") -> TRUE | AD76: no clear trend | AH76: -0.3326046776 | AI76: -0.4433668209 | AJ76: -0.2218425343 | AK76: TRUE | AY76: 162 | AZ76: 167 | BA76: 164.5 | BC76: 114.4 | BD76: 624 | BE76: 369.2 | BF76: 131 | BG76: 146 | BI76: 44.09501242 | BJ76: =IF(AND(L76<national_data!$H$16,AB76="TRUE"),"GREEN",IF(AND(L76>national_data!$H$16,AB76="TRUE"),"RED","AMBER")) -> RED | BK76: RED | BL76: GREEN | BO76: all_mortality_adj | BP76: Hartlepool and Stockton-on-Tees | BQ76: 0.6016608 | BR76: 0.9848363 | BS76: 5.562539 | BT76: 9.105114 | BU76: -0.0281529 | BV76: 0.1954977 | BW76: 0.2802705 | BX76: -0.5774832 | BY76: 0.5211774 | BZ76: 0 | CA76: -0.4683711 | CB76: 1.807436 | CC76: 2.627883 | CD76: -5.619021 | CE76: 4.682279 | CF76: 0 | CG76: amber | CI76: TRUE
A77: 76 | B77: all_mortality_adj | C77: 2011 | D77: Hastings & Rother | E77: 0.3426742282 | F77: 0.03103255745 | G77: 10.69973595 | H77: 10.51742718 | I77: 8.437949551 | J77: 6.975866434 | K77: 5.436125362 | L77: 9.238167748 | M77: 0.04281999879 | N77: 6.702511627 | O77: 9.894190014 | P77: 3.51083324 | Q77: FALSE | R77: 0.7255239144 | S77: 1.071012162 | T77: 0.3800356668 | U77: FALSE | V77: 177.935 | W77: 596.3057032 | X77: 880.2613501 | Y77: 312.3500563 | Z77: TRUE | AB77: =IF(OR(AND((L77-1.96*M77)<national_data!$H$16,(L77+1.96*M77)<national_data!$H$16),AND((L77-1.96*M77)>national_data!$H$16,(L77+1.96*M77)>national_data!$H$16)),"TRUE","FALSE") -> TRUE | AD77: no clear trend | AH77: 0.09480904115 | AI77: -0.02476351151 | AJ77: 0.2143815938 | AK77: FALSE | AY77: 125 | AZ77: 140 | BA77: 132.5 | BC77: 101.4 | BD77: 452 | BE77: 276.7 | BF77: 88 | BG77: 64 | BI77: 42.06710447 | BJ77: =IF(AND(L77<national_data!$H$16,AB77="TRUE"),"GREEN",IF(AND(L77>national_data!$H$16,AB77="TRUE"),"RED","AMBER")) -> RED | BK77: RED | BL77: AMBER | BO77: all_mortality_adj | BP77: Hastings & Rother | BQ77: 0.3800357 | BR77: 1.071012 | BS77: 3.510833 | BT77: 9.89419 | BU77: -0.0577867 | BV77: 0.352539 | BW77: 0.5091148 | BX77: -1.055652 | BY77: 0.9400783 | BZ77: 0 | CA77: -0.56642 | CB77: 3.256814 | CC77: 4.714321 | CD77: -9.806488 | CE77: 8.673649 | CF77: 0 | CG77: amber | CI77: TRUE
A78: 77 | B78: all_mortality_adj | C78: 2011 | D78: Havering | E78: 0.9892908691 | F78: 0.08959012147 | G78: 10.05311931 | H78: 9.560697293 | I78: 8.64614588 | J78: 7.500845973 | K78: 6.977808766 | L78: 8.264859592 | M78: 0.03549807867 | N78: 4.559600097 | O78: 6.858655538 | P78: 2.260544657 | Q78: FALSE | R78: 0.5516851251 | S78: 0.8298574781 | T78: 0.273512772 | U78: FALSE | V78: 237.928 | W78: 542.428266 | X78: 815.9330974 | Y78: 268.9234346 | Z78: TRUE | AB78: =IF(OR(AND((L78-1.96*M78)<national_data!$H$16,(L78+1.96*M78)<national_data!$H$16),AND((L78-1.96*M78)>national_data!$H$16,(L78+1.96*M78)>national_data!$H$16)),"TRUE","FALSE") -> TRUE | AD78: no clear trend | AH78: -0.2920183496 | AI78: -0.3889193622 | AJ78: -0.195117337 | AK78: TRUE | AY78: 67 | AZ78: 59 | BA78: 63 | BC78: 115.6 | BD78: 546 | BE78: 330.8 | BF78: 133 | BG78: 150 | BI78: 42.73861722 | BJ78: =IF(AND(L78<national_data!$H$16,AB78="TRUE"),"GREEN",IF(AND(L78>national_data!$H$16,AB78="TRUE"),"RED","AMBER")) -> GREEN | BK78: RED | BL78: GREEN | BO78: all_mortality_adj | BP78: Havering | BQ78: 0.2735128 | BR78: 0.8298575 | BS78: 2.260545 | BT78: 6.858655 | BU78: -0.1088464 | BV78: 0.2838493 | BW78: 0.3803922 | BX78: -0.8544151 | BY78: 0.6367223 | BZ78: 0 | CA78: -1.049985 | CB78: 2.345975 | CC78: 3.182561 | CD78: -7.287805 | CE78: 5.187834 | CF78: 0 | CG78: amber | CI78: TRUE
A79: 78 | B79: all_mortality_adj | C79: 2011 | D79: Herefordshire | E79: 1.418623528 | F79: 0.1284704612 | G79: 9.623786648 | H79: 10.43773292 | I79: 7.396304431 | J79: 8.234448041 | K79: 6.241736184 | L79: 7.969378132 | M79: 0.03218691514 | N79: 3.470776613 | O79: 6.269287044 | P79: 0.6722661812 | Q79: FALSE | R79: 0.4355141085 | S79: 0.7866720515 | T79: 0.08435616557 | U79: FALSE | V79: 179.611 | W79: 311.6948291 | X79: 563.0164577 | Y79: 60.37320053 | Z79: TRUE | AB79: =IF(OR(AND((L79-1.96*M79)<national_data!$H$16,(L79+1.96*M79)<national_data!$H$16),AND((L79-1.96*M79)>national_data!$H$16,(L79+1.96*M79)>national_data!$H$16)),"TRUE","FALSE") -> TRUE | AD79: no clear trend | AH79: 0.03188234802 | AI79: -0.05899675081 | AJ79: 0.1227614468 | AK79: FALSE | AY79: 24 | AZ79: 26 | BA79: 25 | BC79: 112 | BD79: 368 | BE79: 240 | BF79: 122 | BG79: 14 | BI79: 41.93400822 | BJ79: =IF(AND(L79<national_data!$H$16,AB79="TRUE"),"GREEN",IF(AND(L79>national_data!$H$16,AB79="TRUE"),"RED","AMBER")) -> GREEN | BK79: RED | BL79: AMBER | BO79: all_mortality_adj | BP79: Herefordshire | BQ79: 0.0843562 | BR79: 0.7866721 | BS79: 0.6722662 | BT79: 6.269287 | BU79: -0.2657894 | BV79: 0.3583244 | BW79: 0.5213597 | BX79: -1.287654 | BY79: 0.7560756 | BZ79: 0 | CA79: -2.324152 | CB79: 2.855623 | CC79: 4.236397 | CD79: -10.62749 | CE79: 5.979185 | CF79: 0 | CG79: amber | CI79: TRUE
A80: 79 | B80: all_mortality_adj | C80: 2011 | D80: Herts Valleys | E80: 3.367485109 | F80: 0.3049592485 | G80: 7.674925068 | H80: 10.18265146 | I80: 9.823750217 | J80: 8.490845965 | K80: 6.854267248 | L80: 8.144336362 | M80: 0.02574018873 | N80: 5.876912397 | O80: 7.437657542 | P80: 4.316167253 | Q80: FALSE | R80: 0.721595 | S80: 0.9132306442 | T80: 0.5299593559 | U80: FALSE | V80: 561.785 | W80: 1650.780616 | X80: 2089.182221 | Y80: 1212.37901 | Z80: TRUE | AB80: =IF(OR(AND((L80-1.96*M80)<national_data!$H$16,(L80+1.96*M80)<national_data!$H$16),AND((L80-1.96*M80)>national_data!$H$16,(L80+1.96*M80)>national_data!$H$16)),"TRUE","FALSE") -> TRUE | AD80: no clear trend | AH80: 0.1295501788 | AI80: 0.05754063954 | AJ80: 0.2015597181 | AK80: TRUE | AY80: 123 | AZ80: 104 | BA80: 113.5 | BC80: 145 | BD80: 598 | BE80: 371.5 | BF80: 191 | BG80: 84 | BI80: 43.02643995 | BJ80: =IF(AND(L80<national_data!$H$16,AB80="TRUE"),"GREEN",IF(AND(L80>national_data!$H$16,AB80="TRUE"),"RED","AMBER")) -> GREEN | BK80: RED | BL80: RED | BO80: all_mortality_adj | BP80: Herts Valleys | BQ80: 0.5299594 | BR80: 0.9132307 | BS80: 4.316167 | BT80: 7.437657 | BU80: 0.0795569 | BV80: 0.1955466 | BW80: 0.2802209 | BX80: -0.469676 | BY80: 0.6287898 | BZ80: 0 | CA80: 0.6823047 | CB80: 1.592597 | CC80: 2.27453 | CD80: -3.775774 | CE80: 5.140383 | CF80: 0 | CG80: amber | CI80: TRUE
A81: 80 | B81: all_mortality_adj | C81: 2011 | D81: Heywood, Middleton & Rochdale | E81: -0.4560597574 | F81: -0.04130074414 | G81: 11.49846993 | H81: 10.85479921 | I81: 9.215227055 | J81: 7.132721095 | K81: 5.391421692 | L81: 10.1169131 | M81: 0.04092984055 | N81: 7.902338425 | O81: 10.77268773 | P81: 5.031989119 | Q81: FALSE | R81: 0.7811017399 | S81: 1.064819637 | T81: 0.4973838433 | U81: FALSE | V81: 206.493 | W81: 815.8887842 | X81: 1112.242304 | Y81: 519.5352646 | Z81: TRUE | AB81: =IF(OR(AND((L81-1.96*M81)<national_data!$H$16,(L81+1.96*M81)<national_data!$H$16),AND((L81-1.96*M81)>national_data!$H$16,(L81+1.96*M81)>national_data!$H$16)),"TRUE","FALSE") -> TRUE | AD81: no clear trend | AH81: 0.1338635544 | AI81: 0.02515549428 | AJ81: 0.2425716145 | AK81: TRUE | AY81: 157 | AZ81: 181 | BA81: 169 | BC81: 101 | BD81: 618 | BE81: 359.5 | BF81: 81 | BG81: 49 | BI81: 44.09263898 | BJ81: =IF(AND(L81<national_data!$H$16,AB81="TRUE"),"GREEN",IF(AND(L81>national_data!$H$16,AB81="TRUE"),"RED","AMBER")) -> RED | BK81: RED | BL81: RED | BO81: all_mortality_adj | BP81: Heywood, Middleton & Rochdale | BQ81: 0.4973838 | BR81: 1.06482 | BS81: 5.031989 | BT81: 10.77269 | BU81: 0.0743816 | BV81: 0.2895081 | BW81: 0.405544 | BX81: -0.7204846 | BY81: 0.8692477 | BZ81: 0 | CA81: 0.6956113 | CB81: 2.928928 | CC81: 4.118896 | CD81: -7.377426 | CE81: 8.768648 | CF81: 0 | CG81: amber | CI81: TRUE
A82: 81 | B82: all_mortality_adj | C82: 2011 | D82: High Weald Lewes Havens | H82: 7.731885465 | I82: 8.437030107 | J82: 7.024288257 | K82: 7.20068503 | L82: 7.452777984 | M82: 0.03405526623 | N82: 2.23025408 | O82: 4.713595462 | P82: -0.2530873011 | Q82: TRUE | R82: 0.2992513778 | S82: 0.6324615428 | T82: -0.03395878713 | U82: FALSE | V82: 163.691 | W82: 182.5362603 | X82: 385.7865774 | Y82: -20.7140567 | Z82: FALSE | AB82: =IF(OR(AND((L82-1.96*M82)<national_data!$H$16,(L82+1.96*M82)<national_data!$H$16),AND((L82-1.96*M82)>national_data!$H$16,(L82+1.96*M82)>national_data!$H$16)),"TRUE","FALSE") -> TRUE | AD82: no clear trend | AH82: 0.265735425 | AI82: 0.1715442151 | AJ82: 0.3599266348 | AK82: TRUE | AY82: 6 | AZ82: 5 | BA82: 5.5 | BC82: 57.8 | BD82: 229 | BE82: 143.4 | BF82: 15 | BG82: 9 | BI82: 30.39388886 | BJ82: =IF(AND(L82<national_data!$H$16,AB82="TRUE"),"GREEN",IF(AND(L82>national_data!$H$16,AB82="TRUE"),"RED","AMBER")) -> GREEN | BK82: AMBER | BL82: RED | BO82: all_mortality_adj | BP82: High Weald Lewes Havens | BQ82: -0.0339588 | BR82: 0.6324615 | BS82: -0.2530873 | BT82: 4.713595 | BU82: 0.3125427 | BV82: 0.3400104 | BW82: 0.5040513 | BX82: -0.6753978 | BY82: 1.300483 | BZ82: 0 | CA82: 2.329835 | CB82: 2.534022 | CC82: 3.76742 | CD82: -5.054308 | CE82: 9.713979 | CF82: 0 | CG82: amber | CI82: TRUE
A83: 82 | B83: all_mortality_adj | C83: 2011 | D83: Hillingdon | E83: 1.789588232 | F83: 0.1620650025 | G83: 9.252821944 | H83: 8.791579449 | I83: 8.452430207 | J83: 7.545535046 | K83: 6.707793658 | L83: 8.271553591 | M83: 0.03341283 | N83: 3.397396889 | O83: 5.704740488 | P83: 1.090053291 | Q83: FALSE | R83: 0.4107326214 | S83: 0.6896818627 | T83: 0.1317833801 | U83: FALSE | V83: 271.298 | W83: 460.8534906 | X83: 773.8423424 | Y83: 147.8646388 | Z83: TRUE | AB83: =IF(OR(AND((L83-1.96*M83)<national_data!$H$16,(L83+1.96*M83)<national_data!$H$16),AND((L83-1.96*M83)>national_data!$H$16,(L83+1.96*M83)>national_data!$H$16)),"TRUE","FALSE") -> TRUE | AD83: no clear trend | AH83: 0.1114122596 | AI83: 0.01864564482 | AJ83: 0.2041788745 | AK83: TRUE | AY83: 21 | AZ83: 25 | BA83: 23 | BC83: 105.4 | BD83: 590 | BE83: 347.7 | BF83: 101 | BG83: 112 | BI83: 40.7501603 | BJ83: =IF(AND(L83<national_data!$H$16,AB83="TRUE"),"GREEN",IF(AND(L83>national_data!$H$16,AB83="TRUE"),"RED","AMBER")) -> GREEN | BK83: RED | BL83: RED | BO83: all_mortality_adj | BP83: Hillingdon | BQ83: 0.1317834 | BR83: 0.6896819 | BS83: 1.090053 | BT83: 5.704741 | BU83: -0.045823 | BV83: 0.2846421 | BW83: 0.3909335 | BX83: -0.8120527 | BY83: 0.7204067 | BZ83: 0 | CA83: -0.4547878 | CB83: 2.354432 | CC83: 3.264268 | CD83: -6.852754 | CE83: 5.943178 | CF83: 0 | CG83: amber | CI83: TRUE
A84: 83 | B84: all_mortality_adj | C84: 2011 | D84: Horsham and Mid Sussex | H84: 13.97868656 | I84: 8.222507109 | J84: 10.2494968 | K84: 7.300392599 | L84: 8.178598415 | M84: 0.04866754287 | N84: 6.603908452 | O84: 10.93832937 | P84: 2.269487534 | Q84: FALSE | R84: 0.8074621246 | S84: 1.337433239 | T84: 0.2774910099 | U84: FALSE | V84: 214.415 | W84: 707.9885154 | X84: 1172.670946 | Y84: 243.3060848 | Z84: TRUE | AB84: =IF(OR(AND((L84-1.96*M84)<national_data!$H$16,(L84+1.96*M84)<national_data!$H$16),AND((L84-1.96*M84)>national_data!$H$16,(L84+1.96*M84)>national_data!$H$16)),"TRUE","FALSE") -> TRUE | AD84: no clear trend | AH84: 0.1508268394 | AI84: 0.0232547866 | AJ84: 0.2783988922 | AK84: TRUE | AY84: 168 | AZ84: 135 | BA84: 151.5 | BC84: 140 | BD84: 473 | BE84: 306.5 | BF84: 185 | BG84: 114 | BI84: 39.75108307 | BJ84: =IF(AND(L84<national_data!$H$16,AB84="TRUE"),"GREEN",IF(AND(L84>national_data!$H$16,AB84="TRUE"),"RED","AMBER")) -> GREEN | BK84: RED | BL84: RED | BO84: all_mortality_adj | BP84: Horsham and Mid Sussex | BQ84: 0.277491 | BR84: 1.337433 | BS84: 2.269488 | BT84: 10.93833 | BU84: -0.4100824 | BV84: 0.5407869 | BW84: 0.7345643 | BX84: -1.849828 | BY84: 1.029664 | BZ84: 0 | CA84: -3.333025 | CB84: 4.422879 | CC84: 6.001942 | CD84: -15.09683 | CE84: 8.43078 | CF84: 0 | CG84: amber | CI84: TRUE
A85: 84 | B85: all_mortality_adj | C85: 2011 | D85: Hounslow | E85: -0.1371507848 | F85: -0.0124203668 | G85: 11.17956096 | H85: 8.908897192 | I85: 7.981969573 | J85: 7.009158921 | K85: 1.959635644 | L85: 8.367331264 | M85: 0.03765225219 | N85: 6.808673991 | O85: 10.17577083 | P85: 3.441577153 | Q85: FALSE | R85: 0.8137210989 | S85: 1.216130987 | T85: 0.4113112107 | U85: FALSE | V85: 238.257 | W85: 811.1071196 | X85: 1212.224315 | Y85: 409.9899238 | Z85: TRUE | AB85: =IF(OR(AND((L85-1.96*M85)<national_data!$H$16,(L85+1.96*M85)<national_data!$H$16),AND((L85-1.96*M85)>national_data!$H$16,(L85+1.96*M85)>national_data!$H$16)),"TRUE","FALSE") -> TRUE | AD85: no clear trend | AH85: -0.5680495015 | AI85: -0.6872525898 | AJ85: -0.4488464132 | AK85: TRUE | AY85: 169 | AZ85: 149 | BA85: 159 | BC85: 67.6 | BD85: 399 | BE85: 233.3 | BF85: 22 | BG85: 144 | BI85: 37.03922229 | BJ85: =IF(AND(L85<national_data!$H$16,AB85="TRUE"),"GREEN",IF(AND(L85>national_data!$H$16,AB85="TRUE"),"RED","AMBER")) -> GREEN | BK85: RED | BL85: GREEN | BO85: all_mortality_adj | BP85: Hounslow | BQ85: 0.4113112 | BR85: 1.216131 | BS85: 3.441577 | BT85: 10.17577 | BU85: 0.1013984 | BV85: 0.4106223 | BW85: 0.6319952 | BX85: -1.137312 | BY85: 1.340109 | BZ85: 0 | CA85: 0.4392459 | CB85: 3.435813 | CC85: 5.500824 | CD85: -10.34237 | CE85: 11.22086 | CF85: 0 | CG85: amber | CI85: TRUE
A86: 85 | B86: all_mortality_adj | C86: 2011 | D86: Hull | E86: -0.8160011708 | F86: -0.07389701684 | G86: 11.85841135 | H86: 8.96532066 | I86: 7.611690516 | J86: 7.418035348 | K86: 4.185068579 | L86: 9.940278556 | M86: 0.04358838623 | N86: 9.393863484 | O86: 12.69748656 | P86: 6.090240404 | Q86: TRUE | R86: 0.9450302052 | S86: 1.277377338 | T86: 0.6126830722 | U86: TRUE | V86: 264.602 | W86: 1242.817533 | X86: 1679.89017 | Y86: 805.7448957 | Z86: TRUE | AB86: =IF(OR(AND((L86-1.96*M86)<national_data!$H$16,(L86+1.96*M86)<national_data!$H$16),AND((L86-1.96*M86)>national_data!$H$16,(L86+1.96*M86)>national_data!$H$16)),"TRUE","FALSE") -> TRUE | AD86: no clear trend | AH86: -0.5609467272 | AI86: -0.6726290402 | AJ86: -0.4492644142 | AK86: TRUE | AY86: 191 | AZ86: 199 | BA86: 195 | BC86: 120.2 | BD86: 756 | BE86: 438.1 | BF86: 147 | BG86: 136 | BI86: 40.03852645 | BJ86: =IF(AND(L86<national_data!$H$16,AB86="TRUE"),"GREEN",IF(AND(L86>national_data!$H$16,AB86="TRUE"),"RED","AMBER")) -> RED | BK86: RED | BL86: GREEN | BO86: all_mortality_adj | BP86: Hull | BQ86: 0.6126831 | BR86: 1.277377 | BS86: 6.09024 | BT86: 12.69749 | BU86: 0.0019191 | BV86: 0.3391297 | BW86: 0.4545797 | BX86: -0.889057 | BY86: 0.8928953 | BZ86: 0 | CA86: 0.1491946 | CB86: 3.371044 | CC86: 4.490945 | CD86: -8.653058 | CE86: 8.951447 | CF86: 0 | CG86: amber | CI86: TRUE
A87: 86 | B87: all_mortality_adj | C87: 2011 | D87: Ipswich and East Suffolk | E87: 0.7084855116 | F87: 0.06416040522 | G87: 10.33392467 | H87: 9.730366148 | I87: 7.483633478 | J87: 7.882060169 | K87: 7.172892777 | L87: 8.032745499 | M87: 0.02816130742 | N87: 3.966809735 | O87: 5.633976894 | P87: 2.299642576 | Q87: FALSE | R87: 0.4938298786 | S87: 0.7013762473 | T87: 0.2862835099 | U87: FALSE | V87: 387.779 | W87: 769.122756 | X87: 1092.368963 | Y87: 445.8765491 | Z87: TRUE | AB87: =IF(OR(AND((L87-1.96*M87)<national_data!$H$16,(L87+1.96*M87)<national_data!$H$16),AND((L87-1.96*M87)>national_data!$H$16,(L87+1.96*M87)>national_data!$H$16)),"TRUE","FALSE") -> TRUE | AD87: no clear trend | AH87: -0.1383726866 | AI87: -0.2166013405 | AJ87: -0.06014403265 | AK87: TRUE | AY87: 45 | AZ87: 38 | BA87: 41.5 | BC87: 100 | BD87: 458 | BE87: 279 | BF87: 79 | BG87: 96 | BI87: 42.60287724 | BJ87: =IF(AND(L87<national_data!$H$16,AB87="TRUE"),"GREEN",IF(AND(L87>national_data!$H$16,AB87="TRUE"),"RED","AMBER")) -> GREEN | BK87: RED | BL87: GREEN | BO87: all_mortality_adj | BP87: Ipswich and East Suffolk | BQ87: 0.2862835 | BR87: 0.7013763 | BS87: 2.299643 | BT87: 5.633977 | BU87: 0.0954782 | BV87: 0.211782 | BW87: 0.3017375 | BX87: -0.4959273 | BY87: 0.6868836 | BZ87: 0 | CA87: 0.6388636 | CB87: 1.701191 | CC87: 2.473482 | CD87: -4.209162 | CE87: 5.486889 | CF87: 0 | CG87: amber | CI87: TRUE
A88: 87 | B88: all_mortality_adj | C88: 2011 | D88: Isle of Wight | E88: -0.2849821319 | F88: -0.02580796469 | G88: 11.32739231 | H88: 8.518756248 | I88: 7.976833547 | J88: 6.543204414 | K88: 9.853766088 | L88: 8.192413764 | M88: 0.03914016615 | N88: 4.212524106 | O88: 7.677270712 | P88: 0.7477775008 | Q88: FALSE | R88: 0.5141981628 | S88: 0.9371195026 | T88: 0.09127682297 | U88: FALSE | V88: 140.633 | W88: 296.2099513 | X88: 539.838806 | Y88: 52.58109663 | Z88: TRUE | AB88: =IF(OR(AND((L88-1.96*M88)<national_data!$H$16,(L88+1.96*M88)<national_data!$H$16),AND((L88-1.96*M88)>national_data!$H$16,(L88+1.96*M88)>national_data!$H$16)),"TRUE","FALSE") -> TRUE | AD88: no clear trend | AH88: -0.1360820113 | AI88: -0.2416100066 | AJ88: -0.03055401604 | AK88: TRUE | AY88: 51 | AZ88: 51 | BA88: 51 | BC88: 80 | BD88: 324 | BE88: 202 | BF88: 45 | BG88: 182 | BI88: 44.21995261 | BJ88: =IF(AND(L88<national_data!$H$16,AB88="TRUE"),"GREEN",IF(AND(L88>national_data!$H$16,AB88="TRUE"),"RED","AMBER")) -> GREEN | BK88: RED | BL88: GREEN | BO88: all_mortality_adj | BP88: Isle of Wight | BQ88: 0.0912768 | BR88: 0.9371195 | BS88: 0.7477775 | BT88: 7.677271 | BU88: 0.0786981 | BV88: 0.4315524 | BW88: 0.5961032 | BX88: -1.089664 | BY88: 1.24706 | BZ88: 0 | CA88: 0.4955491 | CB88: 3.535456 | CC88: 4.98174 | CD88: -9.268661 | CE88: 10.25976 | CF88: 0 | CG88: amber | CI88: TRUE
A89: 88 | B89: all_mortality_adj | C89: 2011 | D89: Islington | E89: 1.431947639 | F89: 0.1296770919 | G89: 9.610462537 | H89: 9.247677837 | I89: 7.608718513 | L89: 9.343567754 | M89: 0.04047747125 | N89: 4.340672134 | O89: 11.07140159 | P89: -2.39005732 | Q89: FALSE | R89: 0.4645626006 | S89: 1.184922278 | T89: -0.2557970769 | U89: FALSE | V89: 195.969 | W89: 425.3185887 | X89: 1084.825749 | Y89: -234.1885714 | Z89: FALSE | AB89: =IF(OR(AND((L89-1.96*M89)<national_data!$H$16,(L89+1.96*M89)<national_data!$H$16),AND((L89-1.96*M89)>national_data!$H$16,(L89+1.96*M89)>national_data!$H$16)),"TRUE","FALSE") -> TRUE | AD89: no clear trend | AH89: -0.7023313879 | AI89: -0.8143546235 | AJ89: -0.5903081523 | AK89: TRUE | AY89: 36 | AZ89: 53 | BA89: 44.5 | BC89: 47.6 | BD89: 311 | BE89: 179.3 | BF89: 3 | BG89: 36 | BI89: 26.46685889 | BJ89: =IF(AND(L89<national_data!$H$16,AB89="TRUE"),"GREEN",IF(AND(L89>national_data!$H$16,AB89="TRUE"),"RED","AMBER")) -> RED | BK89: AMBER | BL89: GREEN | BO89: all_mortality_adj | BP89: Islington | BQ89: -0.2557971 | BR89: 1.184922 | BS89: -2.390057 | BT89: 11.0714 | BU89: -0.4105051 | BV89: 0.7350609 | BW89: 0.9809518 | BX89: -2.333171 | BY89: 1.512161 | BZ89: 0 | CA89: -3.553423 | CB89: 6.868091 | CC89: 9.028256 | CD89: -21.24881 | CE89: 14.14196 | CF89: 0 | CG89: amber | CI89: TRUE
A90: 89 | B90: all_mortality_adj | C90: 2011 | D90: Kernow | E90: 0.3856985892 | F90: 0.03492884099 | G90: 10.65671159 | H90: 8.409136276 | I90: 7.690298963 | J90: 7.593744133 | K90: 4.939622952 | L90: 8.227116002 | M90: 0.02008786663 | N90: 4.877190313 | O90: 6.798825238 | P90: 2.955555389 | Q90: FALSE | R90: 0.5928189553 | S90: 0.8263922906 | T90: 0.35924562 | U90: FALSE | V90: 542.094 | W90: 1321.947803 | X90: 1842.801184 | Y90: 801.0944215 | Z90: TRUE | AB90: =IF(OR(AND((L90-1.96*M90)<national_data!$H$16,(L90+1.96*M90)<national_data!$H$16),AND((L90-1.96*M90)>national_data!$H$16,(L90+1.96*M90)>national_data!$H$16)),"TRUE","FALSE") -> TRUE | AD90: no clear trend | AH90: -0.2577049969 | AI90: -0.3159378552 | AJ90: -0.1994721386 | AK90: TRUE | AY90: 77 | AZ90: 72 | BA90: 74.5 | BC90: 101 | BD90: 338 | BE90: 219.5 | BF90: 81 | BG90: 62 | BI90: 39.28951391 | BJ90: =IF(AND(L90<national_data!$H$16,AB90="TRUE"),"GREEN",IF(AND(L90>national_data!$H$16,AB90="TRUE"),"RED","AMBER")) -> GREEN | BK90: RED | BL90: GREEN | BO90: all_mortality_adj | BP90: Kernow | BQ90: 0.3592456 | BR90: 0.8263923 | BS90: 2.955555 | BT90: 6.798825 | BU90: -0.0835335 | BV90: 0.2383401 | BW90: 0.3346549 | BX90: -0.7394572 | BY90: 0.5723901 | BZ90: 0 | CA90: -0.8031296 | CB90: 1.960852 | CC90: 2.781649 | CD90: -6.255162 | CE90: 4.648902 | CF90: 0 | CG90: amber | CI90: TRUE
A91: 90 | B91: all_mortality_adj | C91: 2011 | D91: Kingston | E91: 4.71111691 | F91: 0.4266384634 | G91: 6.331293266 | H91: 11.06667453 | I91: 7.683592541 | J91: 7.540482111 | K91: 6.960511172 | L91: 7.6091696 | M91: 0.04621041195 | N91: 3.498113769 | O91: 7.423110043 | P91: -0.426882505 | Q91: FALSE | R91: 0.459723459 | S91: 0.9755479813 | T91: -0.05610106324 | U91: FALSE | V91: 171.428 | W91: 299.8373236 | X91: 636.2644542 | Y91: -36.58980703 | Z91: FALSE | AB91: =IF(OR(AND((L91-1.96*M91)<national_data!$H$16,(L91+1.96*M91)<national_data!$H$16),AND((L91-1.96*M91)>national_data!$H$16,(L91+1.96*M91)>national_data!$H$16)),"TRUE","FALSE") -> TRUE | AD91: no clear trend | AH91: -0.2973245913 | AI91: -0.4312237357 | AJ91: -0.1634254469 | AK91: TRUE | AY91: 33 | AZ91: 27 | BA91: 30 | BC91: 87.8 | BD91: 404 | BE91: 245.9 | BF91: 56 | BG91: 83 | BI91: 39.58255362 | BJ91: =IF(AND(L91<national_data!$H$16,AB91="TRUE"),"GREEN",IF(AND(L91>national_data!$H$16,AB91="TRUE"),"RED","AMBER")) -> GREEN | BK91: AMBER | BL91: GREEN | BO91: all_mortality_adj | BP91: Kingston | BQ91: -0.0561011 | BR91: 0.975548 | BS91: -0.4268825 | BT91: 7.42311 | BU91: -0.5159504 | BV91: 0.5263516 | BW91: 0.7249067 | BX91: -1.936768 | BY91: 0.9048666 | BZ91: 0 | CA91: -3.877748 | CB91: 4.005098 | CC91: 5.499033 | CD91: -14.65585 | CE91: 6.900357 | CF91: 0 | CG91: amber | CI91: TRUE
A92: 91 | B92: all_mortality_adj | C92: 2011 | D92: Knowsley | E92: 0.7589503755 | F92: 0.06873050026 | G92: 10.2834598 | H92: 8.934079205 | I92: 7.54144586 | J92: 4.905273091 | L92: 9.118561154 | M92: 0.0432149301 | N92: 6.751059689 | O92: 9.796406471 | P92: 3.705712907 | Q92: FALSE | R92: 0.7403645789 | S92: 1.074336872 | T92: 0.4063922854 | U92: FALSE | V92: 148.975 | W92: 502.8695586 | X92: 729.709827 | Y92: 276.0292902 | Z92: TRUE | AB92: =IF(OR(AND((L92-1.96*M92)<national_data!$H$16,(L92+1.96*M92)<national_data!$H$16),AND((L92-1.96*M92)>national_data!$H$16,(L92+1.96*M92)>national_data!$H$16)),"TRUE","FALSE") -> TRUE | AD92: no clear trend | AH92: -0.4137188918 | AI92: -0.5413956571 | AJ92: -0.2860421265 | AK92: TRUE | AY92: 135 | AZ92: 143 | BA92: 139 | BC92: 91.4 | BD92: 535 | BE92: 313.2 | BF92: 61 | BG92: 60 | BI92: 31.66425796 | BJ92: =IF(AND(L92<national_data!$H$16,AB92="TRUE"),"GREEN",IF(AND(L92>national_data!$H$16,AB92="TRUE"),"RED","AMBER")) -> RED | BK92: RED | BL92: GREEN | BO92: all_mortality_adj | BP92: Knowsley | BQ92: 0.4063923 | BR92: 1.074337 | BS92: 3.705713 | BT92: 9.796407 | BU92: -0.3027366 | BV92: 0.3407881 | BW92: 0.5499361 | BX92: -1.380611 | BY92: 0.7751382 | BZ92: 0 | CA92: -3.66816 | CB92: 3.107497 | CC92: 5.314487 | CD92: -14.08455 | CE92: 6.748233 | CF92: 0 | CG92: amber | CI92: TRUE
A93: 92 | B93: all_mortality_adj | C93: 2011 | D93: Lambeth | E93: 0.9717911286 | F93: 0.08800534603 | G93: 10.07061905 | H93: 7.503841944 | I93: 6.751045068 | J93: 7.004313131 | L93: 8.386910841 | M93: 0.03968959334 | N93: 11.53626587 | O93: 16.76139403 | P93: 6.311137702 | Q93: TRUE | R93: 1.375508347 | S93: 1.998518209 | T93: 0.752498485 | U93: TRUE | V93: 287.16 | W93: 1656.377053 | X93: 2406.600955 | Y93: 906.1531512 | Z93: TRUE | AB93: =IF(OR(AND((L93-1.96*M93)<national_data!$H$16,(L93+1.96*M93)<national_data!$H$16),AND((L93-1.96*M93)>national_data!$H$16,(L93+1.96*M93)>national_data!$H$16)),"TRUE","FALSE") -> TRUE | AD93: no clear trend | AH93: -0.3493336986 | AI93: -0.4551917877 | AJ93: -0.2434756095 | AK93: TRUE | AY93: 208 | AZ93: 208 | BA93: 208 | BC93: 115 | BD93: 618 | BE93: 366.5 | BF93: 132 | BG93: 53 | BI93: 31.32981919 | BJ93: =IF(AND(L93<national_data!$H$16,AB93="TRUE"),"GREEN",IF(AND(L93>national_data!$H$16,AB93="TRUE"),"RED","AMBER")) -> GREEN | BK93: RED | BL93: GREEN | BO93: all_mortality_adj | BP93: Lambeth | BQ93: 0.7524985 | BR93: 1.998518 | BS93: 6.311138 | BT93: 16.76139 | BU93: 0.8333877 | BV93: 0.6357244 | BW93: 0.8817094 | BX93: -0.8947627 | BY93: 2.561538 | BZ93: 0 | CA93: 6.604243 | CB93: 5.331764 | CC93: 7.702071 | CD93: -8.491816 | CE93: 21.7003 | CF93: 0 | CG93: amber | CI93: TRUE
A94: 93 | B94: all_mortality_adj | C94: 2011 | D94: Lancashire North | E94: -3.174986397 | F94: -0.2875265767 | G94: 14.21739657 | H94: 9.415012123 | I94: 9.734312741 | J94: 7.842919699 | K94: 8.505539 | L94: 9.685081789 | M94: 0.04429498461 | N94: 7.564272573 | O94: 10.39538054 | P94: 4.733164602 | Q94: FALSE | R94: 0.7810230969 | S94: 1.073339469 | T94: 0.488706725 | U94: FALSE | V94: 161.561 | W94: 611.0457206 | X94: 839.744038 | Y94: 382.3474031 | Z94: TRUE | AB94: =IF(OR(AND((L94-1.96*M94)<national_data!$H$16,(L94+1.96*M94)<national_data!$H$16),AND((L94-1.96*M94)>national_data!$H$16,(L94+1.96*M94)>national_data!$H$16)),"TRUE","FALSE") -> TRUE | AD94: no clear trend | AH94: 0.5518624185 | AI94: 0.4343007652 | AJ94: 0.6694240717 | AK94: TRUE | AY94: 156 | AZ94: 173 | BA94: 164.5 | BC94: 173.2 | BD94: 878 | BE94: 525.6 | BF94: 210 | BG94: 202 | BI94: 49.71518014 | BJ94: =IF(AND(L94<national_data!$H$16,AB94="TRUE"),"GREEN",IF(AND(L94>national_data!$H$16,AB94="TRUE"),"RED","AMBER")) -> RED | BK94: RED | BL94: RED | BO94: all_mortality_adj | BP94: Lancashire North | BQ94: 0.4887067 | BR94: 1.073339 | BS94: 4.733165 | BT94: 10.39538 | BU94: -0.016443 | BV94: 0.298282 | BW94: 0.4180749 | BX94: -0.8358697 | BY94: 0.8029838 | BZ94: 0 | CA94: 0.1359376 | CB94: 2.888886 | CC94: 3.973864 | CD94: -7.652835 | CE94: 7.92471 | CF94: 0 | CG94: amber | CI94: TRUE
A95: 94 | B95: all_mortality_adj | C95: 2011 | D95: Leeds North | E95: 0.6201883806 | F95: 0.05616422236 | G95: 10.4222218 | H95: 9.909998307 | I95: 7.943351909 | J95: 7.699085902 | K95: 5.33076376 | L95: 7.814318858 | M95: 0.04474446028 | N95: 5.809858966 | O95: 7.839184945 | P95: 3.780532986 | Q95: FALSE | R95: 0.7434888532 | S95: 1.003182118 | T95: 0.483795588 | U95: FALSE | V95: 209.747 | W95: 609.3002442 | X95: 822.1227623 | Y95: 396.4777262 | Z95: TRUE | AB95: =IF(OR(AND((L95-1.96*M95)<national_data!$H$16,(L95+1.96*M95)<national_data!$H$16),AND((L95-1.96*M95)>national_data!$H$16,(L95+1.96*M95)>national_data!$H$16)),"TRUE","FALSE") -> TRUE | AD95: no clear trend | AH95: -0.3997106924 | AI95: -0.5218890883 | AJ95: -0.2775322965 | AK95: TRUE | AY95: 138 | AZ95: 101 | BA95: 119.5 | BC95: 112.8 | BD95: 532 | BE95: 322.4 | BF95: 127 | BG95: 62 | BI95: 41.30542167 | BJ95: =IF(AND(L95<national_data!$H$16,AB95="TRUE"),"GREEN",IF(AND(L95>national_data!$H$16,AB95="TRUE"),"RED","AMBER")) -> GREEN | BK95: RED | BL95: GREEN | BO95: all_mortality_adj | BP95: Leeds North | BQ95: 0.4837956 | BR95: 1.003182 | BS95: 3.780533 | BT95: 7.839185 | BU95: -0.1110143 | BV95: 0.2649932 | BW95: 0.3466685 | BX95: -0.7904845 | BY95: 0.5684558 | BZ95: 0 | CA95: -1.705869 | CB95: 2.070741 | CC95: 2.855289 | CD95: -7.302235 | CE95: 3.890496 | CF95: 0 | CG95: amber | CI95: TRUE
A96: 95 | B96: all_mortality_adj | C96: 2011 | D96: Leeds South and East | E96: -0.7018516471 | F96: -0.06355964285 | G96: 11.74426182 | H96: 9.884172937 | I96: 9.408065706 | J96: 7.188955415 | K96: 6.430759634 | L96: 10.23283848 | M96: 0.03294962418 | N96: 6.686896021 | O96: 8.973520206 | P96: 4.400271835 | Q96: FALSE | R96: 0.6534742079 | S96: 0.8769336312 | T96: 0.4300147846 | U96: FALSE | V96: 249.75 | W96: 835.0261406 | X96: 1120.568336 | Y96: 549.4839453 | Z96: TRUE | AB96: =IF(OR(AND((L96-1.96*M96)<national_data!$H$16,(L96+1.96*M96)<national_data!$H$16),AND((L96-1.96*M96)>national_data!$H$16,(L96+1.96*M96)>national_data!$H$16)),"TRUE","FALSE") -> TRUE | AD96: no clear trend | AH96: 0.377335905 | AI96: 0.2825102601 | AJ96: 0.47216155 | AK96: TRUE | AY96: 101 | AZ96: 139 | BA96: 120 | BC96: 121 | BD96: 731 | BE96: 426 | BF96: 149 | BG96: 183 | BI96: 44.65621551 | BJ96: =IF(AND(L96<national_data!$H$16,AB96="TRUE"),"GREEN",IF(AND(L96>national_data!$H$16,AB96="TRUE"),"RED","AMBER")) -> RED | BK96: RED | BL96: RED | BO96: all_mortality_adj | BP96: Leeds South and East | BQ96: 0.4300148 | BR96: 0.8769336 | BS96: 4.400272 | BT96: 8.97352 | BU96: 0.0519017 | BV96: 0.2280198 | BW96: 0.3351856 | BX96: -0.6050619 | BY96: 0.7088655 | BZ96: 0 | CA96: 0.3503267 | CB96: 2.33329 | CC96: 3.484373 | CD96: -6.479044 | CE96: 7.179698 | CF96: 0 | CG96: amber | CI96: TRUE
A97: 96 | B97: all_mortality_adj | C97: 2011 | D97: Leeds West | E97: 0.02124434401 | F97: 0.001923886513 | G97: 11.02116583 | H97: 9.643940394 | I97: 9.606899727 | J97: 8.834638962 | K97: 6.051756716 | L97: 9.333713965 | M97: 0.0378111065 | N97: 4.88821966 | O97: 7.189400103 | P97: 2.587039217 | Q97: FALSE | R97: 0.5237164625 | S97: 0.7702614554 | T97: 0.2771714697 | U97: FALSE | V97: 344.349 | W97: 841.6267759 | X97: 1237.831368 | Y97: 445.4221837 | Z97: TRUE | AB97: =IF(OR(AND((L97-1.96*M97)<national_data!$H$16,(L97+1.96*M97)<national_data!$H$16),AND((L97-1.96*M97)>national_data!$H$16,(L97+1.96*M97)>national_data!$H$16)),"TRUE","FALSE") -> TRUE | AD97: no clear trend | AH97: 0.3449778593 | AI97: 0.2458713195 | AJ97: 0.4440843991 | AK97: TRUE | AY97: 55 | AZ97: 73 | BA97: 64 | BC97: 116.6 | BD97: 667 | BE97: 391.8 | BF97: 137 | BG97: 168 | BI97: 45.15840163 | BJ97: =IF(AND(L97<national_data!$H$16,AB97="TRUE"),"GREEN",IF(AND(L97>national_data!$H$16,AB97="TRUE"),"RED","AMBER")) -> RED | BK97: RED | BL97: RED | BO97: all_mortality_adj | BP97: Leeds West | BQ97: 0.2771715 | BR97: 0.7702615 | BS97: 2.587039 | BT97: 7.1894 | BU97: -0.0269071 | BV97: 0.2515765 | BW97: 0.3588932 | BX97: -0.7303379 | BY97: 0.6765236 | BZ97: 0 | CA97: -0.0798471 | CB97: 2.348143 | CC97: 3.293491 | CD97: -6.53509 | CE97: 6.375396 | CF97: 0 | CG97: amber | CI97: TRUE
A98: 97 | B98: all_mortality_adj | C98: 2011 | D98: Leicester City | E98: -0.6531167565 | F98: -0.0591462141 | G98: 11.69552693 | H98: 9.395349899 | I98: 9.036097883 | J98: 8.400572576 | K98: 8.630689276 | L98: 10.17860962 | M98: 0.03426486271 | N98: 6.303944636 | O98: 9.301283615 | P98: 3.306605657 | Q98: FALSE | R98: 0.6193325877 | S98: 0.9138068913 | T98: 0.3248582842 | U98: FALSE | V98: 308.458 | W98: 972.2510773 | X98: 1434.527671 | Y98: 509.9744838 | Z98: TRUE | AB98: =IF(OR(AND((L98-1.96*M98)<national_data!$H$16,(L98+1.96*M98)<national_data!$H$16),AND((L98-1.96*M98)>national_data!$H$16,(L98+1.96*M98)>national_data!$H$16)),"TRUE","FALSE") -> TRUE | AD98: no clear trend | AH98: -0.1972261856 | AI98: -0.2866289323 | AJ98: -0.1078234389 | AK98: TRUE | AY98: 88 | AZ98: 123 | BA98: 105.5 | BC98: 124.8 | BD98: 730 | BE98: 427.4 | BF98: 158 | BG98: 56 | BI98: 47.15823657 | BJ98: =IF(AND(L98<national_data!$H$16,AB98="TRUE"),"GREEN",IF(AND(L98>national_data!$H$16,AB98="TRUE"),"RED","AMBER")) -> RED | BK98: RED | BL98: GREEN | BO98: all_mortality_adj | BP98: Leicester City | BQ98: 0.3248583 | BR98: 0.9138069 | BS98: 3.306606 | BT98: 9.301284 | BU98: -0.0231825 | BV98: 0.300484 | BW98: 0.4235075 | BX98: -0.8532572 | BY98: 0.8068923 | BZ98: 0 | CA98: -0.7727935 | CB98: 3.058509 | CC98: 4.489921 | CD98: -9.573039 | CE98: 8.027452 | CF98: 0 | CG98: amber | CI98: TRUE
A99: 98 | B99: all_mortality_adj | C99: 2011 | D99: Lewisham | E99: 0.1811959437 | F99: 0.01640909374 | G99: 10.86121423 | H99: 8.981317938 | I99: 7.54424809 | J99: 4.254894048 | L99: 9.428266446 | M99: 0.03559957964 | N99: 11.5760427 | O99: 16.82405792 | P99: 6.328027484 | Q99: TRUE | R99: 1.22780182 | S99: 1.7844275 | T99: 0.6711761404 | U99: TRUE | V99: 269.229 | W99: 1558.303201 | X99: 2264.762145 | Y99: 851.8442557 | Z99: TRUE | AB99: =IF(OR(AND((L99-1.96*M99)<national_data!$H$16,(L99+1.96*M99)<national_data!$H$16),AND((L99-1.96*M99)>national_data!$H$16,(L99+1.96*M99)>national_data!$H$16)),"TRUE","FALSE") -> TRUE | AD99: no clear trend | AH99: -0.02804707662 | AI99: -0.1259858367 | AJ99: 0.0698916835 | AK99: FALSE | AY99: 207 | AZ99: 209 | BA99: 208 | BC99: 150.4 | BD99: 782 | BE99: 466.2 | BF99: 193 | BG99: 203 | BI99: 31.64167431 | BJ99: =IF(AND(L99<national_data!$H$16,AB99="TRUE"),"GREEN",IF(AND(L99>national_data!$H$16,AB99="TRUE"),"RED","AMBER")) -> RED | BK99: RED | BL99: AMBER | BO99: all_mortality_adj | BP99: Lewisham | BQ99: 0.6711761 | BR99: 1.784428 | BS99: 6.328027 | BT99: 16.82406 | BU99: 0.4030922 | BV99: 0.5679854 | BW99: 0.8613889 | BX99: -1.28523 | BY99: 2.091414 | BZ99: 0 | CA99: 3.571639 | CB99: 5.355118 | CC99: 8.257339 | CD99: -12.61274 | CE99: 19.75602 | CF99: 0 | CG99: amber | CI99: TRUE
A100: 99 | B100: all_mortality_adj | C100: 2011 | D100: Lincolnshire East | E100: 0.5924132773 | F100: 0.05364891068 | G100: 10.4499969 | H100: 9.239711605 | I100: 8.712306392 | J100: 7.227621296 | K100: 7.455146939 | L100: 8.975597256 | M100: 0.03047035395 | N100: 5.069820091 | O100: 7.57975381 | P100: 2.559886372 | Q100: FALSE | R100: 0.5648448729 | S100: 0.8444846169 | T100: 0.2852051289 | U100: FALSE | V100: 227.126 | W100: 575.743979 | X100: 860.7795819 | Y100: 290.7083761 | Z100: TRUE | AB100: =IF(OR(AND((L100-1.96*M100)<national_data!$H$16,(L100+1.96*M100)<national_data!$H$16),AND((L100-1.96*M100)>national_data!$H$16,(L100+1.96*M100)>national_data!$H$16)),"TRUE","FALSE") -> TRUE | AD100: no clear trend | AH100: -0.06505750894 | AI100: -0.1498471198 | AJ100: 0.01973210193 | AK100: FALSE | AY100: 72 | AZ100: 83 | BA100: 77.5 | BC100: 69.4 | BD100: 353 | BE100: 211.2 | BF100: 25 | BG100: 16 | BI100: 43.08478313 | BJ100: =IF(AND(L100<national_data!$H$16,AB100="TRUE"),"GREEN",IF(AND(L100>national_data!$H$16,AB100="TRUE"),"RED","AMBER")) -> RED | BK100: RED | BL100: AMBER | BO100: all_mortality_adj | BP100: Lincolnshire East | BQ100: 0.2852051 | BR100: 0.8444846 | BS100: 2.559886 | BT100: 7.579754 | BU100: 0.151636 | BV100: 0.2853467 | BW100: 0.407414 | BX100: -0.6468955 | BY100: 0.9501674 | BZ100: 0 | CA100: 1.277457 | CB100: 2.561157 | CC100: 3.69899 | CD100: -5.972562 | CE100: 8.527477 | CF100: 0 | CG100: amber | CI100: TRUE
A101: 100 | B101: all_mortality_adj | C101: 2011 | D101: Lincolnshire West | E101: -0.2981115413 | F101: -0.02699696321 | G101: 11.34052172 | H101: 11.02097375 | I101: 9.576652705 | J101: 8.007156184 | K101: 6.863065556 | L101: 9.071939712 | M101: 0.03414969306 | N101: 6.273841196 | O101: 8.064850283 | P101: 4.482832109 | Q101: FALSE | R101: 0.6915655742 | S101: 0.8889885227 | T101: 0.4941426257 | U101: FALSE | V101: 222.537 | W101: 698.0808991 | X101: 897.3637937 | Y101: 498.7980046 | Z101: TRUE | AB101: =IF(OR(AND((L101-1.96*M101)<national_data!$H$16,(L101+1.96*M101)<national_data!$H$16),AND((L101-1.96*M101)>national_data!$H$16,(L101+1.96*M101)>national_data!$H$16)),"TRUE","FALSE") -> TRUE | AD101: no clear trend | AH101: 0.1368205139 | AI101: 0.03842189981 | AJ101: 0.235219128 | AK101: TRUE | AY101: 113 | AZ101: 122 | BA101: 117.5 | BC101: 108.2 | BD101: 564 | BE101: 336.1 | BF101: 110 | BG101: 90 | BI101: 46.80836991 | BJ101: =IF(AND(L101<national_data!$H$16,AB101="TRUE"),"GREEN",IF(AND(L101>national_data!$H$16,AB101="TRUE"),"RED","AMBER")) -> RED | BK101: RED | BL101: RED | BO101: all_mortality_adj | BP101: Lincolnshire West | BQ101: 0.4941426 | BR101: 0.8889885 | BS101: 4.482832 | BT101: 8.06485 | BU101: 0.1703358 | BV101: 0.201452 | BW101: 0.2977114 | BX101: -0.4131784 | BY101: 0.7538502 | BZ101: 0 | CA101: 1.545856 | CB101: 1.82756 | CC101: 2.70064 | CD101: -3.747399 | CE101: 6.839111 | CF101: 0 | CG101: amber | CI101: TRUE
A102: 101 | B102: all_mortality_adj | C102: 2011 | D102: Liverpool | E102: -0.9468308987 | F102: -0.08574494912 | G102: 11.98924108 | H102: 9.840021067 | I102: 7.806774255 | J102: 7.35495414 | K102: 6.63695527 | L102: 10.79431953 | M102: 0.02622477399 | N102: 8.65260371 | O102: 10.8422791 | P102: 6.46292832 | Q102: TRUE | R102: 0.8015886214 | S102: 1.004443038 | T102: 0.5987342048 | U102: TRUE | V102: 443.515 | W102: 1918.779767 | X102: 2404.356708 | Y102: 1433.202827 | Z102: TRUE | AB102: =IF(OR(AND((L102-1.96*M102)<national_data!$H$16,(L102+1.96*M102)<national_data!$H$16),AND((L102-1.96*M102)>national_data!$H$16,(L102+1.96*M102)>national_data!$H$16)),"TRUE","FALSE") -> TRUE | AD102: no clear trend | AH102: -0.3616486202 | AI102: -0.4347520678 | AJ102: -0.2885451726 | AK102: TRUE | AY102: 165 | AZ102: 192 | BA102: 178.5 | BC102: 119.4 | BD102: 732 | BE102: 425.7 | BF102: 145 | BG102: 73 | BI102: 43.62794581 | BJ102: =IF(AND(L102<national_data!$H$16,AB102="TRUE"),"GREEN",IF(AND(L102>national_data!$H$16,AB102="TRUE"),"RED","AMBER")) -> RED | BK102: RED | BL102: GREEN | BO102: all_mortality_adj | BP102: Liverpool | BQ102: 0.5987342 | BR102: 1.004443 | BS102: 6.462928 | BT102: 10.84228 | BU102: -0.0791595 | BV102: 0.2069943 | BW102: 0.2920855 | BX102: -0.651647 | BY102: 0.493328 | BZ102: 0 | CA102: -1.133002 | CB102: 2.234363 | CC102: 3.199177 | CD102: -7.403389 | CE102: 5.137385 | CF102: 0 | CG102: amber | CI102: TRUE
A103: 102 | B103: all_mortality_adj | C103: 2011 | D103: Luton | E103: 0.1712653339 | F103: 0.01550977831 | G103: 10.87114484 | H103: 8.007029158 | I103: 8.30753174 | J103: 7.580271644 | K103: 5.53330862 | L103: 8.653993269 | M103: 0.04984748621 | N103: 5.76992018 | O103: 9.314949785 | P103: 2.224890575 | Q103: FALSE | R103: 0.6667349974 | S103: 1.076375899 | T103: 0.2570940959 | U103: FALSE | V103: 201.895 | W103: 582.4590174 | X103: 940.3208934 | Y103: 224.5971413 | Z103: TRUE | AB103: =IF(OR(AND((L103-1.96*M103)<national_data!$H$16,(L103+1.96*M103)<national_data!$H$16),AND((L103-1.96*M103)>national_data!$H$16,(L103+1.96*M103)>national_data!$H$16)),"TRUE","FALSE") -> FALSE | AD103: no clear trend | AH103: -1.088665201 | AI103: -1.220653219 | AJ103: -0.9566771833 | AK103: TRUE | AY103: 105 | AZ103: 100 | BA103: 102.5 | BC103: 79.2 | BD103: 489 | BE103: 284.1 | BF103: 42 | BG103: 145 | BI103: 40.299286 | BJ103: =IF(AND(L103<national_data!$H$16,AB103="TRUE"),"GREEN",IF(AND(L103>national_data!$H$16,AB103="TRUE"),"RED","AMBER")) -> AMBER | BK103: RED | BL103: GREEN | BO103: all_mortality_adj | BP103: Luton | BQ103: 0.2570941 | BR103: 1.076376 | BS103: 2.22489 | BT103: 9.31495 | BU103: 0.0383215 | BV103: 0.4180009 | BW103: 0.5718756 | BX103: -1.082555 | BY103: 1.159198 | BZ103: 0 | CA103: 0.3602874 | CB103: 3.617377 | CC103: 4.936881 | CD103: -9.315999 | CE103: 10.03657 | CF103: 0 | CG103: amber | CI103: TRUE
A104: 103 | B104: all_mortality_adj | C104: 2011 | D104: Mansfield & Ashfield | E104: -0.4135821982 | F104: -0.03745397894 | G104: 11.45599237 | H104: 10.2654851 | I104: 7.044023292 | J104: 6.186141286 | K104: 5.10423645 | L104: 9.264698176 | M104: 0.04272004704 | N104: 9.414869943 | O104: 12.3314114 | P104: 6.49832849 | Q104: TRUE | R104: 1.01620903 | S104: 1.331010591 | T104: 0.7014074681 | U104: TRUE | V104: 185.848 | W104: 874.8673746 | X104: 1145.884073 | Y104: 603.8506766 | Z104: TRUE | AB104: =IF(OR(AND((L104-1.96*M104)<national_data!$H$16,(L104+1.96*M104)<national_data!$H$16),AND((L104-1.96*M104)>national_data!$H$16,(L104+1.96*M104)>national_data!$H$16)),"TRUE","FALSE") -> TRUE | AD104: no clear trend | AH104: -0.632978066 | AI104: -0.7516433755 | AJ104: -0.5143127565 | AK104: TRUE | AY104: 197 | AZ104: 200 | BA104: 198.5 | BC104: 108.8 | BD104: 577 | BE104: 342.9 | BF104: 112 | BG104: 177 | BI104: 40.05587851 | BJ104: =IF(AND(L104<national_data!$H$16,AB104="TRUE"),"GREEN",IF(AND(L104>national_data!$H$16,AB104="TRUE"),"RED","AMBER")) -> RED | BK104: RED | BL104: GREEN | BO104: all_mortality_adj | BP104: Mansfield & Ashfield | BQ104: 0.7014075 | BR104: 1.331011 | BS104: 6.498329 | BT104: 12.33141 | BU104: 0.1883665 | BV104: 0.3212261 | BW104: 0.445298 | BX104: -0.6844177 | BY104: 1.061151 | BZ104: 0 | CA104: 1.120931 | CB104: 2.976063 | CC104: 4.289877 | CD104: -7.287228 | CE104: 9.52909 | CF104: 0 | CG104: amber | CI104: TRUE
A105: 104 | B105: all_mortality_adj | C105: 2011 | D105: Medway | E105: -0.8006839984 | F105: -0.07250989463 | G105: 11.84309418 | H105: 10.10112141 | I105: 10.95758655 | J105: 7.373096281 | K105: 7.362079826 | L105: 9.490178243 | M105: 0.03814454796 | N105: 5.8098617 | O105: 8.399813277 | P105: 3.219910122 | Q105: FALSE | R105: 0.6121973214 | S105: 0.8851059551 | T105: 0.3392886877 | U105: FALSE | V105: 258.902 | W105: 752.0924069 | X105: 1087.364229 | Y105: 416.8205852 | Z105: TRUE | AB105: =IF(OR(AND((L105-1.96*M105)<national_data!$H$16,(L105+1.96*M105)<national_data!$H$16),AND((L105-1.96*M105)>national_data!$H$16,(L105+1.96*M105)>national_data!$H$16)),"TRUE","FALSE") -> TRUE | AD105: no clear trend | AH105: 0.2813591409 | AI105: 0.1830965061 | AJ105: 0.3796217756 | AK105: TRUE | AY105: 84 | AZ105: 102 | BA105: 93 | BC105: 121.8 | BD105: 649 | BE105: 385.4 | BF105: 154 | BG105: 118 | BI105: 47.63697824 | BJ105: =IF(AND(L105<national_data!$H$16,AB105="TRUE"),"GREEN",IF(AND(L105>national_data!$H$16,AB105="TRUE"),"RED","AMBER")) -> RED | BK105: RED | BL105: RED | BO105: all_mortality_adj | BP105: Medway | BQ105: 0.3392887 | BR105: 0.885106 | BS105: 3.21991 | BT105: 8.399814 | BU105: 0.034283 | BV105: 0.2784782 | BW105: 0.3656166 | BX105: -0.6823255 | BY105: 0.7508915 | BZ105: 0 | CA105: 0.293272 | CB105: 2.642808 | CC105: 3.478302 | CD105: -6.5242 | CE105: 7.110744 | CF105: 0 | CG105: amber | CI105: TRUE
A106: 105 | B106: all_mortality_adj | C106: 2011 | D106: Merton | E106: 3.903047191 | F106: 0.3534597184 | G106: 7.139362985 | H106: 8.810818965 | I106: 7.585474016 | J106: 6.703542869 | K106: 6.462387083 | L106: 7.340002977 | M106: 0.04511652935 | N106: 3.856988376 | O106: 6.453402212 | P106: 1.260574541 | Q106: FALSE | R106: 0.5254750425 | S106: 0.8792097541 | T106: 0.171740331 | U106: FALSE | V106: 212.15 | W106: 409.130042 | X106: 684.5446396 | Y106: 133.7154444 | Z106: TRUE | AB106: =IF(OR(AND((L106-1.96*M106)<national_data!$H$16,(L106+1.96*M106)<national_data!$H$16),AND((L106-1.96*M106)>national_data!$H$16,(L106+1.96*M106)>national_data!$H$16)),"TRUE","FALSE") -> TRUE | AD106: no clear trend | AH106: -0.0532108938 | AI106: -0.171280068 | AJ106: 0.06485828037 | AK106: FALSE | AY106: 56 | AZ106: 35 | BA106: 45.5 | BC106: 105.6 | BD106: 457 | BE106: 281.3 | BF106: 102 | BG106: 39 | BI106: 36.70158592 | BJ106: =IF(AND(L106<national_data!$H$16,AB106="TRUE"),"GREEN",IF(AND(L106>national_data!$H$16,AB106="TRUE"),"RED","AMBER")) -> GREEN | BK106: RED | BL106: AMBER | BO106: all_mortality_adj | BP106: Merton | BQ106: 0.1717403 | BR106: 0.8792098 | BS106: 1.260575 | BT106: 6.453402 | BU106: 0.0184013 | BV106: 0.3609538 | BW106: 0.5069575 | BX106: -0.9752353 | BY106: 1.012038 | BZ106: 0 | CA106: 0.1928086 | CB106: 2.649402 | CC106: 3.692718 | CD106: -7.044919 | CE106: 7.430536 | CF106: 0 | CG106: amber | CI106: TRUE
A107: 106 | B107: all_mortality_adj | C107: 2011 | D107: Mid Essex | E107: -0.2860927866 | F107: -0.02590854551 | G107: 11.32850296 | H107: 8.565783693 | I107: 10.33520766 | J107: 7.992827086 | K107: 6.680561611 | L107: 8.097561075 | M107: 0.03245264105 | N107: 6.017192919 | O107: 8.359403472 | P107: 3.674982367 | Q107: FALSE | R107: 0.7430870683 | S107: 1.032335958 | T107: 0.4538381783 | U107: FALSE | V107: 379.013 | W107: 1140.29717 | X107: 1584.161294 | Y107: 696.4330459 | Z107: TRUE | AB107: =IF(OR(AND((L107-1.96*M107)<national_data!$H$16,(L107+1.96*M107)<national_data!$H$16),AND((L107-1.96*M107)>national_data!$H$16,(L107+1.96*M107)>national_data!$H$16)),"TRUE","FALSE") -> TRUE | AD107: no clear trend | AH107: 0.1038079839 | AI107: 0.01719958899 | AJ107: 0.1904163787 | AK107: TRUE | AY107: 137 | AZ107: 110 | BA107: 123.5 | BC107: 119.2 | BD107: 506 | BE107: 312.6 | BF107: 144 | BG107: 183 | BI107: 44.90288302 | BJ107: =IF(AND(L107<national_data!$H$16,AB107="TRUE"),"GREEN",IF(AND(L107>national_data!$H$16,AB107="TRUE"),"RED","AMBER")) -> GREEN | BK107: RED | BL107: RED | BO107: all_mortality_adj | BP107: Mid Essex | BQ107: 0.4538382 | BR107: 1.032336 | BS107: 3.674982 | BT107: 8.359404 | BU107: -0.0112402 | BV107: 0.2951519 | BW107: 0.4206743 | BX107: -0.8357618 | BY107: 0.8132814 | BZ107: 0 | CA107: -0.072493 | CB107: 2.390011 | CC107: 3.401194 | CD107: -6.738833 | CE107: 6.593847 | CF107: 0 | CG107: amber | CI107: TRUE
A108: 107 | B108: all_mortality_adj | C108: 2011 | D108: Milton Keynes | E108: -0.6296088836 | F108: -0.05701734255 | G108: 11.67201906 | H108: 9.603945195 | I108: 11.15664854 | J108: 6.34637502 | K108: 7.325529872 | L108: 8.379692639 | M108: 0.04001705575 | N108: 6.110899843 | O108: 8.35350091 | P108: 3.868298776 | Q108: FALSE | R108: 0.7292510723 | S108: 0.9968743807 | T108: 0.461627764 | U108: FALSE | V108: 250.325 | W108: 764.8555016 | X108: 1045.545058 | Y108: 484.1659456 | Z108: TRUE | AB108: =IF(OR(AND((L108-1.96*M108)<national_data!$H$16,(L108+1.96*M108)<national_data!$H$16),AND((L108-1.96*M108)>national_data!$H$16,(L108+1.96*M108)>national_data!$H$16)),"TRUE","FALSE") -> TRUE | AD108: no clear trend | AH108: -0.1896803029 | AI108: -0.2984205736 | AJ108: -0.08094003211 | AK108: TRUE | AY108: 129 | AZ108: 114 | BA108: 121.5 | BC108: 74.2 | BD108: 402 | BE108: 238.1 | BF108: 34 | BG108: 12 | BI108: 46.10451769 | BJ108: =IF(AND(L108<national_data!$H$16,AB108="TRUE"),"GREEN",IF(AND(L108>national_data!$H$16,AB108="TRUE"),"RED","AMBER")) -> GREEN | BK108: RED | BL108: GREEN | BO108: all_mortality_adj | BP108: Milton Keynes | BQ108: 0.4616278 | BR108: 0.9968744 | BS108: 3.868299 | BT108: 8.353501 | BU108: 0.1147018 | BV108: 0.273085 | BW108: 0.3906993 | BX108: -0.6510688 | BY108: 0.8804724 | BZ108: 0 | CA108: 0.8631789 | CB108: 2.288369 | CC108: 3.305948 | CD108: -5.616478 | CE108: 7.342836 | CF108: 0 | CG108: amber | CI108: TRUE
A109: 108 | B109: all_mortality_adj | C109: 2011 | D109: Nene | E109: -0.5854404544 | F109: -0.05301745226 | G109: 11.62785063 | H109: 10.30383195 | I109: 10.20912752 | J109: 7.810011033 | K109: 6.602506168 | L109: 8.648671241 | M109: 0.02447901127 | N109: 6.315110168 | O109: 7.640127371 | P109: 4.990092965 | Q109: FALSE | R109: 0.7301827058 | S109: 0.8833874196 | T109: 0.5769779919 | U109: FALSE | V109: 619.863 | W109: 1957.251567 | X109: 2367.916136 | Y109: 1546.586998 | Z109: TRUE | AB109: =IF(OR(AND((L109-1.96*M109)<national_data!$H$16,(L109+1.96*M109)<national_data!$H$16),AND((L109-1.96*M109)>national_data!$H$16,(L109+1.96*M109)>national_data!$H$16)),"TRUE","FALSE") -> FALSE | AD109: no clear trend | AH109: 0.01703902436 | AI109: -0.04869416507 | AJ109: 0.0827722138 | AK109: FALSE | AY109: 130 | AZ109: 125 | BA109: 127.5 | BC109: 121.4 | BD109: 570 | BE109: 345.7 | BF109: 153 | BG109: 115 | BI109: 46.5533273 | BJ109: =IF(AND(L109<national_data!$H$16,AB109="TRUE"),"GREEN",IF(AND(L109>national_data!$H$16,AB109="TRUE"),"RED","AMBER")) -> AMBER | BK109: RED | BL109: AMBER | BO109: all_mortality_adj | BP109: Nene | BQ109: 0.576978 | BR109: 0.8833874 | BS109: 4.990093 | BT109: 7.640127 | BU109: 0.0053115 | BV109: 0.1563314 | BW109: 0.2198427 | BX109: -0.4255803 | BY109: 0.4362033 | BZ109: 0 | CA109: -0.0892965 | CB109: 1.352058 | CC109: 1.921732 | CD109: -3.855891 | CE109: 3.677297 | CF109: 0 | CG109: amber | CI109: TRUE
A110: 109 | B110: all_mortality_adj | C110: 2011 | D110: Newark & Sherwood | E110: 1.102113277 | F110: 0.0998073119 | G110: 9.9402969 | H110: 9.44018419 | I110: 8.543674233 | J110: 8.494982625 | K110: 7.129485345 | L110: 8.663824132 | M110: 0.03987283768 | N110: 3.348552464 | O110: 5.970323936 | P110: 0.7267809919 | Q110: FALSE | R110: 0.3864982037 | S110: 0.6891095485 | T110: 0.08388685883 | U110: FALSE | V110: 114.187 | W110: 191.1805801 | X110: 340.8666897 | Y110: 41.49447056 | Z110: TRUE | AB110: =IF(OR(AND((L110-1.96*M110)<national_data!$H$16,(L110+1.96*M110)<national_data!$H$16),AND((L110-1.96*M110)>national_data!$H$16,(L110+1.96*M110)>national_data!$H$16)),"TRUE","FALSE") -> FALSE | AD110: no clear trend | AH110: 0.1179657044 | AI110: 0.0003371302529 | AJ110: 0.2355942785 | AK110: TRUE | AY110: 16 | AZ110: 22 | BA110: 19 | BC110: 128.4 | BD110: 563 | BE110: 345.7 | BF110: 162 | BG110: 130 | BI110: 43.54862329 | BJ110: =IF(AND(L110<national_data!$H$16,AB110="TRUE"),"GREEN",IF(AND(L110>national_data!$H$16,AB110="TRUE"),"RED","AMBER")) -> AMBER | BK110: RED | BL110: RED | BO110: all_mortality_adj | BP110: Newark & Sherwood | BQ110: 0.0838869 | BR110: 0.6891096 | BS110: 0.726781 | BT110: 5.970324 | BU110: -0.3246106 | BV110: 0.3087871 | BW110: 0.4865741 | BX110: -1.278296 | BY110: 0.6290747 | BZ110: 0 | CA110: -3.274805 | CB110: 2.675277 | CC110: 4.407312 | CD110: -11.91314 | CE110: 5.363526 | CF110: 0 | CG110: amber | CI110: TRUE
A111: 110 | B111: all_mortality_adj | C111: 2011 | D111: Newbury and District | E111: 1.929958317 | F111: 0.1747769089 | G111: 9.11245186 | H111: 12.46133056 | I111: 9.043724893 | J111: 8.1609554 | K111: 6.319111584 | L111: 7.780083946 | M111: 0.05221760362 | N111: 7.143553559 | O111: 10.9940473 | P111: 3.293059817 | Q111: FALSE | R111: 0.9181846376 | S111: 1.413101372 | T111: 0.423267903 | U111: FALSE | V111: 104.587 | W111: 373.561418 | X111: 574.9172125 | Y111: 172.2056235 | Z111: TRUE | AB111: =IF(OR(AND((L111-1.96*M111)<national_data!$H$16,(L111+1.96*M111)<national_data!$H$16),AND((L111-1.96*M111)>national_data!$H$16,(L111+1.96*M111)>national_data!$H$16)),"TRUE","FALSE") -> TRUE | AD111: no clear trend | AH111: -0.3946764413 | AI111: -0.5509510461 | AJ111: -0.2384018364 | AK111: TRUE | AY111: 188 | AZ111: 161 | BA111: 174.5 | BC111: 133.6 | BD111: 470 | BE111: 301.8 | BF111: 174 | BG111: 209 | BI111: 45.09757429 | BJ111: =IF(AND(L111<national_data!$H$16,AB111="TRUE"),"GREEN",IF(AND(L111>national_data!$H$16,AB111="TRUE"),"RED","AMBER")) -> GREEN | BK111: RED | BL111: GREEN | BO111: all_mortality_adj | BP111: Newbury and District | BQ111: 0.4232679 | BR111: 1.413101 | BS111: 3.29306 | BT111: 10.99405 | BU111: -0.1280304 | BV111: 0.505017 | BW111: 0.7982136 | BX111: -1.692529 | BY111: 1.436468 | BZ111: 0 | CA111: -1.29389 | CB111: 3.929075 | CC111: 6.347405 | CD111: -13.7348 | CE111: 11.14702 | CF111: 0 | CG111: amber | CI111: TRUE
A112: 111 | B112: all_mortality_adj | C112: 2011 | D112: Newcastle North and East | E112: -0.9293715143 | F112: -0.08416382831 | G112: 11.97178169 | H112: 8.996327301 | I112: 9.787486293 | J112: 7.600981358 | K112: 6.898486115 | L112: 9.150854636 | M112: 0.05233165099 | N112: 6.110442548 | O112: 8.715587017 | P112: 3.50529808 | Q112: FALSE | R112: 0.6677455595 | S112: 0.9524342112 | T112: 0.3830569077 | U112: FALSE | V112: 147.633 | W112: 451.0514824 | X112: 643.354129 | Y112: 258.7488357 | Z112: TRUE | AB112: =IF(OR(AND((L112-1.96*M112)<national_data!$H$16,(L112+1.96*M112)<national_data!$H$16),AND((L112-1.96*M112)>national_data!$H$16,(L112+1.96*M112)>national_data!$H$16)),"TRUE","FALSE") -> TRUE | AD112: no clear trend | AH112: -0.3531700824 | AI112: -0.5042825707 | AJ112: -0.2020575942 | AK112: TRUE | AY112: 106 | AZ112: 113 | BA112: 109.5 | BC112: 71.8 | BD112: 322 | BE112: 196.9 | BF112: 28 | BG112: 45 | BI112: 45.25506276 | BJ112: =IF(AND(L112<national_data!$H$16,AB112="TRUE"),"GREEN",IF(AND(L112>national_data!$H$16,AB112="TRUE"),"RED","AMBER")) -> RED | BK112: RED | BL112: GREEN | BO112: all_mortality_adj | BP112: Newcastle North and East | BQ112: 0.3830569 | BR112: 0.9524342 | BS112: 3.505298 | BT112: 8.715587 | BU112: 0.0125122 | BV112: 0.2904986 | BW112: 0.4042107 | BX112: -0.7797408 | BY112: 0.8047652 | BZ112: 0 | CA112: -0.1260338 | CB112: 2.65831 | CC112: 3.771345 | CD112: -7.51787 | CE112: 7.265802 | CF112: 0 | CG112: amber | CI112: TRUE
A113: 112 | B113: all_mortality_adj | C113: 2011 | D113: Newcastle West | E113: 0.7371927016 | F113: 0.06676012662 | G113: 10.30521748 | H113: 7.462052388 | I113: 8.218844395 | J113: 7.448984801 | K113: 6.397170531 | L113: 8.847734869 | M113: 0.05841735586 | N113: 5.227421011 | O113: 8.384044785 | P113: 2.070797237 | Q113: FALSE | R113: 0.5908202595 | S113: 0.9475922266 | T113: 0.2340482923 | U113: FALSE | V113: 152.993 | W113: 399.8794114 | X113: 641.3500819 | Y113: 158.4087409 | Z113: TRUE | AB113: =IF(OR(AND((L113-1.96*M113)<national_data!$H$16,(L113+1.96*M113)<national_data!$H$16),AND((L113-1.96*M113)>national_data!$H$16,(L113+1.96*M113)>national_data!$H$16)),"TRUE","FALSE") -> TRUE | AD113: no clear trend | AH113: -0.5502437316 | AI113: -0.7012669044 | AJ113: -0.3992205589 | AK113: TRUE | AY113: 76 | AZ113: 87 | BA113: 81.5 | BC113: 77.2 | BD113: 417 | BE113: 247.1 | BF113: 40 | BG113: 30 | BI113: 39.83226959 | BJ113: =IF(AND(L113<national_data!$H$16,AB113="TRUE"),"GREEN",IF(AND(L113>national_data!$H$16,AB113="TRUE"),"RED","AMBER")) -> RED | BK113: RED | BL113: GREEN | BO113: all_mortality_adj | BP113: Newcastle West | BQ113: 0.2340483 | BR113: 0.9475922 | BS113: 2.070797 | BT113: 8.384045 | BU113: -0.0417882 | BV113: 0.364053 | BW113: 0.5085257 | BX113: -1.038499 | BY113: 0.9549222 | BZ113: 0 | CA113: -1.065969 | CB113: 3.221045 | CC113: 4.780328 | CD113: -10.43541 | CE113: 8.303474 | CF113: 0 | CG113: amber | CI113: TRUE
A114: 113 | B114: all_mortality_adj | C114: 2011 | D114: Newham | E114: 1.160184967 | F114: 0.1050662806 | G114: 9.88222521 | H114: 7.503335341 | L114: 9.4785689 | M114: 0.03539090078 | N114: 26.89507949 | O114: 36.45532082 | P114: 17.33483816 | Q114: TRUE | R114: 2.837462044 | S114: 3.84607858 | T114: 1.828845508 | U114: TRUE | V114: 241.05 | W114: 3241.529455 | X114: 4393.777541 | Y114: 2089.281369 | Z114: TRUE | AB114: =IF(OR(AND((L114-1.96*M114)<national_data!$H$16,(L114+1.96*M114)<national_data!$H$16),AND((L114-1.96*M114)>national_data!$H$16,(L114+1.96*M114)>national_data!$H$16)),"TRUE","FALSE") -> TRUE | AD114: no clear trend | AH114: -0.4765233769 | AI114: -0.5706088426 | AJ114: -0.3824379112 | AK114: TRUE | AY114: 211 | AZ114: 211 | BA114: 211 | BC114: 110.2 | BD114: 582 | BE114: 346.1 | BF114: 120 | BG114: 119 | BI114: 17.38556055 | BJ114: =IF(AND(L114<national_data!$H$16,AB114="TRUE"),"GREEN",IF(AND(L114>national_data!$H$16,AB114="TRUE"),"RED","AMBER")) -> RED | BK114: RED | BL114: GREEN | BO114: all_mortality_adj | BP114: Newham | BQ114: 1.828846 | BR114: 3.846079 | BS114: 17.33484 | BT114: 36.45532 | BU114: 1.338463 | BV114: 1.029201 | BW114: 1.476884 | BX114: -1.55623 | BY114: 4.233156 | BZ114: 0 | CA114: 12.51752 | CB114: 9.755348 | CC114: 14.08474 | CD114: -15.08858 | CE114: 40.12361 | CF114: 0 | CG114: amber | CI114: TRUE
A115: 114 | B115: all_mortality_adj | C115: 2011 | D115: North & West Reading | E115: 4.120818211 | F115: 0.3731810488 | G115: 6.921591966 | H115: 6.915645877 | I115: 10.98586295 | J115: 6.559892139 | K115: 6.49465428 | L115: 7.199191748 | M115: 0.0762704595 | N115: 2.911796295 | O115: 7.244949698 | P115: -1.421357107 | Q115: FALSE | R115: 0.4044615558 | S115: 1.006355984 | T115: -0.1974328726 | U115: FALSE | V115: 99.789 | W115: 145.2826203 | X115: 361.4831427 | Y115: -70.91790219 | Z115: FALSE | AB115: =IF(OR(AND((L115-1.96*M115)<national_data!$H$16,(L115+1.96*M115)<national_data!$H$16),AND((L115-1.96*M115)>national_data!$H$16,(L115+1.96*M115)>national_data!$H$16)),"TRUE","FALSE") -> TRUE | AD115: no clear trend | AH115: 0.5322354152 | AI115: 0.341704551 | AJ115: 0.7227662793 | AK115: TRUE | AY115: 19 | AZ115: 13 | BA115: 16 | BC115: 68.6 | BD115: 268 | BE115: 168.3 | BF115: 23 | BG115: 54 | BI115: 37.87764721 | BJ115: =IF(AND(L115<national_data!$H$16,AB115="TRUE"),"GREEN",IF(AND(L115>national_data!$H$16,AB115="TRUE"),"RED","AMBER")) -> GREEN | BK115: AMBER | BL115: RED | BO115: all_mortality_adj | BP115: North & West Reading | BQ115: -0.1974329 | BR115: 1.006356 | BS115: -1.421357 | BT115: 7.24495 | BU115: -0.2068182 | BV115: 0.614178 | BW115: 0.8118334 | BX115: -1.798012 | BY115: 1.384375 | BZ115: 0 | CA115: -1.806664 | CB115: 4.421585 | CC115: 6.028626 | CD115: -13.62277 | CE115: 10.00944 | CF115: 0 | CG115: amber | CI115: TRUE
A116: 115 | B116: all_mortality_adj | C116: 2011 | D116: North Derbyshire | E116: -0.8215201097 | F116: -0.07439681162 | G116: 11.86393029 | H116: 10.16404237 | I116: 9.973495918 | J116: 8.185296327 | K116: 6.642674536 | L116: 9.036520598 | M116: 0.02967037556 | N116: 6.386242088 | O116: 8.283345728 | P116: 4.489138448 | Q116: FALSE | R116: 0.706714716 | S116: 0.9166521161 | T116: 0.4967773159 | U116: FALSE | V116: 270.06 | W116: 862.3342691 | X116: 1118.500174 | Y116: 606.1683646 | Z116: TRUE | AB116: =IF(OR(AND((L116-1.96*M116)<national_data!$H$16,(L116+1.96*M116)<national_data!$H$16),AND((L116-1.96*M116)>national_data!$H$16,(L116+1.96*M116)>national_data!$H$16)),"TRUE","FALSE") -> TRUE | AD116: no clear trend | AH116: 0.3685104756 | AI116: 0.2852064894 | AJ116: 0.4518144618 | AK116: TRUE | AY116: 117 | AZ116: 127 | BA116: 122 | BC116: 162.6 | BD116: 815 | BE116: 488.8 | BF116: 209 | BG116: 196 | BI116: 46.82943944 | BJ116: =IF(AND(L116<national_data!$H$16,AB116="TRUE"),"GREEN",IF(AND(L116>national_data!$H$16,AB116="TRUE"),"RED","AMBER")) -> RED | BK116: RED | BL116: RED | BO116: all_mortality_adj | BP116: North Derbyshire | BQ116: 0.4967773 | BR116: 0.9166521 | BS116: 4.489139 | BT116: 8.283346 | BU116: -0.0509176 | BV116: 0.2142219 | BW116: 0.3134798 | BX116: -0.6653379 | BY116: 0.5635028 | BZ116: 0 | CA116: -0.1688779 | CB116: 1.93582 | CC116: 2.76919 | CD116: -5.596489 | CE116: 5.258734 | CF116: 0 | CG116: amber | CI116: TRUE
A117: 116 | B117: all_mortality_adj | C117: 2011 | D117: North Durham | E117: -0.4119216001 | F117: -0.03730359528 | G117: 11.45433178 | H117: 10.43177844 | I117: 9.158592345 | J117: 8.355300977 | K117: 8.207996289 | L117: 9.557094231 | M117: 0.03276852204 | N117: 4.784053562 | O117: 6.87804419 | P117: 2.690062935 | Q117: FALSE | R117: 0.5005761633 | S117: 0.7196794364 | T117: 0.2814728901 | U117: FALSE | V117: 242.973 | W117: 581.1979231 | X117: 835.5895154 | Y117: 326.8063307 | Z117: TRUE | AB117: =IF(OR(AND((L117-1.96*M117)<national_data!$H$16,(L117+1.96*M117)<national_data!$H$16),AND((L117-1.96*M117)>national_data!$H$16,(L117+1.96*M117)>national_data!$H$16)),"TRUE","FALSE") -> TRUE | AD117: no clear trend | AH117: 0.4450883056 | AI117: 0.3514177391 | AJ117: 0.5387588722 | AK117: TRUE | AY117: 48 | AZ117: 66 | BA117: 57 | BC117: 71.8 | BD117: 454 | BE117: 262.9 | BF117: 28 | BG117: 20 | BI117: 47.60799983 | BJ117: =IF(AND(L117<national_data!$H$16,AB117="TRUE"),"GREEN",IF(AND(L117>national_data!$H$16,AB117="TRUE"),"RED","AMBER")) -> RED | BK117: RED | BL117: RED | BO117: all_mortality_adj | BP117: North Durham | BQ117: 0.2814729 | BR117: 0.7196794 | BS117: 2.690063 | BT117: 6.878044 | BU117: 0.0397459 | BV117: 0.2235748 | BW117: 0.3211433 | BX117: -0.589695 | BY117: 0.6691868 | BZ117: 0 | CA117: 0.5989738 | CB117: 2.136725 | CC117: 2.99148 | CD117: -5.264328 | CE117: 6.462276 | CF117: 0 | CG117: amber | CI117: TRUE
A118: 117 | B118: all_mortality_adj | C118: 2011 | D118: North East Essex | E118: 1.296214976 | F118: 0.1173851501 | G118: 9.746195201 | H118: 9.510722915 | I118: 8.248005688 | J118: 7.823542218 | K118: 7.146213308 | L118: 8.421819996 | M118: 0.02704980574 | N118: 3.87507528 | O118: 5.567085961 | P118: 2.183064599 | Q118: FALSE | R118: 0.460123261 | S118: 0.6610312217 | T118: 0.2592153002 | U118: FALSE | V118: 331.416 | W118: 642.1309745 | X118: 922.5106805 | Y118: 361.7512685 | Z118: TRUE | AB118: =IF(OR(AND((L118-1.96*M118)<national_data!$H$16,(L118+1.96*M118)<national_data!$H$16),AND((L118-1.96*M118)>national_data!$H$16,(L118+1.96*M118)>national_data!$H$16)),"TRUE","FALSE") -> TRUE | AD118: no clear trend | AH118: -0.01145221152 | AI118: -0.08957362726 | AJ118: 0.06666920422 | AK118: FALSE | AY118: 34 | AZ118: 36 | BA118: 35 | BC118: 86.2 | BD118: 447 | BE118: 266.6 | BF118: 53 | BG118: 52 | BI118: 42.47467933 | BJ118: =IF(AND(L118<national_data!$H$16,AB118="TRUE"),"GREEN",IF(AND(L118>national_data!$H$16,AB118="TRUE"),"RED","AMBER")) -> GREEN | BK118: RED | BL118: AMBER | BO118: all_mortality_adj | BP118: North East Essex | BQ118: 0.2592153 | BR118: 0.6610312 | BS118: 2.183065 | BT118: 5.567086 | BU118: -0.3161211 | BV118: 0.2050081 | BW118: 0.2975393 | BX118: -0.8992981 | BY118: 0.267056 | BZ118: 0 | CA118: -2.541195 | CB118: 1.726541 | CC118: 2.481544 | CD118: -7.405022 | CE118: 2.322632 | CF118: 0 | CG118: amber | CI118: TRUE
A119: 118 | B119: all_mortality_adj | C119: 2011 | D119: North East Hampshire and Farnham | E119: 2.600059612 | F119: 0.2354612417 | G119: 8.442350565 | H119: 9.108960565 | I119: 7.883452297 | J119: 8.549965304 | K119: 6.347899664 | L119: 7.15834905 | M119: 0.04719559164 | N119: 4.050006417 | O119: 7.150491704 | P119: 0.9495211293 | Q119: FALSE | R119: 0.5657738102 | S119: 0.9989023522 | T119: 0.1326452682 | U119: FALSE | V119: 203.925 | W119: 412.9487793 | X119: 729.0820104 | Y119: 96.81554814 | Z119: TRUE | AB119: =IF(OR(AND((L119-1.96*M119)<national_data!$H$16,(L119+1.96*M119)<national_data!$H$16),AND((L119-1.96*M119)>national_data!$H$16,(L119+1.96*M119)>national_data!$H$16)),"TRUE","FALSE") -> TRUE | AD119: no clear trend | AH119: -0.06720414124 | AI119: -0.1860807612 | AJ119: 0.05167247868 | AK119: FALSE | AY119: 73 | AZ119: 42 | BA119: 57.5 | BC119: 92.2 | BD119: 398 | BE119: 245.1 | BF119: 62 | BG119: 48 | BI119: 40.33262839 | BJ119: =IF(AND(L119<national_data!$H$16,AB119="TRUE"),"GREEN",IF(AND(L119>national_data!$H$16,AB119="TRUE"),"RED","AMBER")) -> GREEN | BK119: RED | BL119: AMBER | BO119: all_mortality_adj | BP119: North East Hampshire and Farnham | BQ119: 0.1326453 | BR119: 0.9989024 | BS119: 0.9495211 | BT119: 7.150492 | BU119: -0.3453349 | BV119: 0.4419679 | BW119: 0.5496322 | BX119: -1.422614 | BY119: 0.7319442 | BZ119: 0 | CA119: -2.762046 | CB119: 3.16376 | CC119: 3.997163 | CD119: -10.59649 | CE119: 5.072393 | CF119: 0 | CG119: amber | CI119: TRUE
A120: 119 | B120: all_mortality_adj | C120: 2011 | D120: North East Lincolnshire | E120: -0.9639036731 | F120: -0.08729105854 | G120: 12.00631385 | H120: 9.850018914 | I120: 8.852999935 | J120: 8.386053515 | K120: 7.127687011 | L120: 9.888121883 | M120: 0.03842547279 | N120: 6.495058056 | O120: 8.625665988 | P120: 4.364450124 | Q120: FALSE | R120: 0.6568545708 | S120: 0.8723260179 | T120: 0.4413831236 | U120: FALSE | V120: 157.773 | W120: 512.3723973 | X120: 680.4485999 | Y120: 344.2961947 | Z120: TRUE | AB120: =IF(OR(AND((L120-1.96*M120)<national_data!$H$16,(L120+1.96*M120)<national_data!$H$16),AND((L120-1.96*M120)>national_data!$H$16,(L120+1.96*M120)>national_data!$H$16)),"TRUE","FALSE") -> TRUE | AD120: no clear trend | AH120: 0.1908024001 | AI120: 0.07605589241 | AJ120: 0.3055489078 | AK120: TRUE | AY120: 102 | AZ120: 133 | BA120: 117.5 | BC120: 107.2 | BD120: 537 | BE120: 322.1 | BF120: 107 | BG120: 137 | BI120: 46.22307323 | BJ120: =IF(AND(L120<national_data!$H$16,AB120="TRUE"),"GREEN",IF(AND(L120>national_data!$H$16,AB120="TRUE"),"RED","AMBER")) -> RED | BK120: RED | BL120: RED | BO120: all_mortality_adj | BP120: North East Lincolnshire | BQ120: 0.4413831 | BR120: 0.872326 | BS120: 4.36445 | BT120: 8.625666 | BU120: 0.0201343 | BV120: 0.2198688 | BW120: 0.3399632 | BX120: -0.6461936 | BY120: 0.6864622 | BZ120: 0 | CA120: 0.4868978 | CB120: 2.17409 | CC120: 3.273083 | CD120: -5.928344 | CE120: 6.90214 | CF120: 0 | CG120: amber | CI120: TRUE
A121: 120 | B121: all_mortality_adj | C121: 2011 | D121: North Hampshire | H121: 9.873609129 | I121: 9.877997825 | J121: 9.060287617 | K121: 6.55245416 | L121: 7.822875432 | M121: 0.04449745229 | N121: 6.312439313 | O121: 8.928480768 | P121: 3.696397858 | Q121: FALSE | R121: 0.8069205968 | S121: 1.141329789 | T121: 0.4725114045 | U121: FALSE | V121: 210.657 | W121: 664.8797642 | X121: 940.4234865 | Y121: 389.3360418 | Z121: TRUE | AB121: =IF(OR(AND((L121-1.96*M121)<national_data!$H$16,(L121+1.96*M121)<national_data!$H$16),AND((L121-1.96*M121)>national_data!$H$16,(L121+1.96*M121)>national_data!$H$16)),"TRUE","FALSE") -> TRUE | AD121: no clear trend | AH121: -0.1390228342 | AI121: -0.2594399092 | AJ121: -0.01860575917 | AK121: TRUE | AY121: 167 | AZ121: 124 | BA121: 145.5 | BC121: 133.2 | BD121: 538 | BE121: 335.6 | BF121: 172 | BG121: 121 | BI121: 35.36434873 | BJ121: =IF(AND(L121<national_data!$H$16,AB121="TRUE"),"GREEN",IF(AND(L121>national_data!$H$16,AB121="TRUE"),"RED","AMBER")) -> GREEN | BK121: RED | BL121: GREEN | BO121: all_mortality_adj | BP121: North Hampshire | BQ121: 0.4725114 | BR121: 1.14133 | BS121: 3.696398 | BT121: 8.928481 | BU121: 0.2701127 | BV121: 0.3412338 | BW121: 0.4719127 | BX121: -0.6548362 | BY121: 1.195062 | BZ121: 0 | CA121: 1.768416 | CB121: 2.66943 | CC121: 3.839263 | CD121: -5.756539 | CE121: 9.293371 | CF121: 0 | CG121: amber | CI121: TRUE
A122: 121 | B122: all_mortality_adj | C122: 2011 | D122: North Kirklees | E122: -0.4197958664 | F122: -0.03801668835 | G122: 11.46220604 | H122: 9.408000709 | I122: 9.475481878 | J122: 8.470099181 | K122: 8.371466237 | L122: 9.957329749 | M122: 0.04186020496 | N122: 4.519047827 | O122: 7.557529903 | P122: 1.48056575 | Q122: FALSE | R122: 0.4538413351 | S122: 0.7589916267 | T122: 0.1486910434 | U122: FALSE | V122: 183.449 | W122: 414.5074024 | X122: 693.2106516 | Y122: 135.8041532 | Z122: TRUE | AB122: =IF(OR(AND((L122-1.96*M122)<national_data!$H$16,(L122+1.96*M122)<national_data!$H$16),AND((L122-1.96*M122)>national_data!$H$16,(L122+1.96*M122)>national_data!$H$16)),"TRUE","FALSE") -> TRUE | AD122: no clear trend | AH122: 0.1796486593 | AI122: 0.06639391875 | AJ122: 0.2929033999 | AK122: TRUE | AY122: 30 | AZ122: 56 | BA122: 43 | BC122: 71.6 | BD122: 461 | BE122: 266.3 | BF122: 27 | BG122: 56 | BI122: 47.18725405 | BJ122: =IF(AND(L122<national_data!$H$16,AB122="TRUE"),"GREEN",IF(AND(L122>national_data!$H$16,AB122="TRUE"),"RED","AMBER")) -> RED | BK122: RED | BL122: RED | BO122: all_mortality_adj | BP122: North Kirklees | BQ122: 0.148691 | BR122: 0.7589916 | BS122: 1.480566 | BT122: 7.55753 | BU122: -0.0496748 | BV122: 0.3113778 | BW122: 0.419715 | BX122: -0.8723161 | BY122: 0.7729666 | BZ122: 0 | CA122: -0.6582483 | CB122: 3.100492 | CC122: 4.241106 | CD122: -8.970816 | CE122: 7.654319 | CF122: 0 | CG122: amber | CI122: TRUE
A123: 122 | B123: all_mortality_adj | C123: 2011 | D123: North Lincolnshire | E123: -0.05594441941 | F123: -0.00506632325 | G123: 11.0983546 | H123: 11.2135499 | I123: 9.113847546 | J123: 7.329633978 | K123: 7.033281675 | L123: 9.10600248 | M123: 0.0396183334 | N123: 6.525581467 | O123: 9.007363289 | P123: 4.043799644 | Q123: FALSE | R123: 0.7166241697 | S123: 0.9891676736 | T123: 0.4440806658 | U123: FALSE | V123: 161.615 | W123: 527.3159244 | X123: 727.862509 | Y123: 326.7693397 | Z123: TRUE | AB123: =IF(OR(AND((L123-1.96*M123)<national_data!$H$16,(L123+1.96*M123)<national_data!$H$16),AND((L123-1.96*M123)>national_data!$H$16,(L123+1.96*M123)>national_data!$H$16)),"TRUE","FALSE") -> TRUE | AD123: no clear trend | AH123: -0.1944598147 | AI123: -0.3029007049 | AJ123: -0.08601892456 | AK123: TRUE | AY123: 120 | AZ123: 134 | BA123: 127 | BC123: 75.6 | BD123: 382 | BE123: 228.8 | BF123: 36 | BG123: 100 | BI123: 45.7886677 | BJ123: =IF(AND(L123<national_data!$H$16,AB123="TRUE"),"GREEN",IF(AND(L123>national_data!$H$16,AB123="TRUE"),"RED","AMBER")) -> RED | BK123: RED | BL123: GREEN | BO123: all_mortality_adj | BP123: North Lincolnshire | BQ123: 0.4440807 | BR123: 0.9891677 | BS123: 4.0438 | BT123: 9.007363 | BU123: -0.3257224 | BV123: 0.2781056 | BW123: 0.4025234 | BX123: -1.114668 | BY123: 0.4632234 | BZ123: 0 | CA123: -2.97918 | CB123: 2.53243 | CC123: 3.668034 | CD123: -10.16853 | CE123: 4.210167 | CF123: 0 | CG123: amber | CI123: TRUE
A124: 123 | B124: all_mortality_adj | C124: 2011 | D124: North Manchester | E124: -0.8541656159 | F124: -0.07735318669 | G124: 11.89657579 | H124: 7.345392087 | I124: 2.473645609 | L124: 10.30350883 | M124: 0.04479538328 | N124: 18.67474193 | O124: 22.98686471 | P124: 14.36261915 | Q124: TRUE | R124: 1.812464301 | S124: 2.230974427 | T124: 1.393954175 | U124: TRUE | V124: 170.23 | W124: 1589.500659 | X124: 1956.526989 | Y124: 1222.474329 | Z124: TRUE | AB124: =IF(OR(AND((L124-1.96*M124)<national_data!$H$16,(L124+1.96*M124)<national_data!$H$16),AND((L124-1.96*M124)>national_data!$H$16,(L124+1.96*M124)>national_data!$H$16)),"TRUE","FALSE") -> TRUE | AD124: no clear trend | AH124: -1.459471707 | AI124: -1.57541312 | AJ124: -1.343530294 | AK124: TRUE | AY124: 210 | AZ124: 210 | BA124: 210 | BC124: 133 | BD124: 678 | BE124: 405.5 | BF124: 171 | BG124: 40 | BI124: 21.71561349 | BJ124: =IF(AND(L124<national_data!$H$16,AB124="TRUE"),"GREEN",IF(AND(L124>national_data!$H$16,AB124="TRUE"),"RED","AMBER")) -> RED | BK124: RED | BL124: GREEN | BO124: all_mortality_adj | BP124: North Manchester | BQ124: 1.393954 | BR124: 2.230974 | BS124: 14.36262 | BT124: 22.98686 | BU124: 0.0221162 | BV124: 0.4270512 | BW124: 0.6275103 | BX124: -1.207804 | BY124: 1.252036 | BZ124: 0 | CA124: -1.188506 | CB124: 4.400125 | CC124: 6.736621 | CD124: -14.39228 | CE124: 12.01527 | CF124: 0 | CG124: amber | CI124: TRUE
A125: 124 | B125: all_mortality_adj | C125: 2011 | D125: North Norfolk | E125: 2.926663258 | F125: 0.2650384482 | G125: 8.115746919 | H125: 7.01230358 | I125: 7.795767634 | J125: 8.275233948 | K125: 9.042067032 | L125: 7.896992711 | M125: 0.04028947932 | N125: -2.338998829 | O125: 0.9504410013 | P125: -5.628438658 | Q125: TRUE | R125: -0.296188551 | S125: 0.1203548029 | T125: -0.712731905 | U125: TRUE | V125: 167.971 | W125: -196.4419861 | X125: 79.82326272 | Y125: -472.7072349 | Z125: FALSE | AB125: =IF(OR(AND((L125-1.96*M125)<national_data!$H$16,(L125+1.96*M125)<national_data!$H$16),AND((L125-1.96*M125)>national_data!$H$16,(L125+1.96*M125)>national_data!$H$16)),"TRUE","FALSE") -> TRUE | AD125: no clear trend | AH125: -0.2856231663 | AI125: -0.3974337429 | AJ125: -0.1738125898 | AK125: TRUE | AY125: 1 | AZ125: 1 | BA125: 1 | BC125: 64 | BD125: 320 | BE125: 192 | BF125: 20 | BG125: 7 | BI125: 40.24111911 | BJ125: =IF(AND(L125<national_data!$H$16,AB125="TRUE"),"GREEN",IF(AND(L125>national_data!$H$16,AB125="TRUE"),"RED","AMBER")) -> GREEN | BK125: AMBER | BL125: GREEN | BO125: all_mortality_adj | BP125: North Norfolk | BQ125: -0.7127319 | BR125: 0.1203548 | BS125: -5.628438 | BT125: 0.950441 | BU125: -0.0752677 | BV125: 0.4250442 | BW125: 0.6098922 | BX125: -1.270656 | BY125: 1.120121 | BZ125: 0 | CA125: -0.6553105 | CB125: 3.356571 | CC125: 4.730561 | CD125: -9.927211 | CE125: 8.61659 | CF125: 0 | CG125: amber | CI125: TRUE
A126: 125 | B126: all_mortality_adj | C126: 2011 | D126: North Somerset | E126: -2.955206712 | F126: -0.2676233417 | G126: 13.99761689 | H126: 8.891027182 | I126: 8.567668583 | J126: 6.359355964 | K126: 7.060313937 | L126: 7.902547232 | M126: 0.04185493373 | N126: 6.785657156 | O126: 8.928933592 | P126: 4.642380719 | Q126: FALSE | R126: 0.85866708 | S126: 1.129880446 | T126: 0.5874537138 | U126: FALSE | V126: 213.306 | W126: 723.7106926 | X126: 952.2975544 | Y126: 495.1238309 | Z126: TRUE | AB126: =IF(OR(AND((L126-1.96*M126)<national_data!$H$16,(L126+1.96*M126)<national_data!$H$16),AND((L126-1.96*M126)>national_data!$H$16,(L126+1.96*M126)>national_data!$H$16)),"TRUE","FALSE") -> TRUE | AD126: no clear trend | AH126: 0.5193343938 | AI126: 0.4044126209 | AJ126: 0.6342561668 | AK126: TRUE | AY126: 178 | AZ126: 146 | BA126: 162 | BC126: 98.4 | BD126: 448 | BE126: 273.2 | BF126: 74 | BG126: 71 | BI126: 44.87598255 | BJ126: =IF(AND(L126<national_data!$H$16,AB126="TRUE"),"GREEN",IF(AND(L126>national_data!$H$16,AB126="TRUE"),"RED","AMBER")) -> GREEN | BK126: RED | BL126: RED | BO126: all_mortality_adj | BP126: North Somerset | BQ126: 0.5874537 | BR126: 1.12988 | BS126: 4.642381 | BT126: 8.928933 | BU126: 0.1795587 | BV126: 0.2767483 | BW126: 0.4049786 | BX126: -0.6141994 | BY126: 0.9733167 | BZ126: 0 | CA126: 1.45781 | CB126: 2.187016 | CC126: 3.188038 | CD126: -4.790744 | CE126: 7.706365 | CF126: 0 | CG126: amber | CI126: TRUE
A127: 126 | B127: all_mortality_adj | C127: 2011 | D127: North Staffordshire | E127: -0.5785556116 | F127: -0.05239396132 | G127: 11.62096579 | H127: 10.07179043 | I127: 8.018875266 | J127: 7.73671223 | K127: 6.688362477 | L127: 8.566682043 | M127: 0.03688514476 | N127: 6.173725072 | O127: 8.431544569 | P127: 3.915905575 | Q127: FALSE | R127: 0.7206670028 | S127: 0.9842252259 | T127: 0.4571087797 | U127: FALSE | V127: 212.23 | W127: 655.124836 | X127: 894.713352 | Y127: 415.5363201 | Z127: TRUE | AB127: =IF(OR(AND((L127-1.96*M127)<national_data!$H$16,(L127+1.96*M127)<national_data!$H$16),AND((L127-1.96*M127)>national_data!$H$16,(L127+1.96*M127)>national_data!$H$16)),"TRUE","FALSE") -> TRUE | AD127: no clear trend | AH127: -0.1258355478 | AI127: -0.2256005712 | AJ127: -0.02607052443 | AK127: TRUE | AY127: 122 | AZ127: 117 | BA127: 119.5 | BC127: 131.8 | BD127: 652 | BE127: 391.9 | BF127: 170 | BG127: 166 | BI127: 44.13670619 | BJ127: =IF(AND(L127<national_data!$H$16,AB127="TRUE"),"GREEN",IF(AND(L127>national_data!$H$16,AB127="TRUE"),"RED","AMBER")) -> GREEN | BK127: RED | BL127: GREEN | BO127: all_mortality_adj | BP127: North Staffordshire | BQ127: 0.4571088 | BR127: 0.9842252 | BS127: 3.915905 | BT127: 8.431544 | BU127: 0.0718006 | BV127: 0.268937 | BW127: 0.3674222 | BX127: -0.6483469 | BY127: 0.791948 | BZ127: 0 | CA127: 0.78249 | CB127: 2.303897 | CC127: 3.103944 | CD127: -5.30124 | CE127: 6.86622 | CF127: 0 | CG127: amber | CI127: TRUE
A128: 127 | B128: all_mortality_adj | C128: 2011 | D128: North Tyneside | E128: -1.321930481 | F128: -0.1197139447 | G128: 12.36434066 | H128: 10.1788443 | I128: 10.19666237 | J128: 7.414161245 | K128: 5.997740255 | L128: 9.31519851 | M128: 0.04199472331 | N128: 8.179267459 | O128: 10.31254113 | P128: 6.045993786 | Q128: TRUE | R128: 0.8780561628 | S128: 1.10706617 | T128: 0.649046156 | U128: TRUE | V128: 199.714 | W128: 816.7571107 | X128: 1029.77942 | Y128: 603.7348015 | Z128: TRUE | AB128: =IF(OR(AND((L128-1.96*M128)<national_data!$H$16,(L128+1.96*M128)<national_data!$H$16),AND((L128-1.96*M128)>national_data!$H$16,(L128+1.96*M128)>national_data!$H$16)),"TRUE","FALSE") -> TRUE | AD128: no clear trend | AH128: -0.2336498972 | AI128: -0.3433111418 | AJ128: -0.1239886526 | AK128: TRUE | AY128: 179 | AZ128: 185 | BA128: 182 | BC128: 83.6 | BD128: 569 | BE128: 326.3 | BF128: 50 | BG128: 125 | BI128: 46.15174883 | BJ128: =IF(AND(L128<national_data!$H$16,AB128="TRUE"),"GREEN",IF(AND(L128>national_data!$H$16,AB128="TRUE"),"RED","AMBER")) -> RED | BK128: RED | BL128: GREEN | BO128: all_mortality_adj | BP128: North Tyneside | BQ128: 0.6490462 | BR128: 1.107066 | BS128: 6.045994 | BT128: 10.31254 | BU128: 0.0857365 | BV128: 0.2336837 | BW128: 0.3259256 | BX128: -0.5530777 | BY128: 0.7245507 | BZ128: 0 | CA128: 0.425485 | CB128: 2.17681 | CC128: 3.111601 | CD128: -5.673253 | CE128: 6.524223 | CF128: 0 | CG128: amber | CI128: TRUE
A129: 128 | B129: all_mortality_adj | C129: 2011 | D129: North West Surrey | E129: 0.03387407246 | F129: 0.00306763396 | G129: 11.0085361 | H129: 10.10216906 | I129: 9.224730951 | J129: 7.932556549 | K129: 7.680401881 | L129: 8.141062255 | M129: 0.0285702106 | N129: 3.941171157 | O129: 6.206902063 | P129: 1.675440252 | Q129: FALSE | R129: 0.4841101854 | S129: 0.7624191866 | T129: 0.2058011842 | U129: FALSE | V129: 332.559 | W129: 655.3359695 | X129: 1032.080572 | Y129: 278.5913675 | Z129: TRUE | AB129: =IF(OR(AND((L129-1.96*M129)<national_data!$H$16,(L129+1.96*M129)<national_data!$H$16),AND((L129-1.96*M129)>national_data!$H$16,(L129+1.96*M129)>national_data!$H$16)),"TRUE","FALSE") -> TRUE | AD129: no clear trend | AH129: 0.4742111674 | AI129: 0.3892220101 | AJ129: 0.5592003246 | AK129: TRUE | AY129: 43 | AZ129: 37 | BA129: 40 | BC129: 108.4 | BD129: 425 | BE129: 266.7 | BF129: 111 | BG129: 17 | BI129: 45.94839454 | BJ129: =IF(AND(L129<national_data!$H$16,AB129="TRUE"),"GREEN",IF(AND(L129>national_data!$H$16,AB129="TRUE"),"RED","AMBER")) -> GREEN | BK129: RED | BL129: RED | BO129: all_mortality_adj | BP129: North West Surrey | BQ129: 0.2058012 | BR129: 0.7624192 | BS129: 1.67544 | BT129: 6.206902 | BU129: -0.0652852 | BV129: 0.2839888 | BW129: 0.3912464 | BX129: -0.8321282 | BY129: 0.7015578 | BZ129: 0 | CA129: -0.5938432 | CB129: 2.31197 | CC129: 3.206247 | CD129: -6.878087 | CE129: 5.690401 | CF129: 0 | CG129: amber | CI129: TRUE
A130: 129 | B130: all_mortality_adj | C130: 2011 | D130: North, East, West Devon | E130: 0.6107451133 | F130: 0.05530904065 | G130: 10.43166506 | H130: 8.946394585 | I130: 8.194447218 | J130: 7.809501583 | K130: 6.652809596 | L130: 8.361197376 | M130: 0.01914778267 | N130: 4.146819018 | O130: 5.448562774 | P130: 2.845075261 | Q130: FALSE | R130: 0.4959599482 | S130: 0.6516486251 | T130: 0.3402712714 | U130: FALSE | V130: 871.797 | W130: 1807.59219 | X130: 2375.02034 | Y130: 1240.164039 | Z130: TRUE | AB130: =IF(OR(AND((L130-1.96*M130)<national_data!$H$16,(L130+1.96*M130)<national_data!$H$16),AND((L130-1.96*M130)>national_data!$H$16,(L130+1.96*M130)>national_data!$H$16)),"TRUE","FALSE") -> TRUE | AD130: no clear trend | AH130: -0.02408900084 | AI130: -0.07519259869 | AJ130: 0.02701459702 | AK130: FALSE | AY130: =RANK(R130,$R$2:$R$212,1) -> 46 | AZ130: =RANK(N130,$N$2:$N$212,1) -> 48 | BA130: =AVERAGE(AY130:AZ130) -> 47 | BC130: 84.4 | BD130: 365 | BE130: 224.7 | BF130: =RANK(BC130,$BC$2:$BC$212,1) -> 51 | BG130: 28 | BI130: 42.03481805 | BJ130: =IF(AND(L130<national_data!$H$16,AB130="TRUE"),"GREEN",IF(AND(L130>national_data!$H$16,AB130="TRUE"),"RED","AMBER")) -> GREEN | BK130: RED | BL130: AMBER | BO130: all_mortality_adj | BP130: North, East, West Devon | BQ130: 0.3402713 | BR130: 0.6516486 | BS130: 2.845075 | BT130: 5.448563 | BU130: -0.0595866 | BV130: 0.158866 | BW130: 0.2196422 | BX130: -0.4900854 | BY130: 0.3709122 | BZ130: 0 | CA130: -0.5565612 | CB130: 1.32831 | CC130: 1.847508 | CD130: -4.177676 | CE130: 3.064554 | CF130: 0 | CG130: amber | CI130: TRUE
A131: 130 | B131: all_mortality_adj | C131: 2011 | D131: Northumberland | E131: -0.5223175403 | F131: -0.04730104497 | G131: 11.56472772 | H131: 10.04988813 | I131: 7.563077972 | J131: 7.558594566 | K131: 6.501451662 | L131: 8.486488817 | M131: 0.03065515529 | N131: 6.489531432 | O131: 8.185702984 | P131: 4.79335988 | Q131: FALSE | R131: 0.7646897995 | S131: 0.9645570931 | T131: 0.5648225059 | U131: FALSE | V131: 312.575 | W131: 1014.232644 | X131: 1279.323055 | Y131: 749.1422323 | Z131: TRUE | AB131: =IF(OR(AND((L131-1.96*M131)<national_data!$H$16,(L131+1.96*M131)<national_data!$H$16),AND((L131-1.96*M131)>national_data!$H$16,(L131+1.96*M131)>national_data!$H$16)),"TRUE","FALSE") -> TRUE | AD131: no clear trend | AH131: -0.2362355712 | AI131: -0.3200357722 | AJ131: -0.1524353702 | AK131: TRUE | AY131: 151 | AZ131: 132 | BA131: 141.5 | BC131: =AVERAGE(AY342,AY553,AY975,AY1186,AY1608) -> 156 | BD131: =AZ342+AZ553+AZ975+AZ1186+AZ1608 -> 775 | BE131: =AVERAGE(BC131,BD131) -> 465.5 | BF131: 203 | BG131: 207 | BI131: =SUM(G131:K131) -> 43.23774005 | BJ131: =IF(AND(L131<national_data!$H$16,AB131="TRUE"),"GREEN",IF(AND(L131>national_data!$H$16,AB131="TRUE"),"RED","AMBER")) -> GREEN | BK131: =IF(AND(W131<0,Z131=TRUE),"GREEN",IF(AND(W131>0,Z131=TRUE),"RED","AMBER")) -> RED | BL131: =IF(AND(AH131<0,AK131=TRUE),"GREEN",IF(AND(AH131>0,AK131=TRUE),"RED","AMBER")) -> GREEN | BO131: all_mortality_adj | BP131: Northumberland | BQ131: 0.5648225 | BR131: 0.9645571 | BS131: 4.79336 | BT131: 8.185703 | BU131: -0.010425 | BV131: 0.2039462 | BW131: 0.2865879 | BX131: -0.5721373 | BY131: 0.5512872 | BZ131: 0 | CA131: -0.4216928 | CB131: 1.730788 | CC131: 2.493696 | CD131: -5.309337 | CE131: 4.465952 | CF131: 0 | CG131: amber | CI131: TRUE
A132: 131 | B132: all_mortality_adj | C132: 2011 | D132: Norwich | E132: 1.568089401 | F132: 0.1420060817 | G132: 9.474320775 | H132: 9.367642345 | I132: 7.191938056 | J132: 7.542995466 | K132: 7.128502404 | L132: 8.193219677 | M132: 0.04426707168 | N132: 2.5914158 | O132: 5.054876341 | P132: 0.1279552597 | Q132: TRUE | R132: 0.3162878456 | S132: 0.6169584778 | T132: 0.01561721335 | U132: FALSE | V132: 204.066 | W132: 264.4099283 | X132: 515.7641977 | Y132: 13.05565901 | Z132: TRUE | AB132: =IF(OR(AND((L132-1.96*M132)<national_data!$H$16,(L132+1.96*M132)<national_data!$H$16),AND((L132-1.96*M132)>national_data!$H$16,(L132+1.96*M132)>national_data!$H$16)),"TRUE","FALSE") -> TRUE | AD132: no clear trend | AH132: -0.1733625562 | AI132: -0.292921959 | AJ132: -0.05380315338 | AK132: TRUE | AY132: 10 | AZ132: 9 | BA132: 9.5 | BC132: 97.8 | BD132: 496 | BE132: 296.9 | BF132: 71 | BG132: 60 | BI132: 40.70539905 | BJ132: =IF(AND(L132<national_data!$H$16,AB132="TRUE"),"GREEN",IF(AND(L132>national_data!$H$16,AB132="TRUE"),"RED","AMBER")) -> GREEN | BK132: RED | BL132: GREEN | BO132: all_mortality_adj | BP132: Norwich | BQ132: 0.0156172 | BR132: 0.6169585 | BS132: 0.1279553 | BT132: 5.054876 | BU132: 0.092101 | BV132: 0.3068068 | BW132: 0.4182827 | BX132: -0.727733 | BY132: 0.911935 | BZ132: 0 | CA132: 0.7461385 | CB132: 2.513735 | CC132: 3.434388 | CD132: -5.985261 | CE132: 7.477539 | CF132: 0 | CG132: amber | CI132: =BP132=D132 -> TRUE
A133: 132 | B133: all_mortality_adj | C133: 2011 | D133: Nottingham City | E133: -1.23715467 | F133: -0.1120366524 | G133: 12.27956485 | H133: 10.13515178 | I133: 8.543244792 | J133: 8.377410307 | K133: 6.26041333 | L133: 10.72988256 | M133: 0.03369172783 | N133: 9.484878313 | O133: 12.72737855 | P133: 6.242378073 | Q133: TRUE | R133: 0.8839685113 | S133: 1.186161962 | T133: 0.5817750602 | U133: FALSE | V133: 311.071 | W133: 1475.235291 | X133: 1979.559187 | Y133: 970.9113947 | Z133: TRUE | AB133: =IF(OR(AND((L133-1.96*M133)<national_data!$H$16,(L133+1.96*M133)<national_data!$H$16),AND((L133-1.96*M133)>national_data!$H$16,(L133+1.96*M133)>national_data!$H$16)),"TRUE","FALSE") -> TRUE | AD133: no clear trend | AH133: -0.06186276559 | AI133: -0.1543297705 | AJ133: 0.0306042393 | AK133: FALSE | AY133: 180 | AZ133: 201 | BA133: 190.5 | BC133: 109.6 | BD133: 666 | BE133: 387.8 | BF133: 116 | BG133: 115 | BI133: 45.59578506 | BJ133: =IF(AND(L133<national_data!$H$16,AB133="TRUE"),"GREEN",IF(AND(L133>national_data!$H$16,AB133="TRUE"),"RED","AMBER")) -> RED | BK133: RED | BL133: AMBER | BO133: all_mortality_adj | BP133: Nottingham City | BQ133: 0.5817751 | BR133: 1.186162 | BS133: 6.242378 | BT133: 12.72738 | BU133: 0.0238543 | BV133: 0.3083607 | BW133: 0.4612607 | BX133: -0.8802167 | BY133: 0.9279252 | BZ133: 0 | CA133: 0.3120256 | CB133: 3.308674 | CC133: 4.932664 | CD133: -9.355995 | CE133: 9.980047 | CF133: 0 | CG133: amber | CI133: TRUE
A134: 133 | B134: all_mortality_adj | C134: 2011 | D134: Nottingham North & East | E134: -0.3502252121 | F134: -0.03171637409 | G134: 11.39263539 | H134: 11.78983237 | I134: 8.135153373 | J134: 6.738571436 | K134: 7.052302377 | L134: 8.819110985 | M134: 0.0527265711 | N134: 7.942037109 | O134: 11.24818056 | P134: 4.635893658 | Q134: FALSE | R134: 0.9005484932 | S134: 1.275432476 | T134: 0.5256645104 | U134: FALSE | V134: 145.321 | W134: 577.0723873 | X134: 817.2984235 | Y134: 336.8463511 | Z134: TRUE | AB134: =IF(OR(AND((L134-1.96*M134)<national_data!$H$16,(L134+1.96*M134)<national_data!$H$16),AND((L134-1.96*M134)>national_data!$H$16,(L134+1.96*M134)>national_data!$H$16)),"TRUE","FALSE") -> TRUE | AD134: no clear trend | AH134: -0.00968188158 | AI134: -0.1510014491 | AJ134: 0.1316376859 | AK134: FALSE | AY134: 185 | AZ134: 182 | BA134: 183.5 | BC134: 103.8 | BD134: 539 | BE134: 321.4 | BF134: 93 | BG134: 190 | BI134: 45.10849494 | BJ134: =IF(AND(L134<national_data!$H$16,AB134="TRUE"),"GREEN",IF(AND(L134>national_data!$H$16,AB134="TRUE"),"RED","AMBER")) -> RED | BK134: RED | BL134: AMBER | BO134: all_mortality_adj | BP134: Nottingham North & East | BQ134: 0.5256645 | BR134: 1.275432 | BS134: 4.635894 | BT134: 11.24818 | BU134: 0.10387 | BV134: 0.3825347 | BW134: 0.5665691 | BX134: -1.006606 | BY134: 1.214345 | BZ134: 0 | CA134: 1.100083 | CB134: 3.373616 | CC134: 4.925849 | CD134: -8.554582 | CE134: 10.75475 | CF134: 0 | CG134: amber | CI134: TRUE
A135: 134 | B135: all_mortality_adj | C135: 2011 | D135: Nottingham West | E135: -0.2054863603 | F135: -0.01860883241 | G135: 11.24789654 | H135: 9.125225354 | I135: 9.109377471 | J135: 8.520419046 | K135: 6.570443103 | L135: 8.356649744 | M135: 0.05392749809 | N135: 5.14276745 | O135: 8.70264923 | P135: 1.582885669 | Q135: FALSE | R135: 0.6154101952 | S135: 1.041404091 | T135: 0.1894162993 | U135: FALSE | V135: 112.688 | W135: 289.7640892 | X135: 490.3420682 | Y135: 89.18611014 | Z135: TRUE | AB135: =IF(OR(AND((L135-1.96*M135)<national_data!$H$16,(L135+1.96*M135)<national_data!$H$16),AND((L135-1.96*M135)>national_data!$H$16,(L135+1.96*M135)>national_data!$H$16)),"TRUE","FALSE") -> TRUE | AD135: no clear trend | AH135: 0.09073751795 | AI135: -0.06829451706 | AJ135: 0.249769553 | AK135: FALSE | AY135: 85 | AZ135: 85 | BA135: 85 | BC135: 101.6 | BD135: 507 | BE135: 304.3 | BF135: 89 | BG135: 180 | BI135: 44.57336151 | BJ135: =IF(AND(L135<national_data!$H$16,AB135="TRUE"),"GREEN",IF(AND(L135>national_data!$H$16,AB135="TRUE"),"RED","AMBER")) -> GREEN | BK135: RED | BL135: AMBER | BO135: all_mortality_adj | BP135: Nottingham West | BQ135: 0.1894163 | BR135: 1.041404 | BS135: 1.582886 | BT135: 8.702649 | BU135: -0.2804866 | BV135: 0.4346877 | BW135: 0.6260495 | BX135: -1.507543 | BY135: 0.9465704 | BZ135: 0 | CA135: -2.908446 | CB135: 3.632532 | CC135: 5.439551 | CD135: -13.56997 | CE135: 7.753075 | CF135: 0 | CG135: amber | CI135: TRUE
A136: 135 | B136: all_mortality_adj | C136: 2011 | D136: Oldham | E136: -1.162321422 | F136: -0.1052597579 | G136: 12.2047316 | H136: 11.22350036 | I136: 8.678096116 | J136: 7.709391591 | K136: 6.787264004 | L136: 10.31843106 | M136: 0.04058517739 | N136: 7.199346173 | O136: 9.686895241 | P136: 4.711797105 | Q136: FALSE | R136: 0.6977171368 | S136: 0.9387953641 | T136: 0.4566389095 | U136: FALSE | V136: 221.319 | W136: 796.6760478 | X136: 1071.946984 | Y136: 521.4051118 | Z136: TRUE | AB136: =IF(OR(AND((L136-1.96*M136)<national_data!$H$16,(L136+1.96*M136)<national_data!$H$16),AND((L136-1.96*M136)>national_data!$H$16,(L136+1.96*M136)>national_data!$H$16)),"TRUE","FALSE") -> TRUE | AD136: no clear trend | AH136: 0.1138494898 | AI136: 0.003399742251 | AJ136: 0.2242992373 | AK136: TRUE | AY136: 116 | AZ136: 163 | BA136: 139.5 | BC136: 74.8 | BD136: 500 | BE136: 287.4 | BF136: 35 | BG136: 77 | BI136: 46.60298367 | BJ136: =IF(AND(L136<national_data!$H$16,AB136="TRUE"),"GREEN",IF(AND(L136>national_data!$H$16,AB136="TRUE"),"RED","AMBER")) -> RED | BK136: RED | BL136: RED | BO136: all_mortality_adj | BP136: Oldham | BQ136: 0.4566389 | BR136: 0.9387954 | BS136: 4.711797 | BT136: 9.686895 | BU136: -0.120122 | BV136: 0.2459982 | BW136: 0.3329383 | BX136: -0.7726811 | BY136: 0.532437 | BZ136: 0 | CA136: -1.218941 | CB136: 2.538315 | CC136: 3.431608 | CD136: -7.944893 | CE136: 5.507011 | CF136: 0 | CG136: amber | CI136: TRUE
A137: 136 | B137: all_mortality_adj | C137: 2011 | D137: Oxfordshire | E137: -0.4539156199 | F137: -0.04110657118 | G137: 11.4963258 | H137: 9.362503091 | I137: 8.300562199 | J137: 7.83381716 | K137: 7.362825903 | L137: 8.046336654 | M137: 0.02257852693 | N137: 4.032939275 | O137: 5.435997122 | P137: 2.629881427 | Q137: FALSE | R137: 0.5012143349 | S137: 0.6755865876 | T137: 0.3268420823 | U137: FALSE | V137: 643.413 | W137: 1297.422779 | X137: 1748.795608 | Y137: 846.0499492 | Z137: TRUE | AB137: =IF(OR(AND((L137-1.96*M137)<national_data!$H$16,(L137+1.96*M137)<national_data!$H$16),AND((L137-1.96*M137)>national_data!$H$16,(L137+1.96*M137)>national_data!$H$16)),"TRUE","FALSE") -> TRUE | AD137: no clear trend | AH137: 0.05090937893 | AI137: -0.01413362244 | AJ137: 0.1159523803 | AK137: FALSE | AY137: 49 | AZ137: 40 | BA137: 44.5 | BC137: 96.6 | BD137: 442 | BE137: 269.3 | BF137: 69 | BG137: 101 | BI137: 44.35603415 | BJ137: =IF(AND(L137<national_data!$H$16,AB137="TRUE"),"GREEN",IF(AND(L137>national_data!$H$16,AB137="TRUE"),"RED","AMBER")) -> GREEN | BK137: RED | BL137: AMBER | BO137: all_mortality_adj | BP137: Oxfordshire | BQ137: 0.3268421 | BR137: 0.6755866 | BS137: 2.629881 | BT137: 5.435997 | BU137: 0.1255345 | BV137: 0.1779309 | BW137: 0.2535457 | BX137: -0.371415 | BY137: 0.622484 | BZ137: 0 | CA137: 0.9799149 | CB137: 1.431692 | CC137: 2.050476 | CD137: -3.039018 | CE137: 4.998847 | CF137: 0 | CG137: amber | CI137: TRUE
A138: 137 | B138: all_mortality_adj | C138: 2011 | D138: Portsmouth | E138: 0.169947277 | F138: 0.01539041516 | G138: 10.8724629 | H138: 9.979342542 | I138: 7.6777052 | J138: 8.083750984 | K138: 8.251332807 | L138: 9.244929589 | M138: 0.03618572466 | N138: 5.217179622 | O138: 7.843378064 | P138: 2.59098118 | Q138: FALSE | R138: 0.5643287568 | S138: 0.8483978151 | T138: 0.2802596986 | U138: FALSE | V138: 210.565 | W138: 549.2777135 | X138: 825.770451 | Y138: 272.7849761 | Z138: TRUE | AB138: =IF(OR(AND((L138-1.96*M138)<national_data!$H$16,(L138+1.96*M138)<national_data!$H$16),AND((L138-1.96*M138)>national_data!$H$16,(L138+1.96*M138)>national_data!$H$16)),"TRUE","FALSE") -> TRUE | AD138: no clear trend | AH138: 0.04032010224 | AI138: -0.05871046778 | AJ138: 0.1393506723 | AK138: FALSE | AY138: 70 | AZ138: 86 | BA138: 78 | BC138: 138.4 | BD138: 670 | BE138: 404.2 | BF138: 183 | BG138: 105 | BI138: 44.86459443 | BJ138: =IF(AND(L138<national_data!$H$16,AB138="TRUE"),"GREEN",IF(AND(L138>national_data!$H$16,AB138="TRUE"),"RED","AMBER")) -> RED | BK138: RED | BL138: AMBER | BO138: all_mortality_adj | BP138: Portsmouth | BQ138: 0.2802597 | BR138: 0.8483978 | BS138: 2.590981 | BT138: 7.843378 | BU138: 0.004874 | BV138: 0.2898664 | BW138: 0.3950135 | BX138: -0.7693523 | BY138: 0.7791004 | BZ138: 0 | CA138: -0.1616883 | CB138: 2.679794 | CC138: 3.719955 | CD138: -7.4528 | CE138: 7.129424 | CF138: 0 | CG138: amber | CI138: TRUE
A139: 138 | B139: all_mortality_adj | C139: 2011 | D139: Redbridge | E139: 3.249802279 | F139: 0.2943018985 | G139: 7.792607898 | H139: 9.265914576 | I139: 7.502870051 | J139: 6.811436459 | K139: 8.659698636 | L139: 8.001627844 | M139: 0.04070783936 | N139: 2.715356421 | O139: 5.817186143 | P139: -0.3864733009 | Q139: FALSE | R139: 0.3393505014 | S139: 0.7270003375 | T139: -0.04829933464 | U139: FALSE | V139: 275.213 | W139: 373.6506934 | X139: 800.482625 | Y139: -53.18123829 | Z139: FALSE | AB139: =IF(OR(AND((L139-1.96*M139)<national_data!$H$16,(L139+1.96*M139)<national_data!$H$16),AND((L139-1.96*M139)>national_data!$H$16,(L139+1.96*M139)>national_data!$H$16)),"TRUE","FALSE") -> TRUE | AD139: no clear trend | AH139: -0.3852692505 | AI139: -0.496574955 | AJ139: -0.273963546 | AK139: TRUE | AY139: 12 | AZ139: 11 | BA139: 11.5 | BC139: 76.2 | BD139: 438 | BE139: 257.1 | BF139: 37 | BG139: 93 | BI139: 40.03252762 | BJ139: =IF(AND(L139<national_data!$H$16,AB139="TRUE"),"GREEN",IF(AND(L139>national_data!$H$16,AB139="TRUE"),"RED","AMBER")) -> GREEN | BK139: AMBER | BL139: GREEN | BO139: all_mortality_adj | BP139: Redbridge | BQ139: -0.0482993 | BR139: 0.7270004 | BS139: -0.3864733 | BT139: 5.817186 | BU139: -0.266224 | BV139: 0.3955611 | BW139: 0.5531335 | BX139: -1.350366 | BY139: 0.8179176 | BZ139: 0 | CA139: -2.289112 | CB139: 3.165133 | CC139: 4.497462 | CD139: -11.10414 | CE139: 6.525913 | CF139: 0 | CG139: amber | CI139: TRUE
A140: 139 | B140: all_mortality_adj | C140: 2011 | D140: Redditch and Bromsgrove | E140: 0.312972835 | F140: 0.02834280107 | G140: 10.72943734 | H140: 9.125354306 | I140: 8.710335047 | J140: 8.196184673 | K140: 7.649192101 | L140: 8.495157081 | M140: 0.04691101934 | N140: 3.309332026 | O140: 6.086408832 | P140: 0.5322552204 | Q140: FALSE | R140: 0.3895551306 | S140: 0.7164563026 | T140: 0.06265395864 | U140: FALSE | V140: 172.562 | W140: 285.5324765 | X140: 525.1414404 | Y140: 45.92351267 | Z140: TRUE | AB140: =IF(OR(AND((L140-1.96*M140)<national_data!$H$16,(L140+1.96*M140)<national_data!$H$16),AND((L140-1.96*M140)>national_data!$H$16,(L140+1.96*M140)>national_data!$H$16)),"TRUE","FALSE") -> TRUE | AD140: no clear trend | AH140: 0.09795300543 | AI140: -0.02851712274 | AJ140: 0.2244231336 | AK140: FALSE | AY140: 17 | AZ140: 18 | BA140: 17.5 | BC140: 135.8 | BD140: 654 | BE140: 394.9 | BF140: 178 | BG140: 120 | BI140: 44.41050347 | BJ140: =IF(AND(L140<national_data!$H$16,AB140="TRUE"),"GREEN",IF(AND(L140>national_data!$H$16,AB140="TRUE"),"RED","AMBER")) -> GREEN | BK140: RED | BL140: AMBER | BO140: all_mortality_adj | BP140: Redditch and Bromsgrove | BQ140: 0.062654 | BR140: 0.7164563 | BS140: 0.5322552 | BT140: 6.086409 | BU140: -0.1169554 | BV140: 0.3335726 | BW140: 0.4410368 | BX140: -0.9813876 | BY140: 0.7474768 | BZ140: 0 | CA140: -1.034493 | CB140: 2.833752 | CC140: 3.761974 | CD140: -8.407962 | CE140: 6.338975 | CF140: 0 | CG140: amber | CI140: TRUE
A141: 140 | B141: all_mortality_adj | C141: 2011 | D141: Richmond | H141: 10.97616267 | I141: 7.666132181 | J141: 7.443996047 | K141: 6.485195496 | L141: 7.213634956 | M141: 0.04463370057 | N141: 5.891152681 | O141: 9.454682595 | P141: 2.327622766 | Q141: FALSE | R141: 0.816669088 | S141: 1.31066829 | T141: 0.3226698857 | U141: FALSE | V141: 192.799 | W141: 567.9041728 | X141: 911.4266748 | Y141: 224.3816709 | Z141: TRUE | AB141: =IF(OR(AND((L141-1.96*M141)<national_data!$H$16,(L141+1.96*M141)<national_data!$H$16),AND((L141-1.96*M141)>national_data!$H$16,(L141+1.96*M141)>national_data!$H$16)),"TRUE","FALSE") -> TRUE | AD141: no clear trend | AH141: -0.01315113383 | AI141: -0.1286412734 | AJ141: 0.1023390058 | AK141: FALSE | AY141: 171 | AZ141: 105 | BA141: 138 | BC141: 131.6 | BD141: 523 | BE141: 327.3 | BF141: 169 | BG141: 138 | BI141: 32.5714864 | BJ141: =IF(AND(L141<national_data!$H$16,AB141="TRUE"),"GREEN",IF(AND(L141>national_data!$H$16,AB141="TRUE"),"RED","AMBER")) -> GREEN | BK141: RED | BL141: AMBER | BO141: all_mortality_adj | BP141: Richmond | BQ141: 0.3226699 | BR141: 1.310668 | BS141: 2.327623 | BT141: 9.454682 | BU141: 0.0822327 | BV141: 0.5040808 | BW141: 0.675163 | BX141: -1.241087 | BY141: 1.405552 | BZ141: 0 | CA141: 0.7300595 | CB141: 3.636255 | CC141: 4.815101 | CD141: -8.707538 | CE141: 10.16766 | CF141: 0 | CG141: amber | CI141: TRUE
A142: 141 | B142: all_mortality_adj | C142: 2011 | D142: Rotherham | E142: -1.095770364 | F142: -0.09923289815 | G142: 12.13818054 | H142: 10.13401472 | I142: 8.919878637 | J142: 7.310452344 | K142: 8.310247829 | L142: 9.949573623 | M142: 0.03205649415 | N142: 7.403477718 | O142: 9.639762412 | P142: 5.167193025 | Q142: FALSE | R142: 0.7440999985 | S142: 0.9688618605 | T142: 0.5193381366 | U142: FALSE | V142: 255.344 | W142: 945.2168073 | X142: 1230.727747 | Y142: 659.7058679 | Z142: TRUE | AB142: =IF(OR(AND((L142-1.96*M142)<national_data!$H$16,(L142+1.96*M142)<national_data!$H$16),AND((L142-1.96*M142)>national_data!$H$16,(L142+1.96*M142)>national_data!$H$16)),"TRUE","FALSE") -> TRUE | AD142: no clear trend | AH142: -0.116254348 | AI142: -0.2081383243 | AJ142: -0.02437037167 | AK142: TRUE | AY142: 139 | AZ142: 170 | BA142: 154.5 | BC142: 116 | BD142: 687 | BE142: 401.5 | BF142: 134 | BG142: 172 | BI142: 46.81277407 | BJ142: =IF(AND(L142<national_data!$H$16,AB142="TRUE"),"GREEN",IF(AND(L142>national_data!$H$16,AB142="TRUE"),"RED","AMBER")) -> RED | BK142: RED | BL142: GREEN | BO142: all_mortality_adj | BP142: Rotherham | BQ142: 0.5193381 | BR142: 0.9688619 | BS142: 5.167193 | BT142: 9.639763 | BU142: 0.0659639 | BV142: 0.2293489 | BW142: 0.3331879 | BX142: -0.5870844 | BY142: 0.7190122 | BZ142: 0 | CA142: 0.6950949 | CB142: 2.281924 | CC142: 3.305065 | CD142: -5.782833 | CE142: 7.173023 | CF142: 0 | CG142: amber | CI142: TRUE
A143: 142 | B143: all_mortality_adj | C143: 2011 | D143: Rushcliffe | H143: 5.83575469 | I143: 12.77773737 | J143: 8.699847624 | K143: 6.682996916 | L143: 7.769651561 | M143: 0.05795360215 | N143: 10.79637602 | O143: 15.73881325 | P143: 5.853938798 | Q143: TRUE | R143: 1.389557297 | S143: 2.025678131 | T143: 0.7534364639 | U143: TRUE | V143: 113.09 | W143: 610.4810823 | X143: 889.9511953 | Y143: 331.0109693 | Z143: TRUE | AB143: =IF(OR(AND((L143-1.96*M143)<national_data!$H$16,(L143+1.96*M143)<national_data!$H$16),AND((L143-1.96*M143)>national_data!$H$16,(L143+1.96*M143)>national_data!$H$16)),"TRUE","FALSE") -> TRUE | AD143: no clear trend | AH143: -0.196192376 | AI143: -0.3536971788 | AJ143: -0.03868757313 | AK143: TRUE | AY143: 209 | AZ143: 204 | BA143: 206.5 | BC143: 151 | BD143: 645 | BE143: 398 | BF143: 196 | BG143: 211 | BI143: 33.9963366 | BJ143: =IF(AND(L143<national_data!$H$16,AB143="TRUE"),"GREEN",IF(AND(L143>national_data!$H$16,AB143="TRUE"),"RED","AMBER")) -> GREEN | BK143: RED | BL143: GREEN | BO143: all_mortality_adj | BP143: Rushcliffe | BQ143: 0.7534364 | BR143: 2.025678 | BS143: 5.853939 | BT143: 15.73881 | BU143: 0.5645356 | BV143: 0.6491029 | BW143: 0.9325569 | BX143: -1.263276 | BY143: 2.392347 | BZ143: 0 | CA143: 4.021217 | CB143: 5.043303 | CC143: 7.461199 | CD143: -10.60273 | CE143: 18.64517 | CF143: 0 | CG143: amber | CI143: TRUE
A144: 143 | B144: all_mortality_adj | C144: 2011 | D144: Salford | E144: -0.9934136997 | F144: -0.08996348477 | G144: 12.03582388 | H144: 9.675156176 | I144: 8.356881145 | J144: 7.493887822 | K144: 6.205266868 | L144: 10.20283383 | M144: 0.03521762509 | N144: 7.115090109 | O144: 9.470618203 | P144: 4.759562016 | Q144: FALSE | R144: 0.6973641073 | S144: 0.9282340922 | T144: 0.4664941224 | U144: FALSE | V144: 232.603 | W144: 827.4956523 | X144: 1101.447103 | Y144: 553.5442018 | Z144: TRUE | AB144: =IF(OR(AND((L144-1.96*M144)<national_data!$H$16,(L144+1.96*M144)<national_data!$H$16),AND((L144-1.96*M144)>national_data!$H$16,(L144+1.96*M144)>national_data!$H$16)),"TRUE","FALSE") -> TRUE | AD144: no clear trend | AH144: -0.4246403035 | AI144: -0.5199832586 | AJ144: -0.3292973484 | AK144: TRUE | AY144: 115 | AZ144: 157 | BA144: 136 | BC144: 103.8 | BD144: 727 | BE144: 415.4 | BF144: 93 | BG144: 143 | BI144: 43.76701589 | BJ144: =IF(AND(L144<national_data!$H$16,AB144="TRUE"),"GREEN",IF(AND(L144>national_data!$H$16,AB144="TRUE"),"RED","AMBER")) -> RED | BK144: RED | BL144: GREEN | BO144: all_mortality_adj | BP144: Salford | BQ144: 0.4664941 | BR144: 0.9282341 | BS144: 4.759562 | BT144: 9.470618 | BU144: 0.0990231 | BV144: 0.2355816 | BW144: 0.3382171 | BX144: -0.5638824 | BY144: 0.7619286 | BZ144: 0 | CA144: 0.6660336 | CB144: 2.4036 | CC144: 3.552296 | CD144: -6.296466 | CE144: 7.628533 | CF144: 0 | CG144: amber | CI144: TRUE
A145: 144 | B145: all_mortality_adj | C145: 2011 | D145: Sandwell and West Birmingham | E145: 0.2922396204 | F145: 0.02646520241 | G145: 10.75017056 | H145: 9.132191395 | I145: 7.154051358 | J145: 7.392522301 | L145: 9.8548571 | M145: 0.02545123496 | N145: 8.768766327 | O145: 11.41510976 | P145: 6.122422892 | Q145: TRUE | R145: 0.889791322 | S145: 1.158323215 | T145: 0.6212594287 | U145: TRUE | V145: 448.356 | W145: 1965.764498 | X145: 2559.016476 | Y145: 1372.512519 | Z145: TRUE | AB145: =IF(OR(AND((L145-1.96*M145)<national_data!$H$16,(L145+1.96*M145)<national_data!$H$16),AND((L145-1.96*M145)>national_data!$H$16,(L145+1.96*M145)>national_data!$H$16)),"TRUE","FALSE") -> TRUE | AD145: no clear trend | AH145: -0.4081063495 | AI145: -0.4778948452 | AJ145: -0.3383178538 | AK145: TRUE | AY145: 182 | AZ145: 193 | BA145: 187.5 | BC145: 129.6 | BD145: 683 | BE145: 406.3 | BF145: 165 | BG145: 117 | BI145: 34.42893561 | BJ145: =IF(AND(L145<national_data!$H$16,AB145="TRUE"),"GREEN",IF(AND(L145>national_data!$H$16,AB145="TRUE"),"RED","AMBER")) -> RED | BK145: RED | BL145: GREEN | BO145: all_mortality_adj | BP145: Sandwell and West Birmingham | BQ145: 0.6212595 | BR145: 1.158323 | BS145: 6.122423 | BT145: 11.41511 | BU145: 0.0298483 | BV145: 0.2740121 | BW145: 0.3654593 | BX145: -0.686452 | BY145: 0.7461485 | BZ145: 0 | CA145: 0.1303425 | CB145: 2.700351 | CC145: 3.632194 | CD145: -6.988757 | CE145: 7.249443 | CF145: 0 | CG145: amber | CI145: TRUE
A146: 145 | B146: all_mortality_adj | C146: 2011 | D146: Scarborough and Ryedale | E146: -2.010306147 | F146: -0.1820532035 | G146: 13.05271632 | H146: 10.62713817 | I146: 8.877451237 | J146: 6.693209874 | K146: 7.533743882 | L146: 9.437696902 | M146: 0.05431589595 | N146: 9.324503803 | O146: 12.78956847 | P146: 5.859439132 | Q146: TRUE | R146: 0.9880062795 | S146: 1.35515779 | T146: 0.6208547692 | U146: TRUE | V146: 110.65 | W146: 515.8781729 | X146: 707.5828758 | Y146: 324.17347 | Z146: TRUE | AB146: =IF(OR(AND((L146-1.96*M146)<national_data!$H$16,(L146+1.96*M146)<national_data!$H$16),AND((L146-1.96*M146)>national_data!$H$16,(L146+1.96*M146)>national_data!$H$16)),"TRUE","FALSE") -> TRUE | AD146: no clear trend | AH146: 0.3023498227 | AI146: 0.1610294581 | AJ146: 0.4436701874 | AK146: TRUE | AY146: 195 | AZ146: 198 | BA146: 196.5 | BC146: 131.4 | BD146: 655 | BE146: 393.2 | BF146: 168 | BG146: 192 | BI146: 46.78425948 | BJ146: =IF(AND(L146<national_data!$H$16,AB146="TRUE"),"GREEN",IF(AND(L146>national_data!$H$16,AB146="TRUE"),"RED","AMBER")) -> RED | BK146: RED | BL146: RED | BO146: all_mortality_adj | BP146: Scarborough and Ryedale | BQ146: 0.6208548 | BR146: 1.355158 | BS146: 5.859439 | BT146: 12.78957 | BU146: 0.2354934 | BV146: 0.3746444 | BW146: 0.5143214 | BX146: -0.7725767 | BY146: 1.243563 | BZ146: 0 | CA146: 1.974376 | CB146: 3.535781 | CC146: 4.934345 | CD146: -7.696939 | CE146: 11.64569 | CF146: 0 | CG146: amber | CI146: TRUE
A147: 146 | B147: all_mortality_adj | C147: 2011 | D147: Sheffield | E147: 0.4781757439 | F147: 0.04330356654 | G147: 10.56423443 | H147: 9.806600358 | I147: 8.688093884 | J147: 7.792236245 | K147: 6.785314442 | L147: 9.100899636 | M147: 0.02731592691 | N147: 4.791204944 | O147: 6.315430844 | P147: 3.266979043 | Q147: FALSE | R147: 0.5264539919 | S147: 0.6939347863 | T147: 0.3589731976 | U147: FALSE | V147: 562.208 | W147: 1346.826874 | X147: 1775.292872 | Y147: 918.360877 | Z147: TRUE | AB147: =IF(OR(AND((L147-1.96*M147)<national_data!$H$16,(L147+1.96*M147)<national_data!$H$16),AND((L147-1.96*M147)>national_data!$H$16,(L147+1.96*M147)>national_data!$H$16)),"TRUE","FALSE") -> TRUE | AD147: no clear trend | AH147: -0.2479800447 | AI147: -0.3247231547 | AJ147: -0.1712369347 | AK147: TRUE | AY147: 57 | AZ147: 67 | BA147: 62 | BC147: 88.4 | BD147: 492 | BE147: 290.2 | BF147: 57 | BG147: 70 | BI147: 43.63647936 | BJ147: =IF(AND(L147<national_data!$H$16,AB147="TRUE"),"GREEN",IF(AND(L147>national_data!$H$16,AB147="TRUE"),"RED","AMBER")) -> RED | BK147: RED | BL147: GREEN | BO147: all_mortality_adj | BP147: Sheffield | BQ147: 0.3589732 | BR147: 0.6939348 | BS147: 3.266979 | BT147: 6.315431 | BU147: 0.0234654 | BV147: 0.1708988 | BW147: 0.2511927 | BX147: -0.4688723 | BY147: 0.515803 | BZ147: 0 | CA147: 0.0192254 | CB147: 1.555332 | CC147: 2.338707 | CD147: -4.564641 | CE147: 4.603092 | CF147: 0 | CG147: amber | CI147: TRUE
A148: 147 | B148: all_mortality_adj | C148: 2011 | D148: Shropshire | E148: -0.04555911112 | F148: -0.004125830357 | G148: 11.08796929 | H148: 9.006070426 | I148: 8.454851819 | J148: 7.329197226 | K148: 7.16436826 | L148: 8.160206152 | M148: 0.02968212704 | N148: 4.047809211 | O148: 6.45375384 | P148: 1.641864581 | Q148: FALSE | R148: 0.4960425185 | S148: 0.7908812253 | T148: 0.2012038116 | U148: FALSE | V148: 293.932 | W148: 594.8903285 | X148: 948.4823869 | Y148: 241.29827 | Z148: TRUE | AB148: =IF(OR(AND((L148-1.96*M148)<national_data!$H$16,(L148+1.96*M148)<national_data!$H$16),AND((L148-1.96*M148)>national_data!$H$16,(L148+1.96*M148)>national_data!$H$16)),"TRUE","FALSE") -> TRUE | AD148: no clear trend | AH148: -0.6032639684 | AI148: -0.6817707639 | AJ148: -0.5247571729 | AK148: TRUE | AY148: 47 | AZ148: 41 | BA148: 44 | BC148: 50 | BD148: 225 | BE148: 137.5 | BF148: 7 | BG148: 28 | BI148: 43.04245702 | BJ148: =IF(AND(L148<national_data!$H$16,AB148="TRUE"),"GREEN",IF(AND(L148>national_data!$H$16,AB148="TRUE"),"RED","AMBER")) -> GREEN | BK148: RED | BL148: GREEN | BO148: all_mortality_adj | BP148: Shropshire | BQ148: 0.2012038 | BR148: 0.7908812 | BS148: 1.641865 | BT148: 6.453754 | BU148: -0.0393785 | BV148: 0.3008558 | BW148: 0.4122552 | BX148: -0.8473987 | BY148: 0.7686417 | BZ148: 0 | CA148: -0.4446202 | CB148: 2.455046 | CC148: 3.408786 | CD148: -7.125841 | CE148: 6.2366 | CF148: 0 | CG148: amber | CI148: TRUE
A149: 148 | B149: all_mortality_adj | C149: 2011 | D149: Slough | E149: 1.095186845 | F149: 0.09918005468 | G149: 9.947223331 | H149: 9.200730279 | I149: 6.601703992 | J149: 6.104084021 | L149: 8.222097414 | M149: 0.05077224426 | N149: 9.124635871 | O149: 13.99309865 | P149: 4.25617309 | Q149: FALSE | R149: 1.109769857 | S149: 1.701889183 | T149: 0.5176505307 | U149: FALSE | V149: 134.262 | W149: 612.5459307 | X149: 939.3707056 | Y149: 285.7211557 | Z149: TRUE | AB149: =IF(OR(AND((L149-1.96*M149)<national_data!$H$16,(L149+1.96*M149)<national_data!$H$16),AND((L149-1.96*M149)>national_data!$H$16,(L149+1.96*M149)>national_data!$H$16)),"TRUE","FALSE") -> TRUE | AD149: no clear trend | AH149: 0.1637913853 | AI149: 0.01457412744 | AJ149: 0.3130086431 | AK149: TRUE | AY149: 201 | AZ149: 195 | BA149: 198 | BC149: 101 | BD149: 525 | BE149: 313 | BF149: 81 | BG149: 193 | BI149: 31.85374162 | BJ149: =IF(AND(L149<national_data!$H$16,AB149="TRUE"),"GREEN",IF(AND(L149>national_data!$H$16,AB149="TRUE"),"RED","AMBER")) -> GREEN | BK149: RED | BL149: RED | BO149: all_mortality_adj | BP149: Slough | BQ149: 0.5176505 | BR149: 1.701889 | BS149: 4.256173 | BT149: 13.9931 | BU149: 0.2999652 | BV149: 0.6042034 | BW149: 0.8317807 | BX149: -1.330325 | BY149: 1.930255 | BZ149: 0 | CA149: 2.411891 | CB149: 4.967819 | CC149: 6.865457 | CD149: -11.0444 | CE149: 15.86819 | CF149: 0 | CG149: amber | CI149: TRUE
A150: 149 | B150: all_mortality_adj | C150: 2011 | D150: Solihull | E150: 0.8603958732 | F150: 0.07791739841 | G150: 10.1820143 | H150: 10.02130336 | I150: 8.349727653 | J150: 7.103033761 | K150: 5.901496144 | L150: 7.500672406 | M150: 0.04206989801 | N150: 5.53703299 | O150: 7.268980514 | P150: 3.805085465 | Q150: FALSE | R150: 0.7382048822 | S150: 0.9691105172 | T150: 0.5072992473 | U150: FALSE | V150: 205.06 | W150: 567.7119925 | X150: 745.2885721 | Y150: 390.1354128 | Z150: TRUE | AB150: =IF(OR(AND((L150-1.96*M150)<national_data!$H$16,(L150+1.96*M150)<national_data!$H$16),AND((L150-1.96*M150)>national_data!$H$16,(L150+1.96*M150)>national_data!$H$16)),"TRUE","FALSE") -> TRUE | AD150: no clear trend | AH150: -0.07271594257 | AI150: -0.1865809502 | AJ150: 0.04114906508 | AK150: FALSE | AY150: 132 | AZ150: 92 | BA150: 112 | BC150: 122 | BD150: 615 | BE150: 368.5 | BF150: 155 | BG150: 123 | BI150: 41.55757522 | BJ150: =IF(AND(L150<national_data!$H$16,AB150="TRUE"),"GREEN",IF(AND(L150>national_data!$H$16,AB150="TRUE"),"RED","AMBER")) -> GREEN | BK150: RED | BL150: AMBER | BO150: all_mortality_adj | BP150: Solihull | BQ150: 0.5072992 | BR150: 0.9691105 | BS150: 3.805085 | BT150: 7.268981 | BU150: -0.0738374 | BV150: 0.235618 | BW150: 0.3165157 | BX150: -0.694208 | BY150: 0.5465333 | BZ150: 0 | CA150: -0.9034084 | CB150: 1.767293 | CC150: 2.435773 | CD150: -5.677523 | CE150: 3.870707 | CF150: 0 | CG150: amber | CI150: TRUE
A151: 150 | B151: all_mortality_adj | C151: 2011 | D151: Somerset | E151: 0.02119993114 | F151: 0.001919864486 | G151: 11.02121025 | H151: 8.837662519 | I151: 7.752594365 | J151: 7.857266783 | K151: 5.659063904 | L151: 7.812920943 | M151: 0.0257024773 | N151: 4.827355422 | O151: 6.6070116 | P151: 3.047699244 | Q151: FALSE | R151: 0.6178682028 | S151: 0.8456519205 | T151: 0.3900844852 | U151: FALSE | V151: 528.35 | W151: 1275.266619 | X151: 1745.407289 | Y151: 805.1259477 | Z151: TRUE | AB151: =IF(OR(AND((L151-1.96*M151)<national_data!$H$16,(L151+1.96*M151)<national_data!$H$16),AND((L151-1.96*M151)>national_data!$H$16,(L151+1.96*M151)>national_data!$H$16)),"TRUE","FALSE") -> TRUE | AD151: no clear trend | AH151: -0.3543516458 | AI151: -0.4229684603 | AJ151: -0.2857348314 | AK151: TRUE | AY151: 87 | AZ151: 70 | BA151: 78.5 | BC151: 104.6 | BD151: 472 | BE151: 288.3 | BF151: 97 | BG151: 44 | BI151: 41.12779782 | BJ151: =IF(AND(L151<national_data!$H$16,AB151="TRUE"),"GREEN",IF(AND(L151>national_data!$H$16,AB151="TRUE"),"RED","AMBER")) -> GREEN | BK151: RED | BL151: GREEN | BO151: all_mortality_adj | BP151: Somerset | BQ151: 0.3900845 | BR151: 0.8456519 | BS151: 3.047699 | BT151: 6.607012 | BU151: 0.1438759 | BV151: 0.2324324 | BW151: 0.3256715 | BX151: -0.4944402 | BY151: 0.7821921 | BZ151: 0 | CA151: 0.9602556 | CB151: 1.815976 | CC151: 2.600284 | CD151: -4.136301 | CE151: 6.056812 | CF151: 0 | CG151: amber | CI151: TRUE
A152: 151 | B152: all_mortality_adj | C152: 2011 | D152: South Cheshire | E152: -2.77703211 | F152: -0.2514878604 | G152: 13.81944229 | H152: 9.625767574 | I152: 9.276224645 | J152: 8.566267176 | K152: 6.638535113 | L152: 8.681828911 | M152: 0.04407558246 | N152: 6.806401782 | O152: 9.002385392 | P152: 4.610418171 | Q152: FALSE | R152: 0.7839824824 | S152: 1.03692269 | T152: 0.5310422745 | U152: FALSE | V152: 174.223 | W152: 592.9158688 | X152: 784.2112951 | Y152: 401.6204425 | Z152: TRUE | AB152: =IF(OR(AND((L152-1.96*M152)<national_data!$H$16,(L152+1.96*M152)<national_data!$H$16),AND((L152-1.96*M152)>national_data!$H$16,(L152+1.96*M152)>national_data!$H$16)),"TRUE","FALSE") -> FALSE | AD152: no clear trend | AH152: -0.4527621211 | AI152: -0.5784902528 | AJ152: -0.3270339894 | AK152: TRUE | AY152: 158 | AZ152: 148 | BA152: 153 | BC152: 113.8 | BD152: 609 | BE152: 361.4 | BF152: 128 | BG152: 171 | BI152: 47.92623679 | BJ152: =IF(AND(L152<national_data!$H$16,AB152="TRUE"),"GREEN",IF(AND(L152>national_data!$H$16,AB152="TRUE"),"RED","AMBER")) -> AMBER | BK152: RED | BL152: GREEN | BO152: all_mortality_adj | BP152: South Cheshire | BQ152: 0.5310423 | BR152: 1.036923 | BS152: 4.610418 | BT152: 9.002385 | BU152: 0.1049589 | BV152: 0.2581022 | BW152: 0.3530673 | BX152: -0.5870531 | BY152: 0.7969708 | BZ152: 0 | CA152: 0.5525432 | CB152: 2.240799 | CC152: 3.15348 | CD152: -5.628277 | CE152: 6.733363 | CF152: 0 | CG152: amber | CI152: TRUE
A153: 152 | B153: all_mortality_adj | C153: 2011 | D153: South Devon and Torbay | E153: 0.6727286744 | F153: 0.06092226821 | G153: 10.3696815 | H153: 9.188290152 | I153: 7.785856575 | J153: 7.749081978 | K153: 5.979358661 | L153: 8.338371794 | M153: 0.02665562076 | N153: 4.358929408 | O153: 6.223012001 | P153: 2.494846814 | Q153: FALSE | R153: 0.522755463 | S153: 0.7463102096 | T153: 0.2992007164 | U153: FALSE | V153: 277.806 | W153: 605.4683715 | X153: 864.395036 | Y153: 346.5417071 | Z153: TRUE | AB153: =IF(OR(AND((L153-1.96*M153)<national_data!$H$16,(L153+1.96*M153)<national_data!$H$16),AND((L153-1.96*M153)>national_data!$H$16,(L153+1.96*M153)>national_data!$H$16)),"TRUE","FALSE") -> TRUE | AD153: no clear trend | AH153: -0.4045321275 | AI153: -0.4786984275 | AJ153: -0.3303658274 | AK153: TRUE | AY153: 54 | AZ153: 54 | BA153: 54 | BC153: 88.6 | BD153: 431 | BE153: 259.8 | BF153: 58 | BG153: 25 | BI153: 41.07226887 | BJ153: =IF(AND(L153<national_data!$H$16,AB153="TRUE"),"GREEN",IF(AND(L153>national_data!$H$16,AB153="TRUE"),"RED","AMBER")) -> GREEN | BK153: RED | BL153: GREEN | BO153: all_mortality_adj | BP153: South Devon and Torbay | BQ153: 0.2992007 | BR153: 0.7463102 | BS153: 2.494847 | BT153: 6.223012 | BU153: -0.0281173 | BV153: 0.2281171 | BW153: 0.3271373 | BX153: -0.6693064 | BY153: 0.6130718 | BZ153: 0 | CA153: -0.3598315 | CB153: 1.902125 | CC153: 2.766295 | CD153: -5.78177 | CE153: 5.062107 | CF153: 0 | CG153: amber | CI153: TRUE
A154: 153 | B154: all_mortality_adj | C154: 2011 | D154: South East Staffs and Seisdon and Peninsular | E154: 0.5256079652 | F154: 0.04759902565 | G154: 10.51680221 | H154: 10.09517556 | I154: 8.791205656 | J154: 7.253115182 | K154: 6.373561216 | L154: 7.925431807 | M154: 0.03985190386 | N154: 5.998303792 | O154: 8.290831519 | P154: 3.705776066 | Q154: FALSE | R154: 0.7568425215 | S154: 1.046104707 | T154: 0.4675803358 | U154: FALSE | V154: 218.883 | W154: 656.4633645 | X154: 907.3610377 | Y154: 405.5656913 | Z154: TRUE | AB154: =IF(OR(AND((L154-1.96*M154)<national_data!$H$16,(L154+1.96*M154)<national_data!$H$16),AND((L154-1.96*M154)>national_data!$H$16,(L154+1.96*M154)>national_data!$H$16)),"TRUE","FALSE") -> TRUE | AD154: no clear trend | AH154: -0.1932223423 | AI154: -0.3015790168 | AJ154: -0.08486566788 | AK154: TRUE | AY154: 147 | AZ154: 109 | BA154: 128 | BC154: 105.8 | BD154: 463 | BE154: 284.4 | BF154: 103 | BG154: 80 | BI154: 43.02985982 | BJ154: =IF(AND(L154<national_data!$H$16,AB154="TRUE"),"GREEN",IF(AND(L154>national_data!$H$16,AB154="TRUE"),"RED","AMBER")) -> GREEN | BK154: RED | BL154: GREEN | BO154: all_mortality_adj | BP154: South East Staffs and Seisdon and Peninsular | BQ154: 0.4675803 | BR154: 1.046105 | BS154: 3.705776 | BT154: 8.290832 | BU154: 0.0250909 | BV154: 0.2951655 | BW154: 0.4153929 | BX154: -0.7890792 | BY154: 0.8392611 | BZ154: 0 | CA154: -0.0661663 | CB154: 2.339314 | CC154: 3.367493 | CD154: -6.666452 | CE154: 6.534119 | CF154: 0 | CG154: amber | CI154: TRUE
A155: 154 | B155: all_mortality_adj | C155: 2011 | D155: South Eastern Hampshire | E155: 1.60343952 | F155: 0.1452073863 | G155: 9.438970656 | H155: 10.121685 | I155: 8.583776785 | J155: 7.179132326 | K155: 8.147371706 | L155: 8.316885369 | M155: 0.03655681377 | N155: 2.522929887 | O155: 4.627144505 | P155: 0.4187152682 | Q155: TRUE | R155: 0.3033503258 | S155: 0.5563554504 | T155: 0.05034520131 | U155: TRUE | V155: 202.993 | W155: 256.0685533 | X155: 469.6389723 | Y155: 42.49813422 | Z155: TRUE | AB155: =IF(OR(AND((L155-1.96*M155)<national_data!$H$16,(L155+1.96*M155)<national_data!$H$16),AND((L155-1.96*M155)>national_data!$H$16,(L155+1.96*M155)>national_data!$H$16)),"TRUE","FALSE") -> TRUE | AD155: no clear trend | AH155: 0.4700534573 | AI155: 0.3718804228 | AJ155: 0.5682264917 | AK155: TRUE | AY155: 8 | AZ155: 7 | BA155: 7.5 | BC155: 68.8 | BD155: 304 | BE155: 186.4 | BF155: 24 | BG155: 8 | BI155: 43.47093647 | BJ155: =IF(AND(L155<national_data!$H$16,AB155="TRUE"),"GREEN",IF(AND(L155>national_data!$H$16,AB155="TRUE"),"RED","AMBER")) -> GREEN | BK155: RED | BL155: RED | BO155: all_mortality_adj | BP155: South Eastern Hampshire | BQ155: 0.0503452 | BR155: 0.5563555 | BS155: 0.4187153 | BT155: 4.627144 | BU155: 0.0208026 | BV155: 0.2581685 | BW155: 0.3663108 | BX155: -0.6971665 | BY155: 0.7387717 | BZ155: 0 | CA155: 0.3314531 | CB155: 2.147158 | CC155: 2.944976 | CD155: -5.4407 | CE155: 6.103606 | CF155: 0 | CG155: amber | CI155: TRUE
A156: 155 | B156: all_mortality_adj | C156: 2011 | D156: South Gloucestershire | E156: -0.3565017885 | F156: -0.03228478048 | G156: 11.39891197 | H156: 8.563430305 | I156: 8.560035901 | J156: 7.150186377 | K156: 6.400409014 | L156: 7.257357871 | M156: 0.03888020167 | N156: 5.053967032 | O156: 7.421190449 | P156: 2.686743614 | Q156: FALSE | R156: 0.6963921473 | S156: 1.022574686 | T156: 0.3702096083 | U156: FALSE | V156: 267.334 | W156: 675.5486112 | X156: 991.9682638 | Y156: 359.1289587 | Z156: TRUE | AB156: =IF(OR(AND((L156-1.96*M156)<national_data!$H$16,(L156+1.96*M156)<national_data!$H$16),AND((L156-1.96*M156)>national_data!$H$16,(L156+1.96*M156)>national_data!$H$16)),"TRUE","FALSE") -> TRUE | AD156: no clear trend | AH156: 0.1296698613 | AI156: 0.02471720719 | AJ156: 0.2346225154 | AK156: TRUE | AY156: 114 | AZ156: 80 | BA156: 97 | BC156: 90.2 | BD156: 322 | BE156: 206.1 | BF156: 59 | BG156: 31 | BI156: 42.07297356 | BJ156: =IF(AND(L156<national_data!$H$16,AB156="TRUE"),"GREEN",IF(AND(L156>national_data!$H$16,AB156="TRUE"),"RED","AMBER")) -> GREEN | BK156: RED | BL156: RED | BO156: all_mortality_adj | BP156: South Gloucestershire | BQ156: 0.3702096 | BR156: 1.022575 | BS156: 2.686743 | BT156: 7.42119 | BU156: -0.1873962 | BV156: 0.3328393 | BW156: 0.4449914 | BX156: -1.059579 | BY156: 0.6847871 | BZ156: 0 | CA156: -1.731342 | CB156: 2.415534 | CC156: 3.313132 | CD156: -8.225081 | CE156: 4.762397 | CF156: 0 | CG156: amber | CI156: TRUE
A157: 156 | B157: all_mortality_adj | C157: 2011 | D157: South Kent Coast | E157: -0.4121081383 | F157: -0.03732048817 | G157: 11.45451831 | H157: 9.454617362 | I157: 8.334023648 | J157: 7.492590502 | K157: 7.648072524 | L157: 8.991654749 | M157: 0.03455762084 | N157: 5.631505855 | O157: 8.161797843 | P157: 3.101213867 | Q157: FALSE | R157: 0.6263036129 | S157: 0.9077080994 | T157: 0.3448991263 | U157: FALSE | V157: 191.725 | W157: 539.85023 | X157: 782.4103457 | Y157: 297.2901143 | Z157: TRUE | AB157: =IF(OR(AND((L157-1.96*M157)<national_data!$H$16,(L157+1.96*M157)<national_data!$H$16),AND((L157-1.96*M157)>national_data!$H$16,(L157+1.96*M157)>national_data!$H$16)),"TRUE","FALSE") -> TRUE | AD157: no clear trend | AH157: 0.3393001248 | AI157: 0.2497651825 | AJ157: 0.428835067 | AK157: TRUE | AY157: 92 | AZ157: 94 | BA157: 93 | BC157: 101.2 | BD157: 559 | BE157: 330.1 | BF157: 85 | BG157: 113 | BI157: 44.38382235 | BJ157: =IF(AND(L157<national_data!$H$16,AB157="TRUE"),"GREEN",IF(AND(L157>national_data!$H$16,AB157="TRUE"),"RED","AMBER")) -> RED | BK157: RED | BL157: RED | BO157: all_mortality_adj | BP157: South Kent Coast | BQ157: 0.3448991 | BR157: 0.9077081 | BS157: 3.101214 | BT157: 8.161798 | BU157: 0.1797994 | BV157: 0.2871474 | BW157: 0.3875394 | BX157: -0.5797779 | BY157: 0.9393767 | BZ157: 0 | CA157: 1.645891 | CB157: 2.58193 | CC157: 3.473215 | CD157: -5.161611 | CE157: 8.453393 | CF157: 0 | CG157: amber | CI157: TRUE
A158: 157 | B158: all_mortality_adj | C158: 2011 | D158: South Lincolnshire | H158: 8.18747168 | I158: 8.171590262 | J158: 8.27976511 | K158: 7.227977333 | L158: 7.914710016 | M158: 0.04161491139 | N158: 2.565205354 | O158: 5.754408796 | P158: -0.6239980874 | Q158: FALSE | R158: 0.3241060442 | S158: 0.7270523853 | T158: -0.07884029689 | U158: FALSE | V158: 137.021 | W158: 175.7435014 | X158: 394.2374238 | Y158: -42.75042097 | Z158: FALSE | AB158: =IF(OR(AND((L158-1.96*M158)<national_data!$H$16,(L158+1.96*M158)<national_data!$H$16),AND((L158-1.96*M158)>national_data!$H$16,(L158+1.96*M158)>national_data!$H$16)),"TRUE","FALSE") -> TRUE | AD158: no clear trend | AH158: -0.05290678001 | AI158: -0.1630253799 | AJ158: 0.05721181984 | AK158: FALSE | AY158: 11 | AZ158: 8 | BA158: 9.5 | BC158: 92.2 | BD158: 480 | BE158: 286.1 | BF158: 62 | BG158: 22 | BI158: 31.86680438 | BJ158: =IF(AND(L158<national_data!$H$16,AB158="TRUE"),"GREEN",IF(AND(L158>national_data!$H$16,AB158="TRUE"),"RED","AMBER")) -> GREEN | BK158: AMBER | BL158: AMBER | BO158: all_mortality_adj | BP158: South Lincolnshire | BQ158: -0.0788403 | BR158: 0.7270524 | BS158: -0.6239981 | BT158: 5.754409 | BU158: -0.3230003 | BV158: 0.4111697 | BW158: 0.5580873 | BX158: -1.416851 | BY158: 0.7708507 | BZ158: 0 | CA158: -2.758862 | CB158: 3.254289 | CC158: 4.497751 | CD158: -11.57445 | CE158: 6.05673 | CF158: 0 | CG158: amber | CI158: TRUE
A159: 158 | B159: all_mortality_adj | C159: 2011 | D159: South Manchester | E159: -1.322917039 | F159: -0.1198032873 | G159: 12.36532722 | H159: 10.61878755 | I159: 7.460321902 | J159: 9.736095388 | K159: 3.014774271 | L159: 10.93429086 | M159: 0.04545532164 | N159: 8.081593202 | O159: 12.18733863 | P159: 3.975847776 | Q159: FALSE | R159: 0.7391053802 | S159: 1.114597991 | T159: 0.363612769 | U159: FALSE | V159: 163.654 | W159: 661.2925269 | X159: 997.2533579 | Y159: 325.331696 | Z159: TRUE | AB159: =IF(OR(AND((L159-1.96*M159)<national_data!$H$16,(L159+1.96*M159)<national_data!$H$16),AND((L159-1.96*M159)>national_data!$H$16,(L159+1.96*M159)>national_data!$H$16)),"TRUE","FALSE") -> TRUE | AD159: no clear trend | AH159: -0.3011487673 | AI159: -0.4203715318 | AJ159: -0.1819260027 | AK159: TRUE | AY159: 133 | AZ159: 184 | BA159: 158.5 | BC159: 152.2 | BD159: 868 | BE159: 510.1 | BF159: 199 | BG159: 141 | BI159: 43.19530633 | BJ159: =IF(AND(L159<national_data!$H$16,AB159="TRUE"),"GREEN",IF(AND(L159>national_data!$H$16,AB159="TRUE"),"RED","AMBER")) -> RED | BK159: RED | BL159: GREEN | BO159: all_mortality_adj | BP159: South Manchester | BQ159: 0.3636128 | BR159: 1.114598 | BS159: 3.975848 | BT159: 12.18734 | BU159: 0.1149866 | BV159: 0.3831557 | BW159: 0.5451796 | BX159: -0.9535654 | BY159: 1.183539 | BZ159: 0 | CA159: 1.646533 | CB159: 4.189536 | CC159: 5.791584 | CD159: -9.70497 | CE159: 12.99804 | CF159: 0 | CG159: amber | CI159: TRUE
A160: 159 | B160: all_mortality_adj | C160: 2011 | D160: South Norfolk | E160: -2.192450181 | F160: -0.1985481562 | G160: 13.23486036 | H160: 8.552476028 | I160: 8.750445138 | J160: 7.548925869 | K160: 7.756487404 | L160: 8.078857009 | M160: 0.03326007537 | N160: 2.443634143 | O160: 5.365100156 | P160: -0.4778318695 | Q160: FALSE | R160: 0.3024727558 | S160: 0.664091486 | T160: -0.05914597436 | U160: FALSE | V160: 232.458 | W160: 284.0211529 | X160: 623.5802261 | Y160: -55.53792036 | Z160: FALSE | AB160: =IF(OR(AND((L160-1.96*M160)<national_data!$H$16,(L160+1.96*M160)<national_data!$H$16),AND((L160-1.96*M160)>national_data!$H$16,(L160+1.96*M160)>national_data!$H$16)),"TRUE","FALSE") -> TRUE | AD160: no clear trend | AH160: 0.1009387828 | AI160: 0.008136708485 | AJ160: 0.1937408571 | AK160: TRUE | AY160: 7 | AZ160: 6 | BA160: 6.5 | BC160: 64.6 | BD160: 323 | BE160: 193.8 | BF160: 21 | BG160: 15 | BI160: 45.8431948 | BJ160: =IF(AND(L160<national_data!$H$16,AB160="TRUE"),"GREEN",IF(AND(L160>national_data!$H$16,AB160="TRUE"),"RED","AMBER")) -> GREEN | BK160: AMBER | BL160: RED | BO160: all_mortality_adj | BP160: South Norfolk | BQ160: -0.059146 | BR160: 0.6640915 | BS160: -0.4778319 | BT160: 5.3651 | BU160: -0.089529 | BV160: 0.3689987 | BW160: 0.5148948 | BX160: -1.098723 | BY160: 0.9196647 | BZ160: 0 | CA160: -0.7172884 | CB160: 2.981088 | CC160: 4.155928 | CD160: -8.862906 | CE160: 7.42833 | CF160: 0 | CG160: amber | CI160: TRUE
A161: 160 | B161: all_mortality_adj | C161: 2011 | D161: South Reading | E161: 0.8944909586 | F161: 0.0810050473 | G161: 10.14791922 | H161: 11.72923313 | I161: 7.69965025 | J161: 9.49458789 | K161: 4.076439224 | L161: 10.00001487 | M161: 0.05389834385 | N161: 6.220637645 | O161: 11.44556607 | P161: 0.9957092162 | Q161: FALSE | R161: 0.6220628396 | S161: 1.144554906 | T161: 0.09957077358 | U161: FALSE | V161: 106.486 | W161: 331.2054101 | X161: 609.3962744 | Y161: 53.0145458 | Z161: TRUE | AB161: =IF(OR(AND((L161-1.96*M161)<national_data!$H$16,(L161+1.96*M161)<national_data!$H$16),AND((L161-1.96*M161)>national_data!$H$16,(L161+1.96*M161)>national_data!$H$16)),"TRUE","FALSE") -> TRUE | AD161: no clear trend | AH161: 0.472154153 | AI161: 0.3147884641 | AJ161: 0.6295198418 | AK161: TRUE | AY161: 89 | AZ161: 119 | BA161: 104 | BC161: 97 | BD161: 510 | BE161: 303.5 | BF161: 70 | BG161: 103 | BI161: 43.14782971 | BJ161: =IF(AND(L161<national_data!$H$16,AB161="TRUE"),"GREEN",IF(AND(L161>national_data!$H$16,AB161="TRUE"),"RED","AMBER")) -> RED | BK161: RED | BL161: RED | BO161: all_mortality_adj | BP161: South Reading | BQ161: 0.0995708 | BR161: 1.144555 | BS161: 0.9957092 | BT161: 11.44557 | BU161: 0.2777678 | BV161: 0.5331551 | BW161: 0.7856344 | BX161: -1.262076 | BY161: 1.817611 | BZ161: 0 | CA161: 3.098936 | CB161: 5.33156 | CC161: 7.469841 | CD161: -11.54195 | CE161: 17.73982 | CF161: 0 | CG161: amber | CI161: TRUE
A162: 161 | B162: all_mortality_adj | C162: 2011 | D162: South Sefton | E162: -0.6473755779 | F162: -0.05862629332 | G162: 11.68978575 | H162: 9.107449028 | I162: 7.620123272 | J162: 7.960006593 | K162: 6.661386917 | L162: 9.292700744 | M162: 0.04038593864 | N162: 6.859409981 | O162: 9.269442804 | P162: 4.449377159 | Q162: FALSE | R162: 0.738150315 | S162: 0.9974971819 | T162: 0.4788034482 | U162: FALSE | V162: 158.41 | W162: 543.2995676 | X162: 734.1862173 | Y162: 352.4129179 | Z162: TRUE | AB162: =IF(OR(AND((L162-1.96*M162)<national_data!$H$16,(L162+1.96*M162)<national_data!$H$16),AND((L162-1.96*M162)>national_data!$H$16,(L162+1.96*M162)>national_data!$H$16)),"TRUE","FALSE") -> TRUE | AD162: no clear trend | AH162: -0.1273704779 | AI162: -0.2430254422 | AJ162: -0.01171551348 | AK162: TRUE | AY162: 131 | AZ162: 150 | BA162: 140.5 | BC162: 99 | BD162: 552 | BE162: 325.5 | BF162: 75 | BG162: 152 | BI162: 43.03875156 | BJ162: =IF(AND(L162<national_data!$H$16,AB162="TRUE"),"GREEN",IF(AND(L162>national_data!$H$16,AB162="TRUE"),"RED","AMBER")) -> RED | BK162: RED | BL162: GREEN | BO162: all_mortality_adj | BP162: South Sefton | BQ162: 0.4788035 | BR162: 0.9974972 | BS162: 4.449377 | BT162: 9.269443 | BU162: -0.1266154 | BV162: 0.2646397 | BW162: 0.3724649 | BX162: -0.8566466 | BY162: 0.6034157 | BZ162: 0 | CA162: -1.989496 | CB162: 2.459217 | CC162: 3.638791 | CD162: -9.121526 | CE162: 5.142535 | CF162: 0 | CG162: amber | CI162: TRUE
A163: 162 | B163: all_mortality_adj | C163: 2011 | D163: South Tees | E163: -0.6297869777 | F163: -0.05703347074 | G163: 11.67219715 | H163: 9.537983064 | I163: 8.30121077 | J163: 7.423816607 | K163: 7.311010261 | L163: 9.773217397 | M163: 0.03404399879 | N163: 6.316235698 | O163: 8.274837673 | P163: 4.357633724 | Q163: FALSE | R163: 0.6462800777 | S163: 0.8466851127 | T163: 0.4458750427 | U163: FALSE | V163: 281.452 | W163: 888.8585849 | X163: 1164.484806 | Y163: 613.2323634 | Z163: TRUE | AB163: =IF(OR(AND((L163-1.96*M163)<national_data!$H$16,(L163+1.96*M163)<national_data!$H$16),AND((L163-1.96*M163)>national_data!$H$16,(L163+1.96*M163)>national_data!$H$16)),"TRUE","FALSE") -> TRUE | AD163: no clear trend | AH163: 0.05312409864 | AI163: -0.04638944564 | AJ163: 0.1526376429 | AK163: FALSE | AY163: 100 | AZ163: 126 | BA163: 113 | BC163: 101 | BD163: 604 | BE163: 352.5 | BF163: 81 | BG163: 35 | BI163: 44.24621786 | BJ163: =IF(AND(L163<national_data!$H$16,AB163="TRUE"),"GREEN",IF(AND(L163>national_data!$H$16,AB163="TRUE"),"RED","AMBER")) -> RED | BK163: RED | BL163: AMBER | BO163: all_mortality_adj | BP163: South Tees | BQ163: 0.445875 | BR163: 0.8466851 | BS163: 4.357634 | BT163: 8.274837 | BU163: -0.1889617 | BV163: 0.2044949 | BW163: 0.3096789 | BX163: -0.7959322 | BY163: 0.4180089 | BZ163: 0 | CA163: -1.858779 | CB163: 1.998573 | CC163: 3.029072 | CD163: -7.79576 | CE163: 4.078202 | CF163: 0 | CG163: amber | CI163: TRUE
A164: 163 | B164: all_mortality_adj | C164: 2011 | D164: South Tyneside | E164: -0.4233320009 | F164: -0.03833692049 | G164: 11.46574218 | H164: 10.50070488 | I164: 8.087209727 | J164: 7.53219494 | K164: 7.440609253 | L164: 9.883936021 | M164: 0.04171174819 | N164: 5.994384914 | O164: 8.776797975 | P164: 3.211971852 | Q164: FALSE | R164: 0.6064775107 | S164: 0.8879861178 | T164: 0.3249689036 | U164: FALSE | V164: 154.187 | W164: 462.1281134 | X164: 676.6340747 | Y164: 247.622152 | Z164: TRUE | AB164: =IF(OR(AND((L164-1.96*M164)<national_data!$H$16,(L164+1.96*M164)<national_data!$H$16),AND((L164-1.96*M164)>national_data!$H$16,(L164+1.96*M164)>national_data!$H$16)),"TRUE","FALSE") -> TRUE | AD164: no clear trend | AH164: -0.0994025433 | AI164: -0.2180393965 | AJ164: 0.01923430985 | AK164: FALSE | AY164: 82 | AZ164: 108 | BA164: 95 | BC164: 93.2 | BD164: 595 | BE164: 344.1 | BF164: 64 | BG164: 133 | BI164: 45.02646098 | BJ164: =IF(AND(L164<national_data!$H$16,AB164="TRUE"),"GREEN",IF(AND(L164>national_data!$H$16,AB164="TRUE"),"RED","AMBER")) -> RED | BK164: RED | BL164: AMBER | BO164: all_mortality_adj | BP164: South Tyneside | BQ164: 0.3249689 | BR164: 0.8879861 | BS164: 3.211972 | BT164: 8.776798 | BU164: -0.1875043 | BV164: 0.2872537 | BW164: 0.3955322 | BX164: -0.9627475 | BY164: 0.5877389 | BZ164: 0 | CA164: -2.313519 | CB164: 2.839197 | CC164: 4.019392 | CD164: -10.19153 | CE164: 5.56449 | CF164: 0 | CG164: amber | CI164: TRUE
A165: 164 | B165: all_mortality_adj | C165: 2011 | D165: South Warwickshire | E165: 1.520535311 | F165: 0.1376995861 | G165: 9.521874866 | H165: 10.75115476 | I165: 9.13113151 | J165: 7.727761096 | K165: 6.361145535 | L165: 7.647755178 | M165: 0.03574337241 | N165: 7.204597956 | O165: 9.715110479 | P165: 4.694085433 | Q165: FALSE | R165: 0.9420539476 | S165: 1.270321846 | T165: 0.6137860487 | U165: TRUE | V165: 257.71 | W165: 928.3484696 | X165: 1251.840561 | Y165: 604.8563784 | Z165: TRUE | AB165: =IF(OR(AND((L165-1.96*M165)<national_data!$H$16,(L165+1.96*M165)<national_data!$H$16),AND((L165-1.96*M165)>national_data!$H$16,(L165+1.96*M165)>national_data!$H$16)),"TRUE","FALSE") -> TRUE | AD165: no clear trend | AH165: -0.2939228867 | AI165: -0.3941092047 | AJ165: -0.1937365688 | AK165: TRUE | AY165: 189 | AZ165: 164 | BA165: 176.5 | BC165: 142.2 | BD165: 542 | BE165: 342.1 | BF165: 188 | BG165: 191 | BI165: 43.49306776 | BJ165: =IF(AND(L165<national_data!$H$16,AB165="TRUE"),"GREEN",IF(AND(L165>national_data!$H$16,AB165="TRUE"),"RED","AMBER")) -> GREEN | BK165: RED | BL165: GREEN | BO165: all_mortality_adj | BP165: South Warwickshire | BQ165: 0.613786 | BR165: 1.270322 | BS165: 4.694086 | BT165: 9.715111 | BU165: 0.1699969 | BV165: 0.3349673 | BW165: 0.4606477 | BX165: -0.7328725 | BY165: 1.072866 | BZ165: 0 | CA165: 1.147228 | CB165: 2.561748 | CC165: 3.566191 | CD165: -5.842506 | CE165: 8.136963 | CF165: 0 | CG165: amber | CI165: TRUE
A166: 165 | B166: all_mortality_adj | C166: 2011 | D166: South West Lincolnshire | E166: 2.57684065 | F166: 0.233358534 | G166: 8.465569526 | H166: 11.8653569 | I166: 9.696653547 | J166: 7.4616423 | K166: 7.723027294 | L166: 8.815952099 | M166: 0.05290893599 | N166: 4.748268943 | O166: 8.272023505 | P166: 1.224514381 | Q166: FALSE | R166: 0.5385996758 | S166: 0.9383017753 | T166: 0.1388975764 | U166: FALSE | V166: 120.969 | W166: 287.1966729 | X166: 500.3292057 | Y166: 74.06414005 | Z166: TRUE | AB166: =IF(OR(AND((L166-1.96*M166)<national_data!$H$16,(L166+1.96*M166)<national_data!$H$16),AND((L166-1.96*M166)>national_data!$H$16,(L166+1.96*M166)>national_data!$H$16)),"TRUE","FALSE") -> TRUE | AD166: no clear trend | AH166: 0.7112294383 | AI166: 0.5661555939 | AJ166: 0.8563032828 | AK166: TRUE | AY166: 61 | AZ166: 64 | BA166: 62.5 | BC166: 51 | BD166: 259 | BE166: 155 | BF166: 8 | BG166: 50 | BI166: 45.21224957 | BJ166: =IF(AND(L166<national_data!$H$16,AB166="TRUE"),"GREEN",IF(AND(L166>national_data!$H$16,AB166="TRUE"),"RED","AMBER")) -> RED | BK166: RED | BL166: RED | BO166: all_mortality_adj | BP166: South West Lincolnshire | BQ166: 0.1388976 | BR166: 0.9383018 | BS166: 1.224514 | BT166: 8.272023 | BU166: 0.2077567 | BV166: 0.4078593 | BW166: 0.5449108 | BX166: -0.8602685 | BY166: 1.275782 | BZ166: 0 | CA166: 2.075086 | CB166: 3.595668 | CC166: 4.631808 | CD166: -7.003258 | CE166: 11.15343 | CF166: 0 | CG166: amber | CI166: TRUE
A167: 166 | B167: all_mortality_adj | C167: 2011 | D167: South Worcestershire | E167: 1.620019475 | F167: 0.146708866 | G167: 9.422390702 | H167: 8.39005291 | I167: 8.942700416 | J167: 8.173006324 | K167: 6.459597158 | L167: 8.059180987 | M167: 0.02761322291 | N167: 3.6938052 | O167: 5.468374611 | P167: 1.919235788 | Q167: FALSE | R167: 0.4583350598 | S167: 0.6785273368 | T167: 0.2381427829 | U167: FALSE | V167: 288.701 | W167: 533.2026275 | X167: 789.3626094 | Y167: 277.0426456 | Z167: TRUE | AB167: =IF(OR(AND((L167-1.96*M167)<national_data!$H$16,(L167+1.96*M167)<national_data!$H$16),AND((L167-1.96*M167)>national_data!$H$16,(L167+1.96*M167)>national_data!$H$16)),"TRUE","FALSE") -> TRUE | AD167: no clear trend | AH167: -0.1510334824 | AI167: -0.2314562432 | AJ167: -0.07061072162 | AK167: TRUE | AY167: 31 | AZ167: 33 | BA167: 32 | BC167: 102.6 | BD167: 420 | BE167: 261.3 | BF167: 91 | BG167: 89 | BI167: 41.38774751 | BJ167: =IF(AND(L167<national_data!$H$16,AB167="TRUE"),"GREEN",IF(AND(L167>national_data!$H$16,AB167="TRUE"),"RED","AMBER")) -> GREEN | BK167: RED | BL167: GREEN | BO167: all_mortality_adj | BP167: South Worcestershire | BQ167: 0.2381428 | BR167: 0.6785274 | BS167: 1.919236 | BT167: 5.468375 | BU167: -0.1306379 | BV167: 0.224686 | BW167: 0.3473138 | BX167: -0.8113729 | BY167: 0.5500972 | BZ167: 0 | CA167: -1.257476 | CB167: 1.810785 | CC167: 2.869854 | CD167: -6.882389 | CE167: 4.367437 | CF167: 0 | CG167: amber | CI167: TRUE
A168: 167 | B168: all_mortality_adj | C168: 2011 | D168: Southampton | E168: 0.4400188825 | F168: 0.03984808348 | G168: 10.60239129 | H168: 8.980266217 | I168: 8.31972021 | J168: 7.242308735 | K168: 9.81199197 | L168: 9.054234049 | M168: 0.03510025943 | N168: 3.350125547 | O168: 5.919887028 | P168: 0.7803640668 | Q168: FALSE | R168: 0.3700065107 | S168: 0.6538252707 | T168: 0.08618775068 | U168: FALSE | V168: 239.145 | W168: 400.582887 | X168: 707.8556916 | Y168: 93.31008237 | Z168: TRUE | AB168: =IF(OR(AND((L168-1.96*M168)<national_data!$H$16,(L168+1.96*M168)<national_data!$H$16),AND((L168-1.96*M168)>national_data!$H$16,(L168+1.96*M168)>national_data!$H$16)),"TRUE","FALSE") -> TRUE | AD168: no clear trend | AH168: 0.4335528401 | AI168: 0.3259935489 | AJ168: 0.5411121313 | AK168: TRUE | AY168: 14 | AZ168: 23 | BA168: 18.5 | BC168: 52.2 | BD168: 317 | BE168: 184.6 | BF168: 9 | BG168: 32 | BI168: 44.95667842 | BJ168: =IF(AND(L168<national_data!$H$16,AB168="TRUE"),"GREEN",IF(AND(L168>national_data!$H$16,AB168="TRUE"),"RED","AMBER")) -> RED | BK168: RED | BL168: RED | BO168: all_mortality_adj | BP168: Southampton | BQ168: 0.0861878 | BR168: 0.6538253 | BS168: 0.7803641 | BT168: 5.919887 | BU168: -0.2159675 | BV168: 0.289611 | BW168: 0.4617856 | BX168: -1.121067 | BY168: 0.6891323 | BZ168: 0 | CA168: -1.630424 | CB168: 2.622205 | CC168: 4.027678 | CD168: -9.524673 | CE168: 6.263824 | CF168: 0 | CG168: amber | CI168: TRUE
A169: 168 | B169: all_mortality_adj | C169: 2011 | D169: Southend | E169: -1.331360495 | F169: -0.1205679262 | G169: 12.37377067 | H169: 9.271300205 | I169: 8.634648019 | J169: 7.694580249 | K169: 6.243495268 | L169: 9.118991196 | M169: 0.0467133268 | N169: 6.622868729 | O169: 9.435582128 | P169: 3.81015533 | Q169: FALSE | R169: 0.7262720828 | S169: 1.034717758 | T169: 0.4178264073 | U169: FALSE | V169: 166.703 | W169: 552.0260429 | X169: 786.4699238 | Y169: 317.582162 | Z169: TRUE | AB169: =IF(OR(AND((L169-1.96*M169)<national_data!$H$16,(L169+1.96*M169)<national_data!$H$16),AND((L169-1.96*M169)>national_data!$H$16,(L169+1.96*M169)>national_data!$H$16)),"TRUE","FALSE") -> TRUE | AD169: no clear trend | AH169: -0.7188670467 | AI169: -0.8441230905 | AJ169: -0.5936110029 | AK169: TRUE | AY169: 127 | AZ169: 138 | BA169: 132.5 | BC169: 135.2 | BD169: 688 | BE169: 411.6 | BF169: 177 | BG169: 167 | BI169: 44.21779441 | BJ169: =IF(AND(L169<national_data!$H$16,AB169="TRUE"),"GREEN",IF(AND(L169>national_data!$H$16,AB169="TRUE"),"RED","AMBER")) -> RED | BK169: RED | BL169: GREEN | BO169: all_mortality_adj | BP169: Southend | BQ169: 0.4178264 | BR169: 1.034718 | BS169: 3.810155 | BT169: 9.435582 | BU169: -0.0616852 | BV169: 0.3147405 | BW169: 0.4735054 | BX169: -0.9897557 | BY169: 0.8663854 | BZ169: 0 | CA169: -1.344555 | CB169: 2.870116 | CC169: 4.586148 | CD169: -10.33341 | CE169: 7.644295 | CF169: 0 | CG169: amber | CI169: TRUE
A170: 169 | B170: all_mortality_adj | C170: 2011 | D170: Southern Derbyshire | E170: -0.8780330605 | F170: -0.07951462103 | G170: 11.92044324 | H170: 9.055214604 | I170: 8.76252403 | J170: 8.268928507 | K170: 6.069620297 | L170: 8.606233407 | M170: 0.02495832282 | N170: 6.410055306 | O170: 7.733420715 | P170: 5.086689897 | Q170: FALSE | R170: 0.7448154149 | S170: 0.8985836601 | T170: 0.5910471697 | U170: FALSE | V170: 511.883 | W170: 1640.59917 | X170: 1979.303298 | Y170: 1301.895042 | Z170: TRUE | AB170: =IF(OR(AND((L170-1.96*M170)<national_data!$H$16,(L170+1.96*M170)<national_data!$H$16),AND((L170-1.96*M170)>national_data!$H$16,(L170+1.96*M170)>national_data!$H$16)),"TRUE","FALSE") -> TRUE | AD170: no clear trend | AH170: -0.4608775333 | AI170: -0.5294395278 | AJ170: -0.3923155388 | AK170: TRUE | AY170: 140 | AZ170: 128 | BA170: 134 | BC170: 104.4 | BD170: 534 | BE170: 319.2 | BF170: 96 | BG170: 128 | BI170: 44.07673068 | BJ170: =IF(AND(L170<national_data!$H$16,AB170="TRUE"),"GREEN",IF(AND(L170>national_data!$H$16,AB170="TRUE"),"RED","AMBER")) -> GREEN | BK170: RED | BL170: GREEN | BO170: all_mortality_adj | BP170: Southern Derbyshire | BQ170: 0.5910472 | BR170: 0.8985837 | BS170: 5.08669 | BT170: 7.733421 | BU170: 0.161851 | BV170: 0.1569064 | BW170: 0.2221936 | BX170: -0.2736486 | BY170: 0.5973505 | BZ170: 0 | CA170: 1.384281 | CB170: 1.350373 | CC170: 1.913903 | CD170: -2.36697 | CE170: 5.135531 | CF170: 0 | CG170: amber | CI170: TRUE
A171: 170 | B171: all_mortality_adj | C171: 2011 | D171: Southport and Formby | E171: -1.724046595 | F171: -0.1561295558 | G171: 12.76645677 | H171: 11.83775119 | I171: 8.788761917 | J171: 7.18532026 | K171: 5.159246982 | L171: 8.55569856 | M171: 0.05288303467 | N171: 9.529598483 | O171: 12.36596958 | P171: 6.693227391 | Q171: TRUE | R171: 1.113830556 | S171: 1.445348908 | T171: 0.7823122033 | U171: TRUE | V171: 114.508 | W171: 545.6076316 | X171: 708.0012221 | Y171: 383.2140411 | Z171: TRUE | AB171: =IF(OR(AND((L171-1.96*M171)<national_data!$H$16,(L171+1.96*M171)<national_data!$H$16),AND((L171-1.96*M171)>national_data!$H$16,(L171+1.96*M171)>national_data!$H$16)),"TRUE","FALSE") -> TRUE | AD171: no clear trend | AH171: -0.6239923154 | AI171: -0.7686273798 | AJ171: -0.4793572511 | AK171: TRUE | AY171: 202 | AZ171: 202 | BA171: 202 | BC171: 118.2 | BD171: 602 | BE171: 360.1 | BF171: 141 | BG171: 169 | BI171: 45.73753712 | BJ171: =IF(AND(L171<national_data!$H$16,AB171="TRUE"),"GREEN",IF(AND(L171>national_data!$H$16,AB171="TRUE"),"RED","AMBER")) -> GREEN | BK171: RED | BL171: GREEN | BO171: all_mortality_adj | BP171: Southport and Formby | BQ171: 0.7823122 | BR171: 1.445349 | BS171: 6.693227 | BT171: 12.36597 | BU171: 0.1332059 | BV171: 0.338284 | BW171: 0.5007396 | BX171: -0.8482437 | BY171: 1.114655 | BZ171: 0 | CA171: 0.7010691 | CB171: 2.894256 | CC171: 4.407337 | CD171: -7.937312 | CE171: 9.33945 | CF171: 0 | CG171: amber | CI171: TRUE
A172: 171 | B172: all_mortality_adj | C172: 2011 | D172: Southwark | E172: 2.244117203 | F172: 0.2032271187 | G172: 8.798292973 | H172: 7.167851438 | I172: 6.986712904 | J172: 5.094768482 | K172: 0 | L172: 7.515408805 | M172: 0.03344661074 | N172: 7.890114686 | O172: 10.6767242 | P172: 5.103505176 | Q172: FALSE | R172: 1.04985835 | S172: 1.420644502 | T172: 0.679072198 | U172: TRUE | V172: 291.488 | W172: 1149.936875 | X172: 1556.068491 | Y172: 743.8052584 | Z172: TRUE | AB172: =IF(OR(AND((L172-1.96*M172)<national_data!$H$16,(L172+1.96*M172)<national_data!$H$16),AND((L172-1.96*M172)>national_data!$H$16,(L172+1.96*M172)>national_data!$H$16)),"TRUE","FALSE") -> TRUE | AD172: no clear trend | AH172: -0.5791091083 | AI172: -0.6840100524 | AJ172: -0.4742081643 | AK172: TRUE | AY172: 200 | AZ172: 180 | BA172: 190 | BC172: 114 | BD172: 559 | BE172: 336.5 | BF172: 129 | BG172: 155 | BI172: 28.0476258 | BJ172: =IF(AND(L172<national_data!$H$16,AB172="TRUE"),"GREEN",IF(AND(L172>national_data!$H$16,AB172="TRUE"),"RED","AMBER")) -> GREEN | BK172: RED | BL172: GREEN | BO172: all_mortality_adj | BP172: Southwark | BQ172: 0.6790722 | BR172: 1.420645 | BS172: 5.103505 | BT172: 10.67672 | BU172: -0.0862102 | BV172: 0.3783532 | BW172: 0.5766297 | BX172: -1.216404 | BY172: 1.043984 | BZ172: 0 | CA172: -1.284711 | CB172: 2.843479 | CC172: 4.520508 | CD172: -10.14491 | CE172: 7.575484 | CF172: 0 | CG172: amber | CI172: TRUE
A173: 172 | B173: all_mortality_adj | C173: 2011 | D173: St Helens | E173: -0.3610427243 | F173: -0.03269600735 | G173: 11.4034529 | H173: 9.410914835 | I173: 9.220260435 | J173: 7.095553832 | K173: 6.179192778 | L173: 9.361646685 | M173: 0.03931753758 | N173: 7.130954154 | O173: 9.362712449 | P173: 4.899195859 | Q173: FALSE | R173: 0.7617200685 | S173: 1.000113844 | T173: 0.5233262933 | U173: FALSE | V173: 178.002 | W173: 634.6620506 | X173: 833.2907707 | Y173: 436.0333306 | Z173: TRUE | AB173: =IF(OR(AND((L173-1.96*M173)<national_data!$H$16,(L173+1.96*M173)<national_data!$H$16),AND((L173-1.96*M173)>national_data!$H$16,(L173+1.96*M173)>national_data!$H$16)),"TRUE","FALSE") -> TRUE | AD173: no clear trend | AH173: -0.6364811659 | AI173: -0.7445409052 | AJ173: -0.5284214267 | AK173: TRUE | AY173: 149 | AZ173: 159 | BA173: 154 | BC173: 129 | BD173: 736 | BE173: 432.5 | BF173: 163 | BG173: 165 | BI173: 43.30937478 | BJ173: =IF(AND(L173<national_data!$H$16,AB173="TRUE"),"GREEN",IF(AND(L173>national_data!$H$16,AB173="TRUE"),"RED","AMBER")) -> RED | BK173: RED | BL173: GREEN | BO173: all_mortality_adj | BP173: St Helens | BQ173: 0.5233263 | BR173: 1.000114 | BS173: 4.899196 | BT173: 9.362713 | BU173: -0.0809526 | BV173: 0.243259 | BW173: 0.3640971 | BX173: -0.794583 | BY173: 0.6326777 | BZ173: 0 | CA173: -1.00387 | CB173: 2.277305 | CC173: 3.467801 | CD173: -7.80076 | CE173: 5.793019 | CF173: 0 | CG173: amber | CI173: TRUE
A174: 173 | B174: all_mortality_adj | C174: 2011 | D174: Stafford and Surrounds | E174: -0.361408478 | F174: -0.03272912999 | G174: 11.40381865 | H174: 10.05168867 | I174: 9.336430068 | J174: 8.15972813 | K174: 5.81016658 | L174: 7.851408848 | M174: 0.04679424522 | N174: 6.943187236 | O174: 9.587796867 | P174: 4.298577606 | Q174: FALSE | R174: 0.88432374 | S174: 1.221156235 | T174: 0.5474912451 | U174: FALSE | V174: 145.688 | W174: 505.7695311 | X174: 698.413475 | Y174: 313.1255871 | Z174: TRUE | AB174: =IF(OR(AND((L174-1.96*M174)<national_data!$H$16,(L174+1.96*M174)<national_data!$H$16),AND((L174-1.96*M174)>national_data!$H$16,(L174+1.96*M174)>national_data!$H$16)),"TRUE","FALSE") -> TRUE | AD174: no clear trend | AH174: -0.5422201036 | AI174: -0.6681164645 | AJ174: -0.4163237426 | AK174: TRUE | AY174: 181 | AZ174: 153 | BA174: 167 | BC174: 107.2 | BD174: 501 | BE174: 304.1 | BF174: 107 | BG174: 98 | BI174: 44.76183211 | BJ174: =IF(AND(L174<national_data!$H$16,AB174="TRUE"),"GREEN",IF(AND(L174>national_data!$H$16,AB174="TRUE"),"RED","AMBER")) -> GREEN | BK174: RED | BL174: GREEN | BO174: all_mortality_adj | BP174: Stafford and Surrounds | BQ174: 0.5474913 | BR174: 1.221156 | BS174: 4.298578 | BT174: 9.587797 | BU174: 0.4653724 | BV174: 0.3437066 | BW174: 0.5066584 | BX174: -0.5276781 | BY174: 1.458423 | BZ174: 0 | CA174: 3.571885 | CB174: 2.698581 | CC174: 4.031779 | CD174: -4.330401 | CE174: 11.47417 | CF174: 0 | CG174: amber | CI174: TRUE
A175: 174 | B175: all_mortality_adj | C175: 2011 | D175: Stockport | E175: -1.914497956 | F175: -0.1733768195 | G175: 12.95690813 | H175: 9.218256437 | I175: 8.350373487 | J175: 7.947443563 | K175: 6.412737131 | L175: 8.47883726 | M175: 0.03376852428 | N175: 6.605130088 | O175: 8.316045039 | P175: 4.894215137 | Q175: FALSE | R175: 0.7790136649 | S175: 0.9808001716 | T175: 0.5772271583 | U175: FALSE | V175: 285.857 | W175: 944.0613358 | X175: 1188.599843 | Y175: 699.5228283 | Z175: TRUE | AB175: =IF(OR(AND((L175-1.96*M175)<national_data!$H$16,(L175+1.96*M175)<national_data!$H$16),AND((L175-1.96*M175)>national_data!$H$16,(L175+1.96*M175)>national_data!$H$16)),"TRUE","FALSE") -> TRUE | AD175: no clear trend | AH175: -0.2948496194 | AI175: -0.3841449205 | AJ175: -0.2055543183 | AK175: TRUE | AY175: 155 | AZ175: 136 | BA175: 145.5 | BC175: 117.4 | BD175: 655 | BE175: 386.2 | BF175: 138 | BG175: 69 | BI175: 44.88571875 | BJ175: =IF(AND(L175<national_data!$H$16,AB175="TRUE"),"GREEN",IF(AND(L175>national_data!$H$16,AB175="TRUE"),"RED","AMBER")) -> GREEN | BK175: RED | BL175: GREEN | BO175: all_mortality_adj | BP175: Stockport | BQ175: 0.5772272 | BR175: 0.9808002 | BS175: 4.894215 | BT175: 8.316045 | BU175: 0.0438397 | BV175: 0.2059046 | BW175: 0.2870242 | BX175: -0.5187278 | BY175: 0.6064071 | BZ175: 0 | CA175: 0.430277 | CB175: 1.745831 | CC175: 2.42256 | CD175: -4.317941 | CE175: 5.178495 | CF175: 0 | CG175: amber | CI175: TRUE
A176: 175 | B176: all_mortality_adj | C176: 2011 | D176: Stoke on Trent | E176: 0.2016825259 | F176: 0.01826435739 | G176: 10.84072765 | H176: 10.0522137 | I176: 9.080640772 | J176: 7.300802793 | K176: 5.305575933 | L176: 9.827007724 | M176: 0.03365014363 | N176: 6.458938334 | O176: 8.822478937 | P176: 4.095397732 | Q176: FALSE | R176: 0.6572639928 | S176: 0.897778773 | T176: 0.4167492127 | U176: FALSE | V176: 248.835 | W176: 803.6049602 | X176: 1097.670773 | Y176: 509.5391473 | Z176: TRUE | AB176: =IF(OR(AND((L176-1.96*M176)<national_data!$H$16,(L176+1.96*M176)<national_data!$H$16),AND((L176-1.96*M176)>national_data!$H$16,(L176+1.96*M176)>national_data!$H$16)),"TRUE","FALSE") -> TRUE | AD176: no clear trend | AH176: 0.07804974896 | AI176: -0.0139775409 | AJ176: 0.1700770388 | AK176: FALSE | AY176: 103 | AZ176: 131 | BA176: 117 | BC176: 104.8 | BD176: 668 | BE176: 386.4 | BF176: 98 | BG176: 110 | BI176: 42.57996085 | BJ176: =IF(AND(L176<national_data!$H$16,AB176="TRUE"),"GREEN",IF(AND(L176>national_data!$H$16,AB176="TRUE"),"RED","AMBER")) -> RED | BK176: RED | BL176: AMBER | BO176: all_mortality_adj | BP176: Stoke on Trent | BQ176: 0.4167492 | BR176: 0.8977787 | BS176: 4.095398 | BT176: 8.822479 | BU176: 0.0494858 | BV176: 0.2454232 | BW176: 0.3435764 | BX176: -0.623924 | BY176: 0.7228956 | BZ176: 0 | CA176: 0.5953459 | CB176: 2.411776 | CC176: 3.34628 | CD176: -5.963363 | CE176: 7.154055 | CF176: 0 | CG176: amber | CI176: TRUE
A177: 176 | B177: all_mortality_adj | C177: 2011 | D177: Sunderland | E177: -0.6169866426 | F177: -0.05587427316 | G177: 11.65939682 | H177: 10.64153797 | I177: 7.241488965 | J177: 7.409530419 | K177: 6.027187364 | L177: 9.827669583 | M177: 0.03257000702 | N177: 7.735898947 | O177: 10.11894239 | P177: 5.352855507 | Q177: TRUE | R177: 0.7871549691 | S177: 1.029638034 | T177: 0.5446719043 | U177: FALSE | V177: 284.415 | W177: 1100.10285 | X177: 1438.9895 | Y177: 761.2161995 | Z177: TRUE | AB177: =IF(OR(AND((L177-1.96*M177)<national_data!$H$16,(L177+1.96*M177)<national_data!$H$16),AND((L177-1.96*M177)>national_data!$H$16,(L177+1.96*M177)>national_data!$H$16)),"TRUE","FALSE") -> TRUE | AD177: no clear trend | AH177: -0.07505030824 | AI177: -0.1680532194 | AJ177: 0.0179526029 | AK177: FALSE | AY177: 160 | AZ177: 175 | BA177: 167.5 | BC177: 150.4 | BD177: 806 | BE177: 478.2 | BF177: 193 | BG177: 206 | BI177: 42.97914153 | BJ177: =IF(AND(L177<national_data!$H$16,AB177="TRUE"),"GREEN",IF(AND(L177>national_data!$H$16,AB177="TRUE"),"RED","AMBER")) -> RED | BK177: RED | BL177: AMBER | BO177: all_mortality_adj | BP177: Sunderland | BQ177: 0.5446719 | BR177: 1.029638 | BS177: 5.352856 | BT177: 10.11894 | BU177: 0.0286477 | BV177: 0.2474317 | BW177: 0.3375238 | BX177: -0.6328989 | BY177: 0.6901942 | BZ177: 0 | CA177: -0.0848273 | CB177: 2.431677 | CC177: 3.393461 | CD177: -6.736011 | CE177: 6.566356 | CF177: 0 | CG177: amber | CI177: TRUE
A178: 177 | B178: all_mortality_adj | C178: 2011 | D178: Surrey Downs | H178: 8.563833462 | I178: 7.986330825 | J178: 8.528107971 | K178: 6.991915818 | L178: 7.396823501 | M178: 0.03359699732 | N178: 3.512268219 | O178: 6.324284423 | P178: 0.700252014 | Q178: FALSE | R178: 0.4748346663 | S178: 0.8550000446 | T178: 0.09466928796 | U178: FALSE | V178: 281.555 | W178: 494.4483391 | X178: 890.3169504 | Y178: 98.5797279 | Z178: TRUE | AB178: =IF(OR(AND((L178-1.96*M178)<national_data!$H$16,(L178+1.96*M178)<national_data!$H$16),AND((L178-1.96*M178)>national_data!$H$16,(L178+1.96*M178)>national_data!$H$16)),"TRUE","FALSE") -> TRUE | AD178: no clear trend | AH178: -0.2838682608 | AI178: -0.3728483114 | AJ178: -0.1948882102 | AK178: TRUE | AY178: 39 | AZ178: 28 | BA178: 33.5 | BC178: 114 | BD178: 429 | BE178: 271.5 | BF178: 129 | BG178: 51 | BI178: 32.07018808 | BJ178: =IF(AND(L178<national_data!$H$16,AB178="TRUE"),"GREEN",IF(AND(L178>national_data!$H$16,AB178="TRUE"),"RED","AMBER")) -> GREEN | BK178: RED | BL178: GREEN | BO178: all_mortality_adj | BP178: Surrey Downs | BQ178: 0.0946693 | BR178: 0.855 | BS178: 0.700252 | BT178: 6.324285 | BU178: -0.0637326 | BV178: 0.3879238 | BW178: 0.5343214 | BX178: -1.111003 | BY178: 0.9835374 | BZ178: 0 | CA178: -0.5762439 | CB178: 2.869404 | CC178: 4.0018 | CD178: -8.419771 | CE178: 7.267283 | CF178: 0 | CG178: amber | CI178: TRUE
A179: 178 | B179: all_mortality_adj | C179: 2011 | D179: Surrey Heath | H179: 8.41495926 | I179: 9.392556787 | J179: 7.785450714 | K179: 7.38892662 | L179: 7.721295395 | M179: 0.06703745326 | N179: 3.549255605 | O179: 8.708636898 | P179: -1.610125689 | Q179: FALSE | R179: 0.4596710038 | S179: 1.12787252 | T179: -0.2085305129 | U179: FALSE | V179: 93.126 | W179: 165.2639887 | X179: 405.5002599 | Y179: -74.97228244 | Z179: FALSE | AB179: =IF(OR(AND((L179-1.96*M179)<national_data!$H$16,(L179+1.96*M179)<national_data!$H$16),AND((L179-1.96*M179)>national_data!$H$16,(L179+1.96*M179)>national_data!$H$16)),"TRUE","FALSE") -> TRUE | AD179: no clear trend | AH179: 0.4466321286 | AI179: 0.2654541557 | AJ179: 0.6278101014 | AK179: TRUE | AY179: 32 | AZ179: 29 | BA179: 30.5 | BC179: 121 | BD179: 551 | BE179: 336 | BF179: 149 | BG179: 103 | BI179: 32.98189338 | BJ179: =IF(AND(L179<national_data!$H$16,AB179="TRUE"),"GREEN",IF(AND(L179>national_data!$H$16,AB179="TRUE"),"RED","AMBER")) -> GREEN | BK179: AMBER | BL179: RED | BO179: all_mortality_adj | BP179: Surrey Heath | BQ179: -0.2085305 | BR179: 1.127872 | BS179: -1.610126 | BT179: 8.708637 | BU179: -0.3666057 | BV179: 0.6818383 | BW179: 1.060418 | BX179: -2.445024 | BY179: 1.711813 | BZ179: 0 | CA179: -3.144757 | CB179: 5.264675 | CC179: 8.426574 | CD179: -19.66084 | CE179: 13.37133 | CF179: 0 | CG179: amber | CI179: TRUE
A180: 179 | B180: all_mortality_adj | C180: 2011 | D180: Sutton | E180: 0.8995427027 | F180: 0.08146253294 | G180: 10.14286747 | H180: 8.995652665 | I180: 8.174222547 | J180: 7.61807913 | K180: 6.622782076 | L180: 7.905876714 | M180: 0.03490736885 | N180: 3.80169885 | O180: 6.041006451 | P180: 1.562391249 | Q180: FALSE | R180: 0.4808699891 | S180: 0.7641159443 | T180: 0.197624034 | U180: FALSE | V180: 196.914 | W180: 374.3038637 | X180: 594.7793721 | Y180: 153.8283552 | Z180: TRUE | AB180: =IF(OR(AND((L180-1.96*M180)<national_data!$H$16,(L180+1.96*M180)<national_data!$H$16),AND((L180-1.96*M180)>national_data!$H$16,(L180+1.96*M180)>national_data!$H$16)),"TRUE","FALSE") -> TRUE | AD180: no clear trend | AH180: -0.3355399145 | AI180: -0.437571621 | AJ180: -0.233508208 | AK180: TRUE | AY180: 41 | AZ180: 34 | BA180: 37.5 | BC180: 108.8 | BD180: 474 | BE180: 291.4 | BF180: 112 | BG180: 152 | BI180: 41.55360389 | BJ180: =IF(AND(L180<national_data!$H$16,AB180="TRUE"),"GREEN",IF(AND(L180>national_data!$H$16,AB180="TRUE"),"RED","AMBER")) -> GREEN | BK180: RED | BL180: GREEN | BO180: all_mortality_adj | BP180: Sutton | BQ180: 0.197624 | BR180: 0.7641159 | BS180: 1.562391 | BT180: 6.041007 | BU180: -0.0473253 | BV180: 0.2890265 | BW180: 0.4511051 | BX180: -0.9314913 | BY180: 0.8368407 | BZ180: 0 | CA180: -0.6038775 | CB180: 2.285008 | CC180: 3.683305 | CD180: -7.823156 | CE180: 6.615401 | CF180: 0 | CG180: amber | CI180: TRUE
A181: 180 | B181: all_mortality_adj | C181: 2011 | D181: Swale | E181: 0.6325609835 | F181: 0.05728468454 | G181: 10.40984919 | H181: 8.908871872 | I181: 8.3412947 | J181: 7.620186783 | K181: 5.06300819 | L181: 8.57880592 | M181: 0.0455753052 | N181: 6.132840158 | O181: 9.068490719 | P181: 3.197189598 | Q181: FALSE | R181: 0.7148827255 | S181: 1.057080764 | T181: 0.3726846868 | U181: FALSE | V181: 105.484 | W181: 323.4582556 | X181: 478.2903375 | Y181: 168.6261738 | Z181: TRUE | AB181: =IF(OR(AND((L181-1.96*M181)<national_data!$H$16,(L181+1.96*M181)<national_data!$H$16),AND((L181-1.96*M181)>national_data!$H$16,(L181+1.96*M181)>national_data!$H$16)),"TRUE","FALSE") -> TRUE | AD181: no clear trend | AH181: -0.7650537058 | AI181: -0.8915712722 | AJ181: -0.6385361394 | AK181: TRUE | AY181: 118 | AZ181: 115 | BA181: 116.5 | BC181: 120 | BD181: 643 | BE181: 381.5 | BF181: 146 | BG181: 85 | BI181: 40.34321074 | BJ181: =IF(AND(L181<national_data!$H$16,AB181="TRUE"),"GREEN",IF(AND(L181>national_data!$H$16,AB181="TRUE"),"RED","AMBER")) -> GREEN | BK181: RED | BL181: GREEN | BO181: all_mortality_adj | BP181: Swale | BQ181: 0.3726847 | BR181: 1.057081 | BS181: 3.19719 | BT181: 9.068491 | BU181: 0.2781224 | BV181: 0.3491817 | BW181: 0.5234585 | BX181: -0.7478562 | BY181: 1.304101 | BZ181: 0 | CA181: 1.971522 | CB181: 2.995562 | CC181: 4.772718 | CD181: -7.383006 | CE181: 11.32605 | CF181: 0 | CG181: amber | CI181: TRUE
A182: 181 | B182: all_mortality_adj | C182: 2011 | D182: Swindon | E182: -0.3055598281 | F182: -0.02767147961 | G182: 11.34797 | H182: 9.252430352 | I182: 9.351761668 | J182: 8.28582515 | K182: 7.715547755 | L182: 8.752574741 | M182: 0.03370954899 | N182: 4.169168889 | O182: 6.014230628 | P182: 2.324107151 | Q182: FALSE | R182: 0.4763362796 | S182: 0.6871384485 | T182: 0.2655341108 | U182: FALSE | V182: 209.501 | W182: 436.7225258 | X182: 629.9936654 | Y182: 243.4513861 | Z182: TRUE | AB182: =IF(OR(AND((L182-1.96*M182)<national_data!$H$16,(L182+1.96*M182)<national_data!$H$16),AND((L182-1.96*M182)>national_data!$H$16,(L182+1.96*M182)>national_data!$H$16)),"TRUE","FALSE") -> TRUE | AD182: no clear trend | AH182: 0.5711194663 | AI182: 0.4738838994 | AJ182: 0.6683550332 | AK182: TRUE | AY182: 40 | AZ182: 50 | BA182: 45 | BC182: 54.4 | BD182: 312 | BE182: 183.2 | BF182: 13 | BG182: 21 | BI182: 45.95353493 | BJ182: =IF(AND(L182<national_data!$H$16,AB182="TRUE"),"GREEN",IF(AND(L182>national_data!$H$16,AB182="TRUE"),"RED","AMBER")) -> RED | BK182: RED | BL182: RED | BO182: all_mortality_adj | BP182: Swindon | BQ182: 0.2655341 | BR182: 0.6871384 | BS182: 2.324107 | BT182: 6.014231 | BU182: -0.1456879 | BV182: 0.2151043 | BW182: 0.3354593 | BX182: -0.8031881 | BY182: 0.5118123 | BZ182: 0 | CA182: -0.9066921 | CB182: 1.882716 | CC182: 2.820822 | CD182: -6.435503 | CE182: 4.622119 | CF182: 0 | CG182: amber | CI182: TRUE
A183: 182 | B183: all_mortality_adj | C183: 2011 | D183: Tameside and Glossop | E183: -1.41581667 | F183: -0.1282162723 | G183: 12.45822685 | H183: 11.46291982 | I183: 8.867993357 | J183: 6.757084402 | K183: 7.219032008 | L183: 10.30875172 | M183: 0.03561319206 | N183: 7.961799608 | O183: 10.44449591 | P183: 5.479103303 | Q183: TRUE | R183: 0.7723340149 | S183: 1.013167859 | T183: 0.5315001709 | U183: FALSE | V183: 251.927 | W183: 1002.896145 | X183: 1315.625261 | Y183: 690.1670289 | Z183: TRUE | AB183: =IF(OR(AND((L183-1.96*M183)<national_data!$H$16,(L183+1.96*M183)<national_data!$H$16),AND((L183-1.96*M183)>national_data!$H$16,(L183+1.96*M183)>national_data!$H$16)),"TRUE","FALSE") -> TRUE | AD183: no clear trend | AH183: -0.2599263635 | AI183: -0.3576290952 | AJ183: -0.1622236319 | AK183: TRUE | AY183: 154 | AZ183: 183 | BA183: 168.5 | BC183: 82.4 | BD183: 582 | BE183: 332.2 | BF183: 49 | BG183: 179 | BI183: 46.76525644 | BJ183: =IF(AND(L183<national_data!$H$16,AB183="TRUE"),"GREEN",IF(AND(L183>national_data!$H$16,AB183="TRUE"),"RED","AMBER")) -> RED | BK183: RED | BL183: GREEN | BO183: all_mortality_adj | BP183: Tameside and Glossop | BQ183: 0.5315002 | BR183: 1.013168 | BS183: 5.479103 | BT183: 10.4445 | BU183: -0.0806089 | BV183: 0.2457488 | BW183: 0.3439234 | BX183: -0.7546988 | BY183: 0.593481 | BZ183: 0 | CA183: -1.168802 | CB183: 2.533364 | CC183: 3.612731 | CD183: -8.249756 | CE183: 5.912151 | CF183: 0 | CG183: amber | CI183: TRUE
A184: 183 | B184: all_mortality_adj | C184: 2011 | D184: Telford & Wrekin | E184: 1.388065554 | F184: 0.1257031329 | G184: 9.654344622 | H184: 8.562590503 | I184: 8.78911805 | J184: 8.502705981 | K184: 7.735943753 | L184: 8.72976084 | M184: 0.05250545487 | N184: 2.670177184 | O184: 5.395053029 | P184: -0.05469866161 | Q184: FALSE | R184: 0.3058705997 | S184: 0.6180069681 | T184: -0.006265768629 | U184: FALSE | V184: 163.181 | W184: 217.8610915 | X184: 440.1850742 | Y184: -4.46289115 | Z184: FALSE | AB184: =IF(OR(AND((L184-1.96*M184)<national_data!$H$16,(L184+1.96*M184)<national_data!$H$16),AND((L184-1.96*M184)>national_data!$H$16,(L184+1.96*M184)>national_data!$H$16)),"TRUE","FALSE") -> FALSE | AD184: no clear trend | AH184: -0.6364570991 | AI184: -0.7773324385 | AJ184: -0.4955817596 | AK184: TRUE | AY184: 9 | AZ184: 10 | BA184: 9.5 | BC184: 40.6 | BD184: 258 | BE184: 149.3 | BF184: 2 | BG184: 5 | BI184: 43.24470291 | BJ184: =IF(AND(L184<national_data!$H$16,AB184="TRUE"),"GREEN",IF(AND(L184>national_data!$H$16,AB184="TRUE"),"RED","AMBER")) -> AMBER | BK184: AMBER | BL184: GREEN | BO184: all_mortality_adj | BP184: Telford & Wrekin | BQ184: -0.0062658 | BR184: 0.6180069 | BS184: -0.0546987 | BT184: 5.395053 | BU184: -0.2037251 | BV184: 0.3185065 | BW184: 0.4375008 | BX184: -1.061227 | BY184: 0.6537765 | BZ184: 0 | CA184: -1.994549 | CB184: 2.780485 | CC184: 3.907562 | CD184: -9.653372 | CE184: 5.664273 | CF184: 0 | CG184: amber | CI184: TRUE
A185: 184 | B185: all_mortality_adj | C185: 2011 | D185: Thanet | E185: -2.118310764 | F185: -0.1918340951 | G185: 13.16072094 | H185: 9.809441783 | I185: 9.276674207 | J185: 8.532848813 | K185: 6.001796843 | L185: 10.37742189 | M185: 0.04930961997 | N185: 6.957631705 | O185: 10.89847152 | P185: 3.016791889 | Q185: FALSE | R185: 0.6704585954 | S185: 1.05020993 | T185: 0.2907072605 | U185: FALSE | V185: 133.081 | W185: 462.9642925 | X185: 725.1897443 | Y185: 200.7388407 | Z185: TRUE | AB185: =IF(OR(AND((L185-1.96*M185)<national_data!$H$16,(L185+1.96*M185)<national_data!$H$16),AND((L185-1.96*M185)>national_data!$H$16,(L185+1.96*M185)>national_data!$H$16)),"TRUE","FALSE") -> TRUE | AD185: no clear trend | AH185: 0.1623165091 | AI185: 0.03043034278 | AJ185: 0.2942026754 | AK185: TRUE | AY185: 108 | AZ185: 154 | BA185: 131 | BC185: 121 | BD185: 621 | BE185: 371 | BF185: 149 | BG185: 131 | BI185: 46.78148259 | BJ185: =IF(AND(L185<national_data!$H$16,AB185="TRUE"),"GREEN",IF(AND(L185>national_data!$H$16,AB185="TRUE"),"RED","AMBER")) -> RED | BK185: RED | BL185: RED | BO185: all_mortality_adj | BP185: Thanet | BQ185: 0.2907073 | BR185: 1.05021 | BS185: 3.016792 | BT185: 10.89847 | BU185: 0.0530092 | BV185: 0.3875013 | BW185: 0.5296656 | BX185: -0.9851354 | BY185: 1.091154 | BZ185: 0 | CA185: 0.6401919 | CB185: 4.021266 | CC185: 5.460782 | CD185: -10.06294 | CE185: 11.34332 | CF185: 0 | CG185: amber | CI185: TRUE
A186: 185 | B186: all_mortality_adj | C186: 2011 | D186: Thurrock | E186: -0.03721715001 | F186: -0.003370382861 | G186: 11.07962733 | H186: 11.44820132 | I186: 8.586984017 | J186: 6.43458429 | K186: 5.343006259 | L186: 8.665001784 | M186: 0.05593242481 | N186: 8.355188183 | O186: 11.34765642 | P186: 5.362719947 | Q186: TRUE | R186: 0.9642454083 | S186: 1.309596547 | T186: 0.6188942693 | U186: TRUE | V186: 161.091 | W186: 672.9728098 | X186: 914.00266 | Y186: 431.9429595 | Z186: TRUE | AB186: =IF(OR(AND((L186-1.96*M186)<national_data!$H$16,(L186+1.96*M186)<national_data!$H$16),AND((L186-1.96*M186)>national_data!$H$16,(L186+1.96*M186)>national_data!$H$16)),"TRUE","FALSE") -> FALSE | AD186: no clear trend | AH186: 0.2645888508 | AI186: 0.1129586218 | AJ186: 0.4162190797 | AK186: TRUE | AY186: 193 | AZ186: 188 | BA186: 190.5 | BC186: 118.2 | BD186: 614 | BE186: 366.1 | BF186: 141 | BG186: 108 | BI186: 42.89240322 | BJ186: =IF(AND(L186<national_data!$H$16,AB186="TRUE"),"GREEN",IF(AND(L186>national_data!$H$16,AB186="TRUE"),"RED","AMBER")) -> AMBER | BK186: RED | BL186: RED | BO186: all_mortality_adj | BP186: Thurrock | BQ186: 0.6188943 | BR186: 1.309597 | BS186: 5.36272 | BT186: 11.34766 | BU186: 0.1920362 | BV186: 0.3523991 | BW186: 0.5109839 | BX186: -0.8094923 | BY186: 1.193565 | BZ186: 0 | CA186: 1.991407 | CB186: 3.053539 | CC186: 4.315423 | CD186: -6.466823 | CE186: 10.44964 | CF186: 0 | CG186: amber | CI186: TRUE
A187: 186 | B187: all_mortality_adj | C187: 2011 | D187: Tower Hamlets | E187: 1.107158107 | F187: 0.1002641714 | G187: 9.93525207 | H187: 7.948521304 | I187: 6.391863991 | J187: 0 | K187: 2.570827322 | L187: 8.893055393 | M187: 0.04120174369 | N187: 10.89686364 | O187: 14.65401748 | P187: 7.139709796 | Q187: TRUE | R187: 1.225322811 | S187: 1.647804588 | T187: 0.802841035 | U187: TRUE | V187: 240.813 | W187: 1312.053211 | X187: 1764.438955 | Y187: 859.6674676 | Z187: TRUE | AB187: =IF(OR(AND((L187-1.96*M187)<national_data!$H$16,(L187+1.96*M187)<national_data!$H$16),AND((L187-1.96*M187)>national_data!$H$16,(L187+1.96*M187)>national_data!$H$16)),"TRUE","FALSE") -> TRUE | AD187: no clear trend | AH187: 0.3356721871 | AI187: 0.2282788706 | AJ187: 0.4430655036 | AK187: TRUE | AY187: 206 | AZ187: 206 | BA187: 206 | BC187: 133.2 | BD187: 579 | BE187: 356.1 | BF187: 172 | BG187: 71 | BI187: 26.84646469 | BJ187: =IF(AND(L187<national_data!$H$16,AB187="TRUE"),"GREEN",IF(AND(L187>national_data!$H$16,AB187="TRUE"),"RED","AMBER")) -> RED | BK187: RED | BL187: RED | BO187: all_mortality_adj | BP187: Tower Hamlets | BQ187: 0.802841 | BR187: 1.647805 | BS187: 7.13971 | BT187: 14.65402 | BU187: -0.0846903 | BV187: 0.4311039 | BW187: 0.6132491 | BX187: -1.286658 | BY187: 1.117278 | BZ187: 0 | CA187: -0.8156772 | CB187: 3.83383 | CC187: 5.468481 | CD187: -11.5339 | CE187: 9.902546 | CF187: 0 | CG187: amber | CI187: TRUE
A188: 187 | B188: all_mortality_adj | C188: 2011 | D188: Trafford | E188: -0.4463381139 | F188: -0.0404203527 | G188: 11.48874829 | H188: 9.547750497 | I188: 8.941528783 | J188: 8.603917518 | K188: 6.934823276 | L188: 8.58618229 | M188: 0.03300408115 | N188: 4.628587095 | O188: 6.31607929 | P188: 2.9410949 | Q188: FALSE | R188: 0.5390739375 | S188: 0.7356097363 | T188: 0.3425381387 | U188: FALSE | V188: 218.776 | W188: 506.3118851 | X188: 690.9032813 | Y188: 321.7204889 | Z188: TRUE | AB188: =IF(OR(AND((L188-1.96*M188)<national_data!$H$16,(L188+1.96*M188)<national_data!$H$16),AND((L188-1.96*M188)>national_data!$H$16,(L188+1.96*M188)>national_data!$H$16)),"TRUE","FALSE") -> TRUE | AD188: no clear trend | AH188: 0.03244445909 | AI188: -0.05880603689 | AJ188: 0.1236949551 | AK188: FALSE | AY188: 63 | AZ188: 60 | BA188: 61.5 | BC188: 104.2 | BD188: 558 | BE188: 331.1 | BF188: 95 | BG188: 34 | BI188: 45.51676836 | BJ188: =IF(AND(L188<national_data!$H$16,AB188="TRUE"),"GREEN",IF(AND(L188>national_data!$H$16,AB188="TRUE"),"RED","AMBER")) -> GREEN | BK188: RED | BL188: AMBER | BO188: all_mortality_adj | BP188: Trafford | BQ188: 0.3425381 | BR188: 0.7356097 | BS188: 2.941095 | BT188: 6.316079 | BU188: -0.0341201 | BV188: 0.2005467 | BW188: 0.3072077 | BX188: -0.6362473 | BY188: 0.5680071 | BZ188: 0 | CA188: -0.3318364 | CB188: 1.721931 | CC188: 2.649718 | CD188: -5.525283 | CE188: 4.86161 | CF188: 0 | CG188: amber | CI188: TRUE
A189: 189 | B189: all_mortality_adj | C189: 2011 | D189: Vale of York | E189: -0.4924642563 | F189: -0.04459753337 | G189: 11.53487443 | H189: 10.34470327 | I189: 9.444864525 | J189: 8.032572739 | K189: 7.806393087 | L189: 8.583781665 | M189: 0.02938055569 | N189: 4.691580492 | O189: 6.589687237 | P189: 2.793473747 | Q189: FALSE | R189: 0.5465633534 | S189: 0.7676904533 | T189: 0.3254362536 | U189: FALSE | V189: 351.921 | W189: 825.5328491 | X189: 1159.524661 | Y189: 491.5410372 | Z189: TRUE | AB189: =IF(OR(AND((L189-1.96*M189)<national_data!$H$16,(L189+1.96*M189)<national_data!$H$16),AND((L189-1.96*M189)>national_data!$H$16,(L189+1.96*M189)>national_data!$H$16)),"TRUE","FALSE") -> TRUE | AD189: no clear trend | AH189: 0.611600415 | AI189: 0.5250478884 | AJ189: 0.6981529416 | AK189: TRUE | AY189: 65 | AZ189: 63 | BA189: 64 | BC189: 90.6 | BD189: 387 | BE189: 238.8 | BF189: 60 | BG189: 147 | BI189: 47.16340805 | BJ189: =IF(AND(L189<national_data!$H$16,AB189="TRUE"),"GREEN",IF(AND(L189>national_data!$H$16,AB189="TRUE"),"RED","AMBER")) -> GREEN | BK189: RED | BL189: RED | BO189: all_mortality_adj | BP189: Vale of York | BQ189: 0.3254363 | BR189: 0.7676905 | BS189: 2.793474 | BT189: 6.589687 | BU189: -0.1449934 | BV189: 0.2256399 | BW189: 0.3318351 | BX189: -0.7953901 | BY189: 0.5054034 | BZ189: 0 | CA189: -1.176366 | CB189: 1.936844 | CC189: 2.830846 | CD189: -6.724825 | CE189: 4.372092 | CF189: 0 | CG189: amber | CI189: TRUE
A190: 188 | B190: all_mortality_adj | C190: 2011 | D190: Vale Royal | E190: -0.2299860337 | F190: -0.02082752135 | G190: 11.27239621 | H190: 9.548592063 | I190: 8.697502988 | J190: 6.755593848 | K190: 6.878358225 | L190: 8.281149345 | M190: 0.05772851137 | N190: 5.336395051 | O190: 8.606477092 | P190: 2.066313009 | Q190: FALSE | R190: 0.6444027065 | S190: 1.039285337 | T190: 0.2495200754 | U190: FALSE | V190: 103.304 | W190: 275.6354772 | X190: 444.5417548 | Y190: 106.7291996 | Z190: TRUE | AB190: =IF(OR(AND((L190-1.96*M190)<national_data!$H$16,(L190+1.96*M190)<national_data!$H$16),AND((L190-1.96*M190)>national_data!$H$16,(L190+1.96*M190)>national_data!$H$16)),"TRUE","FALSE") -> TRUE | AD190: no clear trend | AH190: -0.3513495676 | AI190: -0.5195195073 | AJ190: -0.1831796279 | AK190: TRUE | AY190: 98 | AZ190: 89 | BA190: 93.5 | BC190: 57.8 | BD190: 313 | BE190: 185.4 | BF190: 15 | BG190: 55 | BI190: 43.15244333 | BJ190: =IF(AND(L190<national_data!$H$16,AB190="TRUE"),"GREEN",IF(AND(L190>national_data!$H$16,AB190="TRUE"),"RED","AMBER")) -> GREEN | BK190: RED | BL190: GREEN | BO190: all_mortality_adj | BP190: Vale Royal | BQ190: 0.2495201 | BR190: 1.039285 | BS190: 2.066313 | BT190: 8.606477 | BU190: -0.1649661 | BV190: 0.4029414 | BW190: 0.561323 | BX190: -1.265159 | BY190: 0.935227 | BZ190: 0 | CA190: -1.690653 | CB190: 3.336818 | CC190: 4.758827 | CD190: -11.01795 | CE190: 7.636647 | CF190: 0 | CG190: amber | CI190: TRUE
